Workbook

Sheet Carátula
B6: GERENCIA DE FINANZAS - AREA DE COSTOS Y TARIFAS
B9: MODELO DE LAS TARIFAS DE LOS SERVICIOS DE NAVEGACIÓN AÉREA
B13: 2024

Sheet Índice
B2: Contenido
B4: Tarifas aprobadas por el Ositrán
B6: I. Flujos de Caja
B7: Modelo 1: SNAR y Sobrevuelo
B8: Modelo 2: Aproximación
B10: II. Ingresos de los servicios de aeronavegación
B11: a. Proyección de demanda
B12: SNAR Nacional
B13: SNAR Internacional
B14: Aproximación
B15: Sobrevuelo
B16: Tasas de crecimiento de la demanda
B17: b. Tarifas de los servicios de aeronavegación
B18: c. Ingresos proyectados (usuarios atribuibles)
B20: III. Egresos de los servicios de aeronavegación
B21: a. Costos operativos - OPEX (usuarios atribuibles)
B22: Gastos de Personal
B23: OPEX incremental
B24: Pagos a la CGR por Control Concurrente
B25: b. Gastos de Capital - CAPEX
B26: Base de activos existentes
B27: Inversiones programadas
B28: Inversiones ejecutadas (2017 - 2021)
B29: BD Activos de aeronavegación al 2021
B30: Consumo de capital fijo no ejecutado - SNAR-APROX
B31: Consumo de capital fijo no ejecutado - SOBREV
B33: IV. Otros Ingresos y Egresos
B34: Pago de contribuciones
B35: Ingresos y Costos por usuarios no atribuibles
B36: Transferencias del AIJCh
B38: V. Tasa de descuento
B39: Costo Promedio Ponderado del Capital (WACC) al 2021
B41: VI. Información complementaria
B42: Variables macroeconómicas y supuestos generales
B43: BD Variables macroeconómicas

Sheet Tarifa Calculada
B1: Servicios Regulados de Aeronavegación de CORPAC | F1: Índice
B2: Revisión tarifaria 2024 | C2: Optimista
B4: Servicio / Peso Máximo de Despegue (PMD) | C4: Unidad de cobro | D4: Tarifa 30/09/2023 | E4: Tarifa propuesta
B5: A. SNAR Nacional
B6: (En soles)
B7: - Por rango de PMD:
B8: Hasta 5,7TM | C8: Por kilómetro recorrido | D8: =+'2. Tarifas'!L9 -> 0.14 | E8: =+'2. Tarifas'!Z9 -> 0.203784065
B9: Más de 5,7TM a 10TM | C9: Por kilómetro recorrido | D9: =+'2. Tarifas'!L10 -> 0.26 | E9: =+'2. Tarifas'!Z10 -> 0.3784561208
B10: Más de 10TM a 35TM | C10: Por kilómetro recorrido | D10: =+'2. Tarifas'!L11 -> 0.3 | E10: =+'2. Tarifas'!Z11 -> 0.4366801393
B11: Más de 35TM a 70TM | C11: Por kilómetro recorrido | D11: =+'2. Tarifas'!L12 -> 0.39 | E11: =+'2. Tarifas'!Z12 -> 0.5676841811
B12: Más de 70TM a 105TM | C12: Por kilómetro recorrido | D12: =+'2. Tarifas'!L13 -> 0.59 | E12: =+'2. Tarifas'!Z13 -> 0.858804274
B13: Más de 105TM | C13: Por kilómetro recorrido | D13: =+'2. Tarifas'!L14 -> 0.77 | E13: =+'2. Tarifas'!Z14 -> 1.120812358
B14: - Cargo mínimo: | C14: Por operación | D14: =+'2. Tarifas'!L15 -> 12.88 | E14: =+'2. Tarifas'!Z15 -> 18.74813398
B16: B. SNAR Internacional
B17: (En dólares)
B18: - Por rango de PMD:
B19: Hasta 5,7TM | C19: Por kilómetro recorrido | D19: =+'2. Tarifas'!L20 -> 0.05 | E19: =+'2. Tarifas'!Z20 -> 0.07278002322
B20: Más de 5,7TM a 10TM | C20: Por kilómetro recorrido | D20: =+'2. Tarifas'!L21 -> 0.11 | E20: =+'2. Tarifas'!Z21 -> 0.1601160511
B21: Más de 10TM a 35TM | C21: Por kilómetro recorrido | D21: =+'2. Tarifas'!L22 -> 0.12 | E21: =+'2. Tarifas'!Z22 -> 0.1746720557
B22: Más de 35TM a 70TM | C22: Por kilómetro recorrido | D22: =+'2. Tarifas'!L23 -> 0.17 | E22: =+'2. Tarifas'!Z23 -> 0.247452079
B23: Más de 70TM a 105TM | C23: Por kilómetro recorrido | D23: =+'2. Tarifas'!L24 -> 0.25 | E23: =+'2. Tarifas'!Z24 -> 0.3639001161
B24: Más de 105TM | C24: Por kilómetro recorrido | D24: =+'2. Tarifas'!L25 -> 0.35 | E24: =+'2. Tarifas'!Z25 -> 0.5094601626
B25: - Cargo mínimo: | C25: Por operación | D25: =+'2. Tarifas'!L26 -> 6.04 | E25: =+'2. Tarifas'!Z26 -> 8.791826806
B27: C. Aproximación
B28: (En soles)
B29: - Por rango de PMD:
B30: Hasta 10TM | C30: Por Tonelada (PMD) | D30: =+'2. Tarifas'!L31 -> 4.42 | E30: =+'2. Tarifas'!Z31 -> 13.96880763
B31: Más de 10TM a 35TM | C31: Por Tonelada (PMD) | D31: =+'2. Tarifas'!L32 -> 4.94 | E31: =+'2. Tarifas'!Z32 -> 15.61219677
B32: Más de 35TM a 70TM | C32: Por Tonelada (PMD) | D32: =+'2. Tarifas'!L33 -> 5.5 | E32: =+'2. Tarifas'!Z33 -> 17.38200045
B33: Más de 70TM a 105TM | C33: Por Tonelada (PMD) | D33: =+'2. Tarifas'!L34 -> 6.05 | E33: =+'2. Tarifas'!Z34 -> 19.1202005
B34: Más de 105TM | C34: Por Tonelada (PMD) | D34: =+'2. Tarifas'!L35 -> 6.63 | E34: =+'2. Tarifas'!Z35 -> 20.95321145
B35: - Cargo mínimo: | C35: Por operación | D35: =+'2. Tarifas'!L36 -> 11.03 | E35: =+'2. Tarifas'!Z36 -> 34.85881181
B37: D. Sobrevuelo
B38: (En dólares)
B39: - Por rango de PMD:
B40: Hasta 55TM | C40: Por kilómetro recorrido | D40: =+'2. Tarifas'!L41 -> 0.16 | E40: =+'2. Tarifas'!Z41 -> 0.2328960743
B41: Más de 55TM a 115TM | C41: Por kilómetro recorrido | D41: =+'2. Tarifas'!L42 -> 0.25 | E41: =+'2. Tarifas'!Z42 -> 0.3639001161
B42: Más de 115TM a 200TM | C42: Por kilómetro recorrido | D42: =+'2. Tarifas'!L43 -> 0.49 | E42: =+'2. Tarifas'!Z43 -> 0.7132442276
B43: Más de 200TM | C43: Por kilómetro recorrido | D43: =+'2. Tarifas'!L44 -> 0.43 | E43: =+'2. Tarifas'!Z44 -> 0.6259081997

Sheet 0. FC-SNAR_SV
B1: 0. Flujo de caja: Servicio de SNAR (Nacional e Internacional) y Sobrevuelo | H1: Índice
B2: Montos expresados en miles de soles
B3: Año | D3: 2023 | E3: =+D3+1 -> 2024 | F3: =+E3+1 -> 2025 | G3: 2026 | H3: 2027
B5: Ingresos por prestación del servicio | E5: =('3. Ingresos'!C8+'3. Ingresos'!C21+'3. Ingresos'!C46)/1000 -> 260029.9976 | F5: =('3. Ingresos'!D8+'3. Ingresos'!D21+'3. Ingresos'!D46)/1000 -> 278232.0975 | G5: =('3. Ingresos'!E8+'3. Ingresos'!E21+'3. Ingresos'!E46)/1000 -> 297708.3443 | H5: =('3. Ingresos'!F8+'3. Ingresos'!F21+'3. Ingresos'!F46)/1000 -> 318547.9284
B7: Ingresos por Usuarios no atribuibles | E7: =('7. No atribuibles'!F59+'7. No atribuibles'!F60+'7. No atribuibles'!F62)/1000 -> 46.79081693 | F7: =('7. No atribuibles'!G59+'7. No atribuibles'!G60+'7. No atribuibles'!G62)/1000 -> 50.06617412 | G7: =('7. No atribuibles'!H59+'7. No atribuibles'!H60+'7. No atribuibles'!H62)/1000 -> 53.57080631 | H7: =('7. No atribuibles'!I59+'7. No atribuibles'!I60+'7. No atribuibles'!I62)/1000 -> 57.32076275
B9: Ingreso Bruto total | E9: =E5+SUM(E7:E7) -> 260076.7884 | F9: =F5+SUM(F7:F7) -> 278282.1636 | G9: =G5+SUM(G7:G7) -> 297761.9151 | H9: =H5+SUM(H7:H7) -> 318605.2491
B11: Pago al MTC | C11: 0.1 | E11: =-'6. Contribuciones'!D34/1000 -> -15882.48087 | F11: =-'6. Contribuciones'!E34/1000 -> -16994.25453 | G11: =-'6. Contribuciones'!F34/1000 -> -18183.85234 | H11: =-'6. Contribuciones'!G34/1000 -> -19456.72201
B12: Aporte por Regulación | C12: 0.01 | E12: =-SUM('6. Contribuciones'!D39:D40,'6. Contribuciones'!D42)/1000 -> -2600.767884 | F12: =-SUM('6. Contribuciones'!E39:E40,'6. Contribuciones'!E42)/1000 -> -2782.821636 | G12: =-SUM('6. Contribuciones'!F39:F40,'6. Contribuciones'!F42)/1000 -> -2977.619151 | H12: =-SUM('6. Contribuciones'!G39:G40,'6. Contribuciones'!G42)/1000 -> -3186.052491
B13: Contribuciones | E13: =SUM(E11:E12) -> -18483.24875 | F13: =SUM(F11:F12) -> -19777.07616 | G13: -21161.47149 | H13: =SUM(H11:H12) -> -22642.7745
B15: Ingresos Netos | E15: =E9+E13 -> 241593.5397 | F15: 258505.0875 | G15: 276600.4436 | H15: =H9+H13 -> 295962.4746
B17: Suministros y Materiales | E17: =-('4. OPEX'!H56+'4. OPEX'!H67+'4. OPEX'!H89)/1000 -> -2867.57778 | F17: =-('4. OPEX'!I56+'4. OPEX'!I67+'4. OPEX'!I89)/1000 -> -2953.605114 | G17: =-('4. OPEX'!J56+'4. OPEX'!J67+'4. OPEX'!J89)/1000 -> -3042.213267 | H17: =-('4. OPEX'!K56+'4. OPEX'!K67+'4. OPEX'!K89)/1000 -> -3133.479665
B18: Gastos de Personal | E18: =-('4. OPEX'!H57+'4. OPEX'!H68+'4. OPEX'!H90)/1000 -> -121384.6715 | F18: =-('4. OPEX'!I57+'4. OPEX'!I68+'4. OPEX'!I90)/1000 -> -125523.174 | G18: =-('4. OPEX'!J57+'4. OPEX'!J68+'4. OPEX'!J90)/1000 -> -132810.2958 | H18: =-('4. OPEX'!K57+'4. OPEX'!K68+'4. OPEX'!K90)/1000 -> -139241.4711
B19: Participación de los trabajadores | E19: =-E49 -> -1812.447299 | F19: =-F49 -> -2235.374228 | G19: -2513.455681 | H19: =-H49 -> -2899.892991
B20: Servicios prestados por terceros | E20: =-('4. OPEX'!H58+'4. OPEX'!H69+'4. OPEX'!H91)/1000 -> -34096.1131 | F20: =-('4. OPEX'!I58+'4. OPEX'!I69+'4. OPEX'!I91)/1000 -> -35118.9965 | G20: =-('4. OPEX'!J58+'4. OPEX'!J69+'4. OPEX'!J91)/1000 -> -36172.56639 | H20: =-('4. OPEX'!K58+'4. OPEX'!K69+'4. OPEX'!K91)/1000 -> -37257.74338
B21: Mantenimiento | E21: =-('4. OPEX'!H59+'4. OPEX'!H70+'4. OPEX'!H92)/1000 -> -6110.67943 | F21: =-('4. OPEX'!I59+'4. OPEX'!I70+'4. OPEX'!I92)/1000 -> -6293.999813 | G21: =-('4. OPEX'!J59+'4. OPEX'!J70+'4. OPEX'!J92)/1000 -> -6482.819807 | H21: =-('4. OPEX'!K59+'4. OPEX'!K70+'4. OPEX'!K92)/1000 -> -6677.304401
B22: Seguros y tributos | E22: =-('4. OPEX'!H60+'4. OPEX'!H71+'4. OPEX'!H93)/1000 -> -7686.795684 | F22: =-('4. OPEX'!I60+'4. OPEX'!I71+'4. OPEX'!I93)/1000 -> -7917.399555 | G22: =-('4. OPEX'!J60+'4. OPEX'!J71+'4. OPEX'!J93)/1000 -> -8154.921542 | H22: =-('4. OPEX'!K60+'4. OPEX'!K71+'4. OPEX'!K93)/1000 -> -8399.569188
B23: Otros Costos | E23: =-('4. OPEX'!H61+'4. OPEX'!H72+'4. OPEX'!H94)/1000 -> -4885.013407 | F23: =-('4. OPEX'!I61+'4. OPEX'!I72+'4. OPEX'!I94)/1000 -> -5031.563809 | G23: =-('4. OPEX'!J61+'4. OPEX'!J72+'4. OPEX'!J94)/1000 -> -5182.510724 | H23: =-('4. OPEX'!K61+'4. OPEX'!K72+'4. OPEX'!K94)/1000 -> -5337.986045
B24: Costos incrementales | E24: =-('4. OPEX'!H62+'4. OPEX'!H73+'4. OPEX'!H95)/1000 -> -1552.420758 | F24: =-('4. OPEX'!I62+'4. OPEX'!I73+'4. OPEX'!I95)/1000 -> -1713.442655 | G24: =-('4. OPEX'!J62+'4. OPEX'!J73+'4. OPEX'!J95)/1000 -> -1889.873863 | H24: =-('4. OPEX'!K62+'4. OPEX'!K73+'4. OPEX'!K95)/1000 -> -1889.937427
B25: Costo de operación (Usuarios no atribuibles) | E25: =-('7. No atribuibles'!D77+'7. No atribuibles'!D78+'7. No atribuibles'!D80)/1000 -> -165.3370762 | F25: =-('7. No atribuibles'!E77+'7. No atribuibles'!E78+'7. No atribuibles'!E80)/1000 -> -167.2196839 | G25: =-('7. No atribuibles'!F77+'7. No atribuibles'!F78+'7. No atribuibles'!F80)/1000 -> -175.4298762 | H25: =-('7. No atribuibles'!G77+'7. No atribuibles'!G78+'7. No atribuibles'!G80)/1000 -> -182.768267
B26: Total Costos de Operación | E26: =SUM(E17:E25) -> -180561.056 | F26: =SUM(F17:F25) -> -186954.7753 | G26: -196424.0869 | H26: =SUM(H17:H25) -> -205020.1525
B28: Pago de IR | E28: =-E50 -> 0 | F28: =-F50 -> -12529.27255 | G28: -14087.91909 | H28: =-H50 -> -16253.90022
B30: Flujo de Caja Operativo | E30: =E15+E26+E28 -> 61032.48365 | F30: =F15+F26+F28 -> 59021.0396 | G30: 66088.43759 | H30: =H15+H26+H28 -> 74688.42192
B32: Valor inicial de los activos | D32: =-SUM('5. CAPEX'!C59,'5. CAPEX'!C76,'5. CAPEX'!C110)+('5.5. CKF-SNAR_S'!H246/1000) -> -513700.5261 | E32: =-SUM('5. CAPEX'!D59,'5. CAPEX'!D76,'5. CAPEX'!D110) -> 0 | F32: =-SUM('5. CAPEX'!E59,'5. CAPEX'!E76,'5. CAPEX'!E110) -> 0 | G32: =-SUM('5. CAPEX'!F59,'5. CAPEX'!F76,'5. CAPEX'!F110) -> 0 | H32: =-SUM('5. CAPEX'!G59,'5. CAPEX'!G76,'5. CAPEX'!G110) -> 0
B33: Inversiones | D33: =-SUM('5. CAPEX'!C60,'5. CAPEX'!C77,'5. CAPEX'!C111) -> 0 | E33: =-SUM('5. CAPEX'!D60,'5. CAPEX'!D77,'5. CAPEX'!D111) -> -28635.99355 | F33: =-SUM('5. CAPEX'!E60,'5. CAPEX'!E77,'5. CAPEX'!E111) -> -43963.05009 | G33: =-SUM('5. CAPEX'!F60,'5. CAPEX'!F77,'5. CAPEX'!F111) -> -37064.97396 | H33: =-SUM('5. CAPEX'!G60,'5. CAPEX'!G77,'5. CAPEX'!G111) -> -74890.14059
B34: Recuperación de la inversión | D34: =-SUM('5. CAPEX'!C61,'5. CAPEX'!C78,'5. CAPEX'!C112) -> 0 | E34: =-SUM('5. CAPEX'!D61,'5. CAPEX'!D78,'5. CAPEX'!D112) -> 0 | F34: =-SUM('5. CAPEX'!E61,'5. CAPEX'!E78,'5. CAPEX'!E112) -> 0 | G34: =-SUM('5. CAPEX'!F61,'5. CAPEX'!F78,'5. CAPEX'!F112) -> 0 | H34: =SUM('5. CAPEX'!G61,'5. CAPEX'!G78,'5. CAPEX'!G112) -> 576412.1108
B36: Flujo de Caja Económico | D36: =SUM(D32:D34) -> -513700.5261 | E36: =SUM(E30,E32:E34) -> 32396.4901 | F36: 15057.98951 | G36: =SUM(G30,G32:G34) -> 29023.46363 | H36: =SUM(H30,H32:H34) -> 576210.3922
B38: WACC | C38: =+'9. WACC'!C18 -> 0.06606914897
B39: VAN | C39: =NPV(C38,E36:H36)+D36 -> 0
B41: EGyP | E41: 2024 | F41: =+E41+1 -> 2025 | G41: 2026 | H41: 2027
B42: Ingresos Brutos | E42: =E9 -> 260076.7884 | F42: 278282.1636 | G42: 297761.9151 | H42: =H9 -> 318605.2491
B43: Contribuciones | E43: =E13 -> -18483.24875 | F43: =F13 -> -19777.07616 | G43: -21161.47149 | H43: =H13 -> -22642.7745
B44: Costos de operación, neto de participaciones | E44: =SUM(E17:E18,E20:E25) -> -178748.6087 | F44: =SUM(F17:F18,F20:F25) -> -184719.4011 | G44: -193910.6312 | H44: =SUM(H17:H18,H20:H25) -> -202120.2595
B45: Depreciación y Amortización | E45: =-SUM('5. CAPEX'!D29,'5. CAPEX'!D30,'5. CAPEX'!D32,'5. CAPEX'!D38,'5. CAPEX'!D39,'5. CAPEX'!D41) -> -26595.98497 | F45: =-SUM('5. CAPEX'!E29,'5. CAPEX'!E30,'5. CAPEX'!E32,'5. CAPEX'!E38,'5. CAPEX'!E39,'5. CAPEX'!E41) -> -29078.20181 | G45: =-SUM('5. CAPEX'!F29,'5. CAPEX'!F30,'5. CAPEX'!F32,'5. CAPEX'!F38,'5. CAPEX'!F39,'5. CAPEX'!F41) -> -32420.69873 | H45: =-SUM('5. CAPEX'!G29,'5. CAPEX'!G30,'5. CAPEX'!G32,'5. CAPEX'!G38,'5. CAPEX'!G39,'5. CAPEX'!G41) -> -35844.3553
B46: Utilidad Operativa | E46: =SUM(E42:E45) -> 36248.94598 | F46: =SUM(F42:F45) -> 44707.48457 | G46: 50269.11363 | H46: =SUM(H42:H45) -> 57997.85982
B48: Pago de IR y Participación de los trabajadores
B49: Participación de los trabajadores | E49: ='10. Var-Sup-Gen'!K16*IF(E46<0,0,E46) -> 1812.447299 | F49: ='10. Var-Sup-Gen'!L16*IF(F46<0,0,F46) -> 2235.374228 | G49: ='10. Var-Sup-Gen'!M16*IF(G46<0,0,G46) -> 2513.455681 | H49: ='10. Var-Sup-Gen'!N16*IF(H46<0,0,H46) -> 2899.892991
B50: Impuesto a la renta | E50: ='10. Var-Sup-Gen'!IK5*IF(E46-E49<0,0,E46-E49) -> 0 | F50: ='10. Var-Sup-Gen'!L15*IF(F46-F49<0,0,F46-F49) -> 12529.27255 | G50: ='10. Var-Sup-Gen'!M15*IF(G46-G49<0,0,G46-G49) -> 14087.91909 | H50: ='10. Var-Sup-Gen'!N15*IF(H46-H49<0,0,H46-H49) -> 16253.90022

Sheet 0. FC-APRX
B1: 0. Flujo de caja: Servicio de Aproximación | H1: Índice
B2: Montos expresados en miles de soles
B3: Año | D3: 2023 | E3: =+D3+1 -> 2024 | F3: =+E3+1 -> 2025 | G3: 2026 | H3: 2027
B5: Ingresos por prestación del servicio | E5: =+'3. Ingresos'!C34/1000 -> 76830.03252 | F5: =+'3. Ingresos'!D34/1000 -> 82208.1348 | G5: =+'3. Ingresos'!E34/1000 -> 87962.70424 | H5: =+'3. Ingresos'!F34/1000 -> 94120.09353
B7: Ingresos por Usuarios no atribuibles | E7: =+'7. No atribuibles'!F61/1000 -> 17.34360812 | F7: =+'7. No atribuibles'!G61/1000 -> 18.55766069 | G7: =+'7. No atribuibles'!H61/1000 -> 19.85669694 | H7: =+'7. No atribuibles'!I61/1000 -> 21.24666573
B8: Transferencias del AIJCh | E8: =+'8. Transferencias'!H31/1000 -> 53462.80678 | F8: =+'8. Transferencias'!I31/1000 -> 58276.44602 | G8: =+'8. Transferencias'!J31/1000 -> 63427.04002 | H8: =+'8. Transferencias'!K31/1000 -> 68938.17559
B10: Ingreso Bruto total | E10: =E5+SUM(E7:E8) -> 130310.1829 | F10: =F5+SUM(F7:F8) -> 140503.1385 | G10: 151409.6009 | H10: =H5+SUM(H7:H8) -> 163079.5158
B12: Aporte por Regulación | C12: 0.01 | E12: =-'6. Contribuciones'!D41/1000 -> -1303.101829 | F12: =-'6. Contribuciones'!E41/1000 -> -1405.031385 | G12: =-'6. Contribuciones'!F41/1000 -> -1514.096009 | H12: =-'6. Contribuciones'!G41/1000 -> -1630.795158
B13: Contribuciones | E13: =SUM(E12:E12) -> -1303.101829 | F13: =SUM(F12:F12) -> -1405.031385 | G13: =SUM(G12:G12) -> -1514.096009 | H13: =SUM(H12:H12) -> -1630.795158
B15: Ingresos Netos | E15: =E10+E13 -> 129007.0811 | F15: =F10+F13 -> 139098.1071 | G15: =G10+G13 -> 149895.5049 | H15: =H10+H13 -> 161448.7206
B17: Suministros y Materiales | E17: =-'4. OPEX'!H78/1000 -> -1931.992942 | F17: =-'4. OPEX'!I78/1000 -> -1989.95273 | G17: =-'4. OPEX'!J78/1000 -> -2049.651312 | H17: =-'4. OPEX'!K78/1000 -> -2111.140851
B18: Gastos de Personal | E18: =-'4. OPEX'!H79/1000 -> -52424.15403 | F18: =-'4. OPEX'!I79/1000 -> -54211.50895 | G18: =-'4. OPEX'!J79/1000 -> -57358.70366 | H18: =-'4. OPEX'!K79/1000 -> -60136.2284
B19: Participación de los trabajadores | E19: =-E49 -> -1382.852401 | F19: -1671.89121 | G19: -1711.722272 | H19: =-H49 -> -1871.021149
B20: Servicios prestados por terceros | E20: =-'4. OPEX'!H80/1000 -> -18828.50568 | F20: =-'4. OPEX'!I80/1000 -> -19393.36085 | G20: =-'4. OPEX'!J80/1000 -> -19975.16167 | H20: =-'4. OPEX'!K80/1000 -> -20574.41652
B21: Mantenimiento | E21: =-'4. OPEX'!H81/1000 -> -2467.397381 | F21: =-'4. OPEX'!I81/1000 -> -2541.419303 | G21: =-'4. OPEX'!J81/1000 -> -2617.661882 | H21: =-'4. OPEX'!K81/1000 -> -2696.191738
B22: Seguros y tributos | E22: =-'4. OPEX'!H82/1000 -> -4582.968996 | F22: =-'4. OPEX'!I82/1000 -> -4720.458066 | G22: =-'4. OPEX'!J82/1000 -> -4862.071808 | H22: =-'4. OPEX'!K82/1000 -> -5007.933962
B23: Otros Costos | E23: =-'4. OPEX'!H83/1000 -> -2241.160468 | F23: =-'4. OPEX'!I83/1000 -> -2308.395282 | G23: =-'4. OPEX'!J83/1000 -> -2377.64714 | H23: =-'4. OPEX'!K83/1000 -> -2448.976555
B24: Costos incrementales | E24: =-'4. OPEX'!H84/1000 -> -2467.840418 | F24: =-'4. OPEX'!I84/1000 -> -2523.221874 | G24: =-'4. OPEX'!J84/1000 -> -2614.368267 | H24: =-'4. OPEX'!K84/1000 -> -2614.576735
B25: Costo de operación (Usuarios no atribuibles) | E25: =-'7. No atribuibles'!D79/1000 -> -119.6466452 | F25: =-'7. No atribuibles'!E79/1000 -> -119.8338016 | G25: =-'7. No atribuibles'!F79/1000 -> -125.5283037 | H25: =-'7. No atribuibles'!G79/1000 -> -130.6314152
B26: Total Costos de Operación | E26: =SUM(E17:E25) -> -86446.51895 | F26: =SUM(F17:F25) -> -89480.04207 | G26: -93692.51631 | H26: =SUM(H17:H25) -> -97591.11733
B28: Pago de IR | E28: =-E50 -> -7750.88771 | F28: =-F50 -> -9370.950235 | G28: -9594.203334 | H28: =-H50 -> -10487.07354
B30: Flujo de Caja Operativo | E30: =E15+E26+E28 -> 34809.67442 | F30: 40247.1148 | G30: 46608.78529 | H30: =H15+H26+H28 -> 53370.52976
B32: Valor inicial de los activos | D32: =-'5. CAPEX'!C93+('5.5. CKF-Aprox'!H186/1000) -> -313394.3524 | E32: =-'5. CAPEX'!D93 -> 0 | F32: =-'5. CAPEX'!E93 -> 0 | G32: =-'5. CAPEX'!F93 -> 0 | H32: =-'5. CAPEX'!G93 -> 0
B33: Inversiones | D33: =-'5. CAPEX'!C94 -> 0 | E33: =-'5. CAPEX'!D94 -> -17993.01585 | F33: =-'5. CAPEX'!E94 -> -65239.59252 | G33: =-'5. CAPEX'!F94 -> -48389.7079 | H33: =-'5. CAPEX'!G94 -> -72913.41754
B34: Recuperación de la inversión | D34: =-'5. CAPEX'!C95 -> 0 | E34: =-'5. CAPEX'!D95 -> 0 | F34: =-'5. CAPEX'!E95 -> 0 | G34: ='5. CAPEX'!F95 -> 0 | H34: ='5. CAPEX'!G95 -> 434263.2909
B36: Flujo de Caja Económico | D36: =SUM(D32:D34) -> -313394.3524 | E36: =SUM(E30,E32:E34) -> 16816.65857 | F36: -24992.47772 | G36: -1780.922604 | H36: =SUM(H30,H32:H34) -> 414720.4031
B38: WACC | C38: =+'9. WACC'!C18 -> 0.06606914897
B39: VAN | C39: =NPV(C38,E36:H36)+D36 -> 0
B41: EGyP | E41: 2024 | F41: =E41+1 -> 2025 | G41: 2026 | H41: 2027
B42: Ingresos Brutos | E42: =E10 -> 130310.1829 | F42: =F10 -> 140503.1385 | G42: =G10 -> 151409.6009 | H42: =H10 -> 163079.5158
B43: Contribuciones | E43: =E13 -> -1303.101829 | F43: -1405.031385 | G43: -1514.096009 | H43: =H13 -> -1630.795158
B44: Costos de operación, neto de participaciones | E44: =SUM(E17:E18,E20:E25) -> -85063.66655 | F44: =SUM(F17:F18,F20:F25) -> -87808.15086 | G44: -91980.79404 | H44: =SUM(H17:H18,H20:H25) -> -95720.09618
B45: Depreciación y Amortización | E45: =-SUM('5. CAPEX'!D31,'5. CAPEX'!D40) -> -16286.3665 | F45: =-SUM('5. CAPEX'!E31,'5. CAPEX'!E40) -> -17852.13204 | G45: =-SUM('5. CAPEX'!F31,'5. CAPEX'!F40) -> -23680.26546 | H45: =-SUM('5. CAPEX'!G31,'5. CAPEX'!G40) -> -28308.20147
B46: Utilidad Operativa | E46: =SUM(E42:E45) -> 27657.04803 | F46: =SUM(F42:F45) -> 33437.82421 | G46: 34234.44544 | H46: =SUM(H42:H45) -> 37420.42298
B48: Pago de IR y Participación de los trabajadores
B49: Participación de los trabajadores | E49: ='10. Var-Sup-Gen'!I16*IF(E46<0,0,E46) -> 1382.852401 | F49: ='10. Var-Sup-Gen'!J16*IF(F46<0,0,F46) -> 1671.89121 | G49: ='10. Var-Sup-Gen'!K16*IF(G46<0,0,G46) -> 1711.722272 | H49: ='10. Var-Sup-Gen'!L16*IF(H46<0,0,H46) -> 1871.021149
B50: Impuesto a la renta | E50: ='10. Var-Sup-Gen'!I15*IF(E46-E49<0,0,E46-E49) -> 7750.88771 | F50: ='10. Var-Sup-Gen'!J15*IF(F46-F49<0,0,F46-F49) -> 9370.950235 | G50: ='10. Var-Sup-Gen'!K15*IF(G46-G49<0,0,G46-G49) -> 9594.203334 | H50: ='10. Var-Sup-Gen'!L15*IF(H46-H49<0,0,H46-H49) -> 10487.07354

Sheet 1. Demanda
B1: 1. Proyecciones de demanda | L1: Índice
B3: Servicio / Peso Máximo de Despegue (PMD) | J3: Proyecciones
C4: 2017 | D4: =+C4+1 -> 2018 | E4: 2019 | F4: 2020 | G4: 2021 | H4: =+G4+1 -> 2022 | I4: =+H4+1 -> 2023 | J4: 2024 | K4: 2025 | L4: 2026 | M4: 2027
B6: A. SNAR Nacional
B7: En Kilómetros recorridos
B9: Usuarios atribuibles | C9: =C11+C20 -> 75128319.21 | D9: 80835290.16 | E9: 86859755.46 | F9: 32977805.86 | G9: 52195747.65 | H9: 72201517.09 | I9: 77427798.61 | J9: =J11+J20 -> 83622022.5 | K9: 89475564.07 | L9: 95738853.56 | M9: =M11+M20 -> 102440573.3
B11: 1. Por rango de PMD: | C11: =SUM(C12:C17) -> 74998878.17 | D11: 80473216.4 | E11: 86849565.34 | F11: 32856368.28 | G11: 51958127.61 | H11: =SUM(H12:H17) -> 71932806.69 | I11: 77156144.56 | J11: 83293593.28 | K11: 89124144.81 | L11: 95362834.95 | M11: =SUM(M12:M17) -> 102038233.4
B12: Hasta 5,7TM | C12: =+'1.1 SNAR Nac'!C8 -> 6939199.39 | D12: =+'1.1 SNAR Nac'!D8 -> 8508094.66 | E12: =+'1.1 SNAR Nac'!E8 -> 8030860.25 | F12: =+'1.1 SNAR Nac'!F8 -> 3764264.61 | G12: =+'1.1 SNAR Nac'!G8 -> 5206134.57 | H12: =+'1.1 SNAR Nac'!H8 -> 6437665.95 | I12: =+'1.1 SNAR Nac'!I8 -> 6013010.66 | J12: ='1.1 SNAR Nac'!C61 -> 7430222.635 | K12: ='1.1 SNAR Nac'!D61 -> 7950338.219 | L12: ='1.1 SNAR Nac'!E61 -> 8506861.895 | M12: ='1.1 SNAR Nac'!F61 -> 9102342.227
B13: Más de 5,7TM a 10TM | C13: =+'1.1 SNAR Nac'!C9 -> 1245673.92 | D13: =+'1.1 SNAR Nac'!D9 -> 1831020.14 | E13: =+'1.1 SNAR Nac'!E9 -> 2926524.77 | F13: =+'1.1 SNAR Nac'!F9 -> 1969449.46 | G13: =+'1.1 SNAR Nac'!G9 -> 2200070.67 | H13: =+'1.1 SNAR Nac'!H9 -> 1829447.31 | I13: =+'1.1 SNAR Nac'!I9 -> 2151686.18 | J13: ='1.1 SNAR Nac'!C62 -> 2655780.708 | K13: ='1.1 SNAR Nac'!D62 -> 2841685.358 | L13: ='1.1 SNAR Nac'!E62 -> 3040603.333 | M13: ='1.1 SNAR Nac'!F62 -> 3253445.566
B14: Más de 10TM a 35TM | C14: =+'1.1 SNAR Nac'!C10 -> 3715496.84 | D14: =+'1.1 SNAR Nac'!D10 -> 3337703.41 | E14: =+'1.1 SNAR Nac'!E10 -> 3403595.85 | F14: =+'1.1 SNAR Nac'!F10 -> 960343.17 | G14: =+'1.1 SNAR Nac'!G10 -> 2035358.31 | H14: =+'1.1 SNAR Nac'!H10 -> 2690654.59 | I14: =+'1.1 SNAR Nac'!I10 -> 2631751.28 | J14: ='1.1 SNAR Nac'!C63 -> 3073119.447 | K14: ='1.1 SNAR Nac'!D63 -> 3288237.809 | L14: ='1.1 SNAR Nac'!E63 -> 3518414.455 | M14: ='1.1 SNAR Nac'!F63 -> 3764703.467
B15: Más de 35TM a 70TM | C15: =+'1.1 SNAR Nac'!C11 -> 26323247.19 | D15: =+'1.1 SNAR Nac'!D11 -> 25384535.14 | E15: =+'1.1 SNAR Nac'!E11 -> 21563981.99 | F15: =+'1.1 SNAR Nac'!F11 -> 5441464.51 | G15: =+'1.1 SNAR Nac'!G11 -> 7394673.77 | H15: =+'1.1 SNAR Nac'!H11 -> 9313703.74 | I15: =+'1.1 SNAR Nac'!I11 -> 14618672.56 | J15: ='1.1 SNAR Nac'!C64 -> 12807321.59 | K15: ='1.1 SNAR Nac'!D64 -> 13703834.11 | L15: ='1.1 SNAR Nac'!E64 -> 14663102.49 | M15: ='1.1 SNAR Nac'!F64 -> 15689519.67
B16: Más de 70TM a 105TM | C16: =+'1.1 SNAR Nac'!C12 -> 36774553.35 | D16: =+'1.1 SNAR Nac'!D12 -> 41410605.13 | E16: =+'1.1 SNAR Nac'!E12 -> 50920249.78 | F16: =+'1.1 SNAR Nac'!F12 -> 20718475.22 | G16: =+'1.1 SNAR Nac'!G12 -> 35119196.68 | H16: =+'1.1 SNAR Nac'!H12 -> 51656859.44 | I16: =+'1.1 SNAR Nac'!I12 -> 51737318.12 | J16: ='1.1 SNAR Nac'!C65 -> 57322648.49 | K16: ='1.1 SNAR Nac'!D65 -> 61335233.89 | L16: ='1.1 SNAR Nac'!E65 -> 65628700.26 | M16: ='1.1 SNAR Nac'!F65 -> 70222709.28
B17: Más de 105TM | C17: =+'1.1 SNAR Nac'!C13 -> 707.48 | D17: =+'1.1 SNAR Nac'!D13 -> 1257.92 | E17: =+'1.1 SNAR Nac'!E13 -> 4352.7 | F17: =+'1.1 SNAR Nac'!F13 -> 2371.31 | G17: =+'1.1 SNAR Nac'!G13 -> 2693.61 | H17: =+'1.1 SNAR Nac'!H13 -> 4475.66 | I17: =+'1.1 SNAR Nac'!I13 -> 3705.76 | J17: ='1.1 SNAR Nac'!C66 -> 4500.404096 | K17: ='1.1 SNAR Nac'!D66 -> 4815.432383 | L17: ='1.1 SNAR Nac'!E66 -> 5152.512649 | M17: ='1.1 SNAR Nac'!F66 -> 5513.188535
B19: 2. Cargo mínimo:
B20: Kilómetros recorridos | C20: =+'1.1 SNAR Nac'!C14 -> 129441.04 | D20: =+'1.1 SNAR Nac'!D14 -> 362073.76 | E20: =+'1.1 SNAR Nac'!E14 -> 10190.12 | F20: =+'1.1 SNAR Nac'!F14 -> 121437.58 | G20: =+'1.1 SNAR Nac'!G14 -> 237620.04 | H20: =+'1.1 SNAR Nac'!H14 -> 268710.4 | I20: =+'1.1 SNAR Nac'!I14 -> 271654.05 | J20: ='1.1 SNAR Nac'!C67 -> 328429.216 | K20: ='1.1 SNAR Nac'!D67 -> 351419.2611 | L20: ='1.1 SNAR Nac'!E67 -> 376018.6094 | M20: ='1.1 SNAR Nac'!F67 -> 402339.9121
B21: N° Operaciones | C21: =+'1.1 SNAR Nac'!C39 -> 1177 | D21: =+'1.1 SNAR Nac'!D39 -> 3729 | E21: =+'1.1 SNAR Nac'!E39 -> 164 | F21: =+'1.1 SNAR Nac'!F39 -> 2030 | G21: =+'1.1 SNAR Nac'!G39 -> 3825 | H21: =+'1.1 SNAR Nac'!H39 -> 3738 | I21: =+'1.1 SNAR Nac'!I39 -> 3699 | J21: =IFERROR(G21*(J20/G20),0) -> 5286.766854 | K21: =IFERROR(J21*(K20/J20),0) -> 5656.840534 | L21: 6052.819371 | M21: 6476.516727
B23: B. SNAR Internacional
B24: En Kilómetros recorridos
B26: Usuarios atribuibles (KM) | C26: =C28+C37 -> 76765499.64 | D26: 80424520.97 | E26: 80707610.26 | F26: 24869238.11 | G26: 29618643.68 | H26: =H28+H37 -> 52127754.73 | I26: 62213793.49 | J26: 67190896.97 | K26: 71894259.76 | L26: 76926857.94 | M26: =M28+M37 -> 82311738
B28: 1. Por rango de PMD: | C28: =SUM(C29:C34) -> 76737612.83 | D28: 80357152.08 | E28: 80617724.71 | F28: 24791413.34 | G28: 29547601.2 | H28: =SUM(H29:H34) -> 52124543.05 | I28: 62212507.37 | J28: 67135333.29 | K28: 71834806.62 | L28: 76863243.09 | M28: =SUM(M29:M34) -> 82243670.1
B29: Hasta 5,7TM | C29: =+'1.2 SNAR Int'!C8 -> 485407.28 | D29: =+'1.2 SNAR Int'!D8 -> 378017.84 | E29: =+'1.2 SNAR Int'!E8 -> 370572.65 | F29: =+'1.2 SNAR Int'!F8 -> 230598.49 | G29: =+'1.2 SNAR Int'!G8 -> 309126.13 | H29: =+'1.2 SNAR Int'!H8 -> 210063.43 | I29: =+'1.2 SNAR Int'!I8 -> 201172.7 | J29: ='1.2 SNAR Int'!C61 -> 396431.4037 | K29: ='1.2 SNAR Int'!D61 -> 424181.6019 | L29: ='1.2 SNAR Int'!E61 -> 453874.3141 | M29: ='1.2 SNAR Int'!F61 -> 485645.5161
B30: Más de 5,7TM a 10TM | C30: =+'1.2 SNAR Int'!C9 -> 615817.42 | D30: =+'1.2 SNAR Int'!D9 -> 618794.82 | E30: =+'1.2 SNAR Int'!E9 -> 689532.75 | F30: =+'1.2 SNAR Int'!F9 -> 340332.44 | G30: =+'1.2 SNAR Int'!G9 -> 691237.92 | H30: =+'1.2 SNAR Int'!H9 -> 406029.87 | I30: =+'1.2 SNAR Int'!I9 -> 294669.75 | J30: ='1.2 SNAR Int'!C62 -> 803232.8747 | K30: ='1.2 SNAR Int'!D62 -> 859459.176 | L30: ='1.2 SNAR Int'!E62 -> 919621.3183 | M30: ='1.2 SNAR Int'!F62 -> 983994.8106
B31: Más de 10TM a 35TM | C31: =+'1.2 SNAR Int'!C10 -> 1116701.69 | D31: =+'1.2 SNAR Int'!D10 -> 1153058.11 | E31: =+'1.2 SNAR Int'!E10 -> 1203435.4 | F31: =+'1.2 SNAR Int'!F10 -> 371663.46 | G31: =+'1.2 SNAR Int'!G10 -> 526865.73 | H31: =+'1.2 SNAR Int'!H10 -> 729407.85 | I31: =+'1.2 SNAR Int'!I10 -> 637118.84 | J31: ='1.2 SNAR Int'!C63 -> 941160.9795 | K31: ='1.2 SNAR Int'!D63 -> 1007042.248 | L31: ='1.2 SNAR Int'!E63 -> 1077535.205 | M31: ='1.2 SNAR Int'!F63 -> 1152962.67
B32: Más de 35TM a 70TM | C32: =+'1.2 SNAR Int'!C11 -> 9122469.82 | D32: =+'1.2 SNAR Int'!D11 -> 6029414.03 | E32: =+'1.2 SNAR Int'!E11 -> 5793638.12 | F32: =+'1.2 SNAR Int'!F11 -> 1885698.23 | G32: =+'1.2 SNAR Int'!G11 -> 2912792.67 | H32: =+'1.2 SNAR Int'!H11 -> 2745167.84 | I32: =+'1.2 SNAR Int'!I11 -> 4857233.07 | J32: ='1.2 SNAR Int'!C64 -> 5130669.423 | K32: ='1.2 SNAR Int'!D64 -> 5489816.282 | L32: ='1.2 SNAR Int'!E64 -> 5874103.422 | M32: ='1.2 SNAR Int'!F64 -> 6285290.662
B33: Más de 70TM a 105TM | C33: =+'1.2 SNAR Int'!C12 -> 42803624.45 | D33: =+'1.2 SNAR Int'!D12 -> 49903206.61 | E33: =+'1.2 SNAR Int'!E12 -> 50457353.21 | F33: =+'1.2 SNAR Int'!F12 -> 12254787.1 | G33: =+'1.2 SNAR Int'!G12 -> 13724697.82 | H33: =+'1.2 SNAR Int'!H12 -> 35197569.35 | I33: =+'1.2 SNAR Int'!I12 -> 41339973.31 | J33: ='1.2 SNAR Int'!C65 -> 40383526.36 | K33: ='1.2 SNAR Int'!D65 -> 43210373.2 | L33: ='1.2 SNAR Int'!E65 -> 46235099.33 | M33: ='1.2 SNAR Int'!F65 -> 49471556.28
B34: Más de 105TM | C34: =+'1.2 SNAR Int'!C13 -> 22593592.17 | D34: =+'1.2 SNAR Int'!D13 -> 22274660.67 | E34: =+'1.2 SNAR Int'!E13 -> 22103192.58 | F34: =+'1.2 SNAR Int'!F13 -> 9708333.62 | G34: =+'1.2 SNAR Int'!G13 -> 11382880.93 | H34: =+'1.2 SNAR Int'!H13 -> 12836304.71 | I34: =+'1.2 SNAR Int'!I13 -> 14882339.7 | J34: ='1.2 SNAR Int'!C66 -> 19480312.25 | K34: ='1.2 SNAR Int'!D66 -> 20843934.11 | L34: ='1.2 SNAR Int'!E66 -> 22303009.5 | M34: ='1.2 SNAR Int'!F66 -> 23864220.16
B36: 2. Cargo mínimo:
B37: Kilómetros recorridos | C37: =+'1.2 SNAR Int'!C14 -> 27886.81 | D37: =+'1.2 SNAR Int'!D14 -> 67368.89 | E37: =+'1.2 SNAR Int'!E14 -> 89885.55 | F37: =+'1.2 SNAR Int'!F14 -> 77824.77 | G37: =+'1.2 SNAR Int'!G14 -> 71042.48 | H37: =+'1.2 SNAR Int'!H14 -> 3211.68 | I37: =+'1.2 SNAR Int'!I14 -> 1286.12 | J37: ='1.2 SNAR Int'!C67 -> 55563.67635 | K37: ='1.2 SNAR Int'!D67 -> 59453.13369 | L37: ='1.2 SNAR Int'!E67 -> 63614.85305 | M37: ='1.2 SNAR Int'!F67 -> 68067.89276
B38: N° Operaciones | C38: =+'1.2 SNAR Int'!C39 -> 474 | D38: =+'1.2 SNAR Int'!D39 -> 956 | E38: =+'1.2 SNAR Int'!E39 -> 1348 | F38: =+'1.2 SNAR Int'!F39 -> 1051 | G38: =+'1.2 SNAR Int'!G39 -> 1191 | H38: =+'1.2 SNAR Int'!H39 -> 129 | I38: =+'1.2 SNAR Int'!I39 -> 42 | J38: =IFERROR(G38*(J37/G37),0) -> 931.5037782 | K38: =IFERROR(J38*(K37/J37),0) -> 996.7090426 | L38: =IFERROR(K38*(L37/K37),0) -> 1066.478676 | M38: 1141.132183
B40: C. Aproximación
B41: En Toneladas (PMD)
B43: Usuarios atribuibles (TM): | C43: =C45+C53 -> 3651843.52 | D43: 3965713.13 | E43: 4220184.13 | F43: 1538493.82 | G43: 2464258.42 | H43: =H45+H53 -> 3516477.82 | I43: 3816388.41 | J43: 4121699.483 | K43: 4410218.447 | L43: 4718933.738 | M43: =M45+M53 -> 5049259.1
B45: 1. Por rango de PMD: | C45: =SUM(C46:C50) -> 3647244.13 | D45: 3959311.65 | E45: 4212495.73 | F45: 1533036.51 | G45: 2457841.78 | H45: =SUM(H46:H50) -> 3513096.54 | I45: 3811401.34 | J45: 4115005.586 | K45: 4403055.977 | L45: 4711269.895 | M45: =SUM(M46:M50) -> 5041058.788
B46: Hasta 10TM | C46: =+'1.3 Aprox'!C8 -> 66306.96 | D46: =+'1.3 Aprox'!D8 -> 65464.57 | E46: =+'1.3 Aprox'!E8 -> 64816.56 | F46: =+'1.3 Aprox'!F8 -> 48547.29 | G46: =+'1.3 Aprox'!G8 -> 69705.41 | H46: =+'1.3 Aprox'!H8 -> 65477.85 | I46: =+'1.3 Aprox'!I8 -> 60829.02 | J46: ='1.3 Aprox'!C57 -> 86343.7746 | K46: ='1.3 Aprox'!D57 -> 92387.83883 | L46: ='1.3 Aprox'!E57 -> 98854.98754 | M46: ='1.3 Aprox'!F57 -> 105774.8367
B47: Más de 10TM a 35TM | C47: =+'1.3 Aprox'!C9 -> 81510.94 | D47: =+'1.3 Aprox'!D9 -> 74015.19 | E47: =+'1.3 Aprox'!E9 -> 49962.25 | F47: =+'1.3 Aprox'!F9 -> 14328.59 | G47: =+'1.3 Aprox'!G9 -> 37157.66 | H47: =+'1.3 Aprox'!H9 -> 58733.48 | I47: =+'1.3 Aprox'!I9 -> 54811.27 | J47: ='1.3 Aprox'!C58 -> 63395.9651 | K47: ='1.3 Aprox'!D58 -> 67833.68266 | L47: ='1.3 Aprox'!E58 -> 72582.04045 | M47: ='1.3 Aprox'!F58 -> 77662.78328
B48: Más de 35TM a 70TM | C48: =+'1.3 Aprox'!C10 -> 1394281.98 | D48: =+'1.3 Aprox'!D10 -> 1396165.82 | E48: =+'1.3 Aprox'!E10 -> 1198967.94 | F48: =+'1.3 Aprox'!F10 -> 334333.06 | G48: =+'1.3 Aprox'!G10 -> 440702.69 | H48: =+'1.3 Aprox'!H10 -> 563148.07 | I48: =+'1.3 Aprox'!I10 -> 835436.94 | J48: ='1.3 Aprox'!C59 -> 766486.4602 | K48: ='1.3 Aprox'!D59 -> 820140.5124 | L48: ='1.3 Aprox'!E59 -> 877550.3483 | M48: ='1.3 Aprox'!F59 -> 938978.8726
B49: Más de 70TM a 105TM | C49: =+'1.3 Aprox'!C11 -> 2103748.95 | D49: =+'1.3 Aprox'!D11 -> 2420836.48 | E49: =+'1.3 Aprox'!E11 -> 2897645.34 | F49: =+'1.3 Aprox'!F11 -> 1135596.67 | G49: =+'1.3 Aprox'!G11 -> 1909436.6 | H49: =+'1.3 Aprox'!H11 -> 2824992.34 | I49: =+'1.3 Aprox'!I11 -> 2859064.9 | J49: ='1.3 Aprox'!C60 -> 3197567.072 | K49: ='1.3 Aprox'!D60 -> 3421396.767 | L49: ='1.3 Aprox'!E60 -> 3660894.541 | M49: ='1.3 Aprox'!F60 -> 3917157.159
B50: Más de 105TM | C50: =+'1.3 Aprox'!C12 -> 1395.3 | D50: =+'1.3 Aprox'!D12 -> 2829.59 | E50: =+'1.3 Aprox'!E12 -> 1103.64 | F50: =+'1.3 Aprox'!F12 -> 230.9 | G50: =+'1.3 Aprox'!G12 -> 839.42 | H50: =+'1.3 Aprox'!H12 -> 744.8 | I50: =+'1.3 Aprox'!I12 -> 1259.21 | J50: ='1.3 Aprox'!C61 -> 1212.313946 | K50: ='1.3 Aprox'!D61 -> 1297.175922 | L50: ='1.3 Aprox'!E61 -> 1387.978237 | M50: ='1.3 Aprox'!F61 -> 1485.136713
B52: 2. Cargo mínimo:
B53: Toneladas (PMD) | C53: =+'1.3 Aprox'!C13 -> 4599.39 | D53: =+'1.3 Aprox'!D13 -> 6401.48 | E53: =+'1.3 Aprox'!E13 -> 7688.4 | F53: =+'1.3 Aprox'!F13 -> 5457.31 | G53: =+'1.3 Aprox'!G13 -> 6416.64 | H53: =+'1.3 Aprox'!H13 -> 3381.28 | I53: =+'1.3 Aprox'!I13 -> 4987.07 | J53: ='1.3 Aprox'!C62 -> 6693.896846 | K53: ='1.3 Aprox'!D62 -> 7162.469626 | L53: ='1.3 Aprox'!E62 -> 7663.842499 | M53: ='1.3 Aprox'!F62 -> 8200.311474
B54: N° Operaciones | C54: =+'1.3 Aprox'!C36 -> 2891 | D54: =+'1.3 Aprox'!D36 -> 4034 | E54: =+'1.3 Aprox'!E36 -> 4778 | F54: =+'1.3 Aprox'!F36 -> 3423 | G54: =+'1.3 Aprox'!G36 -> 4058 | H54: =+'1.3 Aprox'!H36 -> 2200 | I54: =+'1.3 Aprox'!I36 -> 3130 | J54: =IFERROR(G54*(J53/G53),0) -> 4233.342279 | K54: =IFERROR(J54*(K53/J53),0) -> 4529.676239 | L54: =IFERROR(K54*(L53/K53),0) -> 4846.753575 | M54: =IFERROR(L54*(M53/L53),0) -> 5186.026326
B56: D. Sobrevuelo
B57: En Kilómetros recorridos
B59: Usuarios atribuibles (KM): | C59: =C61 -> 44112792.8 | D59: 45840674.03 | E59: 45342728.73 | F59: 23258811.94 | G59: 28747071.59 | H59: =H61 -> 45865477.28 | I59: 47968674.51 | J59: 51806168.47 | K59: 55432600.26 | L59: 59312882.28 | M59: =M61 -> 63464784.04
B61: 1. Por rango de PMD: | C61: =SUM(C62:C65) -> 44112792.8 | D61: 45840674.03 | E61: 45342728.73 | F61: 23258811.94 | G61: 28747071.59 | H61: =SUM(H62:H65) -> 45865477.28 | I61: 47968674.51 | J61: 51806168.47 | K61: 55432600.26 | L61: 59312882.28 | M61: =SUM(M62:M65) -> 63464784.04
B62: Hasta 55TM | C62: =+'1.4 Sobrev'!C8 -> 1760455.98 | D62: =+'1.4 Sobrev'!D8 -> 1911435.67 | E62: =+'1.4 Sobrev'!E8 -> 1720224.35 | F62: =+'1.4 Sobrev'!F8 -> 1198678.62 | G62: =+'1.4 Sobrev'!G8 -> 1877258.96 | H62: =+'1.4 Sobrev'!H8 -> 2015708.84 | I62: =+'1.4 Sobrev'!I8 -> 1990019.38 | J62: ='1.4 Sobrev'!C49 -> 2603030.409 | K62: ='1.4 Sobrev'!D49 -> 2785242.537 | L62: ='1.4 Sobrev'!E49 -> 2980209.515 | M62: ='1.4 Sobrev'!F49 -> 3188824.181
B63: Más de 55TM a 115TM | C63: =+'1.4 Sobrev'!C9 -> 15802264.12 | D63: =+'1.4 Sobrev'!D9 -> 16906620.63 | E63: =+'1.4 Sobrev'!E9 -> 15901396.1 | F63: =+'1.4 Sobrev'!F9 -> 5252411.84 | G63: =+'1.4 Sobrev'!G9 -> 7073044.82 | H63: =+'1.4 Sobrev'!H9 -> 19002713.75 | I63: =+'1.4 Sobrev'!I9 -> 19832276.74 | J63: ='1.4 Sobrev'!C50 -> 18543160.75 | K63: ='1.4 Sobrev'!D50 -> 19841182 | L63: ='1.4 Sobrev'!E50 -> 21230064.74 | M63: ='1.4 Sobrev'!F50 -> 22716169.28
B64: Más de 115TM a 200TM | C64: =+'1.4 Sobrev'!C10 -> 3938980.86 | D64: =+'1.4 Sobrev'!D10 -> 4527278.58 | E64: =+'1.4 Sobrev'!E10 -> 4167078.07 | F64: =+'1.4 Sobrev'!F10 -> 2400663.64 | G64: =+'1.4 Sobrev'!G10 -> 3334285.46 | H64: =+'1.4 Sobrev'!H10 -> 4452262.87 | I64: =+'1.4 Sobrev'!I10 -> 4197202.34 | J64: ='1.4 Sobrev'!C51 -> 5190252.464 | K64: ='1.4 Sobrev'!D51 -> 5553570.137 | L64: ='1.4 Sobrev'!E51 -> 5942320.047 | M64: ='1.4 Sobrev'!F51 -> 6358282.45
B65: Más de 200TM | C65: =+'1.4 Sobrev'!C11 -> 22611091.84 | D65: =+'1.4 Sobrev'!D11 -> 22495339.15 | E65: =+'1.4 Sobrev'!E11 -> 23554030.21 | F65: =+'1.4 Sobrev'!F11 -> 14407057.84 | G65: =+'1.4 Sobrev'!G11 -> 16462482.35 | H65: =+'1.4 Sobrev'!H11 -> 20394791.82 | I65: =+'1.4 Sobrev'!I11 -> 21949176.05 | J65: ='1.4 Sobrev'!C52 -> 25469724.85 | K65: ='1.4 Sobrev'!D52 -> 27252605.59 | L65: ='1.4 Sobrev'!E52 -> 29160287.98 | M65: ='1.4 Sobrev'!F52 -> 31201508.14

Sheet 1.1 SNAR Nac
B1: 1.1 SNAR NACIONAL - Información de demanda | H1: Índice
B3: 1. Información histórica: Expresada en kilómetros recorridos facturados (Fuente: CORPAC S.A.)
B5: 1.1 Por tipo de usuario / Rango de PMD:
C6: 2017 | D6: 2018 | E6: 2019 | F6: 2020 | G6: 2021 | H6: 2022 | I6: 2023
B7: A. Usuarios atribuibles: | C7: =SUM(C8:C14) -> 75128319.21 | D7: 80835290.16 | E7: 86859755.46 | F7: 32977805.86 | G7: 52195747.65 | H7: 72201517.09 | I7: 77427798.61
B8: (>0-5,7) | C8: 6939199.39 | D8: 8508094.66 | E8: 8030860.25 | F8: 3764264.61 | G8: 5206134.57 | H8: 6437665.95 | I8: 6013010.66
B9: (>5,7-10) | C9: 1245673.92 | D9: 1831020.14 | E9: 2926524.77 | F9: 1969449.46 | G9: 2200070.67 | H9: 1829447.31 | I9: 2151686.18
B10: (>10-35) | C10: 3715496.84 | D10: 3337703.41 | E10: 3403595.85 | F10: 960343.17 | G10: 2035358.31 | H10: 2690654.59 | I10: 2631751.28
B11: (>35-70) | C11: 26323247.19 | D11: 25384535.14 | E11: 21563981.99 | F11: 5441464.51 | G11: 7394673.77 | H11: 9313703.74 | I11: 14618672.56
B12: (>70-105) | C12: 36774553.35 | D12: 41410605.13 | E12: 50920249.78 | F12: 20718475.22 | G12: 35119196.68 | H12: 51656859.44 | I12: 51737318.12
B13: (>105) | C13: 707.48 | D13: 1257.92 | E13: 4352.7 | F13: 2371.31 | G13: 2693.61 | H13: 4475.66 | I13: 3705.76
B14: Cargo mínimo | C14: 129441.04 | D14: 362073.76 | E14: 10190.12 | F14: 121437.58 | G14: 237620.04 | H14: 268710.4 | I14: 271654.05
B15: B. Otros usuarios: | C15: =SUM(C16) -> 4637591.19 | D15: 3887712.14 | E15: 787330.93 | F15: 5722267 | G15: 4266231.23 | H15: 4185135.65 | I15: 2916339.26
B16: Tarifa de USD 1 | C16: 4637591.19 | D16: 3887712.14 | E16: 787330.93 | F16: 5722267 | G16: 4266231.23 | H16: 4185135.65 | I16: 2916339.26
B17: Total | C17: =C7+C15 -> 79765910.4 | D17: 84723002.3 | E17: 87647086.39 | F17: 38700072.86 | G17: 56461978.88 | H17: 76386652.74 | I17: 80344137.87
B19: * Estructura de distribución * | C19: 2017 | D19: 2018 | E19: 2019 | F19: 2020 | G19: 2021 | H19: 2022 | I19: 2023 | J19: Prom 2021-23
B20: A. Atribuibles: | C20: =C7/C$17 -> 0.9418599855 | D20: 0.9541126727 | E20: 0.9910170325 | F20: 0.852138082 | G20: 0.9244406357 | H20: =H7/H$17 -> 0.9452111658 | I20: 0.9637019036 | J20: =AVERAGE(G20:I20) -> 0.9444512351
B21: (>0-5,7) | C21: =C8/C$7 -> 0.09236462978 | D21: 0.1052522313 | E21: 0.09245778102 | F21: 0.114145393 | G21: 0.09974250402 | H21: =H8/H$7 -> 0.08916247483 | I21: 0.07765958439 | J21: =AVERAGE(G21:I21) -> 0.08885485441
B22: (>5,7-10) | C22: 0.01658061744 | D22: 0.0226512472 | E22: 0.03369252831 | F22: 0.05972045164 | G22: 0.04215038138 | H22: =H9/H$7 -> 0.02533807299 | I22: 0.02778958228 | J22: =AVERAGE(G22:I22) -> 0.03175934555
B23: (>10-35) | C23: 0.04945534359 | D23: 0.04129017665 | E23: 0.03918495777 | F23: 0.02912089343 | G23: 0.03899471512 | H23: =H10/H$7 -> 0.03726590103 | I23: 0.03398974693 | J23: 0.03675012103
B24: (>35-70) | C24: 0.3503771609 | D24: 0.3140278842 | E24: 0.2482620619 | F24: 0.1650038372 | G24: 0.141671958 | H24: =H11/H$7 -> 0.1289959563 | I24: 0.1888039286 | J24: =AVERAGE(G24:I24) -> 0.153157281
B25: (>70-105) | C25: 0.4894898986 | D25: 0.5122837445 | E25: 0.5862352422 | F25: 0.6282551152 | G25: 0.6728363566 | H25: =H12/H$7 -> 0.715453934 | I25: 0.6682008148 | J25: 0.6854970351
B26: (>105) | C26: 9.416954984e-06 | D26: 1.556152019e-05 | E26: 5.011181504e-05 | F26: 7.190623931e-05 | G26: 5.160592809e-05 | H26: =H13/H$7 -> 6.198844817e-05 | I26: 4.786084671e-05 | J26: 5.381840766e-05
B27: Cargo mínimo | C27: 0.001722932728 | D27: 0.004479154578 | E27: 0.0001173169317 | F27: 0.003682403266 | G27: 0.004552478903 | H27: =H14/H$7 -> 0.003721672492 | I27: 0.003508482159 | J27: =AVERAGE(G27:I27) -> 0.003927544518
B28: B. Otros usuarios: | C28: =C15/C$17 -> 0.05814001453 | D28: 0.04588732734 | E28: 0.008982967517 | F28: 0.147861918 | G28: 0.07555936428 | H28: =H15/H$17 -> 0.05478883417 | I28: 0.03629809638 | J28: =AVERAGE(G28:I28) -> 0.05554876494
B30: 1.2 Por tipo de cobro / Rango de PMD: Expresado en número de operaciones (Fuente: CORPAC S.A.)
C31: 2017 | D31: 2018 | E31: 2019 | F31: 2020 | G31: 2021 | H31: 2022 | I31: 2023
B32: A. Usuarios atribuibles: | C32: =SUM(C33:C39) -> 149952 | D32: 155992 | E32: 172462 | F32: 63562 | G32: 99723 | H32: =SUM(H33:H39) -> 135221 | I32: 139072
B33: (>0-5,7) | C33: 40323 | D33: 37755 | E33: 45551 | F33: 16499 | G33: 24035 | H33: 32861 | I33: 27530
B34: (>5,7-10) | C34: 3720 | D34: 5422 | E34: 8268 | F34: 5345 | G34: 6463 | H34: 5020 | I34: 5896
B35: (>10-35) | C35: 9333 | D35: 7945 | E35: 10474 | F35: 2097 | G35: 4609 | H35: 6805 | I35: 6579
B36: (>35-70) | C36: 42855 | D36: 41425 | E36: 34592 | F36: 8846 | G36: 11814 | H36: 15046 | I36: 22934
B37: (>70-105) | C37: 52543 | D37: 59714 | E37: 73409 | F37: 28741 | G37: 48974 | H37: 71744 | I37: 72426
B38: (>105) | C38: 1 | D38: 2 | E38: 4 | F38: 4 | G38: 3 | H38: 7 | I38: 8
B39: Cargo mínimo | C39: 1177 | D39: 3729 | E39: 164 | F39: 2030 | G39: 3825 | H39: 3738 | I39: 3699
B40: B. Otros usuarios: | C40: =SUM(C41) -> 15839 | D40: 16074 | E40: 3885 | F40: 21676 | G40: 18295 | H40: 16610 | I40: 6787
B41: Tarifa de USD 1 | C41: 15839 | D41: 16074 | E41: 3885 | F41: 21676 | G41: 18295 | H41: 16610 | I41: 6787
B42: Total | C42: =C32+C40 -> 165791 | D42: 172066 | E42: 176347 | F42: 85238 | G42: 118018 | H42: 151831 | I42: 145859
B44: * Estructura de distribución * | C44: 2017 | D44: 2018 | E44: 2019 | F44: 2020 | G44: 2021 | H44: 2022 | I44: 2023
B45: A. Atribuibles: | C45: =C32/C$42 -> 0.9044640541 | D45: 0.9065823579 | E45: 0.9779695714 | F45: 0.7457002745 | G45: 0.844981274 | H45: 0.890602051 | I45: 0.9534687609
B46: (>0-5,7) | C46: =C33/C$32 -> 0.2689060499 | D46: 0.2420316426 | E46: 0.2641219515 | F46: 0.25957333 | G46: 0.2410176188 | H46: =H33/H$32 -> 0.243016987 | I46: =I33/I$32 -> 0.1979550161
B47: (>5,7-10) | C47: =C34/C$32 -> 0.02480793854 | D47: 0.03475819273 | E47: 0.0479409957 | F47: 0.08409112363 | G47: 0.06480952238 | H47: =H34/H$32 -> 0.03712441115 | I47: 0.04239530603
B48: (>10-35) | C48: 0.06223991677 | D48: 0.05093209908 | E48: 0.06073221927 | F48: 0.03299140996 | G48: 0.04621802393 | H48: =H35/H$32 -> 0.05032502348 | I48: 0.0473064312
B49: (>35-70) | C49: 0.2857914533 | D49: 0.2655584902 | E49: 0.2005775185 | F49: 0.1391712029 | G49: 0.1184681568 | H49: =H36/H$32 -> 0.1112696992 | I49: 0.1649073861
B50: (>70-105) | C50: 0.3503987943 | D50: 0.3828016821 | E50: 0.4256531874 | F50: 0.4521726818 | G50: 0.491100348 | H50: =H37/H$32 -> 0.5305684768 | I50: 0.5207806029
B51: (>105) | C51: 6.668800683e-06 | D51: 1.282117032e-05 | E51: 2.319351509e-05 | F51: 6.293068185e-05 | G51: 3.008333083e-05 | H51: =H38/H$32 -> 5.176710718e-05 | I51: 5.752416015e-05
B52: Cargo mínimo | C52: =C39/C$32 -> 0.007849178404 | D52: 0.02390507205 | E52: 0.0009509341188 | F52: 0.03193732104 | G52: 0.0383562468 | H52: =H39/H$32 -> 0.02764363523 | I52: 0.02659773355
B53: B. Otros usuarios: | C53: =C40/C$42 -> 0.09553594586 | D53: 0.09341764207 | E53: 0.02203042864 | F53: 0.2542997255 | G53: 0.155018726 | H53: 0.109397949 | I53: 0.04653123907
B55: 2. Proyección de demanda para SNAR Nacional
B56: (Expresada en kilómetros recorridos)
B58: 2.1 Por tipo de usuario / Rango de PMD:
C60: 2024 | D60: 2025 | E60: 2026 | F60: 2027
B61: Hasta 5,7TM | C61: =+C$68*$J21 -> 7430222.635 | D61: =+D$68*$J21 -> 7950338.219 | E61: 8506861.895 | F61: =+F$68*$J21 -> 9102342.227
B62: Más de 5,7TM a 10TM | C62: 2655780.708 | D62: 2841685.358 | E62: 3040603.333 | F62: =+F$68*$J22 -> 3253445.566
B63: Más de 10TM a 35TM | C63: 3073119.447 | D63: 3288237.809 | E63: 3518414.455 | F63: =+F$68*$J23 -> 3764703.467
B64: Más de 35TM a 70TM | C64: 12807321.59 | D64: 13703834.11 | E64: 14663102.49 | F64: =+F$68*$J24 -> 15689519.67
B65: Más de 70TM a 105TM | C65: 57322648.49 | D65: 61335233.89 | E65: 65628700.26 | F65: =+F$68*$J25 -> 70222709.28
B66: Más de 105TM | C66: 4500.404096 | D66: 4815.432383 | E66: 5152.512649 | F66: =+F$68*$J26 -> 5513.188535
B67: Cargo mínimo | C67: 328429.216 | D67: 351419.2611 | E67: 376018.6094 | F67: =+F$68*$J27 -> 402339.9121
B68: Total Usuarios atribuibles | C68: =+I7*(1+'1.5 Tasas'!H38) -> 83622022.5 | D68: =C68*(1+'1.5 Tasas'!I38) -> 89475564.07 | E68: =D68*(1+'1.5 Tasas'!J38) -> 95738853.56 | F68: =E68*(1+'1.5 Tasas'!K38) -> 102440573.3

Sheet 1.2 SNAR Int
B1: 1.2 SNAR INTERNACIONAL - Información de demanda | H1: Índice
B3: 1. Información histórica: Expresada en kilómetros recorridos facturados (Fuente: CORPAC S.A.)
B5: 1.1 Por tipo de usuario / Rango de PMD:
C6: 2017 | D6: 2018 | E6: 2019 | F6: 2020 | G6: 2021 | H6: 2022 | I6: 2023
B7: A. Usuarios atribuibles: | C7: =SUM(C8:C14) -> 76765499.64 | D7: 80424520.97 | E7: 80707610.26 | F7: 24869238.11 | G7: 29618643.68 | H7: =SUM(H8:H14) -> 52127754.73 | I7: 62213793.49
B8: (>0-5,7) | C8: 485407.28 | D8: 378017.84 | E8: 370572.65 | F8: 230598.49 | G8: 309126.13 | H8: 210063.43 | I8: 201172.7
B9: (>5,7-10) | C9: 615817.42 | D9: 618794.82 | E9: 689532.75 | F9: 340332.44 | G9: 691237.92 | H9: 406029.87 | I9: 294669.75
B10: (>10-35) | C10: 1116701.69 | D10: 1153058.11 | E10: 1203435.4 | F10: 371663.46 | G10: 526865.73 | H10: 729407.85 | I10: 637118.84
B11: (>35-70) | C11: 9122469.82 | D11: 6029414.03 | E11: 5793638.12 | F11: 1885698.23 | G11: 2912792.67 | H11: 2745167.84 | I11: 4857233.07
B12: (>70-105) | C12: 42803624.45 | D12: 49903206.61 | E12: 50457353.21 | F12: 12254787.1 | G12: 13724697.82 | H12: 35197569.35 | I12: 41339973.31
B13: (>105) | C13: 22593592.17 | D13: 22274660.67 | E13: 22103192.58 | F13: 9708333.62 | G13: 11382880.93 | H13: 12836304.71 | I13: 14882339.7
B14: Cargo mínimo | C14: 27886.81 | D14: 67368.89 | E14: 89885.55 | F14: 77824.77 | G14: 71042.48 | H14: 3211.68 | I14: 1286.12
B15: B. Otros usuarios: | C15: =SUM(C16) -> 146303.54 | D15: 131091.61 | E15: 107600.64 | F15: 788671.45 | G15: 29103.2 | H15: 517295.87 | I15: 563124.54
B16: Tarifa de USD 1 | C16: 146303.54 | D16: 131091.61 | E16: 107600.64 | F16: 788671.45 | G16: 29103.2 | H16: 517295.87 | I16: 563124.54
B17: Total | C17: =C7+C15 -> 76911803.18 | D17: 80555612.58 | E17: 80815210.9 | F17: 25657909.56 | G17: 29647746.88 | H17: =H7+H15 -> 52645050.6 | I17: 62776918.03
B19: Estructura de distribución | C19: 2017 | D19: 2018 | E19: 2019 | F19: 2020 | G19: 2021 | H19: 2022 | I19: 2023 | J19: Prom 2021-23
B20: A. Atribuibles: | C20: =C7/C$17 -> 0.9980977752 | D20: 0.998372657 | E20: 0.9986685596 | F20: 0.9692620536 | G20: 0.9990183672 | H20: =H7/H$17 -> 0.9901738936 | I20: 0.9910297517 | J20: =AVERAGE(G20:I20) -> 0.9934073375
B21: (>0-5,7) | C21: =C8/C$7 -> 0.006323247843 | D21: 0.004700280902 | E21: 0.004591545318 | F21: 0.009272438865 | G21: 0.01043687663 | H21: =H8/H$7 -> 0.004029780893 | I21: 0.003233570704 | J21: 0.005900076075
B22: (>5,7-10) | C22: 0.008022059687 | D22: 0.007694106381 | E22: 0.008543590224 | F22: 0.01368487601 | G22: 0.02333793294 | H22: =H9/H$7 -> 0.007789130226 | I22: 0.004736405441 | J22: 0.01195448954
B23: (>10-35) | C23: 0.01454692141 | D23: 0.01433714614 | E23: 0.01491105233 | F23: 0.01494470632 | G23: 0.01778831386 | H23: =H10/H$7 -> 0.01399269648 | I23: 0.01024079717 | J23: =AVERAGE(G23:I23) -> 0.01400726917
B24: (>35-70) | C24: 0.1188355428 | D24: 0.07496984697 | E24: 0.07178552433 | F24: 0.07582452754 | G24: 0.0983432159 | H24: =H11/H$7 -> 0.05266230733 | I24: 0.07807325028 | J24: 0.07635959117
B25: (>70-105) | C25: 0.5575893422 | D25: 0.6204974056 | E25: 0.6251870554 | F25: 0.4927688997 | G25: 0.4633803616 | H25: =H12/H$7 -> 0.6752174448 | I25: 0.6644824402 | J25: 0.6010267489
B26: (>105) | C26: 0.2943196133 | D26: 0.2769635479 | E26: 0.273867514 | F26: 0.3903751927 | G26: 0.384314726 | H26: =H13/H$7 -> 0.2462470286 | I26: 0.2392128637 | J26: 0.2899248728
B27: Cargo mínimo | C27: 0.0003632726958 | D27: 0.00083766604 | E27: 0.001113718393 | F27: 0.003129358835 | G27: 0.002398573033 | H27: =H14/H$7 -> 6.161170794e-05 | I27: 2.067258606e-05 | J27: 0.0008269524423
B28: B. Otros usuarios: | C28: =C15/C$17 -> 0.001902224808 | D28: 0.001627342972 | E28: 0.001331440441 | F28: 0.03073794645 | G28: 0.0009816327736 | H28: =H15/H$17 -> 0.009826106426 | I28: 0.008970248264 | J28: 0.006592662488
B30: 1.2 Por tipo de cobro / Rango de PMD: Expresado en número de operaciones (Fuente: CORPAC S.A.)
C31: 2017 | D31: 2018 | E31: 2019 | F31: 2020 | G31: 2021 | H31: 2022 | I31: 2023
B32: A. Usuarios atribuibles: | C32: =SUM(C33:C39) -> 83565 | D32: 87406 | E32: 89512 | F32: 28555 | G32: 33232 | H32: =SUM(H33:H39) -> 54804 | I32: =SUM(I33:I39) -> 64862
B33: (>0-5,7) | C33: 2106 | D33: 1340 | E33: 1539 | F33: 1099 | G33: 1232 | H33: 637 | I33: 485
B34: (>5,7-10) | C34: 1021 | D34: 924 | E34: 1067 | F34: 500 | G34: 1019 | H34: 555 | I34: 390
B35: (>10-35) | C35: 1369 | D35: 1429 | E35: 1848 | F35: 419 | G35: 598 | H35: 852 | I35: 686
B36: (>35-70) | C36: 9877 | D36: 6687 | E36: 6248 | F36: 2161 | G36: 2966 | H36: 2944 | I36: 4780
B37: (>70-105) | C37: 44350 | D37: 52219 | E37: 53386 | F37: 12995 | G37: 14330 | H37: 36033 | I37: 42987
B38: (>105) | C38: 24368 | D38: 23851 | E38: 24076 | F38: 10330 | G38: 11896 | H38: 13654 | I38: 15492
B39: Cargo mínimo | C39: 474 | D39: 956 | E39: 1348 | F39: 1051 | G39: 1191 | H39: 129 | I39: 42
B40: B. Otros usuarios: | C40: =SUM(C41) -> 200 | D40: 157 | E40: 130 | F40: 885 | G40: 46 | H40: 1819 | I40: 818
B41: Tarifa de USD 1 | C41: 200 | D41: 157 | E41: 130 | F41: 885 | G41: 46 | H41: 129 | I41: 42
B42: Total | C42: =C32+C40 -> 83765 | D42: 87563 | E42: 89642 | F42: 29440 | G42: 33278 | H42: 56623 | I42: 65680
B44: Estructura de distribución | C44: 2017 | D44: 2018 | E44: 2019 | F44: 2020 | G44: 2021 | H44: 2022 | I44: 2023
B45: A. Atribuibles: | C45: =C32/C$42 -> 0.9976123679 | D45: 0.9982070052 | E45: 0.9985497869 | F45: 0.9699388587 | G45: 0.9986177054 | H45: =H32/H$42 -> 0.967875245 | I45: 0.987545676
B46: (>0-5,7) | C46: =C33/C$32 -> 0.02520193861 | D46: 0.01533075533 | E46: 0.01719322549 | F46: 0.0384871301 | G46: 0.03707270101 | H46: =H33/H$32 -> 0.01162323918 | I46: 0.007477413586
B47: (>5,7-10) | C47: =C34/C$32 -> 0.01221803387 | D47: 0.01057135666 | E47: 0.01192018947 | F47: 0.01751006829 | G47: 0.03066321618 | H47: =H34/H$32 -> 0.01012699803 | I47: 0.006012765564
B48: (>10-35) | C48: 0.01638245677 | D48: 0.01634899206 | E48: 0.02064527661 | F48: 0.01467343723 | G48: 0.0179947039 | H48: =H35/H$32 -> 0.01554631049 | I48: 0.01057630045
B49: (>35-70) | C49: 0.1181954167 | D49: 0.07650504542 | E49: 0.06980069711 | F49: 0.07567851515 | G49: 0.08925132403 | H49: =H36/H$32 -> 0.05371870666 | I49: 0.07369492153
B50: (>70-105) | C50: 0.5307245857 | D50: 0.5974303824 | E50: 0.5964116543 | F50: 0.4550866748 | G50: 0.4312108811 | H50: =H37/H$32 -> 0.6574885045 | I50: 0.6627455213
B51: (>105) | C51: 0.2916053372 | D51: 0.2728760039 | E51: 0.2689695236 | F51: 0.3617580109 | G51: 0.3579682234 | H51: =H38/H$32 -> 0.2491423984 | I51: 0.238845549
B52: Cargo mínimo | C52: 0.005672231197 | D52: 0.01093746425 | E52: 0.01505943337 | F52: 0.03680616354 | G52: 0.03583895041 | H52: =H39/H$32 -> 0.002353842785 | I52: 0.0006475285992
B53: B. Otros usuarios: | C53: =C40/C$42 -> 0.002387632066 | D53: 0.001792994758 | E53: 0.00145021307 | F53: 0.0300611413 | G53: 0.001382294609 | H53: =H40/H$42 -> 0.03212475496 | I53: 0.012454324
B55: 2. Proyección de demanda para SNAR Internacional
B56: (Expresada en kilómetros recorridos)
B58: 2.1 Por tipo de usuario / Rango de PMD:
C60: 2024 | D60: 2025 | E60: 2026 | F60: 2027
B61: Hasta 5,7TM | C61: =+C$68*$J21 -> 396431.4037 | D61: 424181.6019 | E61: 453874.3141 | F61: 485645.5161
B62: Más de 5,7TM a 10TM | C62: 803232.8747 | D62: 859459.176 | E62: 919621.3183 | F62: 983994.8106
B63: Más de 10TM a 35TM | C63: 941160.9795 | D63: 1007042.248 | E63: 1077535.205 | F63: 1152962.67
B64: Más de 35TM a 70TM | C64: 5130669.423 | D64: 5489816.282 | E64: 5874103.422 | F64: 6285290.662
B65: Más de 70TM a 105TM | C65: 40383526.36 | D65: 43210373.2 | E65: 46235099.33 | F65: 49471556.28
B66: Más de 105TM | C66: 19480312.25 | D66: 20843934.11 | E66: 22303009.5 | F66: 23864220.16
B67: Cargo mínimo | C67: 55563.67635 | D67: 59453.13369 | E67: 63614.85305 | F67: 68067.89276
B68: Total Usuarios atribuibles | C68: =+I7*(1+'1.5 Tasas'!H39) -> 67190896.97 | D68: =C68*(1+'1.5 Tasas'!I39) -> 71894259.76 | E68: =D68*(1+'1.5 Tasas'!J39) -> 76926857.94 | F68: =E68*(1+'1.5 Tasas'!K39) -> 82311738

Sheet 1.3 Aprox
B1: 1.3 APROXIMACIÓN - Información de demanda | H1: Índice
B3: 1. Información histórica: Expresada en toneladas/PMD facturados (Fuente: CORPAC S.A.)
B5: 1.1 Por tipo de usuario / Rango de PMD:
C6: 2017 | D6: 2018 | E6: 2019 | F6: 2020 | G6: 2021 | H6: 2022 | I6: 2023
B7: A. Usuarios atribuibles: | C7: =SUM(C8:C13) -> 3651843.52 | D7: 3965713.13 | E7: 4220184.13 | F7: 1538493.82 | G7: 2464258.42 | H7: =SUM(H8:H13) -> 3516477.82 | I7: 3816388.41
B8: (>0-10) | C8: 66306.96 | D8: 65464.57 | E8: 64816.56 | F8: 48547.29 | G8: 69705.41 | H8: 65477.85 | I8: 60829.02
B9: (>10-35) | C9: 81510.94 | D9: 74015.19 | E9: 49962.25 | F9: 14328.59 | G9: 37157.66 | H9: 58733.48 | I9: 54811.27
B10: (>35-70) | C10: 1394281.98 | D10: 1396165.82 | E10: 1198967.94 | F10: 334333.06 | G10: 440702.69 | H10: 563148.07 | I10: 835436.94
B11: (>70-105) | C11: 2103748.95 | D11: 2420836.48 | E11: 2897645.34 | F11: 1135596.67 | G11: 1909436.6 | H11: 2824992.34 | I11: 2859064.9
B12: (>105) | C12: 1395.3 | D12: 2829.59 | E12: 1103.64 | F12: 230.9 | G12: 839.42 | H12: 744.8 | I12: 1259.21
B13: Cargo mínimo | C13: 4599.39 | D13: 6401.48 | E13: 7688.4 | F13: 5457.31 | G13: 6416.64 | H13: 3381.28 | I13: 4987.07
B14: B. Otros usuarios: | C14: =SUM(C15) -> 116430.21 | D14: 93347.33 | E14: 108165.82 | F14: 138188.05 | G14: 109054.48 | H14: 97998.56 | I14: 70165.5
B15: Tarifa de USD1 | C15: 116430.21 | D15: 93347.33 | E15: 108165.82 | F15: 138188.05 | G15: 109054.48 | H15: 97998.56 | I15: 70165.5
B16: Total | C16: =C7+C14 -> 3768273.73 | D16: 4059060.46 | E16: 4328349.95 | F16: 1676681.87 | G16: 2573312.9 | H16: =H7+H14 -> 3614476.38 | I16: 3886553.91
B18: Estructura de distribución | C18: 2017 | D18: 2018 | E18: 2019 | F18: 2020 | G18: 2021 | H18: 2022 | I18: 2023 | J18: Prom 2021-23
B19: A. Atribuibles: | C19: =C7/C$16 -> 0.9691025073 | D19: 0.9770027249 | E19: 0.975009918 | F19: 0.9175824272 | G19: 0.9576209796 | H19: =H7/H$16 -> 0.9728872042 | I19: =I7/I$16 -> 0.9819466032 | J19: =AVERAGE(G19:I19) -> 0.9708182623
B20: (>0-10) | C20: =C8/C$7 -> 0.01815711972 | D20: 0.01650764134 | E20: 0.01535870427 | F20: 0.03155507638 | G20: 0.02828656663 | H20: =H8/H$7 -> 0.01862029376 | I20: 0.01593889653 | J20: 0.02094858564
B21: (>10-35) | C21: 0.02232049088 | D21: 0.01866377813 | E21: 0.01183887917 | F21: 0.009313388077 | G21: 0.01507863773 | H21: =H9/H$7 -> 0.01670236043 | I21: 0.01436207852 | J21: 0.01538102556
B22: (>35-70) | C22: 0.3818022246 | D22: 0.3520592071 | E22: 0.2841032294 | F22: 0.2173119291 | G22: 0.178837855 | H22: =H10/H$7 -> 0.1601454918 | I22: 0.2189077343 | J22: =AVERAGE(G22:I22) -> 0.1859636937
B23: (>70-105) | C23: 0.576078613 | D23: 0.6104416534 | E23: 0.6866158563 | F23: 0.7381223475 | G23: 0.7748524199 | H23: =H11/H$7 -> 0.8033584981 | I23: 0.7491545914 | J23: 0.7757885031
B24: (>105) | C24: 0.0003820809934 | D24: 0.0007135135365 | E24: 0.0002615146558 | F24: 0.0001500818508 | G24: 0.0003406379758 | H24: =H12/H$7 -> 0.0002118028431 | I24: 0.0003299480726 | J24: 0.0002941296305
B25: Cargo mínimo | C25: 0.001259470723 | D25: 0.001614206522 | E25: 0.001821816244 | F25: 0.00354717707 | G25: 0.002603882753 | H25: =H13/H$7 -> 0.0009615530577 | I25: 0.001306751165 | J25: 0.001624062325
B26: B. Otros usuarios: | C26: =C14/C$16 -> 0.03089749268 | D26: 0.02299727509 | E26: 0.02499008196 | F26: 0.08241757275 | G26: 0.04237902044 | H26: =H14/H$16 -> 0.0271127958 | I26: =I14/I$16 -> 0.01805339682 | J26: 0.02918173769
B28: 1.2 Por tipo de cobro / Rango de PMD: Expresado en número de operaciones (Fuente: CORPAC S.A.)
C29: 2017 | D29: 2018 | E29: 2019 | F29: 2020 | G29: 2021 | H29: 2022 | I29: 2023
B30: A. Usuarios atribuibles: | C30: =SUM(C31:C36) -> 72346 | D30: 76014 | E30: 77068 | F30: 33263 | G30: 51149 | H30: =SUM(H31:H36) -> 65309 | I30: 67898
B31: (>0-10) | C31: 13993 | D31: 13287 | E31: 12762 | F31: 9168 | G31: 13682 | H31: 14574 | I31: 12285
B32: (>10-35) | C32: 3578 | D32: 3167 | E32: 2753 | F32: 713 | G32: 1783 | H32: 3080 | I32: 2741
B33: (>35-70) | C33: 24360 | D33: 23816 | E33: 18726 | F33: 5041 | G33: 6629 | H33: 8516 | I33: 12415
B34: (>70-105) | C34: 27520 | D34: 31697 | E34: 38044 | F34: 14917 | G34: 24992 | H34: 36935 | I34: 37320
B35: (>105) | C35: 4 | D35: 13 | E35: 5 | F35: 1 | G35: 5 | H35: 4 | I35: 7
B36: Cargo mínimo | C36: 2891 | D36: 4034 | E36: 4778 | F36: 3423 | G36: 4058 | H36: 2200 | I36: 3130
B37: B. Otros usuarios: | C37: =SUM(C38) -> 6559 | D37: 6078 | E37: 7497 | F37: 11450 | G37: 11924 | H37: 9751 | I37: 2823
B38: Tarifa de USD 1 | C38: 6559 | D38: 6078 | E38: 7497 | F38: 11450 | G38: 11924 | H38: 9751 | I38: 2823
B39: Total | C39: =C30+C37 -> 78905 | D39: 82092 | E39: 84565 | F39: 44713 | G39: 63073 | H39: =H30+H37 -> 75060 | I39: 70721
B41: Estructura de distribución | C41: 2017 | D41: 2018 | E41: 2019 | F41: 2020 | G41: 2021 | H41: 2022 | I41: 2023
B42: A. Atribuibles: | C42: =C30/C$39 -> 0.9168747228 | D42: 0.9259611168 | E42: 0.9113463017 | F42: 0.7439223492 | G42: 0.8109492176 | H42: =H30/H$39 -> 0.8700905942 | I42: 0.960082578
B43: (>0-10) | C43: =C31/C$30 -> 0.1934177425 | D43: 0.174796748 | E43: 0.1655940209 | F43: 0.2756215615 | G43: 0.2674930106 | H43: =H31/H$30 -> 0.2231545423 | I43: 0.1809331645
B44: (>10-35) | C44: =C32/C$30 -> 0.04945677715 | D44: 0.0416633778 | E44: 0.03572170032 | F44: 0.02143522833 | G44: 0.03485894152 | H44: =H32/H$30 -> 0.04716042199 | I44: 0.0403693776
B45: (>35-70) | C45: 0.3367152296 | D45: 0.3133107059 | E45: 0.2429802253 | F45: 0.15154977 | G45: 0.1296017517 | H45: =H33/H$30 -> 0.1303955044 | I45: 0.1828478011
B46: (>70-105) | C46: 0.3803942167 | D46: 0.4169889757 | E46: 0.4936419785 | F46: 0.4484562427 | G46: 0.4886117031 | H46: =H34/H$30 -> 0.5655422683 | I46: 0.5496480014
B47: (>105) | C47: 5.528985708e-05 | D47: 0.0001710211277 | E47: 6.487777028e-05 | F47: 3.006343385e-05 | G47: 9.775362177e-05 | H47: =H35/H$30 -> 6.124730129e-05 | I47: 0.0001030958202
B48: Cargo mínimo | C48: =C36/C$30 -> 0.0399607442 | D48: 0.05306917147 | E48: 0.06199719728 | F48: 0.1029071341 | G48: 0.07933683943 | H48: =H36/H$30 -> 0.03368601571 | I48: 0.0460985596
B49: B. Otros usuarios: | C49: =C37/C$39 -> 0.08312527723 | D49: 0.0740388832 | E49: 0.08865369834 | F49: 0.2560776508 | G49: 0.1890507824 | H49: =H37/H$39 -> 0.1299094058 | I49: 0.03991742198
B51: 2. Proyección de demanda para Aproximación
B52: (Expresada en toneladas/PMD facturados)
B54: 2.1 Por tipo de usuario / Rango de PMD:
C56: 2024 | D56: 2025 | E56: 2026 | F56: 2027
B57: Hasta 10TM | C57: =+C$63*$J20 -> 86343.7746 | D57: =+D$63*$J20 -> 92387.83883 | E57: 98854.98754 | F57: 105774.8367
B58: Más de 10TM a 35TM | C58: =+C$63*$J21 -> 63395.9651 | D58: 67833.68266 | E58: 72582.04045 | F58: 77662.78328
B59: Más de 35TM a 70TM | C59: 766486.4602 | D59: 820140.5124 | E59: 877550.3483 | F59: 938978.8726
B60: Más de 70TM a 105TM | C60: 3197567.072 | D60: 3421396.767 | E60: 3660894.541 | F60: 3917157.159
B61: Más de 105TM | C61: 1212.313946 | D61: 1297.175922 | E61: 1387.978237 | F61: 1485.136713
B62: Cargo mínimo | C62: 6693.896846 | D62: 7162.469626 | E62: 7663.842499 | F62: 8200.311474
B63: Total Usuarios atribuibles | C63: =I7*(1+'1.5 Tasas'!H40) -> 4121699.483 | D63: =C63*(1+'1.5 Tasas'!I40) -> 4410218.447 | E63: =D63*(1+'1.5 Tasas'!J40) -> 4718933.738 | F63: =E63*(1+'1.5 Tasas'!K40) -> 5049259.1

Sheet 1.4 Sobrev
B1: 1.4 SOBREVUELO - Información de demanda | H1: Índice
B3: 1. Información histórica: Expresada en kilómetros recorridos facturados (Fuente: CORPAC S.A.)
B5: 1.1 Por tipo de usuario / Rango de PMD:
C6: 2017 | D6: 2018 | E6: 2019 | F6: 2020 | G6: 2021 | H6: 2022 | I6: 2023
B7: A. Usuarios atribuibles: | C7: =SUM(C8:C11) -> 44112792.8 | D7: 45840674.03 | E7: 45342728.73 | F7: 23258811.94 | G7: 28747071.59 | H7: =SUM(H8:H11) -> 45865477.28 | I7: 47968674.51
B8: (>0-55) | C8: 1760455.98 | D8: 1911435.67 | E8: 1720224.35 | F8: 1198678.62 | G8: 1877258.96 | H8: 2015708.84 | I8: 1990019.38
B9: (>55-115) | C9: 15802264.12 | D9: 16906620.63 | E9: 15901396.1 | F9: 5252411.84 | G9: 7073044.82 | H9: 19002713.75 | I9: 19832276.74
B10: (>115-200) | C10: 3938980.86 | D10: 4527278.58 | E10: 4167078.07 | F10: 2400663.64 | G10: 3334285.46 | H10: 4452262.87 | I10: 4197202.34
B11: (>200) | C11: 22611091.84 | D11: 22495339.15 | E11: 23554030.21 | F11: 14407057.84 | G11: 16462482.35 | H11: 20394791.82 | I11: 21949176.05
B12: B. Otros usuarios: | C12: =SUM(C13) -> 119173.05 | D12: 121701.84 | E12: 129442.92 | F12: 59094.3 | G12: 56762.9 | H12: 142124.76 | I12: 196367.52
B13: Tarifa de USD 1 | C13: 119173.05 | D13: 121701.84 | E13: 129442.92 | F13: 59094.3 | G13: 56762.9 | H13: 142124.76 | I13: 196367.52
B14: Total | C14: =C7+C12 -> 44231965.85 | D14: 45962375.87 | E14: 45472171.65 | F14: 23317906.24 | G14: 28803834.49 | H14: 46007602.04 | I14: 48165042.03
B16: Estructura de distribución | C16: 2017 | D16: 2018 | E16: 2019 | F16: 2020 | G16: 2021 | H16: 2022 | I16: 2023 | J16: Prom 2021-23
B17: A. Atribuibles: | C17: =C7/C$14 -> 0.9973057257 | D17: 0.9973521421 | E17: 0.9971533596 | F17: 0.9974657116 | G17: 0.9980293284 | H17: =H7/H$14 -> 0.9969108418 | I17: 0.9959230282 | J17: =AVERAGE(G17:I17) -> 0.9969543994
B18: (>0-55) | C18: =C8/C$7 -> 0.03990805996 | D18: 0.0416973727 | E18: 0.03793826261 | F18: 0.05153653691 | G18: 0.0653026154 | H18: =H8/H$7 -> 0.04394828005 | I18: 0.04148581132 | J18: 0.05024556892
B19: (>55-115) | C19: 0.3582240687 | D19: 0.3688126536 | E19: 0.3506934087 | F19: 0.2258245973 | G19: 0.2460440117 | H19: =H9/H$7 -> 0.4143140959 | I19: 0.4134422504 | J19: =AVERAGE(G19:I19) -> 0.3579334527
B20: (>115-200) | C20: 0.0892933911 | D20: 0.09876116955 | E20: 0.091901793 | F20: 0.1032152307 | G20: 0.1159869606 | H20: =H10/H$7 -> 0.09707220188 | I20: 0.0874988184 | J20: 0.1001859936
B21: (>200) | C21: 0.5125744802 | D21: 0.4907288042 | E21: 0.5194665356 | F21: 0.6194236351 | G21: 0.5726664122 | H21: =H11/H$7 -> 0.4446654222 | I21: 0.4575731198 | J21: =AVERAGE(G21:I21) -> 0.4916349848
B22: B. Otros usuarios: | C22: =C12/C$14 -> 0.002694274326 | D22: 0.002647857899 | E22: 0.00284664038 | F22: 0.00253428843 | G22: 0.001970671649 | H22: =H12/H$14 -> 0.003089158176 | I22: 0.004076971839 | J22: 0.003045600555
B24: 1.2 Por tipo de cobro / Rango de PMD: Expresado en número de operaciones (Fuente: CORPAC S.A.)
C25: 2017 | D25: 2018 | E25: 2019 | F25: 2020 | G25: 2021 | H25: 2022 | I25: 2023
B26: A. Usuarios atribuibles: | C26: =SUM(C27:C30) -> 34572 | D26: 36287 | E26: 35821 | F26: 16852 | G26: 21426 | H26: =SUM(H27:H30) -> 34555 | I26: 37333
B27: (>0-55) | C27: 1153 | D27: 1224 | E27: 1110 | F27: 750 | G27: 1152 | H27: 1265 | I27: 1264
B28: (>55-115) | C28: 15181 | D28: 16695 | E28: 15861 | F28: 4867 | G28: 7307 | H28: 17099 | I28: 18769
B29: (>115-200) | C29: 3577 | D29: 3636 | E29: 3658 | F29: 1989 | G29: 2576 | H29: 3358 | I29: 3195
B30: (>200) | C30: 14661 | D30: 14732 | E30: 15192 | F30: 9246 | G30: 10391 | H30: 12833 | I30: 14105
B31: B. Otros usuarios: | C31: =SUM(C32) -> 81 | D31: 72 | E31: 83 | F31: 34 | G31: 41 | H31: 94 | I31: 127
B32: Tarifa de USD 1 | C32: 81 | D32: 72 | E32: 83 | F32: 34 | G32: 41 | H32: 94 | I32: 127
B33: Total | C33: =C26+C31 -> 34653 | D33: 36359 | E33: 35904 | F33: 16886 | G33: 21467 | H33: =H26+H31 -> 34649 | I33: 37460
B35: Estructura de distribución | C35: 2017 | D35: 2018 | E35: 2019 | F35: 2020 | G35: 2021 | H35: 2022 | I35: 2023
B36: A. Atribuibles: | C36: =C26/C$33 -> 0.99766254 | D36: 0.9980197475 | E36: 0.9976882799 | F36: 0.9979864977 | G36: 0.9980900918 | H36: =H26/H$33 -> 0.997287079 | I36: 0.996609717
B37: (>0-55) | C37: =C27/C$26 -> 0.03335068842 | D37: 0.03373108827 | E37: 0.03098740962 | F37: 0.04450510325 | G37: 0.05376645197 | H37: =H27/H$26 -> 0.0366083056 | I37: =I27/I$26 -> 0.03385744516
B38: (>55-115) | C38: =C28/C$26 -> 0.4391125767 | D38: 0.4600821231 | E38: 0.4427849585 | F38: 0.28880845 | G38: 0.3410342574 | H38: =H28/H$26 -> 0.4948343221 | I38: 0.5027455602
B39: (>115-200) | C39: 0.103465232 | D39: 0.100201174 | E39: 0.1021188688 | F39: 0.1180275338 | G39: 0.1202277607 | H39: =H29/H$26 -> 0.09717841123 | I39: 0.08558112126
B40: (>200) | C40: 0.424071503 | D40: 0.4059856147 | E40: 0.424108763 | F40: 0.5486589129 | G40: 0.4849715299 | H40: =H30/H$26 -> 0.3713789611 | I40: 0.3778158734
B41: B. Otros usuarios: | C41: =C31/C$33 -> 0.00233745996 | D41: 0.001980252482 | E41: 0.002311720143 | F41: 0.00201350231 | G41: 0.001909908231 | H41: =H31/H$33 -> 0.002712921008 | I41: 0.003390282968
B43: 2. Proyección de demanda para Sobrevuelo
B44: (Expresada en kilómetros recorridos)
B46: 2.2 Por tipo de usuario / Rango de PMD:
C48: 2024 | D48: 2025 | E48: 2026 | F48: 2027
B49: Hasta 55TM | C49: =+C$53*$J18 -> 2603030.409 | D49: 2785242.537 | E49: 2980209.515 | F49: 3188824.181
B50: Más de 55TM a 115TM | C50: 18543160.75 | D50: 19841182 | E50: 21230064.74 | F50: 22716169.28
B51: Más de 115TM a 200TM | C51: 5190252.464 | D51: 5553570.137 | E51: 5942320.047 | F51: 6358282.45
B52: Más de 200TM | C52: 25469724.85 | D52: 27252605.59 | E52: 29160287.98 | F52: 31201508.14
B53: Total Usuarios atribuibles | C53: =I7*(1+'1.5 Tasas'!H41) -> 51806168.47 | D53: =C53*(1+'1.5 Tasas'!I41) -> 55432600.26 | E53: =D53*(1+'1.5 Tasas'!J41) -> 59312882.28 | F53: =E53*(1+'1.5 Tasas'!K41) -> 63464784.04

Sheet 1.5 Tasas
B1: 1.5 Tasas de crecimiento aplicadas a la proyección de demanda | H1: Índice | O1: 2024 | P1: 2025 | Q1: 2026 | R1: 2027
B3: 1. Proyecciones de recuperación del tráfico aéreo de pasajeros respecto del año 2019: | L3: ='Tarifa Calculada'!C2 -> Optimista | N3: Crecimiento anual optimista (%) | O3: 0.08 | P3: 0.07 | Q3: 0.07 | R3: 0.07
C4: 2019 | D4: 2020 | E4: 2021 | F4: 2022 | G4: 2023 | H4: 2024 | I4: 2025 | J4: 2026 | K4: 2027 | N4: Crecimiento anual conservador (%) | O4: 0.07 | P4: 0.06 | Q4: 0.06 | R4: 0.06
B5: Recuperación esperada del tráfico respecto del año 2019 (en niveles)/1 | C5: 100 | D5: =(1+D6)*100 -> 37.94239495 | E5: =(1+E6)*100 -> 54.82803051 | F5: 84.87447414 | G5: 85.28982588 | H5: =IF($L$3="Pesimista",O13,IF($L$3="Conservador",O12,IF($L$3="Optimista",O11))) -> 92.11301195 | I5: =IF($L$3="Pesimista",P13,IF($L$3="Conservador",P12,IF($L$3="Optimista",P11))) -> 98.56092279 | J5: 105.4601874 | K5: 112.8424005 | N5: Crecimiento anual pesimista (%) | O5: 0.06 | P5: 0.05 | Q5: 0.05 | R5: 0.05
B6: Variación esperada del tráfico respecto del año 2019 | C6: - | D6: -0.6205760505 | E6: -0.4517196949 | F6: -0.1512552586 | G6: -0.1471017412 | H6: =IF(L3="Pesimista",O17,IF(L3="Conservador",O16,IF(L3="Optimista",O15))) -> -0.07886988046 | I6: =IF(L3="Pesimista",P17,IF(L3="Conservador",P16,IF(L3="Optimista",P15))) -> -0.0143907721 | J6: =IF(L3="Pesimista",Q17,IF(L3="Conservador",Q16,IF(L3="Optimista",Q15))) -> 0.05460187386 | K6: =IF(L3="Pesimista",R17,IF(L3="Conservador",R16,IF(L3="Optimista",R15))) -> 0.128424005
B7: /1 De acuerdo con las proyecciones de ICF a junio de 2021 (https://www.icf.com/insights/transportation/covid-19-air-traffic-recovery-update) | N7: Crecimiento acumulado Optimista | O7: =(G6+1)*(1+O3) -> 0.9211301195 | P7: =(G6+1)*(1+O3)*(1+P3) -> 0.9856092279 | Q7: =(G6+1)*(1+O3)*(1+P3)*(1+Q3) -> 1.054601874 | R7: =(G6+1)*(1+O3)*(1+P3)*(1+Q3)*(1+R3) -> 1.128424005
N8: Crecimiento acumulado Conservador | O8: =(G6+1)*(1+O4) -> 0.9126011369 | P8: =(G6+1)*(1+O4)*(1+P4) -> 0.9673572052 | Q8: =(G6+1)*(1+O4)*(1+P4)*(1+Q4) -> 1.025398637 | R8: =(G6+1)*(1+O4)*(1+P4)*(1+Q4)*(1+R4) -> 1.086922556
B9: 2. Evolución de las operaciones relacionadas a los servicios de aeronavegación de CORPAC: | N9: Crecimiento acumulado Pesimista | O9: =(G6+1)*(1+O5) -> 0.9040721544 | P9: =(G6+1)*(1+O5)*(1+P5) -> 0.9492757621 | Q9: =(G6+1)*(1+O5)*(1+P5)*(1+Q5) -> 0.9967395502 | R9: =(G6+1)*(1+O5)*(1+P5)*(1+Q5)*(1+R5) -> 1.046576528
C10: 2017 | D10: 2018 | E10: 2019 | F10: 2020 | G10: 2021 | H10: 2022 | I10: 2023
B11: SNAR Nacional | C11: =+'1.1 SNAR Nac'!C32 -> 149952 | D11: =+'1.1 SNAR Nac'!D32 -> 155992 | E11: =+'1.1 SNAR Nac'!E32 -> 172462 | F11: =+'1.1 SNAR Nac'!F32 -> 63562 | G11: =+'1.1 SNAR Nac'!G32 -> 99723 | H11: 151831 | I11: 145859 | N11: Indice optimista | O11: =O7*100 -> 92.11301195 | P11: =P7*100 -> 98.56092279 | Q11: 105.4601874 | R11: 112.8424005
B12: SNAR Internacional | C12: =+'1.2 SNAR Int'!C32 -> 83565 | D12: =+'1.2 SNAR Int'!D32 -> 87406 | E12: =+'1.2 SNAR Int'!E32 -> 89512 | F12: =+'1.2 SNAR Int'!F32 -> 28555 | G12: =+'1.2 SNAR Int'!G32 -> 33232 | H12: 56623 | I12: 65680 | N12: Indice conservador | O12: =O8*100 -> 91.26011369 | P12: =P8*100 -> 96.73572052 | Q12: =Q8*100 -> 102.5398637 | R12: =R8*100 -> 108.6922556
B13: Aproximación | C13: =+'1.3 Aprox'!C30 -> 72346 | D13: =+'1.3 Aprox'!D30 -> 76014 | E13: =+'1.3 Aprox'!E30 -> 77068 | F13: =+'1.3 Aprox'!F30 -> 33263 | G13: =+'1.3 Aprox'!G30 -> 51149 | H13: 75060 | I13: 70721 | N13: Indice pesimista | O13: =O9*100 -> 90.40721544 | P13: =P9*100 -> 94.92757621 | Q13: 99.67395502 | R13: 104.6576528
B14: Sobrevuelo | C14: =+'1.4 Sobrev'!C26 -> 34572 | D14: =+'1.4 Sobrev'!D26 -> 36287 | E14: =+'1.4 Sobrev'!E26 -> 35821 | F14: =+'1.4 Sobrev'!F26 -> 16852 | G14: =+'1.4 Sobrev'!G26 -> 21426 | H14: 34649 | I14: 37460
B15: Total Operaciones relacionadas a los servicios de aeronavegación | C15: =SUM(C11:C14) -> 340435 | D15: =SUM(D11:D14) -> 355699 | E15: =SUM(E11:E14) -> 374863 | F15: =SUM(F11:F14) -> 142232 | G15: =SUM(G11:G14) -> 205530 | H15: =SUM(H11:H14) -> 318163 | I15: 319720 | N15: Crecimiento (%) optimista | O15: =O7-1 -> -0.07886988046 | P15: -0.0143907721 | Q15: 0.05460187386 | R15: 0.128424005
B16: Variación de las operaciones respecto del año 2019 | C16: - | D16: =+D15/$E$15-1 -> -0.05112267682 | E16: =+E15/$E$15-1 -> 0 | F16: =+F15/$E$15-1 -> -0.6205760505 | G16: =+G15/$E$15-1 -> -0.4517196949 | H16: =+H15/$E$15-1 -> -0.1512552586 | I16: -0.1471017412 | N16: Crecimiento (%) conservador | O16: -0.08739886305 | P16: -0.03264279483 | Q16: 0.02539863748 | R16: 0.08692255572
N17: Crecimiento (%) Pesimista | O17: -0.09592784564 | P17: -0.05072423792 | Q17: -0.003260449818 | R17: 0.04657652769
B18: * Estructura de distribución * | C18: 2017 | D18: 2018 | E18: 2019 | F18: 2020 | G18: 2021 | H18: 2022 | I18: 2023 | J18: Prom. 2022-23
B19: SNAR Nacional | C19: =+C11/C$15 -> 0.4404717494 | D19: =+D11/D$15 -> 0.4385505723 | E19: 0.4600667444 | F19: 0.4468895888 | G19: =+G11/G$15 -> 0.485199241 | H19: =+H11/H$15 -> 0.4772113665 | I19: =+I11/I$15 -> 0.4562085575 | J19: =AVERAGE(H19:I19) -> 0.466709962
B20: SNAR Internacional | C20: 0.2454653605 | D20: 0.2457302382 | E20: 0.2387859031 | F20: 0.2007635413 | G20: 0.1616892911 | H20: =+H12/H$15 -> 0.1779685256 | I20: 0.205429751 | J20: =AVERAGE(H20:I20) -> 0.1916991383
B21: Aproximación | C21: 0.2125104646 | D21: 0.2137031591 | E21: 0.2055897755 | F21: 0.2338643906 | G21: 0.2488639128 | H21: =+H13/H$15 -> 0.2359168099 | I21: 0.2211966721 | J21: 0.228556741
B22: Sobrevuelo | C22: 0.1015524256 | D22: 0.1020160304 | E22: 0.09555757703 | F22: 0.1184824793 | G22: 0.1042475551 | H22: =+H14/H$15 -> 0.108903298 | I22: 0.1171650194 | J22: =AVERAGE(H22:I22) -> 0.1130341587
B24: 3. Estimación de tasas de crecimiento para los servicios de aeronavegación de CORPAC:
B26: 3.1. Proyección de operaciones, por servicio de aeronavegación:
C27: 2019 | D27: 2020 | E27: 2021 | F27: 2022 | G27: 2023 | H27: 2024 | I27: 2025 | J27: 2026 | K27: 2027
B28: Variación esperada del tráfico respecto del año 2019 | C28: =+C6 -> - | D28: -0.6205760505 | E28: -0.4517196949 | F28: -0.1512552586 | G28: -0.1471017412 | H28: =+H6 -> -0.07886988046 | I28: =+I6 -> -0.0143907721 | J28: =+J6 -> 0.05460187386 | K28: =+K6 -> 0.128424005
B29: Variación de las operaciones de CORPAC respecto del año 2019 | C29: =+E16 -> 0 | D29: =+F16 -> -0.6205760505 | E29: =+G16 -> -0.4517196949 | F29: =+F28 -> -0.1512552586 | G29: =+G28 -> -0.1471017412 | H29: =+H28 -> -0.07886988046 | I29: =+I28 -> -0.0143907721 | J29: 0.05460187386 | K29: 0.128424005
B30: Total Operaciones relacionadas con los servicios de aeronavegación | C30: =+E15 -> 374863 | D30: =+F15 -> 142232 | E30: =+G15 -> 205530 | F30: =$C30*(1+F29) -> 318163 | G30: =$C30*(1+G29) -> 319720 | H30: =$C30*(1+H29) -> 345297.6 | I30: =$C30*(1+I29) -> 369468.432 | J30: =$C30*(1+J29) -> 395331.2222 | K30: =$C30*(1+K29) -> 423004.4078
B31: SNAR Nacional | C31: =+E11 -> 172462 | D31: 63562 | E31: 99723 | F31: =+F$30*$J19 -> 148489.8416 | G31: 149216.509 | H31: =+H$30*$J19 -> 161153.8298 | I31: =+I$30*$J19 -> 172434.5979 | J31: 184505.0197 | K31: 197420.3711
B32: SNAR Internacional | C32: 89512 | D32: 28555 | E32: 33232 | F32: 60991.57294 | G32: 61290.0485 | H32: 66193.25238 | I32: =+I$30*$J20 -> 70826.78004 | J32: 75784.65465 | K32: 81089.58047
B33: Aproximación | C33: 77068 | D33: 33263 | E33: 51149 | F33: 72718.29839 | G33: 73074.16124 | H33: 78920.09414 | I33: =+I$30*$J21 -> 84444.50072 | J33: 90355.61578 | K33: 96680.50888
B34: Sobrevuelo | C34: 35821 | D34: 16852 | E34: 21426 | F34: 35963.28703 | G34: 36139.28122 | H34: 39030.42371 | I34: =+I$30*$J22 -> 41762.55337 | J34: 44685.93211 | K34: 47813.94736
B36: 3.2. Cálculo de la tasa de crecimiento anual de la demanda, por servicio:
C37: 2019 | D37: 2020 | E37: 2021 | F37: 2022 | G37: 2023 | H37: 2024 | I37: 2025 | J37: 2026 | K37: 2027
B38: SNAR Nacional | C38: - | D38: =+D31/C31-1 -> -0.6314434484 | E38: 0.5689090966 | F38: 0.4890230101 | G38: 0.004893718 | H38: =+H31/G31-1 -> 0.08 | I38: =+I31/H31-1 -> 0.07 | J38: =+J31/I31-1 -> 0.07 | K38: =+K31/J31-1 -> 0.07
B39: SNAR Internacional | C39: - | D39: -0.6809924926 | E39: 0.1637891788 | F39: 0.835326581 | G39: 0.004893718 | H39: 0.08 | I39: =+I32/H32-1 -> 0.07 | J39: =+J32/I32-1 -> 0.07 | K39: =+K32/J32-1 -> 0.07
B40: Aproximación | C40: - | D40: -0.5683941454 | E40: 0.5377145778 | F40: 0.4216954074 | G40: 0.004893718 | H40: 0.08 | I40: 0.07 | J40: 0.07 | K40: 0.07
B41: Sobrevuelo | C41: - | D41: -0.5295497055 | E41: 0.2714217897 | F41: 0.6784881468 | G41: 0.004893718 | H41: 0.08 | I41: 0.07 | J41: 0.07 | K41: 0.07

Sheet 2. Tarifas
B1: 2. Tarifas reguladas | AA1: Índice
B3: Servicio / Peso Máximo de Despegue (PMD) | C3: Unidad de cobro | D3: Tarifas vigentes (según moneda) | I3: Tarifas vigentes (según moneda) | N3: Tarifas vigentes (en soles) | S3: Tarifas vigentes (en Soles) | X3: Tarifa revisada (en Soles) | Z3: Tarifa revisada (según moneda) | AA3: Var% sobre Tarifa vigente
D4: 2017-11-10 | E4: 2018-11-10 | F4: 2019-11-10 | G4: 2020-11-10 | I4: 2021-11-10 | J4: 2022-08-02 | K4: 2022-09-30 | L4: 2023-09-30 | N4: 2017-11-10 | O4: 2018-11-10 | P4: 2019-11-10 | Q4: 2020-11-10 | S4: 2021-11-10 | T4: 2022-08-02 | U4: 2022-09-30 | V4: 2023-09-30
B6: A. SNAR Nacional | X6: 0.4556004645
B7: (En soles)
B8: - Por rango de PMD:
B9: Hasta 5,7TM | C9: Por kilómetro recorrido | D9: 0.16 | E9: 0.16 | F9: 0.16 | G9: 0.16 | I9: 0.17 | J9: 0.13 | K9: 0.13 | L9: 0.14 | N9: =D9 -> 0.16 | O9: 0.16 | P9: 0.16 | Q9: 0.16 | S9: =I9 -> 0.17 | T9: 0.13 | U9: 0.13 | V9: 0.14 | X9: =V9*(1+$X$6) -> 0.203784065 | Z9: =X9 -> 0.203784065 | AA9: =Z9/L9-1 -> 0.4556004645
B10: Más de 5,7TM a 10TM | C10: Por kilómetro recorrido | D10: 0.29 | E10: 0.29 | F10: 0.3 | G10: 0.31 | I10: 0.33 | J10: 0.25 | K10: 0.25 | L10: 0.26 | N10: 0.29 | O10: 0.29 | P10: 0.3 | Q10: 0.31 | S10: 0.33 | T10: 0.25 | U10: 0.25 | V10: 0.26 | X10: =V10*(1+$X$6) -> 0.3784561208 | Z10: 0.3784561208 | AA10: 0.4556004645
B11: Más de 10TM a 35TM | C11: Por kilómetro recorrido | D11: 0.32 | E11: 0.32 | F11: 0.33 | G11: 0.34 | I11: 0.36 | J11: 0.27 | K11: 0.28 | L11: 0.3 | N11: 0.32 | O11: 0.32 | P11: 0.33 | Q11: 0.34 | S11: 0.36 | T11: 0.27 | U11: 0.28 | V11: 0.3 | X11: 0.4366801393 | Z11: 0.4366801393 | AA11: 0.4556004645
B12: Más de 35TM a 70TM | C12: Por kilómetro recorrido | D12: 0.43 | E12: 0.44 | F12: 0.45 | G12: 0.46 | I12: 0.48 | J12: 0.36 | K12: 0.37 | L12: 0.39 | N12: 0.43 | O12: 0.44 | P12: 0.45 | Q12: 0.46 | S12: 0.48 | T12: 0.36 | U12: 0.37 | V12: 0.39 | X12: 0.5676841811 | Z12: 0.5676841811 | AA12: 0.4556004645
B13: Más de 70TM a 105TM | C13: Por kilómetro recorrido | D13: 0.66 | E13: 0.67 | F13: 0.68 | G13: 0.69 | I13: 0.73 | J13: 0.55 | K13: 0.56 | L13: 0.59 | N13: 0.66 | O13: 0.67 | P13: 0.68 | Q13: 0.69 | S13: 0.73 | T13: 0.55 | U13: 0.56 | V13: 0.59 | X13: 0.858804274 | Z13: 0.858804274 | AA13: 0.4556004645
B14: Más de 105TM | C14: Por kilómetro recorrido | D14: 0.86 | E14: 0.87 | F14: 0.89 | G14: 0.91 | I14: 0.96 | J14: 0.72 | K14: 0.73 | L14: 0.77 | N14: 0.86 | O14: 0.87 | P14: 0.89 | Q14: 0.91 | S14: 0.96 | T14: 0.72 | U14: 0.73 | V14: 0.77 | X14: 1.120812358 | Z14: 1.120812358 | AA14: 0.4556004645
B15: - Cargo mínimo: | C15: Por operación | D15: 14.45 | E15: 14.64 | F15: 14.91 | G15: 15.18 | I15: 15.97 | J15: 12.03 | K15: 12.2 | L15: 12.88 | N15: 14.45 | O15: 14.64 | P15: 14.91 | Q15: 15.18 | S15: 15.97 | T15: 12.03 | U15: 12.2 | V15: 12.88 | X15: 18.74813398 | Z15: 18.74813398 | AA15: 0.4556004645
B17: B. SNAR Internacional | X17: =+X6 -> 0.4556004645
B18: (En dólares)
B19: - Por rango de PMD:
B20: Hasta 5,7TM | C20: Por kilómetro recorrido | D20: 0.07 | E20: 0.07 | F20: 0.07 | G20: 0.07 | I20: 0.07 | J20: 0.05 | K20: 0.05 | L20: 0.05 | N20: =D20*'10. Var-Sup-Gen'!D$12 -> 0.2282775904 | O20: =E20*'10. Var-Sup-Gen'!E$12 -> 0.2300369309 | P20: =F20*'10. Var-Sup-Gen'!F$12 -> 0.2335842369 | Q20: =G20*'10. Var-Sup-Gen'!G$12 -> 0.244724685 | S20: =I20*'10. Var-Sup-Gen'!H$12 -> 0.2717840637 | T20: =J20*'10. Var-Sup-Gen'!I$12 -> 0.192 | U20: =K20*'10. Var-Sup-Gen'!I$12 -> 0.192 | V20: =L20*'10. Var-Sup-Gen'!J$12 -> 0.1875 | X20: =V20*(1+$X$17) -> 0.2729250871 | Z20: =X20/'10. Var-Sup-Gen'!$J$12 -> 0.07278002322 | AA20: =Z20/L20-1 -> 0.4556004645
B21: Más de 5,7TM a 10TM | C21: Por kilómetro recorrido | D21: 0.13 | E21: 0.13 | F21: 0.13 | G21: 0.13 | I21: 0.14 | J21: 0.11 | K21: 0.11 | L21: 0.11 | N21: =D21*'10. Var-Sup-Gen'!D$12 -> 0.4239440964 | O21: =E21*'10. Var-Sup-Gen'!E$12 -> 0.4272114431 | P21: =F21*'10. Var-Sup-Gen'!F$12 -> 0.4337992972 | Q21: =G21*'10. Var-Sup-Gen'!G$12 -> 0.4544887008 | S21: =I21*'10. Var-Sup-Gen'!H$12 -> 0.5435681275 | T21: =J21*'10. Var-Sup-Gen'!I$12 -> 0.4224 | U21: =K21*'10. Var-Sup-Gen'!I$12 -> 0.4224 | V21: =L21*'10. Var-Sup-Gen'!J$12 -> 0.4125 | X21: =V21*(1+$X$17) -> 0.6004351916 | Z21: =X21/'10. Var-Sup-Gen'!$J$12 -> 0.1601160511 | AA21: 0.4556004645
B22: Más de 10TM a 35TM | C22: Por kilómetro recorrido | D22: 0.14 | E22: 0.14 | F22: 0.14 | G22: 0.14 | I22: 0.15 | J22: 0.12 | K22: 0.12 | L22: 0.12 | N22: =D22*'10. Var-Sup-Gen'!D$12 -> 0.4565551807 | O22: =E22*'10. Var-Sup-Gen'!E$12 -> 0.4600738618 | P22: =F22*'10. Var-Sup-Gen'!F$12 -> 0.4671684739 | Q22: =G22*'10. Var-Sup-Gen'!G$12 -> 0.4894493701 | S22: =I22*'10. Var-Sup-Gen'!H$12 -> 0.5823944223 | T22: =J22*'10. Var-Sup-Gen'!I$12 -> 0.4608 | U22: =K22*'10. Var-Sup-Gen'!I$12 -> 0.4608 | V22: =L22*'10. Var-Sup-Gen'!J$12 -> 0.45 | X22: 0.655020209 | Z22: =X22/'10. Var-Sup-Gen'!$J$12 -> 0.1746720557 | AA22: 0.4556004645
B23: Más de 35TM a 70TM | C23: Por kilómetro recorrido | D23: 0.19 | E23: 0.19 | F23: 0.19 | G23: 0.2 | I23: 0.2 | J23: 0.15 | K23: 0.16 | L23: 0.17 | N23: =D23*'10. Var-Sup-Gen'!D$12 -> 0.6196106024 | O23: =E23*'10. Var-Sup-Gen'!E$12 -> 0.6243859553 | P23: =F23*'10. Var-Sup-Gen'!F$12 -> 0.6340143574 | Q23: =G23*'10. Var-Sup-Gen'!G$12 -> 0.6992133858 | S23: =I23*'10. Var-Sup-Gen'!H$12 -> 0.7765258964 | T23: =J23*'10. Var-Sup-Gen'!I$12 -> 0.576 | U23: =K23*'10. Var-Sup-Gen'!I$12 -> 0.6144 | V23: =L23*'10. Var-Sup-Gen'!J$12 -> 0.6375 | X23: 0.9279452961 | Z23: =X23/'10. Var-Sup-Gen'!$J$12 -> 0.247452079 | AA23: 0.4556004645
B24: Más de 70TM a 105TM | C24: Por kilómetro recorrido | D24: 0.28 | E24: 0.29 | F24: 0.29 | G24: 0.3 | I24: 0.31 | J24: 0.24 | K24: 0.24 | L24: 0.25 | N24: =D24*'10. Var-Sup-Gen'!D$12 -> 0.9131103614 | O24: =E24*'10. Var-Sup-Gen'!E$12 -> 0.9530101423 | P24: =F24*'10. Var-Sup-Gen'!F$12 -> 0.9677061245 | Q24: =G24*'10. Var-Sup-Gen'!G$12 -> 1.048820079 | S24: =I24*'10. Var-Sup-Gen'!H$12 -> 1.203615139 | T24: =J24*'10. Var-Sup-Gen'!I$12 -> 0.9216 | U24: =K24*'10. Var-Sup-Gen'!I$12 -> 0.9216 | V24: =L24*'10. Var-Sup-Gen'!J$12 -> 0.9375 | X24: 1.364625435 | Z24: =X24/'10. Var-Sup-Gen'!$J$12 -> 0.3639001161 | AA24: 0.4556004645
B25: Más de 105TM | C25: Por kilómetro recorrido | D25: 0.38 | E25: 0.39 | F25: 0.4 | G25: 0.4 | I25: 0.43 | J25: 0.33 | K25: 0.34 | L25: 0.35 | N25: =D25*'10. Var-Sup-Gen'!D$12 -> 1.239221205 | O25: =E25*'10. Var-Sup-Gen'!E$12 -> 1.281634329 | P25: =F25*'10. Var-Sup-Gen'!F$12 -> 1.334767068 | Q25: =G25*'10. Var-Sup-Gen'!G$12 -> 1.398426772 | S25: =I25*'10. Var-Sup-Gen'!H$12 -> 1.669530677 | T25: =J25*'10. Var-Sup-Gen'!I$12 -> 1.2672 | U25: =K25*'10. Var-Sup-Gen'!I$12 -> 1.3056 | V25: =L25*'10. Var-Sup-Gen'!J$12 -> 1.3125 | X25: 1.91047561 | Z25: =X25/'10. Var-Sup-Gen'!$J$12 -> 0.5094601626 | AA25: 0.4556004645
B26: - Cargo mínimo: | C26: Por operación | D26: 6.68 | E26: 6.83 | F26: 6.95 | G26: 7.05 | I26: 7.43 | J26: 5.75 | K26: 5.83 | L26: 6.04 | N26: =D26*'10. Var-Sup-Gen'!D$12 -> 21.78420434 | O26: =E26*'10. Var-Sup-Gen'!E$12 -> 22.44503197 | P26: =F26*'10. Var-Sup-Gen'!F$12 -> 23.19157781 | Q26: =G26*'10. Var-Sup-Gen'!G$12 -> 24.64727185 | S26: =I26*'10. Var-Sup-Gen'!H$12 -> 28.84793705 | T26: =J26*'10. Var-Sup-Gen'!I$12 -> 22.08 | U26: =K26*'10. Var-Sup-Gen'!I$12 -> 22.3872 | V26: =L26*'10. Var-Sup-Gen'!J$12 -> 22.65 | X26: 32.96935052 | Z26: =X26/'10. Var-Sup-Gen'!$J$12 -> 8.791826806 | AA26: 0.4556004645
B28: C. Aproximación | X28: 2.160363718
B29: (En soles)
B30: - Por rango de PMD:
B31: Hasta 10TM | C31: Por Tonelada (PMD) | D31: 3.04 | E31: 3.08 | F31: 3.14 | G31: 3.19 | I31: 3.37 | J31: 3.94 | K31: 4.19 | L31: 4.42 | N31: =D31 -> 3.04 | O31: 3.08 | P31: 3.14 | Q31: 3.19 | S31: =I31 -> 3.37 | T31: 3.94 | U31: 4.19 | V31: 4.42 | X31: =V31*(1+$X$28) -> 13.96880763 | Z31: =X31 -> 13.96880763 | AA31: =Z31/L31-1 -> 2.160363718
B32: Más de 10TM a 35TM | C32: Por Tonelada (PMD) | D32: 3.41 | E32: 3.45 | F32: 3.51 | G32: 3.58 | I32: 3.76 | J32: 4.39 | K32: 4.68 | L32: 4.94 | N32: 3.41 | O32: 3.45 | P32: 3.51 | Q32: 3.58 | S32: 3.76 | T32: 4.39 | U32: 4.68 | V32: 4.94 | X32: =V32*(1+$X$28) -> 15.61219677 | Z32: 15.61219677 | AA32: 2.160363718
B33: Más de 35TM a 70TM | C33: Por Tonelada (PMD) | D33: 3.79 | E33: 3.84 | F33: 3.91 | G33: 3.98 | I33: 4.19 | J33: 4.89 | K33: 5.21 | L33: 5.5 | N33: 3.79 | O33: 3.84 | P33: 3.91 | Q33: 3.98 | S33: 4.19 | T33: 4.89 | U33: 5.21 | V33: 5.5 | X33: 17.38200045 | Z33: 17.38200045 | AA33: 2.160363718
B34: Más de 70TM a 105TM | C34: Por Tonelada (PMD) | D34: 4.17 | E34: 4.22 | F34: 4.3 | G34: 4.37 | I34: 4.61 | J34: 5.38 | K34: 5.73 | L34: 6.05 | N34: 4.17 | O34: 4.22 | P34: 4.3 | Q34: 4.37 | S34: 4.61 | T34: 5.38 | U34: 5.73 | V34: 6.05 | X34: 19.1202005 | Z34: 19.1202005 | AA34: 2.160363718
B35: Más de 105TM | C35: Por Tonelada (PMD) | D35: 4.56 | E35: 4.62 | F35: 4.71 | G35: 4.8 | I35: 5.05 | J35: 5.9 | K35: 6.28 | L35: 6.63 | N35: 4.56 | O35: 4.62 | P35: 4.71 | Q35: 4.8 | S35: 5.05 | T35: 5.9 | U35: 6.28 | V35: 6.63 | X35: 20.95321145 | Z35: 20.95321145 | AA35: 2.160363718
B36: - Cargo mínimo: | C36: Por operación | D36: 7.6 | E36: 7.7 | F36: 7.84 | G36: 7.98 | I36: 8.4 | J36: 9.81 | K36: 10.45 | L36: 11.03 | N36: 7.6 | O36: 7.7 | P36: 7.84 | Q36: 7.98 | S36: 8.4 | T36: 9.81 | U36: 10.45 | V36: 11.03 | X36: 34.85881181 | Z36: 34.85881181 | AA36: 2.160363718
B38: D. Sobrevuelo | X38: =+X6 -> 0.4556004645
B39: (En dólares)
B40: - Por rango de PMD:
B41: Hasta 55TM | C41: Por kilómetro recorrido | D41: 0.18 | E41: 0.18 | F41: 0.18 | G41: 0.18 | I41: 0.19 | J41: 0.15 | K41: 0.15 | L41: 0.16 | N41: =D41*'10. Var-Sup-Gen'!D$12 -> 0.5869995181 | O41: =E41*'10. Var-Sup-Gen'!E$12 -> 0.5915235366 | P41: =F41*'10. Var-Sup-Gen'!F$12 -> 0.6006451807 | Q41: =G41*'10. Var-Sup-Gen'!G$12 -> 0.6292920472 | S41: =I41*'10. Var-Sup-Gen'!H$12 -> 0.7376996016 | T41: =J41*'10. Var-Sup-Gen'!I$12 -> 0.576 | U41: =K41*'10. Var-Sup-Gen'!I$12 -> 0.576 | V41: =L41*'10. Var-Sup-Gen'!J$12 -> 0.6 | X41: =V41*(1+$X$38) -> 0.8733602787 | Z41: =X41/'10. Var-Sup-Gen'!$J$12 -> 0.2328960743 | AA41: =Z41/L41-1 -> 0.4556004645
B42: Más de 55TM a 115TM | C42: Por kilómetro recorrido | D42: 0.27 | E42: 0.28 | F42: 0.28 | G42: 0.29 | I42: 0.3 | J42: 0.23 | K42: 0.24 | L42: 0.25 | N42: =D42*'10. Var-Sup-Gen'!D$12 -> 0.8804992771 | O42: =E42*'10. Var-Sup-Gen'!E$12 -> 0.9201477236 | P42: =F42*'10. Var-Sup-Gen'!F$12 -> 0.9343369478 | Q42: =G42*'10. Var-Sup-Gen'!G$12 -> 1.013859409 | S42: =I42*'10. Var-Sup-Gen'!H$12 -> 1.164788845 | T42: =J42*'10. Var-Sup-Gen'!I$12 -> 0.8832 | U42: =K42*'10. Var-Sup-Gen'!I$12 -> 0.9216 | V42: =L42*'10. Var-Sup-Gen'!J$12 -> 0.9375 | X42: =V42*(1+$X$38) -> 1.364625435 | Z42: =X42/'10. Var-Sup-Gen'!$J$12 -> 0.3639001161 | AA42: =Z42/L42-1 -> 0.4556004645
B43: Más de 115TM a 200TM | C43: Por kilómetro recorrido | D43: 0.54 | E43: 0.55 | F43: 0.56 | G43: 0.56 | I43: 0.6 | J43: 0.46 | K43: 0.47 | L43: 0.49 | N43: =D43*'10. Var-Sup-Gen'!D$12 -> 1.760998554 | O43: =E43*'10. Var-Sup-Gen'!E$12 -> 1.807433028 | P43: =F43*'10. Var-Sup-Gen'!F$12 -> 1.868673896 | Q43: =G43*'10. Var-Sup-Gen'!G$12 -> 1.95779748 | S43: =I43*'10. Var-Sup-Gen'!H$12 -> 2.329577689 | T43: =J43*'10. Var-Sup-Gen'!I$12 -> 1.7664 | U43: =K43*'10. Var-Sup-Gen'!I$12 -> 1.8048 | V43: =L43*'10. Var-Sup-Gen'!J$12 -> 1.8375 | X43: 2.674665853 | Z43: =X43/'10. Var-Sup-Gen'!$J$12 -> 0.7132442276 | AA43: =Z43/L43-1 -> 0.4556004645
B44: Más de 200TM | C44: Por kilómetro recorrido | D44: 0.8 | E44: 0.82 | F44: 0.83 | G44: 0.84 | I44: 0.89 | J44: 0.69 | K44: 0.7 | L44: 0.43 | N44: =D44*'10. Var-Sup-Gen'!D$12 -> 2.608886747 | O44: =E44*'10. Var-Sup-Gen'!E$12 -> 2.694718333 | P44: =F44*'10. Var-Sup-Gen'!F$12 -> 2.769641667 | Q44: =G44*'10. Var-Sup-Gen'!G$12 -> 2.93669622 | S44: =I44*'10. Var-Sup-Gen'!H$12 -> 3.455540239 | T44: =J44*'10. Var-Sup-Gen'!I$12 -> 2.6496 | U44: =K44*'10. Var-Sup-Gen'!I$12 -> 2.688 | V44: =L44*'10. Var-Sup-Gen'!J$12 -> 1.6125 | X44: 2.347155749 | Z44: =X44/'10. Var-Sup-Gen'!$J$12 -> 0.6259081997 | AA44: =Z44/L44-1 -> 0.4556004645

Sheet 3. Ingresos
B1: 3. Ingresos totales (Usuarios atribuibles) | E1: Índice
B3: Servicio / Peso Máximo de Despegue (PMD) | C3: Proyecciones
C4: 2024 | D4: =C4+1 -> 2025 | E4: =D4+1 -> 2026 | F4: =E4+1 -> 2027
B6: A. SNAR Nacional
B7: (En soles)
B8: Ingresos totales | C8: =SUM(C11:C16,C17) -> 60464838.19 | D8: =SUM(D11:D16,D17) -> 64697376.86 | E8: =SUM(E11:E16,E17) -> 69226193.24 | F8: =SUM(F11:F16,F17) -> 74072026.77
B10: - Por rango de PMD:
B11: Hasta 5,7TM | C11: ='2. Tarifas'!$X9*'1. Demanda'!J12 -> 1514160.973 | D11: ='2. Tarifas'!$X9*'1. Demanda'!K12 -> 1620152.241 | E11: ='2. Tarifas'!$X9*'1. Demanda'!L12 -> 1733562.898 | F11: ='2. Tarifas'!$X9*'1. Demanda'!M12 -> 1854912.3
B12: Más de 5,7TM a 10TM | C12: ='2. Tarifas'!$X10*'1. Demanda'!J13 -> 1005096.464 | D12: ='2. Tarifas'!$X10*'1. Demanda'!K13 -> 1075453.217 | E12: ='2. Tarifas'!$X10*'1. Demanda'!L13 -> 1150734.942 | F12: ='2. Tarifas'!$X10*'1. Demanda'!M13 -> 1231286.388
B13: Más de 10TM a 35TM | C13: ='2. Tarifas'!$X11*'1. Demanda'!J14 -> 1341970.228 | D13: ='2. Tarifas'!$X11*'1. Demanda'!K14 -> 1435908.144 | E13: ='2. Tarifas'!$X11*'1. Demanda'!L14 -> 1536421.715 | F13: ='2. Tarifas'!$X11*'1. Demanda'!M14 -> 1643971.235
B14: Más de 35TM a 70TM | C14: ='2. Tarifas'!$X12*'1. Demanda'!J15 -> 7270513.872 | D14: ='2. Tarifas'!$X12*'1. Demanda'!K15 -> 7779449.843 | E14: ='2. Tarifas'!$X12*'1. Demanda'!L15 -> 8324011.332 | F14: ='2. Tarifas'!$X12*'1. Demanda'!M15 -> 8906692.125
B15: Más de 70TM a 105TM | C15: ='2. Tarifas'!$X13*'1. Demanda'!J16 -> 49228935.53 | D15: ='2. Tarifas'!$X13*'1. Demanda'!K16 -> 52674961.01 | E15: ='2. Tarifas'!$X13*'1. Demanda'!L16 -> 56362208.28 | F15: ='2. Tarifas'!$X13*'1. Demanda'!M16 -> 60307562.86
B16: Más de 105TM | C16: ='2. Tarifas'!$X14*'1. Demanda'!J17 -> 5044.108525 | D16: ='2. Tarifas'!$X14*'1. Demanda'!K17 -> 5397.196122 | E16: ='2. Tarifas'!$X14*'1. Demanda'!L17 -> 5774.99985 | F16: ='2. Tarifas'!$X14*'1. Demanda'!M17 -> 6179.24984
B17: - Cargo mínimo: | C17: ='2. Tarifas'!$X15*'1. Demanda'!J21 -> 99117.01331 | D17: ='2. Tarifas'!$X15*'1. Demanda'!K21 -> 106055.2042 | E17: ='2. Tarifas'!$X15*'1. Demanda'!L21 -> 113479.0685 | F17: ='2. Tarifas'!$X15*'1. Demanda'!M21 -> 121422.6033
B19: B. SNAR Internacional
B20: (En dólares)
B21: Ingresos totales | C21: =SUM(C24:C29,C30) -> 98323705.12 | D21: =SUM(D24:D29,D30) -> 105206364.5 | E21: =SUM(E24:E29,E30) -> 112570810 | F21: =SUM(F24:F29,F30) -> 120450766.7
B23: - Por rango de PMD:
B24: Hasta 5,7TM | C24: ='2. Tarifas'!$X20*'1. Demanda'!J29 -> 108196.0754 | D24: ='2. Tarifas'!$X20*'1. Demanda'!K29 -> 115769.8007 | E24: ='2. Tarifas'!$X20*'1. Demanda'!L29 -> 123873.6867 | F24: ='2. Tarifas'!$X20*'1. Demanda'!M29 -> 132544.8448
B25: Más de 5,7TM a 10TM | C25: ='2. Tarifas'!$X21*'1. Demanda'!J30 -> 482289.285 | D25: ='2. Tarifas'!$X21*'1. Demanda'!K30 -> 516049.535 | E25: ='2. Tarifas'!$X21*'1. Demanda'!L30 -> 552173.0024 | F25: ='2. Tarifas'!$X21*'1. Demanda'!M30 -> 590825.1126
B26: Más de 10TM a 35TM | C26: ='2. Tarifas'!$X22*'1. Demanda'!J31 -> 616479.4615 | D26: ='2. Tarifas'!$X22*'1. Demanda'!K31 -> 659633.0238 | E26: ='2. Tarifas'!$X22*'1. Demanda'!L31 -> 705807.3355 | F26: ='2. Tarifas'!$X22*'1. Demanda'!M31 -> 755213.849
B27: Más de 35TM a 70TM | C27: ='2. Tarifas'!$X23*'1. Demanda'!J32 -> 4760980.557 | D27: ='2. Tarifas'!$X23*'1. Demanda'!K32 -> 5094249.196 | E27: ='2. Tarifas'!$X23*'1. Demanda'!L32 -> 5450846.64 | F27: ='2. Tarifas'!$X23*'1. Demanda'!M32 -> 5832405.904
B28: Más de 70TM a 105TM | C28: ='2. Tarifas'!$X24*'1. Demanda'!J33 -> 55108387.24 | D28: ='2. Tarifas'!$X24*'1. Demanda'!K33 -> 58965974.35 | E28: ='2. Tarifas'!$X24*'1. Demanda'!L33 -> 63093592.55 | F28: ='2. Tarifas'!$X24*'1. Demanda'!M33 -> 67510144.03
B29: Más de 105TM | C29: ='2. Tarifas'!$X25*'1. Demanda'!J34 -> 37216661.43 | D29: ='2. Tarifas'!$X25*'1. Demanda'!K34 -> 39821827.73 | E29: ='2. Tarifas'!$X25*'1. Demanda'!L34 -> 42609355.67 | F29: ='2. Tarifas'!$X25*'1. Demanda'!M34 -> 45592010.57
B30: - Cargo mínimo: | C30: ='2. Tarifas'!$X26*'1. Demanda'!J38 -> 30711.07457 | D30: ='2. Tarifas'!$X26*'1. Demanda'!K38 -> 32860.84979 | E30: ='2. Tarifas'!$X26*'1. Demanda'!L38 -> 35161.10928 | F30: ='2. Tarifas'!$X26*'1. Demanda'!M38 -> 37622.38693
B32: C. Aproximación
B33: (En soles)
B34: Ingresos totales | C34: =SUM(C37:C41,C42) -> 76830032.52 | D34: =SUM(D37:D41,D42) -> 82208134.8 | E34: =SUM(E37:E41,E42) -> 87962704.24 | F34: =SUM(F37:F41,F42) -> 94120093.53
B36: - Por rango de PMD:
B37: Hasta 10TM | C37: ='2. Tarifas'!$X31*'1. Demanda'!J46 -> 1206119.578 | D37: ='2. Tarifas'!$X31*'1. Demanda'!K46 -> 1290547.948 | E37: ='2. Tarifas'!$X31*'1. Demanda'!L46 -> 1380886.305 | F37: ='2. Tarifas'!$X31*'1. Demanda'!M46 -> 1477548.346
B38: Más de 10TM a 35TM | C38: ='2. Tarifas'!$X32*'1. Demanda'!J47 -> 989750.2815 | D38: ='2. Tarifas'!$X32*'1. Demanda'!K47 -> 1059032.801 | E38: ='2. Tarifas'!$X32*'1. Demanda'!L47 -> 1133165.097 | F38: ='2. Tarifas'!$X32*'1. Demanda'!M47 -> 1212486.654
B39: Más de 35TM a 70TM | C39: ='2. Tarifas'!$X33*'1. Demanda'!J48 -> 13323068 | D39: ='2. Tarifas'!$X33*'1. Demanda'!K48 -> 14255682.76 | E39: ='2. Tarifas'!$X33*'1. Demanda'!L48 -> 15253580.55 | F39: ='2. Tarifas'!$X33*'1. Demanda'!M48 -> 16321331.19
B40: Más de 70TM a 105TM | C40: ='2. Tarifas'!$X34*'1. Demanda'!J49 -> 61138123.52 | D40: ='2. Tarifas'!$X34*'1. Demanda'!K49 -> 65417792.16 | E40: ='2. Tarifas'!$X34*'1. Demanda'!L49 -> 69997037.61 | F40: ='2. Tarifas'!$X34*'1. Demanda'!M49 -> 74896830.25
B41: Más de 105TM | C41: ='2. Tarifas'!$X35*'1. Demanda'!J50 -> 25401.87045 | D41: ='2. Tarifas'!$X35*'1. Demanda'!K50 -> 27180.00139 | E41: ='2. Tarifas'!$X35*'1. Demanda'!L50 -> 29082.60148 | F41: ='2. Tarifas'!$X35*'1. Demanda'!M50 -> 31118.38359
B42: - Cargo mínimo: | C42: ='2. Tarifas'!$X36*'1. Demanda'!J54 -> 147569.2818 | D42: ='2. Tarifas'!$X36*'1. Demanda'!K54 -> 157899.1316 | E42: ='2. Tarifas'!$X36*'1. Demanda'!L54 -> 168952.0708 | F42: ='2. Tarifas'!$X36*'1. Demanda'!M54 -> 180778.7157
B44: D. Sobrevuelo
B45: (En dólares)
B46: Ingresos totales | C46: =SUM(C49:C52) -> 101241454.3 | D46: =SUM(D49:D52) -> 108328356.1 | E46: =SUM(E49:E52) -> 115911341 | F46: =SUM(F49:F52) -> 124025134.9
B48: - Por rango de PMD:
B49: Hasta 55TM | C49: ='2. Tarifas'!$X41*'1. Demanda'!J62 -> 2273383.363 | D49: ='2. Tarifas'!$X41*'1. Demanda'!K62 -> 2432520.198 | E49: ='2. Tarifas'!$X41*'1. Demanda'!L62 -> 2602796.612 | F49: ='2. Tarifas'!$X41*'1. Demanda'!M62 -> 2784992.375
B50: Más de 55TM a 115TM | C50: ='2. Tarifas'!$X42*'1. Demanda'!J63 -> 25304468.81 | D50: ='2. Tarifas'!$X42*'1. Demanda'!K63 -> 27075781.63 | E50: ='2. Tarifas'!$X42*'1. Demanda'!L63 -> 28971086.35 | F50: ='2. Tarifas'!$X42*'1. Demanda'!M63 -> 30999062.39
B51: Más de 115TM a 200TM | C51: ='2. Tarifas'!$X43*'1. Demanda'!J64 -> 13882191.04 | D51: ='2. Tarifas'!$X43*'1. Demanda'!K64 -> 14853944.41 | E51: ='2. Tarifas'!$X43*'1. Demanda'!L64 -> 15893720.52 | F51: ='2. Tarifas'!$X43*'1. Demanda'!M64 -> 17006280.96
B52: Más de 200TM | C52: ='2. Tarifas'!$X44*'1. Demanda'!J65 -> 59781411.1 | D52: ='2. Tarifas'!$X44*'1. Demanda'!K65 -> 63966109.88 | E52: ='2. Tarifas'!$X44*'1. Demanda'!L65 -> 68443737.57 | F52: ='2. Tarifas'!$X44*'1. Demanda'!M65 -> 73234799.2

Sheet 4. OPEX
B1: 4. Costos de operación - OPEX (Usuarios atribuibles) | L1: Índice
B3: I. Información histórica
B4: (Expresado en soles. Fuente: Contabilidad regulatoria de CORPAC S.A.)
B5: Servicio / Partida de Costo | E5: 2017 | F5: =+E5+1 -> 2018 | G5: 2019 | H5: 2020 | I5: 2021 | J5: 2022 | K5: 2023 | L5: Promedio 2017-2023
B7: A. SNAR NACIONAL
B8: Suministros y Materiales | E8: 3289056.576 | F8: 1577965.411 | G8: 1155468.467 | H8: 2340184.393 | I8: 7185955.799 | J8: 1685978.891 | K8: 1649509.305 | L8: =+AVERAGE(E8:K8) -> 2697731.263
B9: Gastos de Personal | E9: 44982994.65 | F9: 43469412.72 | G9: 47572068.82 | H9: 33033225.59 | I9: 37503597.09 | J9: 45447725.89 | K9: 50229056.74 | L9: =+AVERAGE(E9:K9) -> 43176868.78
B10: Servicios prestados por terceros | E10: 15668345.12 | F10: 16381705.98 | G10: 17445248 | H10: 15552886.46 | I10: 18281068.59 | J10: 20098788.24 | K10: 20484689.04 | L10: 17701818.78
B11: Mantenimiento | E11: 3333235.414 | F11: 1675655.664 | G11: 1591671.761 | H11: 1968143.27 | I11: 2475459.882 | J11: 2212567.724 | K11: 3094820.769 | L11: 2335936.355
B12: Depreciación de activos | E12: 6835035.443 | F12: 12487023.9 | G12: 11029813.9 | H12: 12408747.99 | I12: 11822902.36 | J12: 11287123.72 | K12: 14828984.63 | L12: 11528518.85
B13: Amortización de Intangibles | E13: 294736.5731 | F13: 458227.3593 | G13: 454393.872 | H13: 399791.7453 | I13: 454781.6462 | J13: 403256.5809 | K13: 303596.1853 | L13: 395540.566
B14: Seguros y tributos | E14: 1906831.882 | F14: 1567839.956 | G14: 1628183.945 | H14: 1935379.45 | I14: 2940098.973 | J14: 3464699.214 | K14: 4514079.804 | L14: 2565301.889
B15: Otros Costos | E15: 2850954.959 | F15: 2606800.097 | G15: 2393711.066 | H15: 985951.8093 | I15: 1466212.233 | J15: 1273508.503 | K15: 2535806.204 | L15: 2016134.982
B16: Costos totales | E16: =SUM(E8:E15) -> 79161190.62 | F16: =SUM(F8:F15) -> 80224631.09 | G16: =SUM(G8:G15) -> 83270559.82 | H16: =SUM(H8:H15) -> 68624310.71 | I16: =SUM(I8:I15) -> 82130076.57 | J16: =SUM(J8:J15) -> 85873648.77 | K16: 97640542.67 | L16: 82417851.46
B18: B. SNAR INTERNACIONAL
B19: Suministros y Materiales | E19: 697692.9185 | F19: 726028.5137 | G19: 398910.3457 | H19: 1533497.356 | I19: 1925586.999 | J19: 472447.485 | K19: 511469.2058 | L19: =+AVERAGE(E19:K19) -> 895090.4035
B20: Gastos de Personal | E20: 28616588.65 | F20: 22559704.08 | G20: 24415540.2 | H20: 13855129.54 | I20: 13779767.21 | J20: 18791706.63 | K20: 21878332.07 | L20: 20556681.2
B21: Servicios prestados por terceros | E21: 4771371.041 | F21: 4218914.586 | G21: 4338777.859 | H21: 2862225.183 | I21: 2909420.602 | J21: 4146523.058 | K21: 5676615.187 | L21: 4131978.216
B22: Mantenimiento | E22: 932230.9842 | F22: 551253.9388 | G22: 679078.0808 | H22: 730018.8934 | I22: 610815.5538 | J22: 1205779.158 | K22: 1222554.444 | L22: 847390.1503
B23: Depreciación de activos | E23: 2260837.732 | F23: 3539683.968 | G23: 3878310.05 | H23: 3458358.388 | I23: 1998854.813 | J23: 1876797.197 | K23: 2568374.933 | L23: 2797316.726
B24: Amortización de Intangibles | E24: 191180.7705 | F24: 247952.6883 | G24: 240045.9216 | H24: 167390.0481 | I24: 154593.3243 | J24: 159612.9289 | K24: 127591.7566 | L24: 184052.4912
B25: Seguros y tributos | E25: 1350909.092 | F25: 1092669.096 | G25: 1214508.321 | H25: 1143183.153 | I25: 820295.1747 | J25: 685831.9051 | K25: 1255304.514 | L25: 1080385.894
B26: Otros Costos | E26: 1782922.451 | F26: 1285526.757 | G26: 1212083.631 | H26: 405411.1431 | I26: 467346.3771 | J26: 469122.8134 | K26: 964201.8398 | L26: 940945.0018
B27: Costos totales | E27: =SUM(E19:E26) -> 40603733.63 | F27: =SUM(F19:F26) -> 34221733.62 | G27: =SUM(G19:G26) -> 36377254.4 | H27: =SUM(H19:H26) -> 24155213.71 | I27: =SUM(I19:I26) -> 22666680.05 | J27: =SUM(J19:J26) -> 27807821.17 | K27: 34204443.95 | L27: 31433840.08
B29: C. APROXIMACIÓN
B30: Suministros y Materiales | E30: 2104704.063 | F30: 1554098.939 | G30: 2591206.703 | H30: 1187833.793 | I30: 4502673.639 | J30: 1727406.677 | K30: 1875721.303 | L30: =+AVERAGE(E30:K30) -> 2220520.731
B31: Gastos de Personal | E31: 40193356.01 | F31: 40666721.61 | G31: 43319229.27 | H31: 29692596.61 | I31: 30710125.83 | J31: 39500455.16 | K31: 45640882.72 | L31: 38531909.6
B32: Servicios prestados por terceros | E32: 12913170.55 | F32: 13440364.98 | G32: 13250307.05 | H32: 11228710.84 | I32: 13285946.32 | J32: 15478543.16 | K32: 18280102.6 | L32: 13982449.36
B33: Mantenimiento | E33: 2584395.357 | F33: 1601774.357 | G33: 1436201.778 | H33: 2410679.39 | I33: 2290692.605 | J33: 1542044.055 | K33: 2395531.438 | L33: 2037331.283
B34: Depreciación de activos | E34: 7015121.353 | F34: 11539124.6 | G34: 10391075.27 | H34: 13021985.23 | I34: 10770665.48 | J34: 10516976.8 | K34: 14879735.33 | L34: 11162097.72
B35: Amortización de Intangibles | E35: 336569.1653 | F35: 610725.3533 | G35: 555408.4373 | H35: 471860.538 | I35: 487919.5054 | J35: 524007.0191 | K35: 413431.7881 | L35: 485703.1152
B36: Seguros y tributos | E36: 1690828.444 | F36: 1622683.591 | G36: 1489054.951 | H36: 1760215.381 | I36: 2333374.337 | J36: 3127485.272 | K36: 4449484.462 | L36: 2353303.777
B37: Otros Costos | E37: 2820258.301 | F37: 2898779.389 | G37: 3163480.538 | H37: 917789.4116 | I37: 1241302.205 | J37: 1271353.727 | K37: 2175883.95 | L37: 2069835.36
B38: Costos totales | E38: =SUM(E30:E37) -> 69658403.25 | F38: =SUM(F30:F37) -> 73934272.81 | G38: =SUM(G30:G37) -> 76195964 | H38: =SUM(H30:H37) -> 60691671.2 | I38: =SUM(I30:I37) -> 65622699.92 | J38: =SUM(J30:J37) -> 73688271.87 | K38: 90110773.58 | L38: 72843150.95
B40: D. SOBREVUELO
B41: Suministros y Materiales | E41: 564375.0402 | F41: 752948.593 | G41: 410242.3799 | H41: 2435395.427 | I41: 3207705.212 | J41: 647161.904 | K41: 623077.5866 | L41: =+AVERAGE(E41:K41) -> 1234415.163
B42: Gastos de Personal | E42: 27644886.08 | F42: 23813240.98 | G42: 26394622.14 | H42: 20906579.2 | I42: 23131281.49 | J42: 27910897.77 | K42: 28214962.07 | L42: 25430924.25
B43: Servicios prestados por terceros | E43: 4171236.129 | F43: 3934712.005 | G43: 4024961.75 | H43: 3701216.39 | I43: 4186183.107 | J43: 5375520.805 | K43: 6941718.203 | L43: 4619364.055
B44: Mantenimiento | E44: 850310.3331 | F44: 551161.9197 | G44: 705166.8236 | H44: 1101715.655 | I44: 991655.9266 | J44: 1900772.262 | K44: 1615323.263 | L44: 1102300.883
B45: Depreciación de activos | E45: 2530012.859 | F45: 4502331.029 | G45: 4688213.838 | H45: 5831606.592 | I45: 3562932.536 | J45: 2728702.684 | K45: 3330311.32 | L45: 3882015.837
B46: Amortización de Intangibles | E46: 184950.7558 | F46: 271424.5159 | G46: 257873.6802 | H46: 256979.5646 | I46: 259793.9452 | J46: 237527.0095 | K46: 167095.1653 | L46: 233663.5195
B47: Seguros y tributos | E47: 1339964.301 | F47: 1125307.993 | G47: 1253040.834 | H47: 1686822.111 | I47: 1334620.791 | J47: 1004989.339 | K47: 1693524.113 | L47: 1348324.212
B48: Otros Costos | E48: 1719967.172 | F48: 1356158.505 | G48: 1294505.091 | H48: 610677.5857 | I48: 787686.7733 | J48: 626278.5391 | K48: 1242723.42 | L48: 1091142.441
B49: Costos totales | E49: =SUM(E41:E48) -> 39005702.67 | F49: =SUM(F41:F48) -> 36307285.54 | G49: =SUM(G41:G48) -> 39028626.54 | H49: =SUM(H41:H48) -> 36530992.53 | I49: =SUM(I41:I48) -> 37461859.78 | J49: 40431850.31 | K49: 43828735.14 | L49: =+AVERAGE(E49:K49) -> 38942150.36
B51: II. Proyección de costos de operación, por servicio de aeronavegación
B52: (Expresado en soles)
D53: 2020 | E53: =D53+1 -> 2021 | F53: =E53+1 -> 2022 | G53: =F53+1 -> 2023 | H53: =G53+1 -> 2024 | I53: 2025 | J53: 2026 | K53: 2027
B55: A. SNAR Nacional
B56: Suministros y Materiales | D56: =VLOOKUP($B56,$B$8:$K$15,7,FALSE) -> 2340184.393 | E56: =VLOOKUP($B56,$B$8:$K$15,8,FALSE) -> 7185955.799 | F56: =VLOOKUP($B56,$B$8:$K$15,9,FALSE) -> 1685978.891 | G56: =VLOOKUP($B56,$B$8:$K$15,10,FALSE) -> 1649509.305 | H56: =+G56*'10. Var-Sup-Gen'!K20 -> 1698994.584 | I56: =+H56*'10. Var-Sup-Gen'!L20 -> 1749964.422 | J56: =+I56*'10. Var-Sup-Gen'!M20 -> 1802463.354 | K56: =+J56*'10. Var-Sup-Gen'!N20 -> 1856537.255
B57: Gastos de Personal | D57: =VLOOKUP($B57,$B$8:$K$15,7,FALSE) -> 33033225.59 | E57: =VLOOKUP($B57,$B$8:$K$15,8,FALSE) -> 37503597.09 | F57: =VLOOKUP($B57,$B$8:$K$15,9,FALSE) -> 45447725.89 | G57: =VLOOKUP($B57,$B$8:$K$15,10,FALSE) -> 50229056.74 | H57: ='4.1. OPEX (Personal)'!F125 -> 60606447.49 | I57: ='4.1. OPEX (Personal)'!G125 -> 62672770.44 | J57: ='4.1. OPEX (Personal)'!H125 -> 66311175.18 | K57: ='4.1. OPEX (Personal)'!I125 -> 69522212.36
B58: Servicios prestados por terceros | D58: 15552886.46 | E58: 18281068.59 | F58: 20098788.24 | G58: 20484689.04 | H58: =+G58*'10. Var-Sup-Gen'!K21 -> 21099229.71 | I58: =+H58*'10. Var-Sup-Gen'!L21 -> 21732206.6 | J58: =+I58*'10. Var-Sup-Gen'!M21 -> 22384172.8 | K58: =+J58*'10. Var-Sup-Gen'!N21 -> 23055697.99
B59: Mantenimiento | D59: 1968143.27 | E59: 2475459.882 | F59: 2212567.724 | G59: 3094820.769 | H59: =+G59*'10. Var-Sup-Gen'!K22 -> 3187665.392 | I59: =+H59*'10. Var-Sup-Gen'!L22 -> 3283295.354 | J59: =+I59*'10. Var-Sup-Gen'!M22 -> 3381794.214 | K59: =+J59*'10. Var-Sup-Gen'!N22 -> 3483248.041
B60: Seguros y tributos | D60: 1935379.45 | E60: 2940098.973 | F60: 3464699.214 | G60: 4514079.804 | H60: =+G60*'10. Var-Sup-Gen'!K23 -> 4649502.198 | I60: =+H60*'10. Var-Sup-Gen'!L23 -> 4788987.264 | J60: =+I60*'10. Var-Sup-Gen'!M23 -> 4932656.882 | K60: =+J60*'10. Var-Sup-Gen'!N23 -> 5080636.589
B61: Otros Costos | D61: 985951.8093 | E61: 1466212.233 | F61: 1273508.503 | G61: 2535806.204 | H61: =+G61*'10. Var-Sup-Gen'!K24 -> 2611880.39 | I61: =+H61*'10. Var-Sup-Gen'!L24 -> 2690236.802 | J61: =+I61*'10. Var-Sup-Gen'!M24 -> 2770943.906 | K61: =+J61*'10. Var-Sup-Gen'!N24 -> 2854072.223
B62: Costos incrementales | H62: =+'4.2. OPEX (Incremental)'!E208 -> 1185525.554 | I62: =+'4.2. OPEX (Incremental)'!F208 -> 1280440.206 | J62: =+'4.2. OPEX (Incremental)'!G208 -> 1388698.319 | K62: =+'4.2. OPEX (Incremental)'!H208 -> 1388761.883
B63: CGR-control concurrente | H63: =SUM('4.3. Pagos a CGR'!K47:K52) -> 1871148.501
B64: Costo total | D64: =SUM(D56:D63) -> 55815770.97 | E64: =SUM(E56:E63) -> 69852392.56 | F64: =SUM(F56:F63) -> 74183268.47 | G64: =SUM(G56:G63) -> 82507961.86 | H64: =SUM(H56:H63) -> 96910393.82 | I64: =SUM(I56:I63) -> 98197901.09 | J64: 102971904.7 | K64: 107241166.3
B66: B. SNAR Internacional
B67: Suministros y Materiales | D67: =VLOOKUP($B67,$B$19:$K$26,7,FALSE) -> 1533497.356 | E67: =VLOOKUP($B67,$B$19:$K$26,8,FALSE) -> 1925586.999 | F67: =VLOOKUP($B67,$B$19:$K$26,9,FALSE) -> 472447.485 | G67: =VLOOKUP($B67,$B$19:$K$26,10,FALSE) -> 511469.2058 | H67: =+G67*'10. Var-Sup-Gen'!K20 -> 526813.282 | I67: =+H67*'10. Var-Sup-Gen'!L20 -> 542617.6804 | J67: =+I67*'10. Var-Sup-Gen'!M20 -> 558896.2108 | K67: =+J67*'10. Var-Sup-Gen'!N20 -> 575663.0972
B68: Gastos de Personal | D68: =VLOOKUP($B68,$B$19:$K$26,7,FALSE) -> 13855129.54 | E68: =VLOOKUP($B68,$B$19:$K$26,8,FALSE) -> 13779767.21 | F68: =VLOOKUP($B68,$B$19:$K$26,9,FALSE) -> 18791706.63 | G68: =VLOOKUP($B68,$B$19:$K$26,10,FALSE) -> 21878332.07 | H68: ='4.1. OPEX (Personal)'!F126 -> 24548159.08 | I68: ='4.1. OPEX (Personal)'!G126 -> 25385106.74 | J68: ='4.1. OPEX (Personal)'!H126 -> 26858813.61 | K68: ='4.1. OPEX (Personal)'!I126 -> 28159418.66
B69: Servicios prestados por terceros | D69: 2862225.183 | E69: 2909420.602 | F69: 4146523.058 | G69: 5676615.187 | H69: =+G69*'10. Var-Sup-Gen'!K21 -> 5846913.643 | I69: =+H69*'10. Var-Sup-Gen'!L21 -> 6022321.052 | J69: =+I69*'10. Var-Sup-Gen'!M21 -> 6202990.684 | K69: =+J69*'10. Var-Sup-Gen'!N21 -> 6389080.404
B70: Mantenimiento | D70: 730018.8934 | E70: 610815.5538 | F70: 1205779.158 | G70: 1222554.444 | H70: =+G70*'10. Var-Sup-Gen'!K22 -> 1259231.077 | I70: =+H70*'10. Var-Sup-Gen'!L22 -> 1297008.009 | J70: =+I70*'10. Var-Sup-Gen'!M22 -> 1335918.25 | K70: =+J70*'10. Var-Sup-Gen'!N22 -> 1375995.797
B71: Seguros y tributos | D71: 1143183.153 | E71: 820295.1747 | F71: 685831.9051 | G71: 1255304.514 | H71: =+G71*'10. Var-Sup-Gen'!K23 -> 1292963.649 | I71: =+H71*'10. Var-Sup-Gen'!L23 -> 1331752.559 | J71: =+I71*'10. Var-Sup-Gen'!M23 -> 1371705.136 | K71: =+J71*'10. Var-Sup-Gen'!N23 -> 1412856.29
B72: Otros Costos | D72: 405411.1431 | E72: 467346.3771 | F72: 469122.8134 | G72: 964201.8398 | H72: =+G72*'10. Var-Sup-Gen'!K24 -> 993127.895 | I72: =+H72*'10. Var-Sup-Gen'!L24 -> 1022921.732 | J72: =+I72*'10. Var-Sup-Gen'!M24 -> 1053609.384 | K72: =+J72*'10. Var-Sup-Gen'!N24 -> 1085217.665
B73: Costos incrementales | H73: =+'4.2. OPEX (Incremental)'!E218 -> 166554.3714 | I73: =+'4.2. OPEX (Incremental)'!F218 -> 196564.1681 | J73: =+'4.2. OPEX (Incremental)'!G218 -> 227511.7709 | K73: =+'4.2. OPEX (Incremental)'!H218 -> 227511.7709
B74: CGR-control concurrente | H74: =SUM('4.3. Pagos a CGR'!L47:L52) -> 1521145.815
B75: Costo total | D75: =SUM(D67:D74) -> 20529465.27 | E75: =SUM(E67:E74) -> 20513231.91 | F75: =SUM(F67:F74) -> 25771411.04 | G75: =SUM(G67:G74) -> 31508477.26 | H75: =SUM(H67:H74) -> 36154908.81 | I75: =SUM(I67:I74) -> 35798291.94 | J75: 37609445.05 | K75: 39225743.69
B77: C. Aproximación
B78: Suministros y Materiales | D78: =VLOOKUP($B78,$B$30:$K$37,7,FALSE) -> 1187833.793 | E78: =VLOOKUP($B78,$B$30:$K$37,8,FALSE) -> 4502673.639 | F78: =VLOOKUP($B78,$B$30:$K$37,9,FALSE) -> 1727406.677 | G78: =VLOOKUP($B78,$B$30:$K$37,10,FALSE) -> 1875721.303 | H78: =+G78*'10. Var-Sup-Gen'!K20 -> 1931992.942 | I78: =+H78*'10. Var-Sup-Gen'!L20 -> 1989952.73 | J78: =+I78*'10. Var-Sup-Gen'!M20 -> 2049651.312 | K78: =+J78*'10. Var-Sup-Gen'!N20 -> 2111140.851
B79: Gastos de Personal | D79: =VLOOKUP($B79,$B$30:$K$37,7,FALSE) -> 29692596.61 | E79: =VLOOKUP($B79,$B$30:$K$37,8,FALSE) -> 30710125.83 | F79: =VLOOKUP($B79,$B$30:$K$37,9,FALSE) -> 39500455.16 | G79: =VLOOKUP($B79,$B$30:$K$37,10,FALSE) -> 45640882.72 | H79: ='4.1. OPEX (Personal)'!F127 -> 52424154.03 | I79: ='4.1. OPEX (Personal)'!G127 -> 54211508.95 | J79: ='4.1. OPEX (Personal)'!H127 -> 57358703.66 | K79: ='4.1. OPEX (Personal)'!I127 -> 60136228.4
B80: Servicios prestados por terceros | D80: 11228710.84 | E80: 13285946.32 | F80: 15478543.16 | G80: 18280102.6 | H80: =+G80*'10. Var-Sup-Gen'!K21 -> 18828505.68 | I80: =+H80*'10. Var-Sup-Gen'!L21 -> 19393360.85 | J80: =+I80*'10. Var-Sup-Gen'!M21 -> 19975161.67 | K80: =+J80*'10. Var-Sup-Gen'!N21 -> 20574416.52
B81: Mantenimiento | D81: 2410679.39 | E81: 2290692.605 | F81: 1542044.055 | G81: 2395531.438 | H81: =+G81*'10. Var-Sup-Gen'!K22 -> 2467397.381 | I81: =+H81*'10. Var-Sup-Gen'!L22 -> 2541419.303 | J81: =+I81*'10. Var-Sup-Gen'!M22 -> 2617661.882 | K81: =+J81*'10. Var-Sup-Gen'!N22 -> 2696191.738
B82: Seguros y tributos | D82: 1760215.381 | E82: 2333374.337 | F82: 3127485.272 | G82: 4449484.462 | H82: =+G82*'10. Var-Sup-Gen'!K23 -> 4582968.996 | I82: =+H82*'10. Var-Sup-Gen'!L23 -> 4720458.066 | J82: =+I82*'10. Var-Sup-Gen'!M23 -> 4862071.808 | K82: =+J82*'10. Var-Sup-Gen'!N23 -> 5007933.962
B83: Otros Costos | D83: 917789.4116 | E83: 1241302.205 | F83: 1271353.727 | G83: 2175883.95 | H83: =+G83*'10. Var-Sup-Gen'!K24 -> 2241160.468 | I83: =+H83*'10. Var-Sup-Gen'!L24 -> 2308395.282 | J83: =+I83*'10. Var-Sup-Gen'!M24 -> 2377647.14 | K83: =+J83*'10. Var-Sup-Gen'!N24 -> 2448976.555
B84: Costos incrementales | H84: =+'4.2. OPEX (Incremental)'!E228 -> 2467840.418 | I84: =+'4.2. OPEX (Incremental)'!F228 -> 2523221.874 | J84: =+'4.2. OPEX (Incremental)'!G228 -> 2614368.267 | K84: =+'4.2. OPEX (Incremental)'!H228 -> 2614576.735
B85: CGR-control concurrente | H85: =SUM('4.3. Pagos a CGR'!N47:N52) -> 2607345.533
B86: Costo total | D86: =SUM(D78:D85) -> 47197825.42 | E86: =SUM(E78:E85) -> 54364114.94 | F86: =SUM(F78:F85) -> 62647288.05 | G86: =SUM(G78:G85) -> 74817606.47 | H86: =SUM(H78:H85) -> 87551365.44 | I86: =SUM(I78:I85) -> 87688317.05 | J86: 91855265.74 | K86: 95589464.77
B88: D. Sobrevuelo
B89: Suministros y Materiales | D89: =VLOOKUP($B89,$B$41:$K$48,7,FALSE) -> 2435395.427 | E89: =VLOOKUP($B89,$B$41:$K$48,8,FALSE) -> 3207705.212 | F89: =VLOOKUP($B89,$B$41:$K$48,9,FALSE) -> 647161.904 | G89: =VLOOKUP($B89,$B$41:$K$48,10,FALSE) -> 623077.5866 | H89: =+G89*'10. Var-Sup-Gen'!K20 -> 641769.9142 | I89: =+H89*'10. Var-Sup-Gen'!L20 -> 661023.0116 | J89: =+I89*'10. Var-Sup-Gen'!M20 -> 680853.7019 | K89: =+J89*'10. Var-Sup-Gen'!N20 -> 701279.313
B90: Gastos de Personal | D90: =VLOOKUP($B90,$B$41:$K$48,7,FALSE) -> 20906579.2 | E90: =VLOOKUP($B90,$B$41:$K$48,8,FALSE) -> 23131281.49 | F90: =VLOOKUP($B90,$B$41:$K$48,9,FALSE) -> 27910897.77 | G90: =VLOOKUP($B90,$B$41:$K$48,10,FALSE) -> 28214962.07 | H90: ='4.1. OPEX (Personal)'!F128 -> 36230064.93 | I90: ='4.1. OPEX (Personal)'!G128 -> 37465296.79 | J90: ='4.1. OPEX (Personal)'!H128 -> 39640306.97 | K90: ='4.1. OPEX (Personal)'!I128 -> 41559840.12
B91: Servicios prestados por terceros | D91: 3701216.39 | E91: 4186183.107 | F91: 5375520.805 | G91: 6941718.203 | H91: =+G91*'10. Var-Sup-Gen'!K21 -> 7149969.749 | I91: =+H91*'10. Var-Sup-Gen'!L21 -> 7364468.841 | J91: =+I91*'10. Var-Sup-Gen'!M21 -> 7585402.907 | K91: =+J91*'10. Var-Sup-Gen'!N21 -> 7812964.994
B92: Mantenimiento | D92: 1101715.655 | E92: 991655.9266 | F92: 1900772.262 | G92: 1615323.263 | H92: =+G92*'10. Var-Sup-Gen'!K22 -> 1663782.961 | I92: =+H92*'10. Var-Sup-Gen'!L22 -> 1713696.449 | J92: =+I92*'10. Var-Sup-Gen'!M22 -> 1765107.343 | K92: =+J92*'10. Var-Sup-Gen'!N22 -> 1818060.563
B93: Seguros y tributos | D93: 1686822.111 | E93: 1334620.791 | F93: 1004989.339 | G93: 1693524.113 | H93: =+G93*'10. Var-Sup-Gen'!K23 -> 1744329.836 | I93: =+H93*'10. Var-Sup-Gen'!L23 -> 1796659.732 | J93: =+I93*'10. Var-Sup-Gen'!M23 -> 1850559.524 | K93: =+J93*'10. Var-Sup-Gen'!N23 -> 1906076.309
B94: Otros Costos | D94: 610677.5857 | E94: 787686.7733 | F94: 626278.5391 | G94: 1242723.42 | H94: =+G94*'10. Var-Sup-Gen'!K24 -> 1280005.122 | I94: =+H94*'10. Var-Sup-Gen'!L24 -> 1318405.276 | J94: =+I94*'10. Var-Sup-Gen'!M24 -> 1357957.434 | K94: =+J94*'10. Var-Sup-Gen'!N24 -> 1398696.157
B95: Costos incrementales | H95: =+'4.2. OPEX (Incremental)'!E238 -> 200340.833 | I95: =+'4.2. OPEX (Incremental)'!F238 -> 236438.2803 | J95: =+'4.2. OPEX (Incremental)'!G238 -> 273663.7729 | K95: =+'4.2. OPEX (Incremental)'!H238 -> 273663.7729
B96: CGR-control concurrente | H96: =SUM('4.3. Pagos a CGR'!M47:M52) -> 967169.7879
B97: Costo total | D97: =SUM(D89:D96) -> 30442406.37 | E97: =SUM(E89:E96) -> 33639133.3 | F97: =SUM(F89:F96) -> 37465620.62 | G97: =SUM(G89:G96) -> 40331328.66 | H97: =SUM(H89:H96) -> 49877433.14 | I97: =SUM(I89:I96) -> 50555988.38 | J97: 53153851.65 | K97: 55470581.23

Sheet 4.1. OPEX (Personal)
B1: 4.1 Costos de operación (OPEX) - Gasto de Personal | U1: Índice
B3: I. Información histórica
B4: (Expresado en soles. Fuente: Contabilidad regulatoria de CORPAC S.A.)
D5: 2017 | E5: =+D5+1 -> 2018 | F5: 2019 | G5: 2020 | H5: 2021 | I5: 2022 | J5: 2023
B6: SNAR Nacional | D6: =+'4. OPEX'!E9 -> 44982994.65 | E6: =+'4. OPEX'!F9 -> 43469412.72 | F6: =+'4. OPEX'!G9 -> 47572068.82 | G6: =+'4. OPEX'!H9 -> 33033225.59 | H6: =+'4. OPEX'!I9 -> 37503597.09 | I6: 45447725.89 | J6: 50229056.74
B7: SNAR Internacional | D7: =+'4. OPEX'!E20 -> 28616588.65 | E7: =+'4. OPEX'!F20 -> 22559704.08 | F7: =+'4. OPEX'!G20 -> 24415540.2 | G7: =+'4. OPEX'!H20 -> 13855129.54 | H7: =+'4. OPEX'!I20 -> 13779767.21 | I7: 18791706.63 | J7: 21878332.07
B8: Aproximación | D8: =+'4. OPEX'!E31 -> 40193356.01 | E8: =+'4. OPEX'!F31 -> 40666721.61 | F8: =+'4. OPEX'!G31 -> 43319229.27 | G8: =+'4. OPEX'!H31 -> 29692596.61 | H8: =+'4. OPEX'!I31 -> 30710125.83 | I8: 39500455.16 | J8: 45640882.72
B9: Sobrevuelo | D9: =+'4. OPEX'!E42 -> 27644886.08 | E9: =+'4. OPEX'!F42 -> 23813240.98 | F9: =+'4. OPEX'!G42 -> 26394622.14 | G9: =+'4. OPEX'!H42 -> 20906579.2 | H9: =+'4. OPEX'!I42 -> 23131281.49 | I9: 27910897.77 | J9: 28214962.07
B10: Servicios No Regulados de Navegación Aérea | D10: 183890.4403 | E10: 131117.9886 | F10: 140704.0742 | G10: 85654.83398 | H10: 89961.75357 | I10: 112036.9001 | J10: 105391.0182
B11: Total de Gastos de Personal - Aeronavegación | D11: =SUM(D6:D10) -> 141621715.8 | E11: 130640197.4 | F11: 141842164.5 | G11: 97573185.78 | H11: 105214733.4 | I11: 131762822.3 | J11: =SUM(J6:J10) -> 146068624.6
B12: Total de Gastos de Personal - Total CORPAC | D12: 176172657.2 | E12: 170820430.2 | F12: 187290311.6 | G12: 130141214.7 | H12: 138280657 | I12: 173047225.9 | J12: 190714732.8
B13: % aeronavegación respecto Total CORPAC | D13: =D11/D$12 -> 0.8038802278 | E13: =E11/E$12 -> 0.7647808708 | F13: =F11/F$12 -> 0.7573385045 | G13: =G11/G$12 -> 0.7497485406 | H13: =H11/H$12 -> 0.7608781707 | I13: =I11/I$12 -> 0.7614269554 | J13: 0.7659011053
B15: * Participación del gasto de personal - Aeronavegación:
B16: (Fuente: CORPAC S.A.)
B17: Servicio | D17: 2017 | E17: =+D17+1 -> 2018 | F17: 2019 | G17: 2020 | H17: 2021 | I17: 2022 | J17: 2023 | K17: Promedio
B18: SNAR Nacional | D18: =+D6/D$11 -> 0.3176278044 | E18: 0.3327414808 | F18: 0.3353873581 | G18: 0.3385481915 | H18: =+H6/H$11 -> 0.3564481502 | I18: 0.3449207074 | J18: 0.343873004 | K18: =AVERAGE(H18:J18) -> 0.3484139539
B19: SNAR Internacional | D19: =+D7/D$11 -> 0.202063564 | E19: 0.1726857777 | F19: 0.1721317514 | G19: 0.1419973063 | H19: =+H7/H$11 -> 0.1309680381 | I19: 0.1426176693 | J19: 0.1497811876 | K19: =AVERAGE(H19:J19) -> 0.1411222984
B20: Aproximación | D20: 0.2838078594 | E20: 0.3112879682 | F20: 0.3054044573 | G20: 0.3043110295 | H20: =+H8/H$11 -> 0.29188047 | I20: 0.2997845254 | J20: 0.3124619187 | K20: 0.3013756381
B21: Sobrevuelo | D21: =+D9/D$11 -> 0.19520231 | E21: 0.1822811161 | F21: 0.1860844569 | G21: 0.2142656206 | H21: =+H9/H$11 -> 0.2198483117 | I21: 0.2118268057 | J21: 0.1931623725 | K21: 0.2082791633
B22: Servicios No Regulados de Navegación Aérea | D22: 0.001298462169 | E22: 0.001003657306 | F22: 0.0009919763615 | G22: 0.0008778521813 | H22: =+H10/H$11 -> 0.0008550300009 | I22: 0.0008502922001 | J22: =+J10/J$11 -> 0.0007215171533 | K22: 0.0008089464514
B23: Total de Gastos de Personal - Aeronavegación | D23: =SUM(D18:D22) -> 1 | E23: 1 | F23: 1 | G23: 1 | H23: =SUM(H18:H22) -> 1 | I23: 1 | J23: 1 | K23: =SUM(K18:K22) -> 1
B25: II. Proyecciones por servicio de aeronavegación
B27: a. Proyección de Gastos de Personal Total - Periodo 2024-2027
B28: (Expresado en soles. Fuente: CORPAC S.A.)
B29: Tipo de gasto de personal | C29: Subdivisión | D29: Rubros | E29: ¿Se incluye en tarifa? | F29: 2023 | J29: 2024 | N29: 2025 | R29: 2026 | V29: 2027
F30: Total | G30: Aeronavegación | H30: Aeroportuario | I30: Mixto | J30: Total | K30: Aeronavegación | L30: Aeroportuario | M30: Mixto | N30: Total | O30: Aeronavegación | P30: Aeroportuario | Q30: Mixto | R30: Total | S30: Aeronavegación | T30: Aeroportuario | U30: Mixto | V30: Total | W30: Aeronavegación | X30: Aeroportuario | Y30: Mixto
B31: Sueldos y salarios | C31: Básica | D31: Sueldo Básico | E31: Sí | F31: 78690507 | G31: 46385339 | H31: 12876190 | I31: 19428978 | J31: 67552630 | K31: 42558157 | L31: 10808421 | M31: 14186052 | N31: 81996140 | O31: 51657569.72 | P31: 13119382.42 | Q31: 17219187.86 | R31: 109832997 | S31: 69194788 | T31: 17573280 | U31: 23064929 | V31: 122346143 | W31: 77078071 | X31: 19575383 | Y31: 25692689
B32: Sueldos y salarios | C32: Básica | D32: Sueldo Vacacional | E32: Sí | F32: 7153683 | G32: 4216849 | H32: 1170563 | I32: 1766271 | J32: 6239906 | K32: 3931141 | L32: 998385 | M32: 1310380 | N32: 7472100 | O32: 4707423.139 | P32: 1195536.002 | Q32: 1569140.859 | R32: 6899902 | S32: 4346939 | T32: 1103984 | U32: 1448979 | V32: 6899902 | W32: 4346939 | X32: 1103984 | Y32: 1448979
B33: Sueldos y salarios | C33: Básica | D33: Ejercicios Anteriores Basico | E33: Sí | F33: 1638978 | G33: 966673 | H33: 268341 | I33: 403964 | J33: 1638978 | K33: 1032556 | L33: 262236 | M33: 344186 | N33: 1638978 | O33: 1032556.17 | P33: 262236.4805 | Q33: 344185.3491 | R33: 1638978 | S33: 1032556 | T33: 262236 | U33: 344186 | V33: 1638978 | W33: 1032556 | X33: 262236 | Y33: 344186
B34: Sueldos y salarios | C34: Bonificaciones | D34: Bonificacion por Retorno Vacacional | E34: Sí | F34: 7153683 | G34: 4216849 | H34: 1170563 | I34: 1766271 | J34: 6239905 | K34: 3931140 | L34: 998385 | M34: 1310380 | N34: 7472100 | O34: 4707423.139 | P34: 1195536.002 | Q34: 1569140.859 | R34: 6899902 | S34: 4346938 | T34: 1103985 | U34: 1448979 | V34: 6899902 | W34: 4346938 | X34: 1103985 | Y34: 1448979
B35: Sueldos y salarios | C35: Bonificaciones | D35: Quinquenio (Remuneracion por Tiempo de Servicio) | E35: Sí | F35: 11694440 | G35: 6893469 | H35: 1913571 | I35: 2887400 | J35: 11250981 | K35: 7088118 | L35: 1800157 | M35: 2362706 | N35: 11027944 | O35: 6947604.925 | P35: 1764471.043 | Q35: 2315868.032 | R35: 12287710 | S35: 7741257 | T35: 1966034 | U35: 2580419 | V35: 12808751 | W35: 8069513 | X35: 2049400 | Y35: 2689838
B36: Sueldos y salarios | C36: Bonificaciones | D36: Bonificacion por Antigüedad 30% | E36: Sí | F36: 0 | G36: 0 | H36: 0 | I36: 0 | J36: 0 | K36: 0 | L36: 0 | M36: 0 | N36: 0 | O36: 0 | P36: 0 | Q36: 0 | R36: 0 | S36: 0 | T36: 0 | U36: 0 | V36: 0 | W36: 0 | X36: 0 | Y36: 0
B37: Sueldos y salarios | C37: Bonificaciones | D37: Bonificacion Consolidada (Incremento 10.23 Remun) | E37: Sí | F37: 411284 | G37: 242438 | H37: 67299 | I37: 101547 | J37: 320769 | K37: 202084 | L37: 51323 | M37: 67362 | N37: 284561 | O37: 179273.4353 | P37: 45529.76008 | Q37: 59757.80464 | R37: 322839 | S37: 203388 | T37: 51654 | U37: 67797 | V37: 322839 | W37: 203388 | X37: 51654 | Y37: 67797
B38: Sueldos y salarios | C38: Bonificaciones | D38: Otras Bonificaciones (Bolsa de cierre y otro similares) | E38: No | F38: 0 | G38: 0 | H38: 0 | I38: 0 | J38: 8889826 | K38: 5600590 | L38: 1422372 | M38: 1866864 | N38: 8430000 | O38: 5310900.156 | P38: 1348800.002 | Q38: 1770299.841 | R38: 7256000 | S38: 4571280 | T38: 1160960 | U38: 1523760 | V38: 7256000 | W38: 4571280 | X38: 1160960 | Y38: 1523760
B39: Sueldos y salarios | C39: Bonificaciones | D39: Bonificacion unica por productividad (por Norma Legal). | E39: Sí | F39: 0 | G39: 0 | H39: 0 | I39: 0 | J39: 0 | K39: 0 | L39: 0 | M39: 0 | N39: 0 | O39: 0 | P39: 0 | Q39: 0 | R39: 0 | S39: 0 | T39: 0 | U39: 0 | V39: 0 | W39: 0 | X39: 0 | Y39: 0
B40: Sueldos y salarios | C40: Bonificaciones | D40: Bonificación Extraordinaria (Ley 29714) | E40: Sí | F40: 1783488 | G40: 1051305 | H40: 291834 | I40: 440349 | J40: 1637943 | K40: 1031904 | L40: 262071 | M40: 343968 | N40: 2124440 | O40: 1338397.239 | P40: 339910.4006 | Q40: 446132.36 | R40: 1826058 | S40: 1150417 | T40: 292169 | U40: 383472 | V40: 1826058 | W40: 1150417 | X40: 292169 | Y40: 383472
B41: Sueldos y salarios | C41: Bonificaciones | D41: Ejercicios Anteriores Bonificaciones | E41: Sí | F41: 415128 | G41: 244844 | H41: 67966 | I41: 102318 | J41: 415128 | K41: 261531 | L41: 66420 | M41: 87177 | N41: 415128 | O41: 261530.6477 | P41: 66420.48012 | Q41: 87176.87218 | R41: 415128 | S41: 261531 | T41: 66420 | U41: 87177 | V41: 415128 | W41: 261531 | X41: 66420 | Y41: 87177
B42: Sueldos y salarios | C42: Gratificaciones | D42: Gratificaciones Ordinarias (1er y 2do semestre) | E42: Sí | F42: 19816531 | G42: 11681161 | H42: 3242595 | I42: 4892775 | J42: 18199371 | K42: 11465604 | L42: 2911899 | M42: 3821868 | N42: 23604884 | O42: 14871077.36 | P42: 3776781.447 | Q42: 4957025.195 | R42: 20289547 | S42: 12782415 | T42: 3246327 | U42: 4260805 | V42: 20289547 | W42: 12782415 | X42: 3246327 | Y42: 4260805
B43: Sueldos y salarios | C43: Gratificaciones | D43: Gratificacion Extraordinario por Antigüedad (Tiempo de Ss.) | E43: Sí | F43: 1912096 | G43: 1127114 | H43: 312878 | I43: 472104 | J43: 1644876 | K43: 1036272 | L43: 263180 | M43: 345424 | N43: 454742 | O43: 286487.4684 | P43: 72758.72013 | Q43: 95495.81143 | R43: 1775733 | S43: 1118712 | T43: 284117 | U43: 372904 | V43: 1278731 | W43: 805600 | X43: 204597 | Y43: 268534
B44: Sueldos y salarios | C44: Gratificaciones | D44: Gratificacion por Balance | E44: Sí | F44: 183126 | G44: 107946 | H44: 29965 | I44: 45215 | J44: 194942 | K44: 122813 | L44: 31191 | M44: 40938 | N44: 196951 | O44: 124079.1337 | P44: 31512.16006 | Q44: 41359.70629 | R44: 171306 | S44: 107923 | T44: 27409 | U44: 35974 | V44: 171306 | W44: 107923 | X44: 27409 | Y44: 35974
B45: Sueldos y salarios | C45: Gratificaciones | D45: Ejercicios Anteriores Gratificaciones | E45: Sí | F45: 242312 | G45: 142916 | H45: 39673 | I45: 59723 | J45: 242312 | K45: 152657 | L45: 38770 | M45: 50885 | N45: 242312 | O45: 152656.5645 | P45: 38769.92007 | Q45: 50885.51544 | R45: 242312 | S45: 152657 | T45: 38770 | U45: 50885 | V45: 242312 | W45: 152657 | X45: 38770 | Y45: 50885
B46: Sueldos y salarios | C46: Asignaciones | D46: Asignacion Familiar | E46: Sí | F46: 1464806 | G46: 863453 | H46: 239687 | I46: 361666 | J46: 1157140 | K46: 728998 | L46: 185142 | M46: 243000 | N46: 1573540 | O46: 991330.2292 | P46: 251766.4005 | Q46: 330443.3704 | R46: 1436660 | S46: 905096 | T46: 229865 | U46: 301699 | V46: 1436660 | W46: 905096 | X46: 229865 | Y46: 301699
B47: Sueldos y salarios | C47: Asignaciones | D47: Asignacion Escolar | E47: Sí | F47: 4791238 | G47: 2824269 | H47: 783994 | I47: 1182975 | J47: 2841300 | K47: 1790019 | L47: 454608 | M47: 596673 | N47: 3947600 | O47: 2486988.073 | P47: 631616.0011 | Q47: 828995.9256 | R47: 2800300 | S47: 1764189 | T47: 448048 | U47: 588063 | V47: 2800300 | W47: 1764189 | X47: 448048 | Y47: 588063
B48: Sueldos y salarios | C48: Asignaciones | D48: Asignación por Diferencia Remunerativa (Encargaturas) | E48: Sí | F48: 255063 | G48: 150351 | H48: 41736 | I48: 62976 | J48: 1080000 | K48: 680400 | L48: 172800 | M48: 226800 | N48: 1680000 | O48: 1058400.031 | P48: 268800.0005 | Q48: 352799.9684 | R48: 1680000 | S48: 1058400 | T48: 268800 | U48: 352800 | V48: 1680000 | W48: 1058400 | X48: 268800 | Y48: 352800
B49: Sueldos y salarios | C49: Asignaciones | D49: Asignacion Sepelio y Luto | E49: Sí | F49: 256171 | G49: 151004 | H49: 41918 | I49: 63249 | J49: 225624 | K49: 142143 | L49: 36100 | M49: 47381 | N49: 287351 | O49: 181031.1353 | P49: 45976.16008 | Q49: 60343.70459 | R49: 255017 | S49: 160660 | T49: 40803 | U49: 53554 | V49: 255017 | W49: 160660 | X49: 40803 | Y49: 53554
B50: Sueldos y salarios | C50: Asignaciones | D50: Asignación por Día 31 trabajado para Grupo CTA | E50: Sí | F50: 2199969 | G50: 1296806 | H50: 359983 | I50: 543180 | J50: 428005 | K50: 269643 | L50: 68481 | M50: 89881 | N50: 556679 | O50: 350707.7803 | P50: 89068.64016 | Q50: 116902.5795 | R50: 820478 | S50: 516901 | T50: 131277 | U50: 172300 | V50: 822279 | W50: 518036 | X50: 131565 | Y50: 172678
B51: Sueldos y salarios | C51: Asignaciones | D51: Años Anteriores Asignaciones | E51: Sí | F51: 27528 | G51: 16236 | H51: 4507 | I51: 6785 | J51: 27528 | K51: 17343 | L51: 4404 | M51: 5781 | N51: 27528 | O51: 17342.64051 | P51: 4404.480008 | Q51: 5780.879481 | R51: 27528 | S51: 17343 | T51: 4404 | U51: 5781 | V51: 27528 | W51: 17343 | X51: 4404 | Y51: 5781
B52: Sueldos y salarios | C52: Horas extras | D52: Horas Extraordinarias (25% -35%) | E52: Sí | F52: 5272003 | G52: 3107664 | H52: 862662 | I52: 1301677 | J52: 4057774 | K52: 2556398 | L52: 649244 | M52: 852132 | N52: 4792468 | O52: 3019254.929 | P52: 766794.8814 | Q52: 1006418.19 | R52: 4526083 | S52: 2851433 | T52: 724173 | U52: 950477 | V52: 4526083 | W52: 2851433 | X52: 724173 | Y52: 950477
B53: Sueldos y salarios | C53: Horas extras | D53: Feriados Trabajados | E53: Sí | F53: 1397588 | G53: 823830 | H53: 228688 | I53: 345070 | J53: 1280222 | K53: 806540 | L53: 204836 | M53: 268846 | N53: 1583896 | O53: 997854.5094 | P53: 253423.3605 | Q53: 332618.1302 | R53: 1585674 | S53: 998975 | T53: 253708 | U53: 332991 | V53: 1585674 | W53: 998975 | X53: 253708 | Y53: 332991
B54: Sueldos y salarios | C54: Horas extras | D54: Horas Libres Laborados | E54: Sí | F54: 7279667 | G54: 4291112 | H54: 1191178 | I54: 1797377 | J54: 15024209 | K54: 9465252 | L54: 2403873 | M54: 3155084 | N54: 14711484 | O54: 9268235.193 | P54: 2353837.444 | Q54: 3089411.363 | R54: 15546150 | S54: 9794074 | T54: 2487384 | U54: 3264692 | V54: 15546150 | W54: 9794074 | X54: 2487384 | Y54: 3264692
B55: Sueldos y salarios | C55: Horas extras | D55: Ejercicios Anteriores Horas Extras | E55: Sí | F55: 235780 | G55: 139064 | H55: 38603 | I55: 58113 | J55: 235780 | K55: 148541 | L55: 37725 | M55: 49514 | N55: 235780 | O55: 148541.4044 | P55: 37724.80007 | Q55: 49513.79556 | R55: 235780 | S55: 148541 | T55: 37725 | U55: 49514 | V55: 235780 | W55: 148541 | X55: 37725 | Y55: 49514
B56: CTS | C56: CTS | D56: Compensacion Tiempo Servicio Empleado Depositado | E56: Sí | F56: 12172297 | G56: 7175149 | H56: 1991763 | I56: 3005385 | J56: 11088667 | K56: 6985860 | L56: 1774187 | M56: 2328620 | N56: 14543665 | O56: 9162509.22 | P56: 2326986.404 | Q56: 3054169.376 | R56: 12393388 | S56: 7807835 | T56: 1982942 | U56: 2602611 | V56: 12393388 | W56: 7807835 | X56: 1982942 | Y56: 2602611
B57: CTS | C57: CTS | D57: Ejercicios Anteriores CTS | E57: Sí | F57: 157297 | G57: 92774 | H57: 25754 | I57: 38769 | J57: 157297 | K57: 99097 | L57: 25168 | M57: 33032 | N57: 157297 | O57: 99097.11292 | P57: 25167.52004 | Q57: 33032.36704 | R57: 157297 | S57: 99097 | T57: 25168 | U57: 33032 | V57: 157297 | W57: 99097 | X57: 25168 | Y57: 33032
B58: Seguridad y previsión social | C58: Seguridad y previsión social | D58: Essalud - Seguro Social | E58: Sí | F58: 11724052 | G58: 6910924 | H58: 1918416 | I58: 2894712 | J58: 12021151 | K58: 7573325 | L58: 1923384 | M58: 2524442 | N58: 15417192 | O58: 9712831.246 | P58: 2466750.724 | Q58: 3237610.03 | R58: 13287695 | S58: 8371248 | T58: 2126031 | U58: 2790416 | V58: 13287695 | W58: 8371248 | X58: 2126031 | Y58: 2790416
B59: Seguridad y previsión social | C59: Seguridad y previsión social | D59: Seguro de Vida Ley DL 688 | E59: Sí | F59: 552914 | G59: 325924 | H59: 90474 | I59: 136516 | J59: 1880932 | K59: 1184987 | L59: 300949 | M59: 394996 | N59: 948078 | O59: 597289.1576 | P59: 151692.4803 | Q59: 199096.3621 | R59: 2849479 | S59: 1795172 | T59: 455916 | U59: 598391 | V59: 2849479 | W59: 1795172 | X59: 455916 | Y59: 598391
B60: Seguridad y previsión social | C60: Seguridad y previsión social | D60: Seguro Accidente Personal (Seguro Accidente de Viaje) | E60: Sí | F60: 89313 | G60: 52647 | H60: 14614 | I60: 22052 | J60: 499603 | K60: 314750 | L60: 79936 | M60: 104917 | N60: 82658 | O60: 52074.54153 | P60: 13225.28002 | Q60: 17358.17844 | R60: 482360 | S60: 303887 | T60: 77177 | U60: 101296 | V60: 482360 | W60: 303887 | X60: 77177 | Y60: 101296
B61: Seguridad y previsión social | C61: Seguridad y previsión social | D61: Ejercicios Anteriores Seguridad y Prevision Social | E61: Sí | F61: 87456 | G61: 51582 | H61: 14319 | I61: 21555 | J61: 87456 | K61: 55097 | L61: 13993 | M61: 18366 | N61: 87456 | O61: 55097.28162 | P61: 13992.96003 | Q61: 18365.75835 | R61: 87456 | S61: 55097 | T61: 13993 | U61: 18366 | V61: 87456 | W61: 55097 | X61: 13993 | Y61: 18366
B62: Dietas del directorio | C62: Dietas del directorio | D62: Dietas del Directorio (Asignacion por Sesion) | E62: Sí | F62: 285163 | G62: 168094 | H62: 46661 | I62: 70408 | J62: 285000 | K62: 179550 | L62: 45600 | M62: 59850 | N62: 285000 | O62: 179550.0053 | P62: 45600.00008 | Q62: 59849.99463 | R62: 285000 | S62: 179550 | T62: 45600 | U62: 59850 | V62: 285000 | W62: 179550 | X62: 45600 | Y62: 59850
B63: Capacitación | C63: Capacitación | D63: Capacitacion Empleados (Personal Administrativo | E63: Sí | F63: 250000 | G63: 147451 | H63: 40931 | I63: 61618 | J63: 736000 | K63: 463680 | L63: 117760 | M63: 154560 | N63: 736000 | O63: 463680.0137 | P63: 117760.0002 | Q63: 154559.9861 | R63: 336000 | S63: 211680 | T63: 53760 | U63: 70560 | V63: 336000 | W63: 211680 | X63: 53760 | Y63: 70560
B64: Capacitación | C64: Capacitación | D64: Curso Basico Formacion C.T.A. | E64: Sí | F64: 4805781 | G64: 2834462 | H64: 786823 | I64: 1184496 | J64: 5605098 | K64: 3531212 | L64: 896816 | M64: 1177070 | N64: 6332566 | O64: 3989516.697 | P64: 1013210.562 | Q64: 1329838.741 | R64: 4671625 | S64: 2943124 | T64: 747460 | U64: 981041 | V64: 4671625 | W64: 2943124 | X64: 747460 | Y64: 981041
B65: Capacitación | C65: Capacitación | D65: Capacitacion Personal Tecnico | E65: Sí | F65: 1362036 | G65: 803332 | H65: 222998 | I65: 335706 | J65: 3328348 | K65: 2096859 | L65: 532536 | M65: 698953 | N65: 3524150 | O65: 2220214.565 | P65: 563864.001 | Q65: 740071.4336 | R65: 2267525 | S65: 1428541 | T65: 362804 | U65: 476180 | V65: 2267525 | W65: 1428541 | X65: 362804 | Y65: 476180
B66: Capacitación | C66: Capacitación | D66: Curso de Formación y Entrenamiento para Personal DGAC | E66: Sí | F66: 50000 | G66: 29490 | H66: 8186 | I66: 12324 | J66: 0 | K66: 0 | L66: 0 | M66: 0 | N66: 286470 | O66: 180476.1053 | P66: 45835.20008 | Q66: 60158.6946 | R66: 0 | S66: 0 | T66: 0 | U66: 0 | V66: 0 | W66: 0 | X66: 0 | Y66: 0
B67: Capacitación | C67: Capacitación | D67: Ejercicios Anteriores Capacitacion | E67: Sí | F67: 78760 | G67: 46453 | H67: 12895 | I67: 19412 | J67: 78760 | K67: 49619 | L67: 12602 | M67: 16539 | N67: 78760 | O67: 49618.80146 | P67: 12601.60002 | Q67: 16539.59852 | R67: 78760 | S67: 49619 | T67: 12602 | U67: 16539 | V67: 78760 | W67: 49619 | X67: 12602 | Y67: 16539
B68: Jubilaciones y pensiones | C68: Jubilaciones y pensiones | D68: Pension y Jubilacion | E68: Sí | F68: 0 | G68: 0 | H68: 0 | I68: 0 | J68: 0 | K68: 0 | L68: 0 | M68: 0 | N68: 0 | O68: 0 | P68: 0 | Q68: 0 | R68: 0 | S68: 0 | T68: 0 | U68: 0 | V68: 0 | W68: 0 | X68: 0 | Y68: 0
B69: Laudos que aplican a SITE-SITPRUCOPR y SUCTA | C69: Laudo | D69: Laudo | E69: Sí | F69: 0 | G69: 0 | H69: 0 | I69: 0 | J69: 17633458.5 | K69: 11109078.81 | L69: 2821353.52 | M69: 3703026.167 | N69: 0 | O69: 0 | P69: 0 | Q69: 0 | R69: 0 | S69: 0 | T69: 0 | U69: 0 | V69: 0 | W69: 0 | X69: 0 | Y69: 0
B70: Otros gastos de personal | C70: Refrigerio | D70: Alimentos por Vales | E70: Sí | F70: 110000 | G70: 64878 | H70: 18010 | I70: 27112 | J70: 45000 | K70: 28350 | L70: 7200 | M70: 9450 | N70: 45000 | O70: 28350.00083 | P70: 7200.000013 | Q70: 9449.999152 | R70: 45000 | S70: 28350 | T70: 7200 | U70: 9450 | V70: 45000 | W70: 28350 | X70: 7200 | Y70: 9450
B71: Otros gastos de personal | C71: UNIFORMES (compensación económica) | D71: Asignacion Vestuarios y Otros Implementos | E71: Sí | F71: 3726010 | G71: 2192886 | H71: 608727 | I71: 924397 | J71: 3044800 | K71: 1918224 | L71: 487168 | M71: 639408 | N71: 4066600 | O71: 2561958.075 | P71: 650656.0012 | Q71: 853985.9234 | R71: 3036000 | S71: 1912680 | T71: 485760 | U71: 637560 | V71: 3036000 | W71: 1912680 | X71: 485760 | Y71: 637560
B72: Otros gastos de personal | C72: UNIFORMES (compensación económica) | D72: Ejercicios Anteriores Uniforme | E72: Sí | F72: 6785 | G72: 3999 | H72: 1110 | I72: 1676 | J72: 6781 | K72: 4272 | L72: 1085 | M72: 1424 | N72: 6781 | O72: 4272.030126 | P72: 1084.960002 | Q72: 1424.009872 | R72: 6781 | S72: 4272 | T72: 1085 | U72: 1424 | V72: 6781 | W72: 4272 | X72: 1085 | Y72: 1424
B73: Otros gastos de personal | C73: Asistencia médica | D73: (Auto) Seguro de Asistencia Medica Trabajadores | E73: Sí | F73: 9783190 | G73: 5766853 | H73: 1600831 | I73: 2415506 | J73: 10449474 | K73: 6583169 | L73: 1671916 | M73: 2194389 | N73: 14548120 | O73: 9165315.87 | P73: 2327699.204 | Q73: 3055104.926 | R73: 12792724 | S73: 8059417 | T73: 2046836 | U73: 2686471 | V73: 12792724 | W73: 8059417 | X73: 2046836 | Y73: 2686471
B74: Otros gastos de personal | C74: Asistencia médica | D74: Seguro Medico Practicante | E74: Sí | F74: 421441 | G74: 248425 | H74: 68961 | I74: 104055 | J74: 229823 | K74: 144788 | L74: 36772 | M74: 48263 | N74: 369929 | O74: 233055.2769 | P74: 59188.64011 | Q74: 77685.08303 | R74: 508464 | S74: 320331 | T74: 81355 | U74: 106778 | V74: 508464 | W74: 320331 | X74: 81355 | Y74: 106778
B75: Otros gastos de personal | C75: Asistencia médica | D75: Servicio Médico Personal Aeronáutico | E75: Sí | F75: 293002 | G75: 172715 | H75: 47944 | I75: 72343 | J75: 300000 | K75: 189000 | L75: 48000 | M75: 63000 | N75: 300000 | O75: 189000.0056 | P75: 48000.00009 | Q75: 62999.99435 | R75: 300000 | S75: 189000 | T75: 48000 | U75: 63000 | V75: 300000 | W75: 189000 | X75: 48000 | Y75: 63000
B76: Otros gastos de personal | C76: Asistencia médica | D76: Habilitación y Renovacion Licencia Personal Aeronáutico | E76: Sí | F76: 51255 | G76: 30213 | H76: 8387 | I76: 12655 | J76: 54000 | K76: 34020 | L76: 8640 | M76: 11340 | N76: 54000 | O76: 34020.001 | P76: 8640.000015 | Q76: 11339.99898 | R76: 54000 | S76: 34020 | T76: 8640 | U76: 11340 | V76: 54000 | W76: 34020 | X76: 8640 | Y76: 11340
B77: Otros gastos de personal | C77: Asistencia médica | D77: Examenes Médicos Ocupacionales Ley Nº 29783 | E77: Sí | F77: 450000 | G77: 265411 | H77: 73676 | I77: 110913 | J77: 475000 | K77: 299250 | L77: 76000 | M77: 99750 | N77: 367000 | O77: 231210.0068 | P77: 58720.0001 | Q77: 77069.99309 | R77: 475000 | S77: 299250 | T77: 76000 | U77: 99750 | V77: 475000 | W77: 299250 | X77: 76000 | Y77: 99750
B78: Otros gastos de personal | C78: Asistencia médica | D78: Programa Médico Oncologico (titulares) | E78: Sí | F78: 0 | G78: 0 | H78: 0 | I78: 0 | J78: 0 | K78: 0 | L78: 0 | M78: 0 | N78: 0 | O78: 0 | P78: 0 | Q78: 0 | R78: 0 | S78: 0 | T78: 0 | U78: 0 | V78: 0 | W78: 0 | X78: 0 | Y78: 0
B79: Otros gastos de personal | C79: Asistencia médica | D79: Ejercicios Anteriores Asistencia Medica | E79: Sí | F79: 75000 | G79: 44235 | H79: 12279 | I79: 18486 | J79: 75000 | K79: 47250 | L79: 12000 | M79: 15750 | N79: 75000 | O79: 47250.00139 | P79: 12000.00002 | Q79: 15749.99859 | R79: 48181 | S79: 30354 | T79: 7709 | U79: 10118 | V79: 48181 | W79: 30354 | X79: 7709 | Y79: 10118
B80: Otros gastos de personal | C80: Asistencia médica | D80: Cobertura Seguro PIRV 2017 | E80: Sí | F80: 0 | G80: 0 | H80: 0 | I80: 0 | J80: 2173680 | K80: 1369418 | L80: 347789 | M80: 456473 | N80: 600000 | O80: 378000.0111 | P80: 96000.00017 | Q80: 125999.9887 | R80: 0 | S80: 0 | T80: 0 | U80: 0 | V80: 0 | W80: 0 | X80: 0 | Y80: 0
B81: Otros gastos de personal | C81: Seguro complementario de trabajo de riesgo | D81: Seguro Complementario de Trabajo de Alto Riesgo | E81: Sí | F81: 751726 | G81: 443116 | H81: 123005 | I81: 185605 | J81: 568466 | K81: 358134 | L81: 90955 | M81: 119377 | N81: 506503 | O81: 319096.8994 | P81: 81040.48014 | Q81: 106365.6205 | R81: 1701605 | S81: 1072013 | T81: 272258 | U81: 357334 | V81: 1701605 | W81: 1072013 | X81: 272258 | Y81: 357334
B82: Otros gastos de personal | C82: Seguro complementario de trabajo de riesgo | D82: Ejercicios Anteriores SCTR | E82: Sí | F82: 9980 | G82: 5886 | H82: 1634 | I82: 2460 | J82: 9980 | K82: 6287 | L82: 1597 | M82: 2096 | N82: 9980 | O82: 6287.400185 | P82: 1596.800003 | Q82: 2095.799812 | R82: 9980 | S82: 6287 | T82: 1597 | U82: 2096 | V82: 9980 | W82: 6287 | X82: 1597 | Y82: 2096
B83: Otros gastos de personal | C83: Pago de indemnización por cese de relación laboral | D83: Indemnizacion Especial según D.L. 728 | E83: No | F83: 300172 | G83: 176941 | H83: 49117 | I83: 74114 | J83: 0 | K83: 0 | L83: 0 | M83: 0 | N83: 0 | O83: 0 | P83: 0 | Q83: 0 | R83: 0 | S83: 0 | T83: 0 | U83: 0 | V83: 0 | W83: 0 | X83: 0 | Y83: 0
B84: Otros gastos de personal | C84: Incentivos por retiro voluntario (GIP) | D84: Programa Retiro Voluntario con Incentivo | E84: Sí | F84: 0 | G84: 0 | H84: 0 | I84: 0 | J84: 13100000 | K84: 8253000 | L84: 2096000 | M84: 2751000 | N84: 0 | O84: 0 | P84: 0 | Q84: 0 | R84: 0 | S84: 0 | T84: 0 | U84: 0 | V84: 0 | W84: 0 | X84: 0 | Y84: 0
B85: Otros gastos de personal | C85: Celebraciones | D85: Celebracion | E85: Sí | F85: 66000 | G85: 38927 | H85: 10806 | I85: 16267 | J85: 400000 | K85: 252000 | L85: 64000 | M85: 84000 | N85: 0 | O85: 0 | P85: 0 | Q85: 0 | R85: 60352 | S85: 38022 | T85: 9656 | U85: 12674 | V85: 60352 | W85: 38022 | X85: 9656 | Y85: 12674
B86: Otros gastos de personal | C86: Bonos de productividad (Convenio de Gestión) | D86: Bono de Productividad | E86: Sí | F86: 0 | G86: 0 | H86: 0 | I86: 0 | J86: 0 | K86: 0 | L86: 0 | M86: 0 | N86: 0 | O86: 0 | P86: 0 | Q86: 0 | R86: 0 | S86: 0 | T86: 0 | U86: 0 | V86: 0 | W86: 0 | X86: 0 | Y86: 0
B87: Otros gastos de personal | C87: Participación de trabajadores | D87: Participacion de Trabajadores | E87: No | F87: 0 | G87: 0 | H87: 0 | I87: 0 | J87: 0 | K87: 0 | L87: 0 | M87: 0 | N87: 700000 | O87: 441000.013 | P87: 112000.0002 | Q87: 146999.9868 | R87: 1000000 | S87: 630000 | T87: 160000 | U87: 210000 | V87: 1000000 | W87: 630000 | X87: 160000 | Y87: 210000
B88: Otros (GIP) | C88: Otros (GIP) | D88: Gastos Rehabilitacion y Becas Hijos Trabajadores | E88: Sí | F88: 74576 | G88: 43985 | H88: 12210 | I88: 18381 | J88: 66000 | K88: 41580 | L88: 10560 | M88: 13860 | N88: 71186 | O88: 44847.18132 | P88: 11389.76002 | Q88: 14949.05866 | R88: 66000 | S88: 41580 | T88: 10560 | U88: 13860 | V88: 66000 | W88: 41580 | X88: 10560 | Y88: 13860
B89: Otros (GIP) | C89: Otros (GIP) | D89: Indemnizacion Vacaciones No Disfrutadas | E89: Sí | F89: 0 | G89: 0 | H89: 0 | I89: 0 | J89: 0 | K89: 0 | L89: 0 | M89: 0 | N89: 0 | O89: 0 | P89: 0 | Q89: 0 | R89: 33000 | S89: 20790 | T89: 5280 | U89: 6930 | V89: 33000 | W89: 20790 | X89: 5280 | Y89: 6930
B90: Otros (GIP) | C90: Otros (GIP) | D90: Reduccion Periodo Vacacional | E90: Sí | F90: 220000 | G90: 129757 | H90: 36019 | I90: 54224 | J90: 120000 | K90: 75600 | L90: 19200 | M90: 25200 | N90: 120000 | O90: 75600.00223 | P90: 19200.00003 | Q90: 25199.99774 | R90: 220000 | S90: 138600 | T90: 35200 | U90: 46200 | V90: 220000 | W90: 138600 | X90: 35200 | Y90: 46200
B91: Otros (GIP) | C91: Otros (GIP) | D91: Programa de Asistencia Social | E91: Sí | F91: 646022 | G91: 381025 | H91: 105770 | I91: 159227 | J91: 872497 | K91: 549673 | L91: 139600 | M91: 183224 | N91: 1040136 | O91: 655285.6993 | P91: 166421.7603 | Q91: 218428.5404 | R91: 872497 | S91: 549673 | T91: 139600 | U91: 183224 | V91: 872497 | W91: 549673 | X91: 139600 | Y91: 183224
B92: Otros (GIP) | C92: Otros (GIP) | D92: Practicas Pro y Pre Profesionales | E92: Sí | F92: 2455500 | G92: 1448260 | H92: 402025 | I92: 605215 | J92: 1931150 | K92: 1216625 | L92: 308984 | M92: 405541 | N92: 1598025 | O92: 1006755.78 | P92: 255684.0005 | Q92: 335585.2199 | R92: 1931150 | S92: 1216625 | T92: 308984 | U92: 405541 | V92: 1931150 | W92: 1216625 | X92: 308984 | Y92: 405541
B93: Otros (GIP) | C93: Otros (GIP) | D93: Canasta Navideña | E93: Sí | F93: 2065000 | G93: 1219000 | H93: 338000 | I93: 508000 | J93: 1736000 | K93: 1093680 | L93: 277760 | M93: 364560 | N93: 2732600 | O93: 1721538.051 | P93: 437216.0008 | Q93: 573845.9485 | R93: 1814000 | S93: 1142820 | T93: 290240 | U93: 380940 | V93: 1814000 | W93: 1142820 | X93: 290240 | Y93: 380940
B94: Otros (GIP) | C94: Otros (GIP) | D94: Ejercicios Anteriores Otros | E94: Sí | F94: 25000 | G94: 14745 | H94: 4093 | I94: 6162 | J94: 25000 | K94: 15750 | L94: 4000 | M94: 5250 | N94: 25000 | O94: 15750.00046 | P94: 4000.000007 | Q94: 5249.999529 | R94: 25000 | S94: 15750 | T94: 4000 | U94: 5250 | V94: 25000 | W94: 15750 | X94: 4000 | Y94: 5250
B95: Otros (GIP) | C95: Otros (GIP) | D95: Vales de Prestación Alimentaria | E95: Sí | F95: 0 | G95: 0 | H95: 0 | I95: 0 | J95: 5646300 | K95: 3557169 | L95: 903408 | M95: 1185723 | N95: 9393200 | O95: 5917716.174 | P95: 1502912.003 | Q95: 1972571.823 | R95: 6530400 | S95: 4114152 | T95: 1044864 | U95: 1371384 | V95: 6530400 | W95: 4114152 | X95: 1044864 | Y95: 1371384
B96: Total | F96: =SUM(F31:F95) -> 207420797 | G96: =SUM(G31:G95) -> 122270231 | H96: =SUM(H31:H95) -> 33940832 | I96: =SUM(I31:I95) -> 51209734 | J96: 245555870.5 | K96: 154700197.8 | L96: 39288941.52 | M96: 51566731.17 | N96: 253864958 | O96: 159934928.2 | P96: 40618393.35 | Q96: 53311636.4 | R96: 267198801 | S96: 168335249 | T96: 42751809 | U96: 56111743 | V96: 279737787 | W96: 176234811 | X96: 44758046 | Y96: 58744930
B98: * Resumen de proyecciones:
E99: 2023 | F99: =+E99+1 -> 2024 | G99: =+F99+1 -> 2025 | H99: =+G99+1 -> 2026 | I99: =+H99+1 -> 2027
B100: Aeronavegación | E100: =+G96 -> 122270231 | F100: =+K96 -> 154700197.8 | G100: =+O96 -> 159934928.2 | H100: =+S96 -> 168335249 | I100: =W96 -> 176234811
B101: Aeroportuario | E101: =+H96 -> 33940832 | F101: =+L96 -> 39288941.52 | G101: =+P96 -> 40618393.35 | H101: =+T96 -> 42751809 | I101: =+X96 -> 44758046
B102: Mixto | E102: =+I96 -> 51209734 | F102: =+M96 -> 51566731.17 | G102: =+Q96 -> 53311636.4 | H102: =+U96 -> 56111743 | I102: =+Y96 -> 58744930
B103: Total | E103: =SUM(E100:E102) -> 207420797 | F103: =SUM(F100:F102) -> 245555870.5 | G103: =SUM(G100:G102) -> 253864958 | H103: =SUM(H100:H102) -> 267198801 | I103: =SUM(I100:I102) -> 279737787
B105: b. Gastos de Personal a incluirse en las tarifas
B106: (Expresado en soles)
E107: 2023 | F107: =+E107+1 -> 2024 | G107: =+F107+1 -> 2025 | H107: =+G107+1 -> 2026 | I107: =+H107+1 -> 2027
B108: Aeronavegación | E108: =SUMIF($E$31:$E$95,"Sí",G$31:G$95) -> 122093290 | F108: =SUMIF($E$31:$E$95,"Sí",K$31:K$95) -> 149099607.8 | G108: =SUMIF($E$31:$E$95,"Sí",O$31:O$95) -> 154183028.1 | H108: =SUMIF($E$31:$E$95,"Sí",S$31:S$95) -> 163133969 | I108: =SUMIF($E$31:$E$95,"Sí",W$31:W$95) -> 171033531
B109: Aeroportuario | E109: =SUMIF($E$31:$E$95,"Sí",H$31:H$95) -> 33891715 | F109: =SUMIF($E$31:$E$95,"Sí",L$31:L$95) -> 37866569.52 | G109: =SUMIF($E$31:$E$95,"Sí",P$31:P$95) -> 39157593.35 | H109: =SUMIF($E$31:$E$95,"Sí",T$31:T$95) -> 41430849 | I109: =SUMIF($E$31:$E$95,"Sí",X$31:X$95) -> 43437086
B110: Mixto | E110: =SUMIF($E$31:$E$95,"Sí",I$31:I$95) -> 51135620 | F110: =SUMIF($E$31:$E$95,"Sí",M$31:M$95) -> 49699867.17 | G110: =SUMIF($E$31:$E$95,"Sí",Q$31:Q$95) -> 51394336.57 | H110: =SUMIF($E$31:$E$95,"Sí",U$31:U$95) -> 54377983 | I110: =SUMIF($E$31:$E$95,"Sí",Y$31:Y$95) -> 57011170
B111: Total | E111: =SUM(E108:E110) -> 207120625 | F111: =SUM(F108:F110) -> 236666044.5 | G111: =SUM(G108:G110) -> 244734958 | H111: =SUM(H108:H110) -> 258942801 | I111: =SUM(I108:I110) -> 271481787
B113: c. Asignación de las proyecciones de gastos de personal a Aeronavegación
B114: (Expresado en soles)
E115: 2023 | F115: =+E115+1 -> 2024 | G115: =+F115+1 -> 2025 | H115: =+G115+1 -> 2026 | I115: =+H115+1 -> 2027
B116: Aeronavegación | E116: =+E108 -> 122093290 | F116: =+F108 -> 149099607.8 | G116: =+G108 -> 154183028.1 | H116: =+H108 -> 163133969 | I116: =+I108 -> 171033531
B117: Mixto | E117: =+E110*'10. Var-Sup-Gen'!H26 -> 25567810 | F117: =+F110*'10. Var-Sup-Gen'!I26 -> 24849933.58 | G117: =+G110*'10. Var-Sup-Gen'!J26 -> 25697168.28 | H117: =+H110*'10. Var-Sup-Gen'!K26 -> 27188991.5 | I117: =+I110*'10. Var-Sup-Gen'!L26 -> 28505585
B118: Total | E118: =SUM(E116:E117) -> 147661100 | F118: =SUM(F116:F117) -> 173949541.4 | G118: =SUM(G116:G117) -> 179880196.4 | H118: =SUM(H116:H117) -> 190322960.5 | I118: =SUM(I116:I117) -> 199539116
B119: Nota: Se considera el 100% de los gastos de personal asignados a aeronavegación y el 50% de los considerados como mixtos.
B121: d. Gastos de personal - Total aeronavegación
B122: (En soles)
B123: Concepto | C123: % Asignación a Aeronavegación | E123: 2023 | F123: =E123+1 -> 2024 | G123: =F123+1 -> 2025 | H123: =G123+1 -> 2026 | I123: =H123+1 -> 2027
B124: Gastos de personal - Total aeronavegación | E124: =+E118 -> 147661100 | F124: =+F118 -> 173949541.4 | G124: =+G118 -> 179880196.4 | H124: =+H118 -> 190322960.5 | I124: =+I118 -> 199539116
B125: SNAR Nacional | C125: =+K18 -> 0.3484139539 | E125: =+$C125*E$124 -> 51447187.68 | F125: =+$C125*F$124 -> 60606447.49 | G125: =+$C125*G$124 -> 62672770.44 | H125: =+$C125*H$124 -> 66311175.18 | I125: =+$C125*I$124 -> 69522212.36
B126: SNAR Internacional | C126: =+K19 -> 0.1411222984 | E126: =+$C126*E$124 -> 20838273.81 | F126: 24548159.08 | G126: 25385106.74 | H126: 26858813.61 | I126: 28159418.66
B127: Aproximación | C127: =+K20 -> 0.3013756381 | E127: 44501458.23 | F127: 52424154.03 | G127: 54211508.95 | H127: =+$C127*H$124 -> 57358703.66 | I127: =+$C127*I$124 -> 60136228.4
B128: Sobrevuelo | C128: =+K21 -> 0.2082791633 | E128: 30754730.36 | F128: 36230064.93 | G128: 37465296.79 | H128: =+$C128*H$124 -> 39640306.97 | I128: =+$C128*I$124 -> 41559840.12
B129: Total Aeronavegación regulados | E129: =SUM(E125:E128) -> 147541650.1 | F129: =SUM(F125:F128) -> 173808825.5 | G129: =SUM(G125:G128) -> 179734682.9 | H129: =SUM(H125:H128) -> 190168999.4 | I129: =SUM(I125:I128) -> 199377699.5

Sheet 4.2. OPEX (Incremental)
B1: 4.2 Costos de operación (OPEX) Incremental | J1: Índice
B3: I. Costos incrementales no relacionados con la ampliación del AIJCh
B5: a. Determinación del costo unitario de las actividades de mantenimiento
B7: i. Información histórica, año 2020
B8: (Expresado en soles. Fuente: Contabilidad regulatoria de CORPAC S.A.)
B9: Rubros | C9: 2017 | D9: 2018 | E9: 2019 | F9: 2020 | G9: 2021 | H9: 2022 | I9: 2023 | J9: Participación (%)
B10: Suministros y Materiales | C10: 1457892.958 | D10: 3308214.066 | E10: 2968335.035 | F10: 4671567.807 | G10: 8151346.008 | H10: 2610746.86 | I10: 2824370.087 | J10: =+AVERAGE(G10/G$13,H10/H$13,I10/I$13) -> 0.1873196781
B11: Mantenimiento | C11: 7700172.088 | D11: 4379845.88 | E11: 4412118.443 | F11: 6210557.208 | G11: 6368623.967 | H11: 6861163.199 | I11: 8328229.914 | J11: =+AVERAGE(G11/G$13,H11/H$13,I11/I$13) -> 0.2934957807
B12: Servicios prestados por terceros | C12: 9648092.437 | D12: 7405678.864 | E12: 5753210.416 | F12: 5393229.798 | G12: 9389519.401 | H12: 12769232.14 | I12: 16096448.99 | J12: 0.5191845412
B13: Costo total del mantenimiento | C13: =SUM(C10:C12) -> 18806157.48 | D13: =SUM(D10:D12) -> 15093738.81 | E13: 13133663.89 | F13: 16275354.81 | G13: 23909489.38 | H13: 22241142.2 | I13: 27249048.99 | J13: 1
B14: (*) Data extraida de: Mant 1 SPT_GTA Y Área_Inspeccion_Vuelo_2017-2023requOsitranfinal / Mant 2 SumYMat_GTA Y Área_Inspeccion_Vuelo_2017-2023requOsitranfinal
B15: ii. Cantidades de mantenimiento realizadas en el periodo 2017-2023
B16: (Fuente: CORPAC)
C17: 2017 | D17: 2018 | E17: 2019 | F17: 2020 | G17: 2021 | H17: 2022 | I17: 2023
B18: Áreas de sistemas de comunicaciones aeronáuticas | C18: 9978 | D18: 9190 | E18: 8365 | F18: 5747 | G18: 7724 | H18: 8779 | I18: 8042
B20: iii. Costo unitario de las actividades de mantenimiento
B21: (Expresado en soles)
B22: Detalle | C22: 2017 | D22: 2018 | E22: 2019 | F22: 2020 | G22: 2021 | H22: 2022 | I22: 2023 | J22: Promedio
B23: Costo total de las actividades de mantenimiento en el año 2020 | C23: =+C13 -> 18806157.48 | D23: =+D13 -> 15093738.81 | E23: =+E13 -> 13133663.89 | F23: =+F13 -> 16275354.81 | G23: =+G13 -> 23909489.38 | H23: =+H13 -> 22241142.2 | I23: =+I13 -> 27249048.99
B24: Número de actividades de mantenimiento desarrolladas en el año 2020 | C24: =+C18 -> 9978 | D24: =+D18 -> 9190 | E24: =+E18 -> 8365 | F24: =+F18 -> 5747 | G24: =+G18 -> 7724 | H24: =+H18 -> 8779 | I24: 8042
B25: Costo unitario de las actividades de mantenimiento, año base 2020 | C25: =+C23/C24 -> 1884.762225 | D25: =+D23/D24 -> 1642.409011 | E25: 1570.073388 | F25: 2831.974041 | G25: 3095.48024 | H25: 2533.448252 | I25: =+I23/I24 -> 3388.342327 | J25: =+AVERAGE(C25:I25) -> 2420.927069
B27: iv. Costo unitario de las actividades de mantenimiento por tipo de gasto
B28: (Expresado en soles)
B29: Costos unitarios | C29: Base
B30: Suministros y Materiales | C30: =$J$25*J10 -> 453.4872792
B31: Mantenimiento | C31: =$J$25*J11 -> 710.5318803
B32: Servicios Prestados por Terceros | C32: =$J$25*J12 -> 1256.90791
B33: Total | C33: =SUM(C30:C32) -> 2420.927069
B35: b. Actividades de mantenimiento incrementales proyectadas por CORPAC. Sin incluir la ampliación del AIJCh
B36: (Fuente: CORPAC)
D37: 2023 | E37: 2024 | F37: 2025 | G37: 2026 | H37: 2027
B38: Número de actividades de mantenimiento incrementales | D38: 666 | E38: 888 | F38: 1048 | G38: 1213 | H38: 1213
B40: c. Proyección de costos incrementales, sin incluir la ampliación del AIJCh
B41: (Expresado en soles)
B42: Costos incrementales | D42: 2023 | E42: 2024 | F42: 2025 | G42: 2026 | H42: 2027
B43: Suministros y Materiales | D43: =+$C30*D$38 -> 302022.528 | E43: =+$C30*E$38 -> 402696.7039 | F43: =+$C30*F$38 -> 475254.6686 | G43: =+$C30*G$38 -> 550080.0697 | H43: =+$C30*H$38 -> 550080.0697
B44: Mantenimiento | D44: =+$C31*D$38 -> 473214.2323 | E44: =+$C31*E$38 -> 630952.3097 | F44: =+$C31*F$38 -> 744637.4106 | G44: 861875.1708 | H44: =+$C31*H$38 -> 861875.1708
B45: Servicios Prestados por Terceros | D45: 837100.6679 | E45: =+$C32*E$38 -> 1116134.224 | F45: =+$C32*F$38 -> 1317239.489 | G45: 1524629.294 | H45: =+$C32*H$38 -> 1524629.294
B46: Total | D46: =+SUM(D43:D45) -> 1612337.428 | E46: =+SUM(E43:E45) -> 2149783.237 | F46: =+SUM(F43:F45) -> 2537131.569 | G46: =+SUM(G43:G45) -> 2936584.535 | H46: =+SUM(H43:H45) -> 2936584.535
B48: d. Participación de los servicios en los costos incrementales NO relacionados con la ampliación del AIJCh
B49: (Expresado en soles. Fuente: Contabilidad regulatoria de CORPAC S.A.)
B50: Detalle | C50: 2017 | H50: 2018 | M50: 2019 | R50: 2020 | W50: 2021 | AB50: 2022 | AG50: 2023
C51: SNAR nacional | D51: SNAR Internacional | E51: Aproximación | F51: Sobrevuelo | G51: Total | H51: SNAR nacional | I51: SNAR Internacional | J51: Aproximación | K51: Sobrevuelo | L51: Total | M51: SNAR nacional | N51: SNAR Internacional | O51: Aproximación | P51: Sobrevuelo | Q51: Total | R51: SNAR nacional | S51: SNAR Internacional | T51: Aproximación | U51: Sobrevuelo | V51: Total | W51: SNAR nacional | X51: SNAR Internacional | Y51: Aproximación | Z51: Sobrevuelo | AA51: Total | AB51: SNAR nacional | AC51: SNAR Internacional | AD51: Aproximación | AE51: Sobrevuelo | AF51: Total | AG51: SNAR nacional | AH51: SNAR Internacional | AI51: Aproximación | AJ51: Sobrevuelo | AK51: Total
B52: Suministros y Materiales | C52: =+VLOOKUP(B52,'4. OPEX'!$B$7:$H$15,4,0) -> 3289056.576 | D52: =+VLOOKUP(B52,'4. OPEX'!$B$18:$H$26,4,0) -> 697692.9185 | E52: =+VLOOKUP(B52,'4. OPEX'!$B$29:$H$37,4,0) -> 2104704.063 | F52: =+VLOOKUP($B52,'4. OPEX'!B40:H48,4,0) -> 564375.0402 | G52: =+SUM(C52:F52) -> 6655828.597 | H52: =+VLOOKUP(B52,'4. OPEX'!$B$7:$H$15,5,0) -> 1577965.411 | I52: =+VLOOKUP(B52,'4. OPEX'!$B$18:$H$26,5,0) -> 726028.5137 | J52: =+VLOOKUP(B52,'4. OPEX'!$B$29:$H$37,5,0) -> 1554098.939 | K52: =+VLOOKUP($B52,'4. OPEX'!B40:H48,5,0) -> 752948.593 | L52: =+SUM(H52:K52) -> 4611041.457 | M52: =+VLOOKUP(B52,'4. OPEX'!$B$7:$H$15,6,0) -> 1155468.467 | N52: =+VLOOKUP(B52,'4. OPEX'!$B$18:$H$26,6,0) -> 398910.3457 | O52: =+VLOOKUP(B52,'4. OPEX'!$B$29:$H$37,6,0) -> 2591206.703 | P52: =+VLOOKUP($B52,'4. OPEX'!B40:H48,6,0) -> 410242.3799 | Q52: =+SUM(M52:P52) -> 4555827.896 | R52: =+VLOOKUP(B52,'4. OPEX'!$B$7:$H$15,7,0) -> 2340184.393 | S52: =+VLOOKUP(B52,'4. OPEX'!$B$18:$H$26,7,0) -> 1533497.356 | T52: =+VLOOKUP(B52,'4. OPEX'!$B$29:$H$37,7,0) -> 1187833.793 | U52: =+VLOOKUP($B52,'4. OPEX'!$B$40:$H$48,7,0) -> 2435395.427 | V52: =+SUM(R52:U52) -> 7496910.969 | W52: =+VLOOKUP(B52,'4. OPEX'!$B$7:$I$15,8,0) -> 7185955.799 | X52: =+VLOOKUP(B52,'4. OPEX'!$B$18:$I$26,8,0) -> 1925586.999 | Y52: =+VLOOKUP(B52,'4. OPEX'!$B$29:$I$37,8,0) -> 4502673.639 | Z52: =+VLOOKUP($B52,'4. OPEX'!$B$40:$I$48,8,0) -> 3207705.212 | AA52: =+SUM(W52:Z52) -> 16821921.65 | AB52: =+VLOOKUP(B52,'4. OPEX'!$B$7:$L$15,9,0) -> 1685978.891 | AC52: =+VLOOKUP(B52,'4. OPEX'!$B$18:$L$26,9,0) -> 472447.485 | AD52: =+VLOOKUP(B52,'4. OPEX'!$B$29:$L$37,9,0) -> 1727406.677 | AE52: =+VLOOKUP($B52,'4. OPEX'!$B$40:$L$48,9,0) -> 647161.904 | AF52: =+SUM(AB52:AE52) -> 4532994.958 | AG52: =+VLOOKUP(B52,'4. OPEX'!$B$7:$L$15,10,0) -> 1649509.305 | AH52: =+VLOOKUP(B52,'4. OPEX'!$B$18:$K$26,10,0) -> 511469.2058 | AI52: =+VLOOKUP(B52,'4. OPEX'!$B$29:$K$37,10,0) -> 1875721.303 | AJ52: =+VLOOKUP($B52,'4. OPEX'!$B$40:$K$48,10,0) -> 623077.5866 | AK52: =+SUM(AG52:AJ52) -> 4659777.4
B53: Servicios prestados por terceros | C53: =+VLOOKUP(B53,'4. OPEX'!$B$7:$H$15,4,0) -> 15668345.12 | D53: =+VLOOKUP(B53,'4. OPEX'!$B$18:$H$26,4,0) -> 4771371.041 | E53: =+VLOOKUP(B53,'4. OPEX'!$B$29:$H$37,4,0) -> 12913170.55 | F53: =+VLOOKUP($B53,'4. OPEX'!B41:H49,4,0) -> 4171236.129 | G53: =+SUM(C53:F53) -> 37524122.84 | H53: =+VLOOKUP(B53,'4. OPEX'!$B$7:$H$15,5,0) -> 16381705.98 | I53: =+VLOOKUP(B53,'4. OPEX'!$B$18:$H$26,5,0) -> 4218914.586 | J53: =+VLOOKUP(B53,'4. OPEX'!$B$29:$H$37,5,0) -> 13440364.98 | K53: =+VLOOKUP($B53,'4. OPEX'!B41:H49,5,0) -> 3934712.005 | L53: =+SUM(H53:K53) -> 37975697.55 | M53: =+VLOOKUP(B53,'4. OPEX'!$B$7:$H$15,6,0) -> 17445248 | N53: =+VLOOKUP(B53,'4. OPEX'!$B$18:$H$26,6,0) -> 4338777.859 | O53: =+VLOOKUP(B53,'4. OPEX'!$B$29:$H$37,6,0) -> 13250307.05 | P53: =+VLOOKUP($B53,'4. OPEX'!B41:H49,6,0) -> 4024961.75 | Q53: =+SUM(M53:P53) -> 39059294.66 | R53: =+VLOOKUP(B53,'4. OPEX'!$B$7:$H$15,7,0) -> 15552886.46 | S53: =+VLOOKUP(B53,'4. OPEX'!$B$18:$H$26,7,0) -> 2862225.183 | T53: =+VLOOKUP(B53,'4. OPEX'!$B$29:$H$37,7,0) -> 11228710.84 | U53: =+VLOOKUP($B53,'4. OPEX'!B41:H49,7,0) -> 3701216.39 | V53: =+SUM(R53:U53) -> 33345038.86 | W53: =+VLOOKUP(B53,'4. OPEX'!$B$7:$I$15,8,0) -> 18281068.59 | X53: =+VLOOKUP(B53,'4. OPEX'!$B$18:$I$26,8,0) -> 2909420.602 | Y53: =+VLOOKUP(B53,'4. OPEX'!$B$29:$I$37,8,0) -> 13285946.32 | Z53: =+VLOOKUP($B53,'4. OPEX'!$B$40:$I$48,8,0) -> 4186183.107 | AA53: =+SUM(W53:Z53) -> 38662618.62 | AB53: =+VLOOKUP(B53,'4. OPEX'!$B$7:$L$15,9,0) -> 20098788.24 | AC53: =+VLOOKUP(B53,'4. OPEX'!$B$18:$L$26,9,0) -> 4146523.058 | AD53: =+VLOOKUP(B53,'4. OPEX'!$B$29:$L$37,9,0) -> 15478543.16 | AE53: =+VLOOKUP($B53,'4. OPEX'!$B$40:$L$48,9,0) -> 5375520.805 | AF53: =+SUM(AB53:AE53) -> 45099375.26 | AG53: =+VLOOKUP(B53,'4. OPEX'!$B$7:$L$15,10,0) -> 20484689.04 | AH53: =+VLOOKUP(B53,'4. OPEX'!$B$18:$K$26,10,0) -> 5676615.187 | AI53: =+VLOOKUP(B53,'4. OPEX'!$B$29:$K$37,10,0) -> 18280102.6 | AJ53: =+VLOOKUP($B53,'4. OPEX'!$B$40:$K$48,10,0) -> 6941718.203 | AK53: =+SUM(AG53:AJ53) -> 51383125.03
B54: Mantenimiento | C54: =+VLOOKUP(B54,'4. OPEX'!$B$7:$H$15,4,0) -> 3333235.414 | D54: =+VLOOKUP(B54,'4. OPEX'!$B$18:$H$26,4,0) -> 932230.9842 | E54: =+VLOOKUP(B54,'4. OPEX'!$B$29:$H$37,4,0) -> 2584395.357 | F54: =+VLOOKUP($B54,'4. OPEX'!B42:H50,4,0) -> 850310.3331 | G54: =+SUM(C54:F54) -> 7700172.088 | H54: =+VLOOKUP(B54,'4. OPEX'!$B$7:$H$15,5,0) -> 1675655.664 | I54: =+VLOOKUP(B54,'4. OPEX'!$B$18:$H$26,5,0) -> 551253.9388 | J54: =+VLOOKUP(B54,'4. OPEX'!$B$29:$H$37,5,0) -> 1601774.357 | K54: =+VLOOKUP($B54,'4. OPEX'!B42:H50,5,0) -> 551161.9197 | L54: =+SUM(H54:K54) -> 4379845.88 | M54: =+VLOOKUP(B54,'4. OPEX'!$B$7:$H$15,6,0) -> 1591671.761 | N54: =+VLOOKUP(B54,'4. OPEX'!$B$18:$H$26,6,0) -> 679078.0808 | O54: =+VLOOKUP(B54,'4. OPEX'!$B$29:$H$37,6,0) -> 1436201.778 | P54: =+VLOOKUP($B54,'4. OPEX'!B42:H50,6,0) -> 705166.8236 | Q54: =+SUM(M54:P54) -> 4412118.443 | R54: =+VLOOKUP(B54,'4. OPEX'!$B$7:$H$15,7,0) -> 1968143.27 | S54: =+VLOOKUP(B54,'4. OPEX'!$B$18:$H$26,7,0) -> 730018.8934 | T54: =+VLOOKUP(B54,'4. OPEX'!$B$29:$H$37,7,0) -> 2410679.39 | U54: =+VLOOKUP($B54,'4. OPEX'!B42:H50,7,0) -> 1101715.655 | V54: =+SUM(R54:U54) -> 6210557.208 | W54: =+VLOOKUP(B54,'4. OPEX'!$B$7:$I$15,8,0) -> 2475459.882 | X54: =+VLOOKUP(B54,'4. OPEX'!$B$18:$I$26,8,0) -> 610815.5538 | Y54: =+VLOOKUP(B54,'4. OPEX'!$B$29:$I$37,8,0) -> 2290692.605 | Z54: =+VLOOKUP($B54,'4. OPEX'!$B$40:$I$48,8,0) -> 991655.9266 | AA54: =+SUM(W54:Z54) -> 6368623.967 | AB54: =+VLOOKUP(B54,'4. OPEX'!$B$7:$L$15,9,0) -> 2212567.724 | AC54: =+VLOOKUP(B54,'4. OPEX'!$B$18:$L$26,9,0) -> 1205779.158 | AD54: =+VLOOKUP(B54,'4. OPEX'!$B$29:$L$37,9,0) -> 1542044.055 | AE54: =+VLOOKUP($B54,'4. OPEX'!$B$40:$L$48,9,0) -> 1900772.262 | AF54: =+SUM(AB54:AE54) -> 6861163.199 | AG54: =+VLOOKUP(B54,'4. OPEX'!$B$7:$L$15,10,0) -> 3094820.769 | AH54: =+VLOOKUP(B54,'4. OPEX'!$B$18:$K$26,10,0) -> 1222554.444 | AI54: =+VLOOKUP(B54,'4. OPEX'!$B$29:$K$37,10,0) -> 2395531.438 | AJ54: =+VLOOKUP($B54,'4. OPEX'!$B$40:$K$48,10,0) -> 1615323.263 | AK54: =+SUM(AG54:AJ54) -> 8328229.914
B56: Detalle | C56: 2017 | H56: 2018 | M56: 2019 | R56: 2020 | W56: 2021 | AB56: 2022 | AG56: 2023
C57: SNAR nacional | D57: SNAR Internacional | E57: Aproximación | F57: Sobrevuelo | G57: Total | H57: SNAR nacional | I57: SNAR Internacional | J57: Aproximación | K57: Sobrevuelo | L57: Total | M57: SNAR nacional | N57: SNAR Internacional | O57: Aproximación | P57: Sobrevuelo | Q57: Total | R57: SNAR nacional | S57: SNAR Internacional | T57: Aproximación | U57: Sobrevuelo | V57: Total | W57: SNAR nacional | X57: SNAR Internacional | Y57: Aproximación | Z57: Sobrevuelo | AA57: Total | AB57: SNAR nacional | AC57: SNAR Internacional | AD57: Aproximación | AE57: Sobrevuelo | AF57: Total | AG57: SNAR nacional | AH57: SNAR Internacional | AI57: Aproximación | AJ57: Sobrevuelo | AK57: Total
B58: Suministros y Materiales | C58: =+C52/$G52 -> 0.4941618505 | D58: 0.1048243518 | E58: 0.316219691 | F58: 0.0847941067 | G58: 1 | H58: =+H52/$L52 -> 0.3422145356 | I58: 0.1574543453 | J58: 0.3370385961 | K58: 0.163292523 | L58: 1 | M58: =+M52/$Q52 -> 0.2536242575 | N58: 0.0875604511 | O58: 0.5687674693 | P58: 0.09004782211 | Q58: 1 | R58: =+R52/$V52 -> 0.3121531525 | S58: 0.2045505626 | T58: 0.1584430971 | U58: 0.3248531878 | V58: 1 | W58: =IFERROR(W52/$AA52,"") -> 0.4271780567 | X58: =IFERROR(X52/$AA52,"") -> 0.1144689079 | Y58: 0.26766702 | Z58: 0.1906860155 | AA58: 1 | AB58: =IFERROR(AB52/$AF52,"") -> 0.3719348702 | AC58: =IFERROR(AC52/$AF52,"") -> 0.1042241364 | AD58: 0.3810740346 | AE58: 0.1427669587 | AF58: =IFERROR(AF52/$AF52,"") -> 1 | AG58: =IFERROR(AG52/$AK52,"") -> 0.3539888633 | AH58: =IFERROR(AH52/$AK52,"") -> 0.1097625835 | AI58: 0.4025345294 | AJ58: 0.1337140239 | AK58: =IFERROR(AK52/$AK52,"") -> 1
B59: Servicios prestados por terceros | C59: 0.4175539342 | D59: 0.1271547655 | E59: 0.3441298443 | F59: 0.111161456 | G59: 1 | H59: 0.4313734056 | I59: 0.1110951176 | J59: 0.3539201606 | K59: 0.1036113162 | L59: 1 | M59: 0.4466349981 | N59: 0.1110818282 | O59: 0.3392356971 | P59: 0.1030474765 | Q59: 1 | R59: 0.4664228019 | S59: 0.08583661259 | T59: 0.3367430724 | U59: 0.1109975131 | V59: 1 | W59: =IFERROR(W53/$AA53,"") -> 0.4728357583 | X59: 0.07525151441 | Y59: 0.3436380357 | Z59: 0.1082746916 | AA59: 1 | AB59: =IFERROR(AB53/$AF53,"") -> 0.44565558 | AC59: 0.09194191791 | AD59: 0.3432097023 | AE59: 0.1191927997 | AF59: =IFERROR(AF53/$AF53,"") -> 1 | AG59: =IFERROR(AG53/$AK53,"") -> 0.3986656909 | AH59: 0.1104762543 | AI59: 0.3557608181 | AJ59: 0.1350972367 | AK59: =IFERROR(AK53/$AK53,"") -> 1
B60: Mantenimiento | C60: 0.4328780416 | D60: 0.1210662533 | E60: 0.3356282597 | F60: 0.1104274454 | G60: 1 | H60: 0.3825832483 | I60: 0.1258614924 | J60: 0.3657147766 | K60: 0.1258404827 | L60: 1 | M60: 0.3607500074 | N60: 0.1539120242 | O60: 0.3255129698 | P60: 0.1598249985 | Q60: 1 | R60: 0.3169028485 | S60: 0.1175448304 | T60: 0.3881583099 | U60: 0.1773940112 | V60: 1 | W60: =IFERROR(W54/$AA54,"") -> 0.3886961917 | X60: 0.09591013018 | Y60: 0.3596840725 | Z60: 0.1557096057 | AA60: 1 | AB60: 0.3224770582 | AC60: 0.1757397576 | AD60: 0.224749654 | AE60: 0.2770335302 | AF60: =IFERROR(AF54/$AF54,"") -> 1 | AG60: 0.3716060677 | AH60: 0.1467964329 | AI60: 0.2876399262 | AJ60: 0.1939575732 | AK60: =IFERROR(AK54/$AK54,"") -> 1
B62: * Participación promedio 2017-2023 gastos:
B63: Detalle | C63: SNAR nacional | D63: SNAR Internacional | E63: Aproximación | F63: Sobrevuelo
B64: Suministros y Materiales | C64: =+AVERAGE(C58,H58,M58,R58,W58,AB58,AG58) -> 0.3650365123 | D64: =+AVERAGE(D58,I58,N58,S58,X58,AC58,AH58) -> 0.1261207627 | E64: =+AVERAGE(E58,J58,O58,T58,Y58,AD58,AI58) -> 0.3473920625 | F64: =+AVERAGE(F58,K58,P58,U58,Z58,AE58,AJ58) -> 0.1614506625
B65: Servicios prestados por terceros | C65: =+AVERAGE(C59,H59,M59,R59,W59,AB59,AG59) -> 0.4398774527 | D65: =+AVERAGE(D59,I59,N59,S59,X59,AC59,AH59) -> 0.1018340015 | E65: =+AVERAGE(E59,J59,O59,T59,Y59,AD59,AI59) -> 0.3452339044 | F65: =+AVERAGE(F59,K59,P59,U59,Z59,AE59,AJ59) -> 0.1130546414
B66: Mantenimiento | C66: 0.3679847805 | D66: 0.1338329887 | E66: 0.3267268527 | F66: =+AVERAGE(F60,K60,P60,U60,Z60,AE60,AJ60) -> 0.1714553781
B68: e. Asignación de los costos incrementales no relacionados con la ampliación del AIJCh a los servicios de aeronavegación
B70: i. Para SNAR Nacional
B71: (Expresado en soles)
B72: Detalle | E72: 2024 | F72: 2025 | G72: 2026 | H72: 2027
B73: Suministros y Materiales | E73: =+E43*$C64 -> 146999.0003 | F73: =+F43*$C64 -> 173485.3067 | G73: =+G43*$C64 -> 200799.3101 | H73: =+H43*$C64 -> 200799.3101
B74: Servicios prestados por terceros | E74: =+E45*$C65 -> 490962.2793 | F74: =+F45*$C65 -> 579423.9512 | G74: =+G45*$C65 -> 670650.0504 | H74: =+H45*$C65 -> 670650.0504
B75: Mantenimiento | E75: =+E44*$C66 -> 232180.8472 | F75: =+F44*$C66 -> 274015.2341 | G75: =+G44*$C66 -> 317156.9455 | H75: =+H44*$C66 -> 317156.9455
B76: Costos de operación y mantenimiento | E76: =+SUM(E73:E75) -> 870142.1268 | F76: 1026924.492 | G76: 1188606.306 | H76: =+SUM(H73:H75) -> 1188606.306
B78: ii. Para SNAR Internacional
B79: (Expresado en soles)
B80: Detalle | E80: 2024 | F80: 2025 | G80: 2026 | H80: 2027
B81: Suministros y Materiales | E81: =+E43*$D64 -> 50788.41542 | F81: =+F43*$D64 -> 59939.48126 | G81: =+G43*$D64 -> 69376.51791 | H81: =+H43*$D64 -> 69376.51791
B82: Servicios prestados por terceros | E82: =+E45*$D65 -> 113660.4142 | F82: =+F45*$D65 -> 134139.7681 | G82: =+G45*$D65 -> 155259.1019 | H82: =+H45*$D65 -> 155259.1019
B83: Mantenimiento | E83: =+E44*$D66 -> 84442.23334 | F83: =+F44*$D66 -> 99657.05016 | G83: =+G44*$D66 -> 115347.33 | H83: =+H44*$D66 -> 115347.33
B84: Costos de operación y mantenimiento | E84: =+SUM(E81:E83) -> 248891.063 | F84: =+SUM(F81:F83) -> 293736.2996 | G84: =+SUM(G81:G83) -> 339982.9498 | H84: =+SUM(H81:H83) -> 339982.9498
B86: iii. Para Aproximación
B87: (Expresado en soles)
B88: Detalle | E88: 2024 | F88: 2025 | G88: 2026 | H88: 2027
B89: Suministros y Materiales | E89: =+E43*$E64 -> 139893.6385 | F89: =+F43*$E64 -> 165099.6995 | G89: =+G43*$E64 -> 191093.45 | H89: =+H43*$E64 -> 191093.45
B90: Servicios prestados por terceros | E90: =+E45*$E65 -> 385327.3759 | F90: =+F45*$E65 -> 454755.7319 | G90: =+G45*$E65 -> 526353.7241 | H90: =+H45*$E65 -> 526353.7241
B91: Mantenimiento | E91: =+E44*$E66 -> 206149.0623 | F91: =+F44*$E66 -> 243293.0375 | G91: =+G44*$E66 -> 281597.762 | H91: =+H44*$E66 -> 281597.762
B92: Costos de operación y mantenimiento | E92: =+SUM(E89:E91) -> 731370.0768 | F92: =+SUM(F89:F91) -> 863148.469 | G92: =+SUM(G89:G91) -> 999044.936 | H92: =+SUM(H89:H91) -> 999044.936
B94: iv. Para Sobrevuelo
B95: (Expresado en soles)
B96: Detalle | E96: 2024 | F96: 2025 | G96: 2026 | H96: 2027
B97: Suministros y Materiales | E97: =+E43*$F64 -> 65015.64964 | F97: =+F43*$F64 -> 76730.18111 | G97: =+G43*$F64 -> 88810.79169 | H97: =+H43*$F64 -> 88810.79169
B98: Servicios prestados por terceros | E98: =+E45*$F65 -> 126184.1544 | F98: =+F45*$F65 -> 148920.0381 | G98: =+G45*$F65 -> 172366.4182 | H98: =+H45*$F65 -> 172366.4182
B99: Mantenimiento | E99: =+E44*$F66 -> 108180.1668 | F99: =+F44*$F66 -> 127672.0888 | G99: =+G44*$F66 -> 147773.1333 | H99: =+H44*$F66 -> 147773.1333
B100: Costos de operación y mantenimiento | E100: =+SUM(E97:E99) -> 299379.9709 | F100: =+SUM(F97:F99) -> 353322.308 | G100: =+SUM(G97:G99) -> 408950.3432 | H100: =+SUM(H97:H99) -> 408950.3432
B102: f. Ajuste de los costos incrementales no relacionados con la ampliación del AIJCh a los servicios de aeronavegación
B104: i. Para SNAR Nacional
B105: (Expresado en soles)
B106: Detalle | E106: 2024 | F106: 2025 | G106: 2026 | H106: 2027
B107: Suministros y Materiales | E107: =+E73*'5.3. InvEjecutadas'!$J$77 -> 98369.64737 | F107: =+F73*'5.3. InvEjecutadas'!$J$77 -> 116093.9082 | G107: =+G73*'5.3. InvEjecutadas'!$J$77 -> 134372.0521 | H107: =+H73*'5.3. InvEjecutadas'!$J$77 -> 134372.0521
B108: Servicios prestados por terceros | E108: =+E74*'5.3. InvEjecutadas'!$J$77 -> 328544.9981 | F108: =+F74*'5.3. InvEjecutadas'!$J$77 -> 387742.2951 | G108: =+G74*'5.3. InvEjecutadas'!$J$77 -> 448789.5076 | H108: =+H74*'5.3. InvEjecutadas'!$J$77 -> 448789.5076
B109: Mantenimiento | E109: =+E75*'5.3. InvEjecutadas'!$J$77 -> 155372.1319 | F109: =+F75*'5.3. InvEjecutadas'!$J$77 -> 183367.1106 | G109: =+G75*'5.3. InvEjecutadas'!$J$77 -> 212236.9324 | H109: =+H75*'5.3. InvEjecutadas'!$J$77 -> 212236.9324
B110: Costos de operación y mantenimiento | E110: =+SUM(E107:E109) -> 582286.7774 | F110: =+SUM(F107:F109) -> 687203.3138 | G110: =+SUM(G107:G109) -> 795398.492 | H110: =+SUM(H107:H109) -> 795398.492
B112: ii. Para SNAR Internacional
B113: (Expresado en soles)
B114: Detalle | E114: 2024 | F114: 2025 | G114: 2026 | H114: 2027
B115: Suministros y Materiales | E115: =+E81*'5.3. InvEjecutadas'!$J$77 -> 33986.88769 | F115: =+F81*'5.3. InvEjecutadas'!$J$77 -> 40110.65124 | G115: =+G81*'5.3. InvEjecutadas'!$J$77 -> 46425.7824 | H115: =+H81*'5.3. InvEjecutadas'!$J$77 -> 46425.7824
B116: Servicios prestados por terceros | E116: =+E82*'5.3. InvEjecutadas'!$J$77 -> 76059.93811 | F116: =+F82*'5.3. InvEjecutadas'!$J$77 -> 89764.43147 | G116: =+G82*'5.3. InvEjecutadas'!$J$77 -> 103897.1902 | H116: =+H82*'5.3. InvEjecutadas'!$J$77 -> 103897.1902
B117: Mantenimiento | E117: =+E83*'5.3. InvEjecutadas'!$J$77 -> 56507.54562 | F117: =+F83*'5.3. InvEjecutadas'!$J$77 -> 66689.08537 | G117: =+G83*'5.3. InvEjecutadas'!$J$77 -> 77188.79824 | H117: =+H83*'5.3. InvEjecutadas'!$J$77 -> 77188.79824
B118: Costos de operación y mantenimiento | E118: =+SUM(E115:E117) -> 166554.3714 | F118: =+SUM(F115:F117) -> 196564.1681 | G118: =+SUM(G115:G117) -> 227511.7709 | H118: =+SUM(H115:H117) -> 227511.7709
B120: iii. Para Aproximación
B121: (Expresado en soles)
B122: Detalle | E122: 2024 | F122: 2025 | G122: 2026 | H122: 2027
B123: Suministros y Materiales | E123: =+E89*'5.3. InvEjecutadas'!$J$77 -> 93614.83998 | F123: =+F89*'5.3. InvEjecutadas'!$J$77 -> 110482.3787 | G123: =+G89*'5.3. InvEjecutadas'!$J$77 -> 127877.028 | H123: =+H89*'5.3. InvEjecutadas'!$J$77 -> 127877.028
B124: Servicios prestados por terceros | E124: =+E90*'5.3. InvEjecutadas'!$J$77 -> 257855.6181 | F124: =+F90*'5.3. InvEjecutadas'!$J$77 -> 304316.0898 | G124: =+G90*'5.3. InvEjecutadas'!$J$77 -> 352228.4513 | H124: =+H90*'5.3. InvEjecutadas'!$J$77 -> 352228.4513
B125: Mantenimiento | E125: =+E91*'5.3. InvEjecutadas'!$J$77 -> 137952.0304 | F125: =+F91*'5.3. InvEjecutadas'!$J$77 -> 162808.2521 | G125: =+G91*'5.3. InvEjecutadas'!$J$77 -> 188441.2308 | H125: =+H91*'5.3. InvEjecutadas'!$J$77 -> 188441.2308
B126: Costos de operación y mantenimiento | E126: =+SUM(E123:E125) -> 489422.4885 | F126: =+SUM(F123:F125) -> 577606.7207 | G126: =+SUM(G123:G125) -> 668546.7101 | H126: =+SUM(H123:H125) -> 668546.7101
B128: iv. Para Sobrevuelo
B129: (Expresado en soles)
B130: Detalle | E130: 2024 | F130: 2025 | G130: 2026 | H130: 2027
B131: Suministros y Materiales | E131: =+E97*'5.3. InvEjecutadas'!$J$77 -> 43507.55117 | F131: =+F97*'5.3. InvEjecutadas'!$J$77 -> 51346.74958 | G131: =+G97*'5.3. InvEjecutadas'!$J$77 -> 59430.92294 | H131: =+H97*'5.3. InvEjecutadas'!$J$77 -> 59430.92294
B132: Servicios prestados por terceros | E132: =+E98*'5.3. InvEjecutadas'!$J$77 -> 84440.64754 | F132: =+F98*'5.3. InvEjecutadas'!$J$77 -> 99655.17863 | G132: =+G98*'5.3. InvEjecutadas'!$J$77 -> 115345.1638 | H132: =+H98*'5.3. InvEjecutadas'!$J$77 -> 115345.1638
B133: Mantenimiento | E133: =+E99*'5.3. InvEjecutadas'!$J$77 -> 72392.63424 | F133: =+F99*'5.3. InvEjecutadas'!$J$77 -> 85436.35212 | G133: =+G99*'5.3. InvEjecutadas'!$J$77 -> 98887.68619 | H133: =+H99*'5.3. InvEjecutadas'!$J$77 -> 98887.68619
B134: Costos de operación y mantenimiento | E134: =+SUM(E131:E133) -> 200340.833 | F134: =+SUM(F131:F133) -> 236438.2803 | G134: =+SUM(G131:G133) -> 273663.7729 | H134: =+SUM(H131:H133) -> 273663.7729
B136: II. Costos incrementales relacionados con la ampliación del AIJCh
B138: a. Proyecciones de los costos incrementales relacionados con la ampliación del AIJCh
B140: (Expresado en soles)
B141: Detalle | E141: 2024 | F141: 2025 | G141: 2026 | H141: 2027
B142: Suministros y Materiales | E142: 1028775.328 | F142: 1011717.917 | G142: 1011825.247 | H142: 1011933.65
B143: Servicios prestados por terceros | E143: 787554.1549 | F143: 774496.2654 | G143: 774578.4292 | H143: 774661.4147
B144: Seguros y tributos | E144: 339751.711 | F144: 334118.5235 | G144: 334153.969 | H144: 334189.769
B145: Otros Costos | E145: 425575.5118 | F145: 418519.3393 | G145: 418563.7387 | H145: 418608.582
B146: Costos de operación y mantenimiento | E146: =+SUM(E142:E145) -> 2581656.706 | F146: =+SUM(F142:F145) -> 2538852.046 | G146: =+SUM(G142:G145) -> 2539121.384 | H146: =+SUM(H142:H145) -> 2539393.416
B147: (*) Informacion extraida del archivo Copia de 2.1 COSTOS Inver + O y Mtto. + Cronogramas Ajustado al 28.10.20 Sofía (1) / Hoja 2.1 Operacion y Mtto / Anexo 20
B148: b. Participación de los servicios en los costos incrementales relacionados con la ampliación del AIJCh
B149: (Expresado en soles)
D150: 2021 | E150: 2022 | F150: 2023 | G150: 2024
B151: Inversión ampliación AIJCh asignada a SNAR | D151: 1180018.935 | E151: 13560278.73 | F151: 12421448.17
B152: Inversión ampliación AIJCh asignada a Aproximación | D152: 2538936.741 | E152: 55098901.38 | F152: 31443446.16
B153: Inversión ampliación AIJCh | D153: =+D151+D152 -> 3718955.677 | E153: =+E151+E152 -> 68659180.11 | F153: =+F151+F152 -> 43864894.33
B154: Inversión acumulada ampliación AIJCh asignada a SNAR | D154: 1180018.935 | E154: =+D154+E151 -> 14740297.67 | F154: 27161745.84 | G154: =+F154+G151 -> 27161745.84
B155: Inversión acumulada ampliación AIJCh asignada a Aproximación | D155: 2538936.741 | E155: 57637838.12 | F155: 89081284.28 | G155: 89081284.28
B156: Inversión acumulada ampliación AIJCh | D156: =+D154+D155 -> 3718955.677 | E156: =+E154+E155 -> 72378135.79 | F156: =+F154+F155 -> 116243030.1 | G156: =+G154+G155 -> 116243030.1
B157: SNAR | D157: =+D154/D156 -> 0.3172984671 | E157: =+E154/E156 -> 0.2036567743 | F157: =+F154/F156 -> 0.2336634361 | G157: =+G154/G156 -> 0.2336634361
B158: Aproximación | D158: =+D155/D156 -> 0.6827015329 | E158: =+E155/E156 -> 0.7963432257 | F158: =+F155/F156 -> 0.7663365639 | G158: =+G155/G156 -> 0.7663365639
B160: c. Asignación de los costos incrementales relacionados con la ampliación del AIJCh a los servicios de aeronavegación
B162: i. Para los servicios de SNAR nacional-internacional y sobrevuelo
B163: (Expresado en soles)
B164: Detalle | E164: 2024 | F164: 2025 | G164: 2026 | H164: 2027
B165: Suministros y Materiales | E165: =+E142*G$157 -> 240387.178 | F165: =+F142*G$157 -> 236401.4849 | G165: =+G142*G$157 -> 236426.5639 | H165: =+H142*G$157 -> 236451.8938
B166: Servicios prestados por terceros | E166: =+E143*G$157 -> 184022.6099 | F166: =+F143*G$157 -> 180971.4586 | G166: =+G143*G$157 -> 180990.6573 | H166: =+H143*G$157 -> 181010.0479
B167: Seguros y tributos | E167: =+E144*G$157 -> 79387.5522 | F167: =+F144*G$157 -> 78071.28224 | G167: =+G144*G$157 -> 78079.56457 | H167: =+H144*G$157 -> 78087.92972
B168: Otros Costos | E168: =+E145*G$157 -> 99441.4364 | F168: =+F145*G$157 -> 97792.66688 | G168: =+G145*G$157 -> 97803.04139 | H168: =+H145*G$157 -> 97813.51964
B169: Costos de operación y mantenimiento | E169: =+SUM(E165:E168) -> 603238.7765 | F169: =+SUM(F165:F168) -> 593236.8926 | G169: =+SUM(G165:G168) -> 593299.8272 | H169: =+SUM(H165:H168) -> 593363.3911
B171: ii. Para los servicios de SNAR internacional
B172: (Expresado en soles)
B173: Detalle | E173: 2024 | F173: 2025 | G173: 2026 | H173: 2027
B174: Suministros y Materiales
B175: Servicios prestados por terceros
B176: Seguros y tributos
B177: Otros Costos
B178: Costos de operación y mantenimiento | E178: =+SUM(E174:E177) -> 0 | F178: =+SUM(F174:F177) -> 0 | G178: =+SUM(G174:G177) -> 0 | H178: =+SUM(H174:H177) -> 0
B180: iii. Para Aproximación
B181: (Expresado en soles)
B182: Detalle | E182: 2024 | F182: 2025 | G182: 2026 | H182: 2027
B183: Suministros y Materiales | E183: =+E142*G$158 -> 788388.1497 | F183: =+F142*G$158 -> 775316.4324 | G183: =+G142*$G158 -> 775398.6832 | H183: =+H142*$G158 -> 775481.7565
B184: Servicios prestados por terceros | E184: =+E143*G$158 -> 603531.545 | F184: =+F143*G$158 -> 593524.8069 | G184: =+G143*G$158 -> 593587.772 | H184: =+H143*G$158 -> 593651.3667
B185: Seguros y tributos | E185: =+E144*G$158 -> 260364.1588 | F185: =+F144*G$158 -> 256047.2412 | G185: 256074.4044 | H185: =+H144*G$158 -> 256101.8393
B186: Otros Costos | E186: =+E145*G$158 -> 326134.0754 | F186: =+F145*G$158 -> 320726.6724 | G186: 320760.6973 | H186: =+H145*G$158 -> 320795.0624
B187: Costos de operación y mantenimiento | E187: =+SUM(E183:E186) -> 1978417.929 | F187: =+SUM(F183:F186) -> 1945615.153 | G187: =+SUM(G183:G186) -> 1945821.557 | H187: =+SUM(H183:H186) -> 1946030.025
B189: iv. Para Sobrevuelo
B190: (Expresado en soles)
B191: Detalle | E191: 2024 | F191: 2025 | G191: 2026 | H191: 2027
B192: Suministros y Materiales
B193: Servicios prestados por terceros
B194: Seguros y tributos
B195: Otros Costos
B196: Costos de operación y mantenimiento | E196: =+SUM(E192:E195) -> 0 | F196: =+SUM(F192:F195) -> 0 | G196: =+SUM(G192:G195) -> 0 | H196: =+SUM(H192:H195) -> 0
B198: III. Costos incrementales totales (incluye el mantenimiento de equipos y la ampliación del AIJCh)
B200: a. Para SNAR nacional
B201: (Expresado en soles) | D201: 3 | E201: 4 | F201: 5 | G201: 6 | H201: 7
B202: Detalle | E202: 2024 | F202: 2025 | G202: 2026 | H202: 2027
B203: Suministros y Materiales | E203: =IFERROR(VLOOKUP($B203,$B$106:$H$109,E$201,0),0)+IFERROR(VLOOKUP($B203,$B$164:$H$168,E$201,0),0) -> 338756.8254 | F203: =IFERROR(VLOOKUP($B203,$B$106:$H$109,F$201,0),0)+IFERROR(VLOOKUP($B203,$B$164:$H$168,F$201,0),0) -> 352495.393 | G203: 370798.616 | H203: 370823.9459
B204: Servicios prestados por terceros | E204: =IFERROR(VLOOKUP($B204,$B$106:$H$109,E$201,0),0)+IFERROR(VLOOKUP($B204,$B$164:$H$168,E$201,0),0) -> 512567.608 | F204: 568713.7537 | G204: 629780.1648 | H204: 629799.5555
B205: Mantenimiento | E205: 155372.1319 | F205: 183367.1106 | G205: 212236.9324 | H205: 212236.9324
B206: Seguros y tributos | E206: 79387.5522 | F206: 78071.28224 | G206: 78079.56457 | H206: 78087.92972
B207: Otros Costos | E207: 99441.4364 | F207: 97792.66688 | G207: 97803.04139 | H207: 97813.51964
B208: Costo total | E208: =SUM(E203:E207) -> 1185525.554 | F208: =SUM(F203:F207) -> 1280440.206 | G208: =SUM(G203:G207) -> 1388698.319 | H208: =SUM(H203:H207) -> 1388761.883
B210: b. Para SNAR internacional
B211: (Expresado en soles) | D211: 3 | E211: 4 | F211: 5 | G211: 6 | H211: 7
B212: Detalle | E212: 2024 | F212: 2025 | G212: 2026 | H212: 2027
B213: Suministros y Materiales | E213: =IFERROR(VLOOKUP($B213,$B$114:$H$117,E$211,0),0)+IFERROR(VLOOKUP($B213,$B$173:$H$177,E$211,0),0) -> 33986.88769 | F213: =IFERROR(VLOOKUP($B213,$B$114:$H$117,F$211,0),0)+IFERROR(VLOOKUP($B213,$B$173:$H$177,F$211,0),0) -> 40110.65124 | G213: 46425.7824 | H213: 46425.7824
B214: Servicios prestados por terceros | E214: =IFERROR(VLOOKUP($B214,$B$114:$H$117,E$211,0),0)+IFERROR(VLOOKUP($B214,$B$173:$H$177,E$211,0),0) -> 76059.93811 | F214: 89764.43147 | G214: 103897.1902 | H214: =IFERROR(VLOOKUP($B214,$B$114:$H$117,H$211,0),0)+IFERROR(VLOOKUP($B214,$B$173:$H$177,H$211,0),0) -> 103897.1902
B215: Mantenimiento | E215: 56507.54562 | F215: 66689.08537 | G215: 77188.79824 | H215: 77188.79824
B216: Seguros y tributos | E216: =IFERROR(VLOOKUP($B216,$B$114:$H$117,E$211,0),0)+IFERROR(VLOOKUP($B216,$B$173:$H$177,E$211,0),0) -> 0 | F216: 0 | G216: 0 | H216: 0
B217: Otros Costos | E217: 0 | F217: 0 | G217: 0 | H217: 0
B218: Costo total | E218: =SUM(E213:E217) -> 166554.3714 | F218: =SUM(F213:F217) -> 196564.1681 | G218: =SUM(G213:G217) -> 227511.7709 | H218: =SUM(H213:H217) -> 227511.7709
B220: c. Para Aproximación
B221: (Expresado en soles) | D221: 3 | E221: 4 | F221: 5 | G221: 6 | H221: 7
B222: Detalle | E222: 2024 | F222: 2025 | G222: 2026 | H222: 2027
B223: Suministros y Materiales | E223: =IFERROR(VLOOKUP($B223,$B$122:$H$125,E$221,0),0)+IFERROR(VLOOKUP($B223,$B$182:$H$186,E$221,0),0) -> 882002.9897 | F223: =IFERROR(VLOOKUP($B223,$B$122:$H$125,F$221,0),0)+IFERROR(VLOOKUP($B223,$B$182:$H$186,F$221,0),0) -> 885798.8111 | G223: 903275.7113 | H223: 903358.7846
B224: Servicios prestados por terceros | E224: =IFERROR(VLOOKUP($B224,$B$122:$H$125,E$221,0),0)+IFERROR(VLOOKUP($B224,$B$182:$H$186,E$221,0),0) -> 861387.1631 | F224: 897840.8967 | G224: 945816.2233 | H224: 945879.818
B225: Mantenimiento | E225: 137952.0304 | F225: 162808.2521 | G225: 188441.2308 | H225: =IFERROR(VLOOKUP($B225,$B$122:$H$125,H$221,0),0)+IFERROR(VLOOKUP($B225,$B$182:$H$186,H$221,0),0) -> 188441.2308
B226: Seguros y tributos | E226: 260364.1588 | F226: 256047.2412 | G226: 256074.4044 | H226: 256101.8393
B227: Otros Costos | E227: 326134.0754 | F227: 320726.6724 | G227: 320760.6973 | H227: 320795.0624
B228: Costo total | E228: =SUM(E223:E227) -> 2467840.418 | F228: =SUM(F223:F227) -> 2523221.874 | G228: =SUM(G223:G227) -> 2614368.267 | H228: =SUM(H223:H227) -> 2614576.735
B230: d. Para Sobrevuelo
B231: (Expresado en soles) | D231: 3 | E231: 4 | F231: 5 | G231: 6 | H231: 7
B232: Detalle | E232: 2024 | F232: 2025 | G232: 2026 | H232: 2027
B233: Suministros y Materiales | E233: =IFERROR(VLOOKUP($B233,$B$130:$H$133,E$231,0),0)+IFERROR(VLOOKUP($B233,$B$191:$H$195,E$231,0),0) -> 43507.55117 | F233: =IFERROR(VLOOKUP($B233,$B$130:$H$133,F$231,0),0)+IFERROR(VLOOKUP($B233,$B$191:$H$195,F$231,0),0) -> 51346.74958 | G233: 59430.92294 | H233: 59430.92294
... 5 more rows

Sheet 4.3. Pagos a CGR
B1: 4.3 Costos de operación (OPEX) - Pagos a la CGR | O1: Índice
B3: A. Información del Plan Anual de Contrataciones 2021 de CORPAC
B5: N° | C5: Tipo de Compra o selección | D5: Objeto de contratación | E5: Descripción de los bienes, servicios y obras a contratar | F5: Valor estimado de la contratación (USD) | G5: Valor estimado de la contratación (S/) | H5: Moneda del Control Concurrente | I5: Control Concurrente (2%) | J5: Aeronavegación | K5: Aeroportuario | L5: Mixto | M5: Control Concurrente 2% asignado a aeronavegación | N5: Tipo de servicios | O5: Drivers
B6: 1 | C6: Por la entidad | D6: Servicio | E6: Servicio de abastecimiento de los componentes de ensayos en vuelo | F6: =7133089.02*'10. Var-Sup-Gen'!K13 -> 27117343.5 | G6: =+F6*'10. Var-Sup-Gen'!K13 -> 103090024.1 | H6: soles | I6: =+G6*2% -> 2061800.481 | J6: 1 | M6: =+I6*J6+I6*50%*L6 -> 2061800.481 | N6: SNAR-APROX-SV | O6: Por la participación de la depreciación y amortización
B7: 2 | C7: Por la entidad | D7: Servicio | E7: Contratación de servicio de enlaces de datos para la red aeronautica nacional de CORPAC S.A | G7: 11688668.58 | H7: S/ | I7: =+G7*2% -> 233773.3716 | J7: 1 | M7: 233773.3716 | N7: SNAR-APROX-SV
B8: 3 | C8: Por la entidad | D8: Bienes | E8: Adquisición actualización del sistema de gestión de tránsito aéreo atm aircon 2100 y sistema de comunicaciones VCS SDC2000 marca indra o equivalente de CORPAC S.A | F8: =9063306*'10. Var-Sup-Gen'!K13 -> 34455308.41 | G8: =+F8*'10. Var-Sup-Gen'!$K$13 -> 130986229.3 | H8: soles | I8: =+G8*2% -> 2619724.585 | J8: 1 | M8: 2619724.585 | N8: SNAR-APROX-SV | O8: Por la participación de la depreciación y amortización
B9: 4 | C9: Por la entidad | D9: Servicio | E9: Servicio de soporte técnico, mantenimiento y garantia tecnica para los sistemas radar marca indra o equivalente de CORPAC S.A | F9: =3992309*'10. Var-Sup-Gen'!K13 -> 15177269.51 | G9: =+F9*'10. Var-Sup-Gen'!$K$13 -> 57698316.92 | H9: soles | I9: =+G9*2% -> 1153966.338 | J9: 1 | M9: 1153966.338 | N9: SNAR-APROX-SV
B10: 5 | C10: Por la entidad | D10: Servicios | E10: Contratación de seguros patrimoniales para CORPAC S.A. | F10: 7279746.64 | G10: =+F10*'10. Var-Sup-Gen'!K13 -> 27674881.07 | H10: S/ | I10: =+G10*2% -> 553497.6213 | J10: 0.77 | K10: 0.21 | L10: 0.02 | M10: 431728.1446 | N10: SNAR-APROX-SV | O10: Por la participación de los servicios de seguros en la Contabilidad Regulatoria
B11: 6 | C11: Por la entidad | D11: Bienes | E11: Adquisición de sistema de conmutación de mensajes para el servicio fijo aeronáutico | F11: =4525000*'10. Var-Sup-Gen'!K13 -> 17202361.98 | G11: =+F11*'10. Var-Sup-Gen'!K13 -> 65396963.02 | H11: soles | I11: =+F11*2% -> 344047.2396 | J11: 1 | M11: 344047.2396 | N11: SNAR-APROX-SV | O11: Por la participación de la depreciación y amortización
B13: B. Cálculo del pago por Control Concurrente
B15: 1. Drivers para asignar el Control Concurrente de las adquisiciones N° 1, por servicio:
B17: Servicio | E17: Driver
B18: SNAR Nacional | E18: =+'5.2. InvProgramadas'!K155 -> 0.2624874353
B19: SNAR Internacional | E19: =+'5.2. InvProgramadas'!K156 -> 0.2235236163
B20: Sobrevuelo | E20: =+'5.2. InvProgramadas'!K157 -> 0.1341971239
B21: Aproximación | E21: =+'5.2. InvProgramadas'!K158 -> 0.3797918245
B23: 2. Drivers para asignar el Control Concurrente de la adquisición N° 2, por servicio:
B25: a) Información histórica de costos en seguros:
B26: (Expresado en soles. Fuente: Contabilidad regulatoria de CORPAC S.A.)
B27: Servicio | E27: 2017 | F27: 2018 | G27: 2019 | H27: 2020 | I27: 2021 | J27: 2022 | K27: 2023
B28: SNAR Nacional | E28: =+'4. OPEX'!E14 -> 1906831.882 | F28: =+'4. OPEX'!F14 -> 1567839.956 | G28: =+'4. OPEX'!G14 -> 1628183.945 | H28: =+'4. OPEX'!H14 -> 1935379.45 | I28: =+'4. OPEX'!I14 -> 2940098.973 | J28: =+'4. OPEX'!J14 -> 3464699.214 | K28: =+'4. OPEX'!K14 -> 4514079.804
B29: SNAR Internacional | E29: =+'4. OPEX'!E25 -> 1350909.092 | F29: =+'4. OPEX'!F25 -> 1092669.096 | G29: =+'4. OPEX'!G25 -> 1214508.321 | H29: =+'4. OPEX'!H25 -> 1143183.153 | I29: =+'4. OPEX'!I25 -> 820295.1747 | J29: =+'4. OPEX'!J25 -> 685831.9051 | K29: =+'4. OPEX'!K25 -> 1255304.514
B30: Sobrevuelo | E30: =+'4. OPEX'!E47 -> 1339964.301 | F30: =+'4. OPEX'!F47 -> 1125307.993 | G30: =+'4. OPEX'!G47 -> 1253040.834 | H30: =+'4. OPEX'!H47 -> 1686822.111 | I30: =+'4. OPEX'!I47 -> 1334620.791 | J30: =+'4. OPEX'!J47 -> 1004989.339 | K30: =+'4. OPEX'!K47 -> 1693524.113
B31: Aproximación | E31: =+'4. OPEX'!E36 -> 1690828.444 | F31: =+'4. OPEX'!F36 -> 1622683.591 | G31: =+'4. OPEX'!G36 -> 1489054.951 | H31: =+'4. OPEX'!H36 -> 1760215.381 | I31: =+'4. OPEX'!I36 -> 2333374.337 | J31: =+'4. OPEX'!J36 -> 3127485.272 | K31: =+'4. OPEX'!K36 -> 4449484.462
B32: Total | E32: =+SUM(E28:E31) -> 6288533.719 | F32: =+SUM(F28:F31) -> 5408500.636 | G32: =+SUM(G28:G31) -> 5584788.051 | H32: =+SUM(H28:H31) -> 6525600.096 | I32: =+SUM(I28:I31) -> 7428389.277 | J32: =+SUM(J28:J31) -> 8283005.729 | K32: 11912392.89
B34: b) Participación de costos de seguros, por servicio:
B36: Servicio | E36: 2017 | F36: 2018 | G36: 2019 | H36: 2020 | I36: 2021 | J36: 2022 | K36: 2023 | L36: Promedio
B37: SNAR Nacional | E37: =+E28/E$32 -> 0.3032236077 | F37: 0.2898843989 | G37: 0.2915390755 | H37: 0.296582601 | I37: 0.3957922591 | J37: =+J28/J$32 -> 0.4182900902 | K37: 0.378939802 | L37: =+AVERAGE(E37:K37) -> 0.3391788335
B38: SNAR Internacional | E38: 0.2148209985 | F38: 0.2020280979 | G38: 0.217467218 | H38: 0.1751843718 | I38: 0.1104270582 | J38: =+J29/J$32 -> 0.08279988298 | K38: 0.1053780315 | L38: =+AVERAGE(E38:K38) -> 0.1583008084
B39: Sobrevuelo | E39: 0.2130805623 | F39: 0.2080628382 | G39: 0.224366766 | H39: 0.2584930254 | I39: 0.1796648966 | J39: =+J30/J$32 -> 0.1213314794 | K39: 0.1421648974 | L39: =+AVERAGE(E39:K39) -> 0.1924520665
B40: Aproximación | E40: 0.2688748315 | F40: 0.300024665 | G40: 0.2666269405 | H40: 0.2697400018 | I40: 0.3141157861 | J40: =+J31/J$32 -> 0.3775785475 | K40: 0.3735172691 | L40: =+AVERAGE(E40:K40) -> 0.3100682916
B41: Total | E41: 1 | F41: 1 | G41: 1 | H41: 1 | I41: 1 | J41: =+J32/J$32 -> 1 | K41: 1 | L41: =+AVERAGE(E41:K41) -> 1
B43: 3. Asiganción de los montos de Control Concurrente a cada servicio:
C45: Descripción de los bienes, servicios y obras a contratar | E45: Moneda | F45: Control Concurrente 2% | G45: Drivers | K45: Control Concurrente por servicio a considerar en el 2024
B46: N° | G46: SNAR Nacional | H46: SNAR Internacional | I46: Sobrevuelo | J46: Aproximación | K46: SNAR Nacional | L46: SNAR Internacional | M46: Sobrevuelo | N46: Aproximación
B47: 1 | C47: =+E6 -> Servicio de abastecimiento de los componentes de ensayos en vuelo | E47: =+H6 -> soles | F47: =+I6 -> 2061800.481 | G47: =+VLOOKUP(G$46,$B$17:$E$21,4,0) -> 0.2624874353 | H47: =+VLOOKUP(H$46,$B$17:$E$21,4,0) -> 0.2235236163 | I47: =+VLOOKUP(I$46,$B$17:$E$21,4,0) -> 0.1341971239 | J47: =+VLOOKUP(J$46,$B$17:$E$21,4,0) -> 0.3797918245 | K47: =+$F47*G47 -> 541196.7205 | L47: 460861.0997 | M47: 276687.6946 | N47: 783054.9665
B48: 2 | C48: =+E7 -> Contratación de servicio de enlaces de datos para la red aeronautica nacional de CORPAC S.A | E48: =+H7 -> S/ | F48: =+I7 -> 233773.3716 | G48: =+VLOOKUP(G$46,$B$17:$E$21,4,0) -> 0.2624874353 | H48: 0.2235236163 | I48: 0.1341971239 | J48: 0.3797918245 | K48: =+$F48*G48 -> 61362.57276 | L48: 52253.86942 | M48: 31371.7141 | N48: 88785.21532
B49: 3 | C49: =+E8 -> Adquisición actualización del sistema de gestión de tránsito aéreo atm aircon 2100 y sistema de comunicaciones VCS SDC2000 marca indra o equivalente de CORPAC S.A | E49: soles | F49: 2619724.585 | G49: 0.2624874353 | H49: 0.2235236163 | I49: 0.1341971239 | J49: 0.3797918245 | K49: 687644.7876 | L49: 585570.313 | M49: 351559.5046 | N49: 994949.9798
B50: 4 | C50: Servicio de soporte técnico, mantenimiento y garantia tecnica para los sistemas radar marca indra o equivalente de CORPAC S.A | E50: soles | F50: 1153966.338 | G50: 0.2624874353 | H50: 0.2235236163 | I50: 0.1341971239 | J50: 0.3797918245 | K50: 302901.6646 | L50: 257938.7291 | M50: 154858.9636 | N50: 438266.981
B51: 5 | C51: Contratación de seguros patrimoniales para CORPAC S.A. | E51: S/ | F51: 553497.6213 | G51: =+VLOOKUP(G$46,$B$36:$L$41,11,0) -> 0.3391788335 | H51: =+VLOOKUP(H$46,$B$36:$L$41,11,0) -> 0.1583008084 | I51: 0.1924520665 | J51: 0.3100682916 | K51: 187734.6775 | L51: 87619.1209 | M51: 106521.761 | N51: 171622.0619
B52: 6 | C52: =+E11 -> Adquisición de sistema de conmutación de mensajes para el servicio fijo aeronáutico | E52: soles | F52: 344047.2396 | G52: =+VLOOKUP(G$46,$B$17:$E$21,4,0) -> 0.2624874353 | H52: =+VLOOKUP(H$46,$B$17:$E$21,4,0) -> 0.2235236163 | I52: =+VLOOKUP(I$46,$B$17:$E$21,4,0) -> 0.1341971239 | J52: =+VLOOKUP(J$46,$B$17:$E$21,4,0) -> 0.3797918245 | K52: 90308.07755 | L52: 76902.68318 | M52: 46170.15003 | N52: 130666.3288
J53: TOTALES | K53: =SUM(K47:K52) -> 1871148.501 | L53: 1521145.815 | M53: 967169.7879 | N53: 2607345.533

Sheet 5. CAPEX
B1: 5. Gastos de Capital - CAPEX Total | F1: Índice
B3: A. Activos existentes e inversiones proyectadas
B5: A.1 Activos base al 2023, por servicio:
B6: (Expresado en miles de soles. Fuente: CORPAC S.A.)
B7: Servicio | C7: Aeronavegación | D7: Mixto | E7: Total
B8: SNAR nacional | C8: ='5.1. Activos Base'!D43 -> 270208.7517 | D8: ='5.1. Activos Base'!E43 -> 53137.10091 | E8: =SUM(C8:D8) -> 323345.8526
B9: SNAR internacional | C9: ='5.1. Activos Base'!D44 -> 67560.21809 | D9: ='5.1. Activos Base'!E44 -> 13285.85437 | E9: =SUM(C9:D9) -> 80846.07246
B10: Aproximación | C10: ='5.1. Activos Base'!D45 -> 263948.5108 | D10: ='5.1. Activos Base'!E45 -> 51906.01179 | E10: 315854.5226
B11: Sobrevuelo | C11: ='5.1. Activos Base'!D46 -> 93264.59578 | D11: ='5.1. Activos Base'!E46 -> 18340.67256 | E11: 111605.2683
B12: Total | C12: =SUM(C8:C11) -> 694982.0764 | D12: =SUM(D8:D11) -> 136669.6396 | E12: =SUM(E8:E11) -> 831651.716
B14: A.2 Activos 2024-2027 (Inversiones proyectadas), por servicio:
B15: (Expresado en miles de soles. Fuente: Proyecciones CORPAC S.A.)
B16: Servicio | D16: 2024 | E16: =D16+1 -> 2025 | F16: =E16+1 -> 2026 | G16: =F16+1 -> 2027
B17: SNAR nacional | D17: =+'5.2. InvProgramadas'!F207*'10. Var-Sup-Gen'!K$13 -> 12119.46053 | E17: =+'5.2. InvProgramadas'!G207*'10. Var-Sup-Gen'!L$13 -> 18606.24984 | F17: =+'5.2. InvProgramadas'!H207*'10. Var-Sup-Gen'!M$13 -> 15686.81346 | G17: =+'5.2. InvProgramadas'!I207*'10. Var-Sup-Gen'!N$13 -> 34306.50105
B18: SNAR internacional | D18: =+'5.2. InvProgramadas'!F208*'10. Var-Sup-Gen'!K$13 -> 10320.43931 | E18: =+'5.2. InvProgramadas'!G208*'10. Var-Sup-Gen'!L$13 -> 15844.32507 | F18: =+'5.2. InvProgramadas'!H208*'10. Var-Sup-Gen'!M$13 -> 13358.25187 | G18: =+'5.2. InvProgramadas'!I208*'10. Var-Sup-Gen'!N$13 -> 29214.01997
B19: Aproximación | D19: =+'5.2. InvProgramadas'!F209*'10. Var-Sup-Gen'!K$13 -> 17993.01585 | E19: =+'5.2. InvProgramadas'!G209*'10. Var-Sup-Gen'!L$13 -> 65239.59252 | F19: =+'5.2. InvProgramadas'!H209*'10. Var-Sup-Gen'!M$13 -> 48389.7079 | G19: =+'5.2. InvProgramadas'!I209*'10. Var-Sup-Gen'!N$13 -> 72913.41754
B20: Sobrevuelo | D20: =+'5.2. InvProgramadas'!F210*'10. Var-Sup-Gen'!K$13 -> 6196.093707 | E20: =+'5.2. InvProgramadas'!G210*'10. Var-Sup-Gen'!L$13 -> 9512.475183 | F20: =+'5.2. InvProgramadas'!H210*'10. Var-Sup-Gen'!M$13 -> 8019.908634 | G20: =+'5.2. InvProgramadas'!I210*'10. Var-Sup-Gen'!N$13 -> 11369.61957
B21: Total | D21: =SUM(D17:D20) -> 46629.0094 | E21: =SUM(E17:E20) -> 109202.6426 | F21: =SUM(F17:F20) -> 85454.68186 | G21: =SUM(G17:G20) -> 147803.5581
B22: Nota: Los montos del año 2023 corresponden a lo efectivamente ejecutado, según CORPAC.
B24: B. Depreciación y amortización de activos existentes e inversiones proyectadas
B26: B.1 Depreciación de Activos base 2023, por servicio:
B27: (Expresado en miles de soles)
B28: Servicio | D28: 2024 | E28: =D28+1 -> 2025 | F28: =E28+1 -> 2026 | G28: =F28+1 -> 2027
B29: SNAR nacional | D29: ='5.1. Activos Base'!D53 -> 16672.641 | E29: ='5.1. Activos Base'!E53 -> 16448.19237 | F29: ='5.1. Activos Base'!F53 -> 15864.78756 | G29: ='5.1. Activos Base'!G53 -> 15741.8341
B30: SNAR internacional | D30: ='5.1. Activos Base'!D54 -> 4168.655733 | E30: ='5.1. Activos Base'!E54 -> 4112.536905 | F30: ='5.1. Activos Base'!F54 -> 3966.668365 | G30: ='5.1. Activos Base'!G54 -> 3935.926346
B31: Aproximación | D31: ='5.1. Activos Base'!D55 -> 16286.3665 | E31: ='5.1. Activos Base'!E55 -> 16067.11793 | F31: ='5.1. Activos Base'!F55 -> 15497.22954 | G31: ='5.1. Activos Base'!G55 -> 15377.12469
B32: Sobrevuelo | D32: ='5.1. Activos Base'!D56 -> 5754.688231 | E32: ='5.1. Activos Base'!E56 -> 5677.218087 | F32: ='5.1. Activos Base'!F56 -> 5475.851501 | G32: ='5.1. Activos Base'!G56 -> 5433.413185
B33: Total | D33: =SUM(D29:D32) -> 42882.35147 | E33: =SUM(E29:E32) -> 42305.0653 | F33: =SUM(F29:F32) -> 40804.53696 | G33: =SUM(G29:G32) -> 40488.29832
B35: B.2 Depreciación de Activos 2022-2024 (Inversiones proyectadas), por servicio:
B36: (Expresado en miles de soles)
B37: Servicio | D37: 2024 | E37: 2025 | F37: =E37+1 -> 2026 | G37: =F37+1 -> 2027
B38: SNAR nacional | D38: ='5.2. InvProgramadas'!F256*'10. Var-Sup-Gen'!K$13 -> 0 | E38: ='5.2. InvProgramadas'!G256*'10. Var-Sup-Gen'!L$13 -> 1202.065911 | F38: ='5.2. InvProgramadas'!H256*'10. Var-Sup-Gen'!M$13 -> 3010.56309 | G38: ='5.2. InvProgramadas'!I256*'10. Var-Sup-Gen'!N$13 -> 4542.547876
B39: SNAR internacional | D39: ='5.2. InvProgramadas'!F257*'10. Var-Sup-Gen'!K$13 -> 0 | E39: ='5.2. InvProgramadas'!G257*'10. Var-Sup-Gen'!L$13 -> 1023.630404 | F39: ='5.2. InvProgramadas'!H257*'10. Var-Sup-Gen'!M$13 -> 2563.672994 | G39: ='5.2. InvProgramadas'!I257*'10. Var-Sup-Gen'!N$13 -> 3868.248883
B40: Aproximación | D40: ='5.2. InvProgramadas'!F258*'10. Var-Sup-Gen'!K$13 -> 0 | E40: ='5.2. InvProgramadas'!G258*'10. Var-Sup-Gen'!L$13 -> 1785.014102 | F40: ='5.2. InvProgramadas'!H258*'10. Var-Sup-Gen'!M$13 -> 8183.035919 | G40: ='5.2. InvProgramadas'!I258*'10. Var-Sup-Gen'!N$13 -> 12931.07678
B41: Sobrevuelo | D41: ='5.2. InvProgramadas'!F259*'10. Var-Sup-Gen'!K$13 -> 0 | E41: ='5.2. InvProgramadas'!G259*'10. Var-Sup-Gen'!L$13 -> 614.5581321 | F41: ='5.2. InvProgramadas'!H259*'10. Var-Sup-Gen'!M$13 -> 1539.155226 | G41: ='5.2. InvProgramadas'!I259*'10. Var-Sup-Gen'!N$13 -> 2322.384914
B42: Total | D42: =SUM(D38:D41) -> 0 | E42: =SUM(E38:E41) -> 4625.268549 | F42: =SUM(F38:F41) -> 15296.42723 | G42: =SUM(G38:G41) -> 23664.25845
B44: C. Activo neto, por servicio:
B46: C.1 SNAR Nacional
B47: (Expresado en miles de soles)
C48: 2023 | D48: =C48+1 -> 2024 | E48: =D48+1 -> 2025 | F48: =E48+1 -> 2026 | G48: =F48+1 -> 2027
B49: Activo Existente | C49: =E8 -> 323345.8526
B50: Activo nuevo | D50: =D17 -> 12119.46053 | E50: =E17 -> 18606.24984 | F50: =F17 -> 15686.81346 | G50: =G17 -> 34306.50105
B51: Activo total | C51: =SUM(C49:C50) -> 323345.8526 | D51: =SUM(D49:D50) -> 12119.46053 | E51: 18606.24984 | F51: 15686.81346 | G51: 34306.50105
B52: Depreciación Activo Existente | D52: =D29 -> 16672.641 | E52: =E29 -> 16448.19237 | F52: =F29 -> 15864.78756 | G52: =G29 -> 15741.8341
B53: Depreciación Activo nuevo | D53: =D38 -> 0 | E53: =E38 -> 1202.065911 | F53: =F38 -> 3010.56309 | G53: =G38 -> 4542.547876
B54: Depreciación Activo Total | D54: =SUM(D52:D53) -> 16672.641 | E54: 17650.25828 | F54: 18875.35065 | G54: 20284.38198
B55: Activo (CAPEX) Acumulado | C55: =C51 -> 323345.8526 | D55: =C55+D51 -> 335465.3132 | E55: =D55+E51 -> 354071.563 | F55: =E55+F51 -> 369758.3765 | G55: =F55+G51 -> 404064.8775
B56: Depreciación Acumulada | D56: =C56+D54 -> 16672.641 | E56: =D56+E54 -> 34322.89928 | F56: =E56+F54 -> 53198.24993 | G56: =F56+G54 -> 73482.63191
B57: CAPEX Neto | C57: =C55-C56 -> 323345.8526 | D57: =D55-D56 -> 318792.6722 | E57: 319748.6637 | F57: 316560.1265 | G57: 330582.2456
B59: Inversiones realizadas | C59: =+C57 -> 323345.8526
B60: Plan de Inversiones | D60: =D50 -> 12119.46053 | E60: =E50 -> 18606.24984 | F60: =F50 -> 15686.81346 | G60: =G50 -> 34306.50105
B61: Recuperación Inversión | G61: =G57 -> 330582.2456
B63: C.2 SNAR Internacional
B64: (Expresado en miles de soles)
B65: Servicio | C65: 2023 | D65: =C65+1 -> 2024 | E65: =D65+1 -> 2025 | F65: =E65+1 -> 2026 | G65: =F65+1 -> 2027
B66: Activo Existente | C66: =E9 -> 80846.07246
B67: Activo nuevo | D67: =D18 -> 10320.43931 | E67: =E18 -> 15844.32507 | F67: =F18 -> 13358.25187 | G67: =G18 -> 29214.01997
B68: Activo total | C68: =SUM(C66:C67) -> 80846.07246 | D68: =SUM(D66:D67) -> 10320.43931 | E68: 15844.32507 | F68: 13358.25187 | G68: 29214.01997
B69: Depreciación Activo Existente | D69: =D30 -> 4168.655733 | E69: =E30 -> 4112.536905 | F69: =F30 -> 3966.668365 | G69: =G30 -> 3935.926346
B70: Depreciación Activo nuevo | D70: =D39 -> 0 | E70: =E39 -> 1023.630404 | F70: =F39 -> 2563.672994 | G70: =G39 -> 3868.248883
B71: Depreciación Activo Total | D71: =SUM(D69:D70) -> 4168.655733 | E71: 5136.167309 | F71: 6530.341358 | G71: 7804.175229
B72: Activo (CAPEX) Acumulado | C72: =C68 -> 80846.07246 | D72: =C72+D68 -> 91166.51177 | E72: =D72+E68 -> 107010.8368 | F72: =E72+F68 -> 120369.0887 | G72: =F72+G68 -> 149583.1087
B73: Depreciación Acumulada | D73: =C73+D71 -> 4168.655733 | E73: =D73+E71 -> 9304.823043 | F73: =E73+F71 -> 15835.1644 | G73: =F73+G71 -> 23639.33963
B74: CAPEX Neto | C74: =C72-C73 -> 80846.07246 | D74: =D72-D73 -> 86997.85604 | E74: 97706.01379 | F74: =F72-F73 -> 104533.9243 | G74: =G72-G73 -> 125943.769
B76: Inversiones realizadas | C76: =+C74 -> 80846.07246
B77: Plan de Inversiones | D77: =D67 -> 10320.43931 | E77: =E67 -> 15844.32507 | F77: =F67 -> 13358.25187 | G77: =G67 -> 29214.01997
B78: Recuperación Inversión | G78: =G74 -> 125943.769
B80: C.3 Aproximación
B81: (Expresado en miles de soles)
B82: Servicio | C82: 2023 | D82: =C82+1 -> 2024 | E82: =D82+1 -> 2025 | F82: =E82+1 -> 2026 | G82: =F82+1 -> 2027
B83: Activo Existente | C83: =E10 -> 315854.5226
B84: Activo nuevo | D84: =D19 -> 17993.01585 | E84: =E19 -> 65239.59252 | F84: =F19 -> 48389.7079 | G84: =G19 -> 72913.41754
B85: Activo total | C85: =SUM(C83:C84) -> 315854.5226 | D85: 17993.01585 | E85: 65239.59252 | F85: 48389.7079 | G85: 72913.41754
B86: Depreciación Activo Existente | D86: =D31 -> 16286.3665 | E86: =E31 -> 16067.11793 | F86: =F31 -> 15497.22954 | G86: =G31 -> 15377.12469
B87: Depreciación Activo nuevo | D87: =D40 -> 0 | E87: =E40 -> 1785.014102 | F87: =F40 -> 8183.035919 | G87: =G40 -> 12931.07678
B88: Depreciación Activo Total | D88: =SUM(D86:D87) -> 16286.3665 | E88: 17852.13204 | F88: 23680.26546 | G88: 28308.20147
B89: Activo (CAPEX) Acumulado | C89: =C85 -> 315854.5226 | D89: =C89+D85 -> 333847.5384 | E89: =D89+E85 -> 399087.1309 | F89: =E89+F85 -> 447476.8388 | G89: =F89+G85 -> 520390.2564
B90: Depreciación Acumulada | D90: =C90+D88 -> 16286.3665 | E90: =D90+E88 -> 34138.49854 | F90: =E90+F88 -> 57818.764 | G90: =F90+G88 -> 86126.96546
B91: CAPEX Neto | C91: =C89-C90 -> 315854.5226 | D91: =D89-D90 -> 317561.1719 | E91: 364948.6324 | F91: 389658.0748 | G91: 434263.2909
B93: Inversiones realizadas | C93: =+C91 -> 315854.5226
B94: Plan de Inversiones | D94: =D84 -> 17993.01585 | E94: =E84 -> 65239.59252 | F94: =F84 -> 48389.7079 | G94: =G84 -> 72913.41754
B95: Recuperación Inversión | G95: =G91 -> 434263.2909
B97: C.4 Sobrevuelo
B98: (Expresado en miles de soles)
B99: Servicio | C99: 2021 | D99: =C99+1 -> 2022 | E99: =D99+1 -> 2023 | F99: =E99+1 -> 2024 | G99: =F99+1 -> 2025
B100: Activo Existente | C100: =E11 -> 111605.2683
B101: Activo nuevo | D101: =D20 -> 6196.093707 | E101: =E20 -> 9512.475183 | F101: =F20 -> 8019.908634 | G101: =G20 -> 11369.61957
B102: Activo total | C102: =SUM(C100:C101) -> 111605.2683 | D102: =SUM(D100:D101) -> 6196.093707 | E102: =SUM(E100:E101) -> 9512.475183 | F102: =SUM(F100:F101) -> 8019.908634 | G102: 11369.61957
B103: Depreciación Activo Existente | D103: =D32 -> 5754.688231 | E103: =E32 -> 5677.218087 | F103: =F32 -> 5475.851501 | G103: =G32 -> 5433.413185
B104: Depreciación Activo nuevo | D104: =D41 -> 0 | E104: =E41 -> 614.5581321 | F104: =F41 -> 1539.155226 | G104: =G41 -> 2322.384914
B105: Depreciación Activo Total | D105: =SUM(D103:D104) -> 5754.688231 | E105: =SUM(E103:E104) -> 6291.776219 | F105: 7015.006727 | G105: 7755.798099
B106: Activo (CAPEX) Acumulado | C106: =C102 -> 111605.2683 | D106: =C106+D102 -> 117801.362 | E106: =D106+E102 -> 127313.8372 | F106: =E106+F102 -> 135333.7459 | G106: =F106+G102 -> 146703.3654
B107: Depreciación Acumulada | D107: =C107+D105 -> 5754.688231 | E107: =D107+E105 -> 12046.46445 | F107: =E107+F105 -> 19061.47118 | G107: =F107+G105 -> 26817.26928
B108: CAPEX Neto | C108: =C106-C107 -> 111605.2683 | D108: =D106-D107 -> 112046.6738 | E108: =E106-E107 -> 115267.3728 | F108: =F106-F107 -> 116272.2747 | G108: 119886.0962
B110: Inversiones realizadas | C110: =+C108 -> 111605.2683
B111: Plan de Inversiones | D111: =D101 -> 6196.093707 | E111: =E101 -> 9512.475183 | F111: =F101 -> 8019.908634 | G111: =G101 -> 11369.61957
B112: Recuperación Inversión | G112: =G108 -> 119886.0962

Sheet 5.1. Activos Base
B1: 5.1 Activos Fijos Base (Existentes) al 2023 | I1: Índice
B3: A. Factor de distribución de activos: Distribución según participación en la depreciación de activos de aeronavegación
B4: (Expresado en miles de soles. Fuente: Contabilidad regulatoria de CORPAC S.A.)
B5: Servicio | C5: Depreciación y amortización | J5: Promedio | K5: % del total
C6: 2017 | D6: =+C6+1 -> 2018 | E6: =+D6+1 -> 2019 | F6: 2020 | G6: 2021 | H6: 2022 | I6: 2023
B7: SNAR nacional | C7: ='4. OPEX'!E12+'4. OPEX'!E13 -> 7129772.016 | D7: ='4. OPEX'!F12+'4. OPEX'!F13 -> 12945251.26 | E7: ='4. OPEX'!G12+'4. OPEX'!G13 -> 11484207.77 | F7: ='4. OPEX'!H12+'4. OPEX'!H13 -> 12808539.74 | G7: ='4. OPEX'!I12+'4. OPEX'!I13 -> 12277684.01 | H7: ='4. OPEX'!J12+'4. OPEX'!J13 -> 11690380.3 | I7: ='4. OPEX'!K12+'4. OPEX'!K13 -> 15132580.81 | J7: =AVERAGE(C7:I7) -> 11924059.41 | K7: =+J7/$J$15 -> 0.3885811355
B8: SNAR internacional | C8: ='4. OPEX'!E23+'4. OPEX'!E24 -> 2452018.503 | D8: ='4. OPEX'!F23+'4. OPEX'!F24 -> 3787636.656 | E8: ='4. OPEX'!G23+'4. OPEX'!G24 -> 4118355.972 | F8: ='4. OPEX'!H23+'4. OPEX'!H24 -> 3625748.436 | G8: ='4. OPEX'!I23+'4. OPEX'!I24 -> 2153448.137 | H8: ='4. OPEX'!J23+'4. OPEX'!J24 -> 2036410.125 | I8: ='4. OPEX'!K23+'4. OPEX'!K24 -> 2695966.69 | J8: =AVERAGE(C8:I8) -> 2981369.217 | K8: 0.09715683187
B9: Aproximación | C9: ='4. OPEX'!E34+'4. OPEX'!E35 -> 7351690.518 | D9: ='4. OPEX'!F34+'4. OPEX'!F35 -> 12149849.95 | E9: ='4. OPEX'!G34+'4. OPEX'!G35 -> 10946483.71 | F9: ='4. OPEX'!H34+'4. OPEX'!H35 -> 13493845.77 | G9: ='4. OPEX'!I34+'4. OPEX'!I35 -> 11258584.98 | H9: ='4. OPEX'!J34+'4. OPEX'!J35 -> 11040983.82 | I9: ='4. OPEX'!K34+'4. OPEX'!K35 -> 15293167.12 | J9: 11647800.84 | K9: 0.3795784236
B10: Sobrevuelo | C10: ='4. OPEX'!E45+'4. OPEX'!E46 -> 2714963.615 | D10: ='4. OPEX'!F45+'4. OPEX'!F46 -> 4773755.545 | E10: ='4. OPEX'!G45+'4. OPEX'!G46 -> 4946087.518 | F10: ='4. OPEX'!H45+'4. OPEX'!H46 -> 6088586.156 | G10: ='4. OPEX'!I45+'4. OPEX'!I46 -> 3822726.481 | H10: ='4. OPEX'!J45+'4. OPEX'!J46 -> 2966229.694 | I10: ='4. OPEX'!K45+'4. OPEX'!K46 -> 3497406.485 | J10: 4115679.356 | K10: 0.13412172
B11: Total servicios con tarifa regulada | C11: =SUM(C7:C10) -> 19648444.65 | D11: =SUM(D7:D10) -> 33656493.41 | E11: =SUM(E7:E10) -> 31495134.97 | F11: 36016720.1 | G11: =SUM(G7:G10) -> 29512443.61 | H11: 27734003.93 | I11: 36619121.1 | J11: =SUM(J7:J10) -> 30668908.83 | K11: =+J11/$J$15 -> 0.999438111
B12: Servicios No Regulados de Navegación Aérea | C12: 17444.32555 | D12: 15956.54101 | E12: 28036.116 | F12: 16415.92046 | G12: 13987.52907 | H12: 14437.50913 | I12: 14417.53367 | J12: =AVERAGE(C12:I12) -> 17242.2107 | K12: =+J12/$J$15 -> 0.0005618889993
B13: Total de servicios no regulados | C13: =+SUM(C12) -> 17444.32555 | D13: =+SUM(D12) -> 15956.54101 | E13: =+SUM(E12) -> 28036.116 | F13: 16415.92046 | G13: =+SUM(G12) -> 13987.52907 | H13: 14437.50913 | I13: 14417.53367 | J13: =+SUM(J12) -> 17242.2107 | K13: 0.0005618889993
B15: Total Aeronavegación | C15: =+C11+C13 -> 19665888.98 | D15: =+D11+D13 -> 33672449.95 | E15: =+E11+E13 -> 31523171.08 | F15: 36033136.02 | G15: =+G11+G13 -> 29526431.14 | H15: 27748441.44 | I15: 36633538.64 | J15: =+J11+J13 -> 30686151.04 | K15: =+K11+K13 -> 1
B17: B. Valor de Activos de aeronavegación
B19: B.1 Resumen de activos existentes asignados a Aeronavegación:
B20: (Expresado en miles de soles)
B21: Tipo de activo | C21: Valor Histórico Neto al 2023 | D21: Depreciación del Ejercicio
D22: 2024 | E22: =D22+1 -> 2025 | F22: =E22+1 -> 2026 | G22: =F22+1 -> 2027
A23: AERONAVEGACIÓN | B23: A. Aeronavegación | C23: =SUM(C24:C29) -> 695372.7987 | D23: =SUM(D24:D29) -> 41360.86969 | E23: =SUM(E24:E29) -> 40920.38735 | F23: =SUM(F24:F29) -> 39440.3259 | G23: =SUM(G24:G29) -> 39132.14714
B24: Concesiones, licencias y otros derechos | C24: =SUMIFS('5.4. BD-AERONAV2023'!$O$5:$O$32756,'5.4. BD-AERONAV2023'!$B$5:$B$32756,'5.1. Activos Base'!$A$23,'5.4. BD-AERONAV2023'!$D$5:$D$32756,'5.1. Activos Base'!$B24)/1000 -> 0 | D24: =SUMIFS('5.4. BD-AERONAV2023'!R$5:R$32756,'5.4. BD-AERONAV2023'!$B$5:$B$32756,'5.1. Activos Base'!$A$23,'5.4. BD-AERONAV2023'!$D$5:$D$32756,'5.1. Activos Base'!$B24)/1000 -> 0 | E24: =SUMIFS('5.4. BD-AERONAV2023'!S$5:S$32756,'5.4. BD-AERONAV2023'!$B$5:$B$32756,'5.1. Activos Base'!$A$23,'5.4. BD-AERONAV2023'!$D$5:$D$32756,'5.1. Activos Base'!$B24)/1000 -> 0 | F24: =SUMIFS('5.4. BD-AERONAV2023'!T$5:T$32756,'5.4. BD-AERONAV2023'!$B$5:$B$32756,'5.1. Activos Base'!$A$23,'5.4. BD-AERONAV2023'!$D$5:$D$32756,'5.1. Activos Base'!$B24)/1000 -> 0 | G24: =SUMIFS('5.4. BD-AERONAV2023'!U$5:U$32756,'5.4. BD-AERONAV2023'!$B$5:$B$32756,'5.1. Activos Base'!$A$23,'5.4. BD-AERONAV2023'!$D$5:$D$32756,'5.1. Activos Base'!$B24)/1000 -> 0
B25: Edificaciones y construcciones | C25: =SUMIFS('5.4. BD-AERONAV2023'!$O$5:$O$32756,'5.4. BD-AERONAV2023'!$B$5:$B$32756,'5.1. Activos Base'!$A$23,'5.4. BD-AERONAV2023'!$D$5:$D$32756,'5.1. Activos Base'!$B25)/1000 -> 81490.89683 | D25: =SUMIFS('5.4. BD-AERONAV2023'!R$5:R$32756,'5.4. BD-AERONAV2023'!$B$5:$B$32756,'5.1. Activos Base'!$A$23,'5.4. BD-AERONAV2023'!$D$5:$D$32756,'5.1. Activos Base'!$B25)/1000 -> 3758.5275 | E25: =SUMIFS('5.4. BD-AERONAV2023'!S$5:S$32756,'5.4. BD-AERONAV2023'!$B$5:$B$32756,'5.1. Activos Base'!$A$23,'5.4. BD-AERONAV2023'!$D$5:$D$32756,'5.1. Activos Base'!$B25)/1000 -> 3380.91404 | F25: =SUMIFS('5.4. BD-AERONAV2023'!T$5:T$32756,'5.4. BD-AERONAV2023'!$B$5:$B$32756,'5.1. Activos Base'!$A$23,'5.4. BD-AERONAV2023'!$D$5:$D$32756,'5.1. Activos Base'!$B25)/1000 -> 2664.83412 | G25: =SUMIFS('5.4. BD-AERONAV2023'!U$5:U$32756,'5.4. BD-AERONAV2023'!$B$5:$B$32756,'5.1. Activos Base'!$A$23,'5.4. BD-AERONAV2023'!$D$5:$D$32756,'5.1. Activos Base'!$B25)/1000 -> 2643.82207
B26: Maquinarias y Equipos | C26: =SUMIFS('5.4. BD-AERONAV2023'!$O$5:$O$32756,'5.4. BD-AERONAV2023'!$B$5:$B$32756,'5.1. Activos Base'!$A$23,'5.4. BD-AERONAV2023'!$D$5:$D$32756,'5.1. Activos Base'!$B26)/1000 -> 349886.5726 | D26: =SUMIFS('5.4. BD-AERONAV2023'!R$5:R$32756,'5.4. BD-AERONAV2023'!$B$5:$B$32756,'5.1. Activos Base'!$A$23,'5.4. BD-AERONAV2023'!$D$5:$D$32756,'5.1. Activos Base'!$B26)/1000 -> 17417.30157 | E26: =SUMIFS('5.4. BD-AERONAV2023'!S$5:S$32756,'5.4. BD-AERONAV2023'!$B$5:$B$32756,'5.1. Activos Base'!$A$23,'5.4. BD-AERONAV2023'!$D$5:$D$32756,'5.1. Activos Base'!$B26)/1000 -> 17354.43269 | F26: =SUMIFS('5.4. BD-AERONAV2023'!T$5:T$32756,'5.4. BD-AERONAV2023'!$B$5:$B$32756,'5.1. Activos Base'!$A$23,'5.4. BD-AERONAV2023'!$D$5:$D$32756,'5.1. Activos Base'!$B26)/1000 -> 16590.45116 | G26: =SUMIFS('5.4. BD-AERONAV2023'!U$5:U$32756,'5.4. BD-AERONAV2023'!$B$5:$B$32756,'5.1. Activos Base'!$A$23,'5.4. BD-AERONAV2023'!$D$5:$D$32756,'5.1. Activos Base'!$B26)/1000 -> 16303.28445
B27: Otros | C27: =SUMIFS('5.4. BD-AERONAV2023'!$O$5:$O$32756,'5.4. BD-AERONAV2023'!$B$5:$B$32756,'5.1. Activos Base'!$A$23,'5.4. BD-AERONAV2023'!$D$5:$D$32756,'5.1. Activos Base'!$B27)/1000 -> 253204.1165 | D27: =SUMIFS('5.4. BD-AERONAV2023'!R$5:R$32756,'5.4. BD-AERONAV2023'!$B$5:$B$32756,'5.1. Activos Base'!$A$23,'5.4. BD-AERONAV2023'!$D$5:$D$32756,'5.1. Activos Base'!$B27)/1000 -> 20185.04062 | E27: =SUMIFS('5.4. BD-AERONAV2023'!S$5:S$32756,'5.4. BD-AERONAV2023'!$B$5:$B$32756,'5.1. Activos Base'!$A$23,'5.4. BD-AERONAV2023'!$D$5:$D$32756,'5.1. Activos Base'!$B27)/1000 -> 20185.04062 | F27: =SUMIFS('5.4. BD-AERONAV2023'!T$5:T$32756,'5.4. BD-AERONAV2023'!$B$5:$B$32756,'5.1. Activos Base'!$A$23,'5.4. BD-AERONAV2023'!$D$5:$D$32756,'5.1. Activos Base'!$B27)/1000 -> 20185.04062 | G27: =SUMIFS('5.4. BD-AERONAV2023'!U$5:U$32756,'5.4. BD-AERONAV2023'!$B$5:$B$32756,'5.1. Activos Base'!$A$23,'5.4. BD-AERONAV2023'!$D$5:$D$32756,'5.1. Activos Base'!$B27)/1000 -> 20185.04062
B28: Programas de computadora (software) | C28: =SUMIFS('5.4. BD-AERONAV2023'!$O$5:$O$32756,'5.4. BD-AERONAV2023'!$B$5:$B$32756,'5.1. Activos Base'!$A$23,'5.4. BD-AERONAV2023'!$D$5:$D$32756,'5.1. Activos Base'!$B28)/1000 -> 0 | D28: =SUMIFS('5.4. BD-AERONAV2023'!R$5:R$32756,'5.4. BD-AERONAV2023'!$B$5:$B$32756,'5.1. Activos Base'!$A$23,'5.4. BD-AERONAV2023'!$D$5:$D$32756,'5.1. Activos Base'!$B28)/1000 -> 0 | E28: =SUMIFS('5.4. BD-AERONAV2023'!S$5:S$32756,'5.4. BD-AERONAV2023'!$B$5:$B$32756,'5.1. Activos Base'!$A$23,'5.4. BD-AERONAV2023'!$D$5:$D$32756,'5.1. Activos Base'!$B28)/1000 -> 0 | F28: =SUMIFS('5.4. BD-AERONAV2023'!T$5:T$32756,'5.4. BD-AERONAV2023'!$B$5:$B$32756,'5.1. Activos Base'!$A$23,'5.4. BD-AERONAV2023'!$D$5:$D$32756,'5.1. Activos Base'!$B28)/1000 -> 0 | G28: =SUMIFS('5.4. BD-AERONAV2023'!U$5:U$32756,'5.4. BD-AERONAV2023'!$B$5:$B$32756,'5.1. Activos Base'!$A$23,'5.4. BD-AERONAV2023'!$D$5:$D$32756,'5.1. Activos Base'!$B28)/1000 -> 0
B29: Terrenos | C29: =SUMIFS('5.4. BD-AERONAV2023'!$O$5:$O$32756,'5.4. BD-AERONAV2023'!$B$5:$B$32756,'5.1. Activos Base'!$A$23,'5.4. BD-AERONAV2023'!$D$5:$D$32756,'5.1. Activos Base'!$B29)/1000 -> 10791.21272 | D29: =SUMIFS('5.4. BD-AERONAV2023'!R$5:R$32756,'5.4. BD-AERONAV2023'!$B$5:$B$32756,'5.1. Activos Base'!$A$23,'5.4. BD-AERONAV2023'!$D$5:$D$32756,'5.1. Activos Base'!$B29)/1000 -> 0 | E29: =SUMIFS('5.4. BD-AERONAV2023'!S$5:S$32756,'5.4. BD-AERONAV2023'!$B$5:$B$32756,'5.1. Activos Base'!$A$23,'5.4. BD-AERONAV2023'!$D$5:$D$32756,'5.1. Activos Base'!$B29)/1000 -> 0 | F29: =SUMIFS('5.4. BD-AERONAV2023'!T$5:T$32756,'5.4. BD-AERONAV2023'!$B$5:$B$32756,'5.1. Activos Base'!$A$23,'5.4. BD-AERONAV2023'!$D$5:$D$32756,'5.1. Activos Base'!$B29)/1000 -> 0 | G29: =SUMIFS('5.4. BD-AERONAV2023'!U$5:U$32756,'5.4. BD-AERONAV2023'!$B$5:$B$32756,'5.1. Activos Base'!$A$23,'5.4. BD-AERONAV2023'!$D$5:$D$32756,'5.1. Activos Base'!$B29)/1000 -> 0
A30: AERONAVEGACIÓN/AEROPORTUARIO | B30: B. Aeronavegación/Aeroportuarios (Mixto) | C30: =SUM(C31:C36) -> 136746.476 | D30: =SUM(D31:D36) -> 1545.590445 | E30: =SUM(E31:E36) -> 1408.46206 | F30: =SUM(F31:F36) -> 1387.151575 | G30: =SUM(G31:G36) -> 1378.9139
B31: Concesiones, licencias y otros derechos | C31: =SUMIFS('5.4. BD-AERONAV2023'!$O$5:$O$32756,'5.4. BD-AERONAV2023'!$B$5:$B$32756,'5.1. Activos Base'!$A$30,'5.4. BD-AERONAV2023'!$D$5:$D$32756,'5.1. Activos Base'!$B31)/1000 -> 0 | D31: =SUMIFS('5.4. BD-AERONAV2023'!R$5:R$32756,'5.4. BD-AERONAV2023'!$B$5:$B$32756,'5.1. Activos Base'!$A$30,'5.4. BD-AERONAV2023'!$D$5:$D$32756,'5.1. Activos Base'!$B31)/1000 -> 0 | E31: =SUMIFS('5.4. BD-AERONAV2023'!S$5:S$32756,'5.4. BD-AERONAV2023'!$B$5:$B$32756,'5.1. Activos Base'!$A$30,'5.4. BD-AERONAV2023'!$D$5:$D$32756,'5.1. Activos Base'!$B31)/1000 -> 0 | F31: =SUMIFS('5.4. BD-AERONAV2023'!T$5:T$32756,'5.4. BD-AERONAV2023'!$B$5:$B$32756,'5.1. Activos Base'!$A$30,'5.4. BD-AERONAV2023'!$D$5:$D$32756,'5.1. Activos Base'!$B31)/1000 -> 0 | G31: =SUMIFS('5.4. BD-AERONAV2023'!U$5:U$32756,'5.4. BD-AERONAV2023'!$B$5:$B$32756,'5.1. Activos Base'!$A$30,'5.4. BD-AERONAV2023'!$D$5:$D$32756,'5.1. Activos Base'!$B31)/1000 -> 0
B32: Edificaciones y construcciones | C32: =SUMIFS('5.4. BD-AERONAV2023'!$O$5:$O$32756,'5.4. BD-AERONAV2023'!$B$5:$B$32756,'5.1. Activos Base'!$A$30,'5.4. BD-AERONAV2023'!$D$5:$D$32756,'5.1. Activos Base'!$B32)/1000 -> 8086.77174 | D32: =SUMIFS('5.4. BD-AERONAV2023'!R$5:R$32756,'5.4. BD-AERONAV2023'!$B$5:$B$32756,'5.1. Activos Base'!$A$30,'5.4. BD-AERONAV2023'!$D$5:$D$32756,'5.1. Activos Base'!$B32)/1000 -> 433.70161 | E32: =SUMIFS('5.4. BD-AERONAV2023'!S$5:S$32756,'5.4. BD-AERONAV2023'!$B$5:$B$32756,'5.1. Activos Base'!$A$30,'5.4. BD-AERONAV2023'!$D$5:$D$32756,'5.1. Activos Base'!$B32)/1000 -> 313.31711 | F32: =SUMIFS('5.4. BD-AERONAV2023'!T$5:T$32756,'5.4. BD-AERONAV2023'!$B$5:$B$32756,'5.1. Activos Base'!$A$30,'5.4. BD-AERONAV2023'!$D$5:$D$32756,'5.1. Activos Base'!$B32)/1000 -> 307.65364 | G32: =SUMIFS('5.4. BD-AERONAV2023'!U$5:U$32756,'5.4. BD-AERONAV2023'!$B$5:$B$32756,'5.1. Activos Base'!$A$30,'5.4. BD-AERONAV2023'!$D$5:$D$32756,'5.1. Activos Base'!$B32)/1000 -> 303.046905
B33: Maquinarias y Equipos | C33: =SUMIFS('5.4. BD-AERONAV2023'!$O$5:$O$32756,'5.4. BD-AERONAV2023'!$B$5:$B$32756,'5.1. Activos Base'!$A$30,'5.4. BD-AERONAV2023'!$D$5:$D$32756,'5.1. Activos Base'!$B33)/1000 -> 11032.74546 | D33: =SUMIFS('5.4. BD-AERONAV2023'!R$5:R$32756,'5.4. BD-AERONAV2023'!$B$5:$B$32756,'5.1. Activos Base'!$A$30,'5.4. BD-AERONAV2023'!$D$5:$D$32756,'5.1. Activos Base'!$B33)/1000 -> 403.460345 | E33: =SUMIFS('5.4. BD-AERONAV2023'!S$5:S$32756,'5.4. BD-AERONAV2023'!$B$5:$B$32756,'5.1. Activos Base'!$A$30,'5.4. BD-AERONAV2023'!$D$5:$D$32756,'5.1. Activos Base'!$B33)/1000 -> 386.71646 | F33: =SUMIFS('5.4. BD-AERONAV2023'!T$5:T$32756,'5.4. BD-AERONAV2023'!$B$5:$B$32756,'5.1. Activos Base'!$A$30,'5.4. BD-AERONAV2023'!$D$5:$D$32756,'5.1. Activos Base'!$B33)/1000 -> 371.069445 | G33: =SUMIFS('5.4. BD-AERONAV2023'!U$5:U$32756,'5.4. BD-AERONAV2023'!$B$5:$B$32756,'5.1. Activos Base'!$A$30,'5.4. BD-AERONAV2023'!$D$5:$D$32756,'5.1. Activos Base'!$B33)/1000 -> 367.438505
B34: Otros | C34: =SUMIFS('5.4. BD-AERONAV2023'!$O$5:$O$32756,'5.4. BD-AERONAV2023'!$B$5:$B$32756,'5.1. Activos Base'!$A$30,'5.4. BD-AERONAV2023'!$D$5:$D$32756,'5.1. Activos Base'!$B34)/1000 -> 16255.46482 | D34: =SUMIFS('5.4. BD-AERONAV2023'!R$5:R$32756,'5.4. BD-AERONAV2023'!$B$5:$B$32756,'5.1. Activos Base'!$A$30,'5.4. BD-AERONAV2023'!$D$5:$D$32756,'5.1. Activos Base'!$B34)/1000 -> 708.42849 | E34: =SUMIFS('5.4. BD-AERONAV2023'!S$5:S$32756,'5.4. BD-AERONAV2023'!$B$5:$B$32756,'5.1. Activos Base'!$A$30,'5.4. BD-AERONAV2023'!$D$5:$D$32756,'5.1. Activos Base'!$B34)/1000 -> 708.42849 | F34: =SUMIFS('5.4. BD-AERONAV2023'!T$5:T$32756,'5.4. BD-AERONAV2023'!$B$5:$B$32756,'5.1. Activos Base'!$A$30,'5.4. BD-AERONAV2023'!$D$5:$D$32756,'5.1. Activos Base'!$B34)/1000 -> 708.42849 | G34: =SUMIFS('5.4. BD-AERONAV2023'!U$5:U$32756,'5.4. BD-AERONAV2023'!$B$5:$B$32756,'5.1. Activos Base'!$A$30,'5.4. BD-AERONAV2023'!$D$5:$D$32756,'5.1. Activos Base'!$B34)/1000 -> 708.42849
B35: Programas de computadora (software) | C35: =SUMIFS('5.4. BD-AERONAV2023'!$O$5:$O$32756,'5.4. BD-AERONAV2023'!$B$5:$B$32756,'5.1. Activos Base'!$A$30,'5.4. BD-AERONAV2023'!$D$5:$D$32756,'5.1. Activos Base'!$B35)/1000 -> 0 | D35: =SUMIFS('5.4. BD-AERONAV2023'!R$5:R$32756,'5.4. BD-AERONAV2023'!$B$5:$B$32756,'5.1. Activos Base'!$A$30,'5.4. BD-AERONAV2023'!$D$5:$D$32756,'5.1. Activos Base'!$B35)/1000 -> 0 | E35: =SUMIFS('5.4. BD-AERONAV2023'!S$5:S$32756,'5.4. BD-AERONAV2023'!$B$5:$B$32756,'5.1. Activos Base'!$A$30,'5.4. BD-AERONAV2023'!$D$5:$D$32756,'5.1. Activos Base'!$B35)/1000 -> 0 | F35: =SUMIFS('5.4. BD-AERONAV2023'!T$5:T$32756,'5.4. BD-AERONAV2023'!$B$5:$B$32756,'5.1. Activos Base'!$A$30,'5.4. BD-AERONAV2023'!$D$5:$D$32756,'5.1. Activos Base'!$B35)/1000 -> 0 | G35: =SUMIFS('5.4. BD-AERONAV2023'!U$5:U$32756,'5.4. BD-AERONAV2023'!$B$5:$B$32756,'5.1. Activos Base'!$A$30,'5.4. BD-AERONAV2023'!$D$5:$D$32756,'5.1. Activos Base'!$B35)/1000 -> 0
B36: Terrenos | C36: =SUMIFS('5.4. BD-AERONAV2023'!$O$5:$O$32756,'5.4. BD-AERONAV2023'!$B$5:$B$32756,'5.1. Activos Base'!$A$30,'5.4. BD-AERONAV2023'!$D$5:$D$32756,'5.1. Activos Base'!$B36)/1000 -> 101371.494 | D36: =SUMIFS('5.4. BD-AERONAV2023'!R$5:R$32756,'5.4. BD-AERONAV2023'!$B$5:$B$32756,'5.1. Activos Base'!$A$30,'5.4. BD-AERONAV2023'!$D$5:$D$32756,'5.1. Activos Base'!$B36)/1000 -> 0 | E36: =SUMIFS('5.4. BD-AERONAV2023'!S$5:S$32756,'5.4. BD-AERONAV2023'!$B$5:$B$32756,'5.1. Activos Base'!$A$30,'5.4. BD-AERONAV2023'!$D$5:$D$32756,'5.1. Activos Base'!$B36)/1000 -> 0 | F36: =SUMIFS('5.4. BD-AERONAV2023'!T$5:T$32756,'5.4. BD-AERONAV2023'!$B$5:$B$32756,'5.1. Activos Base'!$A$30,'5.4. BD-AERONAV2023'!$D$5:$D$32756,'5.1. Activos Base'!$B36)/1000 -> 0 | G36: =SUMIFS('5.4. BD-AERONAV2023'!U$5:U$32756,'5.4. BD-AERONAV2023'!$B$5:$B$32756,'5.1. Activos Base'!$A$30,'5.4. BD-AERONAV2023'!$D$5:$D$32756,'5.1. Activos Base'!$B36)/1000 -> 0
B37: Total general | C37: =C23+C30 -> 832119.2747 | D37: =D23+D30 -> 42906.46013 | E37: =E23+E30 -> 42328.84941 | F37: =F23+F30 -> 40827.47747 | G37: =G23+G30 -> 40511.06104
B39: B.2 Distribución de valor histórico neto, año 2023, por servicio regulado:
B40: (Expresado en miles de soles)
B41: Servicio | C41: % de asignación | D41: Año 2023
D42: Aeronavegación | E42: Mixto | F42: Total
B43: SNAR nacional | C43: =K7 -> 0.3885811355 | D43: =$C$23*$C43 -> 270208.7517 | E43: =$C$30*$C43 -> 53137.10091 | F43: =D43+E43 -> 323345.8526
B44: SNAR internacional | C44: =K8 -> 0.09715683187 | D44: =$C$23*$C44 -> 67560.21809 | E44: =$C$30*$C44 -> 13285.85437 | F44: =D44+E44 -> 80846.07246
B45: Aproximación | C45: =K9 -> 0.3795784236 | D45: =$C$23*$C45 -> 263948.5108 | E45: =$C$30*$C45 -> 51906.01179 | F45: 315854.5226
B46: Sobrevuelo | C46: =K10 -> 0.13412172 | D46: =$C$23*$C46 -> 93264.59578 | E46: =$C$30*$C46 -> 18340.67256 | F46: 111605.2683
B47: Total | C47: =SUM(C43:C46) -> 0.999438111 | D47: =SUM(D43:D46) -> 694982.0764 | E47: =SUM(E43:E46) -> 136669.6396 | F47: =SUM(F43:F46) -> 831651.716
B49: B.3 Distribución de Depreciación y Amortización, por servicio:
B50: (Expresado en miles de soles)
B51: Servicio | C51: % de asignación | D51: Depreciación del Ejercicio
D52: 2024 | E52: =D52+1 -> 2025 | F52: =E52+1 -> 2026 | G52: 2027
B53: SNAR nacional | C53: =C43 -> 0.3885811355 | D53: =$C53*D$37 -> 16672.641 | E53: =$C53*E$37 -> 16448.19237 | F53: 15864.78756 | G53: 15741.8341
B54: SNAR internacional | C54: =C44 -> 0.09715683187 | D54: 4168.655733 | E54: 4112.536905 | F54: 3966.668365 | G54: 3935.926346
B55: Aproximación | C55: =C45 -> 0.3795784236 | D55: 16286.3665 | E55: 16067.11793 | F55: 15497.22954 | G55: 15377.12469
B56: Sobrevuelo | C56: =C46 -> 0.13412172 | D56: 5754.688231 | E56: 5677.218087 | F56: 5475.851501 | G56: 5433.413185
B57: Total | C57: =SUM(C53:C56) -> 0.999438111 | D57: 42882.35147 | E57: 42305.0653 | F57: 40804.53696 | G57: =SUM(G53:G56) -> 40488.29832

Sheet 5.2. InvProgramadas
B1: 5.2 Inversiones Programadas | Z1: Índice
B3: I. PLAN DE INVERSIONES DE CORPAC, Periodo 2022-2024
B4: (Expresado en dólares. Fuente: CORPAC)
B5: Descripción | C5: Categoria | D5: Tipo | F5: Servicios asignados | G5: Tipo de inversión | H5: Año de adquisición | I5: Valor de adquisición (USD) | J5: % de ejecución objetivo | K5: Valor de adquisición ajustado (USD) | L5: Vida Útil (años) | M5: Factor de depreciación | N5: Depreciación anual | P5: Plan de inversiones | U5: Depreciación | Z5: Control concurrente
P6: 2024 | Q6: 2025 | R6: 2026 | S6: 2027 | U6: 2024 | V6: 2025 | W6: 2026 | X6: 2027 | Z6: Excede a los 10M CGR (2%)
B7: - Equipos de radio VHF TWR -Dual - Nivel nacional | C7: Inversiones no ligadas a proyectos (Reposiciones) | D7: Equipos de comunicaciones | F7: SV-SNAR-APROX | G7: Maquinaria y equipo | H7: 2027 | I7: =1207900.78947368 -> 1207900.789 | J7: =+'5.3. InvEjecutadas'!$J$77 -> 0.6691858254 | K7: =I7*J7 -> 808310.0868 | L7: =VLOOKUP($G7,$B$125:$C$130,2,FALSE) -> 10 | M7: =1/L7 -> 0.1 | N7: =K7/L7 -> 80831.00868 | P7: =IF(P$6=$H7,$K7,0) -> 0 | Q7: 0 | R7: 0 | S7: =IF(S$6=$H7,$K7,0) -> 808310.0868 | U7: =+IF(U$6>$H7,$N7,0) -> 0 | V7: 0 | W7: 0 | X7: 0 | Z7: =IF(K7*3.7>10000000,K7*0.02,0) -> 0
B8: - Equipos de radio 10W VHF TWR -Dual - Nivel nacional | C8: Inversiones no ligadas a proyectos (Reposiciones) | D8: Equipos de comunicaciones | F8: SV-SNAR-APROX | G8: Maquinaria y equipo | H8: 2026 | I8: 264012.6316 | J8: =+'5.3. InvEjecutadas'!$J$77 -> 0.6691858254 | K8: =I8*J8 -> 176673.5108 | L8: 10 | M8: =1/L8 -> 0.1 | N8: 17667.35108 | P8: 0 | Q8: 0 | R8: =IF(R$6=$H8,$K8,0) -> 176673.5108 | S8: 0 | U8: 0 | V8: 0 | W8: 0 | X8: =+IF(X$6>$H8,$N8,0) -> 17667.35108 | Z8: =IF(K8*3.7>10000000,K8*0.02,0) -> 0
B9: - Equipos de radio 10W VHF TWR -Dual - Nivel nacional | C9: Inversiones no ligadas a proyectos (Reposiciones) | D9: Equipos de comunicaciones | F9: SV-SNAR-APROX | G9: Maquinaria y equipo | H9: 2027 | I9: =264012.631578947 -> 264012.6316 | J9: =+'5.3. InvEjecutadas'!$J$77 -> 0.6691858254 | K9: 176673.5108 | L9: 10 | M9: =1/L9 -> 0.1 | N9: 17667.35108 | P9: 0 | Q9: 0 | R9: 0 | S9: 176673.5108 | U9: 0 | V9: 0 | W9: 0 | X9: 0 | Z9: 0
B10: 1.1.1 Proyecto de Comunicaciones Satelitales VSAT (Mejoramiento de la Conectividad de la Red de Comunicaciones Aeronáuticas de CORPAC S.A.) (Fase I y II) | C10: Inversiones ligadas a proyectos | D10: Proyectos de inversión | F10: SV-SNAR-APROX | G10: Maquinaria y equipo | H10: 2026 | I10: =9792000 -> 9792000 | J10: =+'5.3. InvEjecutadas'!$J$77 -> 0.6691858254 | K10: 6552667.603 | L10: 10 | M10: =1/L10 -> 0.1 | N10: 655266.7603 | P10: 0 | Q10: 0 | R10: =IF(R$6=$H10,$K10,0)+Z10 -> 6683720.955 | S10: 0 | U10: 0 | V10: 0 | W10: 0 | X10: 655266.7603 | Z10: 131053.3521
B11: 1.1.1 Proyecto de Comunicaciones Satelitales VSAT (Mejoramiento de la Conectividad de la Red de Comunicaciones Aeronáuticas de CORPAC S.A.) (Fase I y II) | C11: Inversiones ligadas a proyectos | D11: Proyectos de inversión | F11: SV-SNAR-APROX | G11: Maquinaria y equipo | H11: 2027 | I11: =9792000 -> 9792000 | J11: =+'5.3. InvEjecutadas'!$J$77 -> 0.6691858254 | K11: 6552667.603 | L11: 10 | M11: 0.1 | N11: 655266.7603 | P11: 0 | Q11: 0 | R11: 0 | S11: =IF(S$6=$H11,$K11,0)+Z11 -> 6683720.955 | U11: 0 | V11: 0 | W11: 0 | X11: 0 | Z11: 131053.3521
B12: 1.1.2 Nuevo Centro de Gestiòn de Trànsito Aèreo y Sistemas de Vigilancia y Comunicaciones | C12: Inversiones ligadas a proyectos | D12: Proyectos de inversión | F12: SNAR-APROX | G12: Maquinaria y equipo | H12: 2027 | I12: =9000000 -> 9000000 | J12: =+'5.3. InvEjecutadas'!$J$77 -> 0.6691858254 | K12: 6022672.429 | L12: 10 | M12: 0.1 | N12: 602267.2429 | P12: 0 | Q12: 0 | R12: 0 | S12: =IF(S$6=$H12,$K12,0)+Z12 -> 6143125.877 | U12: 0 | V12: 0 | W12: 0 | X12: 0 | Z12: 120453.4486
B13: 1.1.3 Sistemas de navegación Aérea para implementar AFIS en Aeródromos Pto Esperanza, Rodriguez de Mendoza,Breu, Caballococha | C13: Inversiones ligadas a proyectos | D13: Proyectos de inversión | F13: SV-SNAR-APROX | G13: Edificaciones y construcciones | H13: 2027 | I13: =1225380 -> 1225380 | J13: =+'5.3. InvEjecutadas'!$J$77 -> 0.6691858254 | K13: 820006.9268 | L13: 33.3 | M13: 0.03003003003 | N13: 24624.83264 | P13: 0 | Q13: 0 | R13: 0 | S13: 820006.9268 | U13: 0 | V13: 0 | W13: 0 | X13: 0 | Z13: 0
B14: - Sistemas de grabaciòn - Nivel nacional. | C14: Inversiones no ligadas a proyectos (Reposiciones) | D14: Equipos de comunicaciones | F14: SV-SNAR-APROX | G14: Maquinaria y equipo | H14: 2024 | I14: 450920.0535 | J14: =+'5.3. InvEjecutadas'!$J$77 -> 0.6691858254 | K14: 301749.3082 | L14: 10 | M14: 0.1 | N14: =K14/L14 -> 30174.93082 | P14: 301749.3082 | Q14: 0 | R14: 0 | S14: 0 | U14: 0 | V14: =+IF(V$6>$H14,$N14,0) -> 30174.93082 | W14: 30174.93082 | X14: 30174.93082 | Z14: 0
B15: - Sistemas de grabaciòn - Nivel nacional. | C15: Inversiones no ligadas a proyectos (Reposiciones) | D15: Equipos de comunicaciones | F15: SV-SNAR-APROX | G15: Maquinaria y equipo | H15: 2025 | I15: 2007667.989 | J15: =+'5.3. InvEjecutadas'!$J$77 -> 0.6691858254 | K15: 1343502.961 | L15: 10 | M15: 0.1 | N15: 134350.2961 | P15: 0 | Q15: 1343502.961 | R15: 0 | S15: 0 | U15: 0 | V15: 0 | W15: 134350.2961 | X15: 134350.2961 | Z15: 0
B16: - Sistemas de grabaciòn - Nivel nacional. | C16: Inversiones no ligadas a proyectos (Reposiciones) | D16: Equipos de comunicaciones | F16: SV-SNAR-APROX | G16: Maquinaria y equipo | H16: 2026 | I16: 1997101.316 | J16: =+'5.3. InvEjecutadas'!$J$77 -> 0.6691858254 | K16: 1336431.892 | L16: 10 | M16: 0.1 | N16: 133643.1892 | P16: 0 | Q16: 0 | R16: =IF(R$6=$H16,$K16,0) -> 1336431.892 | S16: 0 | U16: 0 | V16: 0 | W16: 0 | X16: 133643.1892 | Z16: 0
B17: - Sistemas de grabaciòn - Nivel nacional. | C17: Inversiones no ligadas a proyectos (Reposiciones) | D17: Equipos de comunicaciones | F17: SV-SNAR-APROX | G17: Maquinaria y equipo | H17: 2027 | I17: =286183.684210526 -> 286183.6842 | J17: =+'5.3. InvEjecutadas'!$J$77 -> 0.6691858254 | K17: 191510.0649 | L17: 10 | M17: 0.1 | N17: 19151.00649 | P17: 0 | Q17: 0 | R17: 0 | S17: 191510.0649 | U17: 0 | V17: 0 | W17: 0 | X17: 0 | Z17: 0
B18: - Sistemas ATIS | C18: Inversiones no ligadas a proyectos (Reposiciones) | D18: Equipos de comunicaciones | F18: SV-SNAR-APROX | G18: Maquinaria y equipo | H18: 2025 | I18: 261516.6667 | J18: =+'5.3. InvEjecutadas'!$J$77 -> 0.6691858254 | K18: 175003.2464 | L18: 10 | M18: 0.1 | N18: 17500.32464 | P18: 0 | Q18: 175003.2464 | R18: 0 | S18: 0 | U18: 0 | V18: 0 | W18: 17500.32464 | X18: 17500.32464 | Z18: 0
B19: - Sistemas ATIS | C19: Inversiones no ligadas a proyectos (Reposiciones) | D19: Equipos de comunicaciones | F19: SV-SNAR-APROX | G19: Maquinaria y equipo | H19: 2027 | I19: =1040561.05263158 -> 1040561.053 | J19: =+'5.3. InvEjecutadas'!$J$77 -> 0.6691858254 | K19: 696328.7069 | L19: 10 | M19: 0.1 | N19: 69632.87069 | P19: 0 | Q19: 0 | R19: 0 | S19: 696328.7069 | U19: 0 | V19: 0 | W19: 0 | X19: 0 | Z19: 0
B20: - Estaciones de una Red de radio HF-SSB para el servicio ATS y de mensajería AMHS del servicio fijo aeronáutico | C20: Inversiones no ligadas a proyectos (Reposiciones) | D20: Equipos de comunicaciones | F20: SV-SNAR-APROX | G20: Maquinaria y equipo | H20: 2026 | I20: 1296860 | J20: =+'5.3. InvEjecutadas'!$J$77 -> 0.6691858254 | K20: 867840.3296 | L20: 10 | M20: 0.1 | N20: 86784.03296 | P20: 0 | Q20: 0 | R20: 867840.3296 | S20: 0 | U20: 0 | V20: 0 | W20: 0 | X20: 86784.03296 | Z20: 0
B21: - Estaciones de una Red de radio HF-SSB para el servicio ATS y de mensajería AMHS del servicio fijo aeronáutico | C21: Inversiones no ligadas a proyectos (Reposiciones) | D21: Equipos de comunicaciones | F21: SV-SNAR-APROX | G21: Maquinaria y equipo | H21: 2027 | I21: =1296860 -> 1296860 | J21: =+'5.3. InvEjecutadas'!$J$77 -> 0.6691858254 | K21: 867840.3296 | L21: 10 | M21: 0.1 | N21: 86784.03296 | P21: 0 | Q21: 0 | R21: 0 | S21: 867840.3296 | U21: 0 | V21: 0 | W21: 0 | X21: 0 | Z21: 0
B22: - Reposición del sistema de mensajería aeronáutica AMHS | C22: Inversiones no ligadas a proyectos (Reposiciones) | D22: Equipos de comunicaciones | F22: SV-SNAR-APROX | G22: Maquinaria y equipo | H22: 2024 | I22: 2114479.412 | J22: =+'5.3. InvEjecutadas'!$J$77 -> 0.6691858254 | K22: 1414979.651 | L22: 10 | M22: 0.1 | N22: 141497.9651 | P22: 1414979.651 | Q22: 0 | R22: 0 | S22: 0 | U22: 0 | V22: 141497.9651 | W22: 141497.9651 | X22: 141497.9651 | Z22: 0
B23: - Reposición del sistema de mensajería aeronáutica AMHS | C23: Inversiones no ligadas a proyectos (Reposiciones) | D23: Equipos de comunicaciones | F23: SV-SNAR-APROX | G23: Maquinaria y equipo | H23: 2025 | I23: 2347003.968 | J23: =+'5.3. InvEjecutadas'!$J$77 -> 0.6691858254 | K23: 1570581.788 | L23: 10 | M23: 0.1 | N23: 157058.1788 | P23: =IF(P$6=$H23,$K23,0) -> 0 | Q23: 1570581.788 | R23: 0 | S23: 0 | U23: =+IF(U$6>$H23,$N23,0) -> 0 | V23: 0 | W23: 157058.1788 | X23: 157058.1788 | Z23: 0
B24: - Radioenlaces digitales de microondas | C24: Inversiones no ligadas a proyectos (Reposiciones) | D24: Equipos de comunicaciones | F24: SV-SNAR-APROX | G24: Maquinaria y equipo | H24: 2024 | I24: 2295750 | J24: =+'5.3. InvEjecutadas'!$J$77 -> 0.6691858254 | K24: 1536283.359 | L24: 10 | M24: 0.1 | N24: 153628.3359 | P24: 1536283.359 | Q24: 0 | R24: 0 | S24: 0 | U24: 0 | V24: 153628.3359 | W24: 153628.3359 | X24: 153628.3359 | Z24: 0
B25: - Modernizaciòn de sistemas Conmutaciòn oral ATS 15 aeròdromos no controlados | C25: Inversiones no ligadas a proyectos (Reposiciones) | D25: Equipos de comunicaciones | F25: SV-SNAR-APROX | G25: Maquinaria y equipo | H25: 2027 | I25: =1474182.63157895 -> 1474182.632 | J25: =+'5.3. InvEjecutadas'!$J$77 -> 0.6691858254 | K25: 986502.1212 | L25: 10 | M25: 0.1 | N25: 98650.21212 | P25: 0 | Q25: 0 | R25: 0 | S25: 986502.1212 | U25: 0 | V25: 0 | W25: 0 | X25: 0 | Z25: 0
B26: - Sistemas de conmutaciòn oral ATS 15 aeròdromos controlados | C26: Inversiones no ligadas a proyectos (Reposiciones) | D26: Equipos de comunicaciones | F26: SV-SNAR-APROX | G26: Maquinaria y equipo | H26: 2027 | I26: =1501338.68421053 -> 1501338.684 | J26: =+'5.3. InvEjecutadas'!$J$77 -> 0.6691858254 | K26: 1004674.567 | L26: 10 | M26: 0.1 | N26: 100467.4567 | P26: 0 | Q26: 0 | R26: 0 | S26: 1004674.567 | U26: 0 | V26: 0 | W26: 0 | X26: 0 | Z26: 0
B27: - Reposición Sistema VCS del aeropuerto de Cusco | C27: Inversiones no ligadas a proyectos (Reposiciones) | D27: Equipos de comunicaciones | F27: SV-SNAR-APROX | G27: Maquinaria y equipo | H27: 2025 | I27: 465217.1958 | J27: =+'5.3. InvEjecutadas'!$J$77 -> 0.6691858254 | K27: 311316.7532 | L27: 10 | M27: 0.1 | N27: 31131.67532 | P27: 0 | Q27: 311316.7532 | R27: 0 | S27: 0 | U27: 0 | V27: 0 | W27: 31131.67532 | X27: 31131.67532 | Z27: 0
B28: - Central oral ATS | C28: Inversiones no ligadas a proyectos (Reposiciones) | D28: Equipos de comunicaciones | F28: SV-SNAR-APROX | G28: Maquinaria y equipo | H28: 2027 | I28: =263157.894736842 -> 263157.8947 | J28: =+'5.3. InvEjecutadas'!$J$77 -> 0.6691858254 | K28: 176101.533 | L28: 10 | M28: 0.1 | N28: 17610.1533 | P28: 0 | Q28: 0 | R28: 0 | S28: 176101.533 | U28: 0 | V28: 0 | W28: 0 | X28: 0 | Z28: 0
B29: - Multiplexores, unidades de comunicacióny switchs | C29: Inversiones no ligadas a proyectos (Reposiciones) | D29: Equipos de comunicaciones | F29: SV-SNAR-APROX | G29: Equipos | H29: 2024 | I29: 543822.9947 | J29: =+'5.3. InvEjecutadas'!$J$77 -> 0.6691858254 | K29: 363918.6396 | L29: 10 | M29: 0.1 | N29: 36391.86396 | P29: 363918.6396 | Q29: 0 | R29: 0 | S29: 0 | U29: 0 | V29: 36391.86396 | W29: 36391.86396 | X29: 36391.86396 | Z29: 0
B30: - Equipos diversos, Estudios- Nivel Nacional. | C30: Inversiones no ligadas a proyectos (Reposiciones) | D30: Equipos de comunicaciones | F30: SV-SNAR-APROX | G30: Equipos | H30: 2024 | I30: 278736.8984 | J30: =+'5.3. InvEjecutadas'!$J$77 -> 0.6691858254 | K30: 186526.7814 | L30: 10 | M30: 0.1 | N30: 18652.67814 | P30: 186526.7814 | Q30: 0 | R30: 0 | S30: 0 | U30: 0 | V30: 18652.67814 | W30: 18652.67814 | X30: 18652.67814 | Z30: 0
B31: - Equipos diversos, Estudios- Nivel Nacional. | C31: Inversiones no ligadas a proyectos (Reposiciones) | D31: Equipos de comunicaciones | F31: SV-SNAR-APROX | G31: Equipos | H31: 2025 | I31: 145502.6455 | J31: =+'5.3. InvEjecutadas'!$J$77 -> 0.6691858254 | K31: 97368.30793 | L31: 10 | M31: 0.1 | N31: 9736.830793 | P31: 0 | Q31: 97368.30793 | R31: 0 | S31: 0 | U31: 0 | V31: 0 | W31: 9736.830793 | X31: 9736.830793 | Z31: 0
B32: - Equipos diversos, Estudios- Nivel Nacional. | C32: Inversiones no ligadas a proyectos (Reposiciones) | D32: Equipos de comunicaciones | F32: SV-SNAR-APROX | G32: Equipos | H32: 2026 | I32: 144736.8421 | J32: =+'5.3. InvEjecutadas'!$J$77 -> 0.6691858254 | K32: 96855.84315 | L32: 10 | M32: 0.1 | N32: 9685.584315 | P32: 0 | Q32: 0 | R32: 96855.84315 | S32: 0 | U32: 0 | V32: 0 | W32: 0 | X32: 9685.584315 | Z32: 0
B33: - Equipos diversos, Estudios- Nivel Nacional. | C33: Inversiones no ligadas a proyectos (Reposiciones) | D33: Equipos de comunicaciones | F33: SV-SNAR-APROX | G33: Equipos | H33: 2027 | I33: =144736.842105263 -> 144736.8421 | J33: =+'5.3. InvEjecutadas'!$J$77 -> 0.6691858254 | K33: 96855.84315 | L33: 10 | M33: 0.1 | N33: 9685.584315 | P33: 0 | Q33: 0 | R33: 0 | S33: 96855.84315 | U33: 0 | V33: 0 | W33: 0 | X33: 0 | Z33: 0
B34: - Sistemas UPS para protección de equipos de aeronavegación Nivel nacional. | C34: Inversiones no ligadas a proyectos (Reposiciones) | D34: Equipo de electricidad | F34: SV-SNAR-APROX | G34: Maquinaria y equipo | H34: 2024 | I34: 1460656.952 | J34: =+'5.3. InvEjecutadas'!$J$77 -> 0.6691858254 | K34: 977450.928 | L34: 10 | M34: 0.1 | N34: 97745.0928 | P34: 977450.928 | Q34: 0 | R34: 0 | S34: 0 | U34: 0 | V34: 97745.0928 | W34: 97745.0928 | X34: 97745.0928 | Z34: 0
B35: - Equipos de aire acondicionado para estaciones - Nivel nacional | C35: Inversiones no ligadas a proyectos (Reposiciones) | D35: Equipo de electricidad | F35: SV-SNAR-APROX | G35: Equipos | H35: 2024 | I35: 825585.0267 | J35: =+'5.3. InvEjecutadas'!$J$77 -> 0.6691858254 | K35: 552469.7976 | L35: 10 | M35: 0.1 | N35: 55246.97976 | P35: 552469.7976 | Q35: 0 | R35: 0 | S35: 0 | U35: 0 | V35: 55246.97976 | W35: 55246.97976 | X35: 55246.97976 | Z35: 0
B36: - Equipos de aire acondicionado para estaciones - Nivel nacional | C36: Inversiones no ligadas a proyectos (Reposiciones) | D36: Equipo de electricidad | F36: SV-SNAR-APROX | G36: Equipos | H36: 2026 | I36: 374665.5263 | J36: =+'5.3. InvEjecutadas'!$J$77 -> 0.6691858254 | K36: 250720.8595 | L36: 10 | M36: 0.1 | N36: 25072.08595 | P36: 0 | Q36: 0 | R36: 250720.8595 | S36: 0 | U36: 0 | V36: 0 | W36: 0 | X36: 25072.08595 | Z36: 0
B37: - Equipos de aire acondicionado para estaciones - Nivel nacional | C37: Inversiones no ligadas a proyectos (Reposiciones) | D37: Equipo de electricidad | F37: SV-SNAR-APROX | G37: Equipos | H37: 2027 | I37: =142729.736842105 -> 142729.7368 | J37: =+'5.3. InvEjecutadas'!$J$77 -> 0.6691858254 | K37: 95512.71676 | L37: 10 | M37: 0.1 | N37: 9551.271676 | P37: 0 | Q37: 0 | R37: 0 | S37: 95512.71676 | U37: 0 | V37: 0 | W37: 0 | X37: 0 | Z37: 0
B38: - Innovación de a red de potencia para 04 aeropuertos(Iquitos, Chiclayo.Arequipa y Tumbes) | C38: Inversiones no ligadas a proyectos (Reposiciones) | D38: Equipo de electricidad | F38: SV-SNAR-APROX | G38: Maquinaria y equipo | H38: 2025 | I38: 6500000 | J38: =+'5.3. InvEjecutadas'!$J$77 -> 0.6691858254 | K38: 4349707.865 | L38: 10 | M38: 0.1 | N38: 434970.7865 | P38: 0 | Q38: =IF(Q$6=$H38,$K38,0)+Z38 -> 4436702.023 | R38: 0 | S38: 0 | U38: 0 | V38: 0 | W38: 434970.7865 | X38: 434970.7865 | Z38: 86994.15731
B39: - Sistemas Ayudas Luminosas Reposición (Piura, Tacna, Iquitos, Arequipa) | C39: Inversiones no ligadas a proyectos (Reposiciones) | D39: Equipo de electricidad | F39: APROX | G39: Maquinaria y equipo | H39: 2026 | I39: 8826315.789 | J39: =+'5.3. InvEjecutadas'!$J$77 -> 0.6691858254 | K39: 5906445.417 | L39: =VLOOKUP($G39,$B$125:$C$130,2,FALSE) -> 10 | M39: 0.1 | N39: 590644.5417 | P39: 0 | Q39: 0 | R39: =IF(R$6=$H39,$K39,0)+Z39 -> 6024574.325 | S39: 0 | U39: 0 | V39: 0 | W39: 0 | X39: 590644.5417 | Z39: 118128.9083
B40: - Sistemas Ayudas Luminosas Reposición (Piura, Tacna, Iquitos, Arequipa) | C40: Inversiones no ligadas a proyectos (Reposiciones) | D40: Equipo de electricidad | F40: APROX | G40: Maquinaria y equipo | H40: 2027 | I40: =8826315.78947368 -> 8826315.789 | J40: =+'5.3. InvEjecutadas'!$J$77 -> 0.6691858254 | K40: 5906445.417 | L40: 10 | M40: 0.1 | N40: 590644.5417 | P40: 0 | Q40: 0 | R40: 0 | S40: =IF(S$6=$H40,$K40,0)+Z40 -> 6024574.325 | U40: 0 | V40: 0 | W40: 0 | X40: 0 | Z40: 118128.9083
B41: - Renovación de los sistemas de ayudas visuales del campo de vuelo actual AIJCH. | C41: Inversiones no ligadas a proyectos (Reposiciones) | D41: Equipo de electricidad | F41: APROX | G41: Maquinaria y equipo | H41: 2025 | I41: 10169491.53 | J41: =+'5.3. InvEjecutadas'!$J$77 -> 0.6691858254 | K41: 6805279.587 | L41: 10 | M41: 0.1 | N41: 680527.9587 | P41: 0 | Q41: =IF(Q$6=$H41,$K41,0)+Z41 -> 6941385.178 | R41: 0 | S41: 0 | U41: 0 | V41: 0 | W41: =+IF(W$6>$H41,$N41,0) -> 680527.9587 | X41: 680527.9587 | Z41: 136105.5917
B42: - Repotenciación de la red de potencia de Lima y Cusco | C42: Inversiones no ligadas a proyectos (Reposiciones) | D42: Equipo de electricidad | F42: APROX | G42: Maquinaria y equipo | H42: 2025 | I42: 3968253.968 | J42: =+'5.3. InvEjecutadas'!$J$77 -> 0.6691858254 | K42: 2655499.307 | L42: 10 | M42: 0.1 | N42: 265549.9307 | P42: 0 | Q42: 2655499.307 | R42: 0 | S42: 0 | U42: 0 | V42: 0 | W42: 265549.9307 | X42: 265549.9307 | Z42: 0
B43: - Adquisición de 50 KM de cable primario para contingencia a nivel nacional | C43: Inversiones no ligadas a proyectos (Reposiciones) | D43: Equipo de electricidad | F43: APROX | G43: Maquinaria y equipo | H43: 2025 | I43: 165624.3386 | J43: =+'5.3. InvEjecutadas'!$J$77 -> 0.6691858254 | K43: 110833.4598 | L43: 10 | M43: 0.1 | N43: 11083.34598 | P43: 0 | Q43: 110833.4598 | R43: 0 | S43: 0 | U43: 0 | V43: 0 | W43: 11083.34598 | X43: 11083.34598 | Z43: 0
B44: - Adquisición de 50 KM de cable primario para contingencia a nivel nacional | C44: Inversiones no ligadas a proyectos (Reposiciones) | D44: Equipo de electricidad | F44: APROX | G44: Maquinaria y equipo | H44: 2026 | I44: 164752.6316 | J44: =+'5.3. InvEjecutadas'!$J$77 -> 0.6691858254 | K44: 110250.1258 | L44: 10 | M44: 0.1 | N44: 11025.01258 | P44: 0 | Q44: 0 | R44: 110250.1258 | S44: 0 | U44: 0 | V44: 0 | W44: 0 | X44: 11025.01258 | Z44: 0
B45: - Renovaciòn y mejoramiento de sub estaciones electricas. | C45: Inversiones no ligadas a proyectos (Reposiciones) | D45: Equipo de electricidad | F45: SV-SNAR-APROX | G45: Maquinaria y equipo | H45: 2025 | I45: 156936.7725 | J45: =+'5.3. InvEjecutadas'!$J$77 -> 0.6691858254 | K45: 105019.8636 | L45: 10 | M45: 0.1 | N45: 10501.98636 | P45: 0 | Q45: 105019.8636 | R45: 0 | S45: 0 | U45: 0 | V45: 0 | W45: 10501.98636 | X45: 10501.98636 | Z45: 0
B46: - Renovaciòn y mejoramiento de sub estaciones electricas. | C46: Inversiones no ligadas a proyectos (Reposiciones) | D46: Equipo de electricidad | F46: SV-SNAR-APROX | G46: Maquinaria y equipo | H46: 2026 | I46: 156110.5263 | J46: =+'5.3. InvEjecutadas'!$J$77 -> 0.6691858254 | K46: 104466.9514 | L46: 10 | M46: 0.1 | N46: 10446.69514 | P46: 0 | Q46: 0 | R46: 104466.9514 | S46: 0 | U46: 0 | V46: 0 | W46: 0 | X46: 10446.69514 | Z46: 0
B47: - Renovaciòn y mejoramiento de sub estaciones electricas. | C47: Inversiones no ligadas a proyectos (Reposiciones) | D47: Equipo de electricidad | F47: SV-SNAR-APROX | G47: Maquinaria y equipo | H47: 2027 | I47: =327019.210526316 -> 327019.2105 | J47: =+'5.3. InvEjecutadas'!$J$77 -> 0.6691858254 | K47: 218836.6203 | L47: 10 | M47: 0.1 | N47: 21883.66203 | P47: 0 | Q47: 0 | R47: 0 | S47: 218836.6203 | U47: 0 | V47: 0 | W47: 0 | X47: 0 | Z47: 0
B48: - Adquisición e instalación letreros de señalizaciòn vertical Aeropuerto Jorge Chàvez | C48: Inversiones no ligadas a proyectos (Reposiciones) | D48: Equipo de electricidad | F48: APROX | G48: Maquinaria y equipo | H48: 2025 | I48: 220750.7937 | J48: =+'5.3. InvEjecutadas'!$J$77 -> 0.6691858254 | K48: 147723.3021 | L48: 10 | M48: 0.1 | N48: 14772.33021 | P48: 0 | Q48: 147723.3021 | R48: 0 | S48: 0 | U48: 0 | V48: 0 | W48: 14772.33021 | X48: 14772.33021 | Z48: 0
B49: - Estudios, equipos diversos,obras e instalación - Nivel nacional. | C49: Inversiones no ligadas a proyectos (Reposiciones) | D49: Equipo de electricidad | F49: SV-SNAR-APROX | G49: Maquinaria y equipo | H49: 2024 | I49: 331407.754 | J49: =+'5.3. InvEjecutadas'!$J$77 -> 0.6691858254 | K49: 221773.3714 | L49: 10 | M49: 0.1 | N49: 22177.33714 | P49: 221773.3714 | Q49: 0 | R49: 0 | S49: 0 | U49: 0 | V49: 22177.33714 | W49: 22177.33714 | X49: 22177.33714 | Z49: 0
B50: - Estudios, equipos diversos,obras e instalación - Nivel nacional. | C50: Inversiones no ligadas a proyectos (Reposiciones) | D50: Equipo de electricidad | F50: SV-SNAR-APROX | G50: Maquinaria y equipo | H50: 2025 | I50: 343915.3439 | J50: =+'5.3. InvEjecutadas'!$J$77 -> 0.6691858254 | K50: 230143.2733 | L50: 10 | M50: 0.1 | N50: 23014.32733 | P50: 0 | Q50: 230143.2733 | R50: 0 | S50: 0 | U50: 0 | V50: 0 | W50: 23014.32733 | X50: 23014.32733 | Z50: 0
B51: - Estudios, equipos diversos,obras e instalación - Nivel nacional. | C51: Inversiones no ligadas a proyectos (Reposiciones) | D51: Equipo de electricidad | F51: SV-SNAR-APROX | G51: Maquinaria y equipo | H51: 2026 | I51: 131578.9474 | J51: =+'5.3. InvEjecutadas'!$J$77 -> 0.6691858254 | K51: 88050.7665 | L51: 10 | M51: 0.1 | N51: 8805.07665 | P51: 0 | Q51: 0 | R51: 88050.7665 | S51: 0 | U51: 0 | V51: 0 | W51: 0 | X51: 8805.07665 | Z51: 0
B52: - Estudios, equipos diversos,obras e instalación - Nivel nacional. | C52: Inversiones no ligadas a proyectos (Reposiciones) | D52: Equipo de electricidad | F52: SV-SNAR-APROX | G52: Maquinaria y equipo | H52: 2027 | I52: =342105.263157895 -> 342105.2632 | J52: =+'5.3. InvEjecutadas'!$J$77 -> 0.6691858254 | K52: 228931.9929 | L52: 10 | M52: 0.1 | N52: 22893.19929 | P52: 0 | Q52: 0 | R52: 0 | S52: 228931.9929 | U52: 0 | V52: 0 | W52: 0 | X52: 0 | Z52: 0
B53: - Renovación de Sistemas de Radioayudas (Grupo 2): | C53: Inversiones no ligadas a proyectos (Reposiciones) | D53: Equipo de radioayudas | F53: SNAR-APROX | G53: Maquinaria y equipo | H53: 2027 | I53: =6315000 -> 6315000 | J53: =+'5.3. InvEjecutadas'!$J$77 -> 0.6691858254 | K53: 4225908.488 | L53: 10 | M53: 0.1 | N53: 422590.8488 | P53: 0 | Q53: 0 | R53: 0 | S53: =IF(S$6=$H53,$K53,0)+Z53 -> 4310426.657 | U53: 0 | V53: 0 | W53: 0 | X53: 0 | Z53: 84518.16975
B54: - Unidad mòvil integrada para ensayos de tierra de sistemas de aeronavegación | C54: Inversiones no ligadas a proyectos (Reposiciones) | D54: Equipo de radioayudas | F54: APROX | G54: Maquinaria y equipo | H54: 2025 | I54: 199819.3122 | J54: =+'5.3. InvEjecutadas'!$J$77 -> 0.6691858254 | K54: 133716.2514 | L54: 10 | M54: 0.1 | N54: 13371.62514 | P54: 0 | Q54: 133716.2514 | R54: 0 | S54: 0 | U54: 0 | V54: 0 | W54: 13371.62514 | X54: 13371.62514 | Z54: 0
B55: - Unidad mòvil integrada para ensayos de tierra de sistemas de aeronavegación | C55: Inversiones no ligadas a proyectos (Reposiciones) | D55: Equipo de radioayudas | F55: APROX | G55: Maquinaria y equipo | H55: 2026 | I55: 795071.0526 | J55: =+'5.3. InvEjecutadas'!$J$77 -> 0.6691858254 | K55: 532050.2786 | L55: 10 | M55: 0.1 | N55: 53205.02786 | P55: 0 | Q55: 0 | R55: 532050.2786 | S55: 0 | U55: 0 | V55: 0 | W55: 0 | X55: 53205.02786 | Z55: 0
B56: - Equipos diversos, obras e instalación - Nivel nacional. | C56: Inversiones no ligadas a proyectos (Reposiciones) | D56: Equipo de radioayudas | F56: APROX | G56: Maquinaria y equipo | H56: 2024 | I56: 179806.1497 | J56: =+'5.3. InvEjecutadas'!$J$77 -> 0.6691858254 | K56: 120323.7267 | L56: 10 | M56: 0.1 | N56: 12032.37267 | P56: 120323.7267 | Q56: 0 | R56: 0 | S56: 0 | U56: 0 | V56: 12032.37267 | W56: 12032.37267 | X56: 12032.37267 | Z56: 0
B57: - Equipos diversos, obras e instalación - Nivel nacional. | C57: Inversiones no ligadas a proyectos (Reposiciones) | D57: Equipo de radioayudas | F57: APROX | G57: Maquinaria y equipo | H57: 2025 | I57: 132275.1323 | J57: =+'5.3. InvEjecutadas'!$J$77 -> 0.6691858254 | K57: 88516.64358 | L57: 10 | M57: 0.1 | N57: 8851.664358 | P57: 0 | Q57: 88516.64358 | R57: 0 | S57: 0 | U57: 0 | V57: 0 | W57: 8851.664358 | X57: 8851.664358 | Z57: 0
B58: - Equipos diversos, obras e instalación - Nivel nacional. | C58: Inversiones no ligadas a proyectos (Reposiciones) | D58: Equipo de radioayudas | F58: APROX | G58: Maquinaria y equipo | H58: 2026 | I58: 131578.9474 | J58: =+'5.3. InvEjecutadas'!$J$77 -> 0.6691858254 | K58: 88050.7665 | L58: 10 | M58: 0.1 | N58: 8805.07665 | P58: 0 | Q58: 0 | R58: 88050.7665 | S58: 0 | U58: 0 | V58: 0 | W58: 0 | X58: 8805.07665 | Z58: 0
B59: - Equipos diversos, obras e instalación - Nivel nacional. | C59: Inversiones no ligadas a proyectos (Reposiciones) | D59: Equipo de radioayudas | F59: APROX | G59: Maquinaria y equipo | H59: 2027 | I59: =131578.947368421 -> 131578.9474 | J59: =+'5.3. InvEjecutadas'!$J$77 -> 0.6691858254 | K59: 88050.7665 | L59: 10 | M59: 0.1 | N59: 8805.07665 | P59: 0 | Q59: 0 | R59: 0 | S59: 88050.7665 | U59: 0 | V59: 0 | W59: 0 | X59: 0 | Z59: 0
B60: - Grupos electrógenos Nivel nacional. | C60: Inversiones no ligadas a proyectos (Reposiciones) | D60: Equipos de grupos electrógenos | F60: SV-SNAR-APROX | G60: Maquinaria y equipo | H60: 2024 | I60: 356279.1444 | J60: =+'5.3. InvEjecutadas'!$J$77 -> 0.6691858254 | K60: 238416.9533 | L60: 10 | M60: 0.1 | N60: 23841.69533 | P60: 238416.9533 | Q60: 0 | R60: 0 | S60: 0 | U60: 0 | V60: 23841.69533 | W60: 23841.69533 | X60: 23841.69533 | Z60: 0
B61: - Grupos electrógenos Nivel nacional. | C61: Inversiones no ligadas a proyectos (Reposiciones) | D61: Equipos de grupos electrógenos | F61: SV-SNAR-APROX | G61: Maquinaria y equipo | H61: 2026 | I61: 1527523.684 | J61: =+'5.3. InvEjecutadas'!$J$77 -> 0.6691858254 | K61: 1022197.197 | L61: 10 | M61: 0.1 | N61: 102219.7197 | P61: 0 | Q61: 0 | R61: 1022197.197 | S61: 0 | U61: 0 | V61: 0 | W61: 0 | X61: 102219.7197 | Z61: 0
B62: - Grupos electrógenos Nivel nacional. | C62: Inversiones no ligadas a proyectos (Reposiciones) | D62: Equipos de grupos electrógenos | F62: SV-SNAR-APROX | G62: Maquinaria y equipo | H62: 2027 | I62: =381880.789473684 -> 381880.7895 | J62: =+'5.3. InvEjecutadas'!$J$77 -> 0.6691858254 | K62: 255549.2113 | L62: 10 | M62: 0.1 | N62: 25554.92113 | P62: 0 | Q62: 0 | R62: 0 | S62: 255549.2113 | U62: 0 | V62: 0 | W62: 0 | X62: 0 | Z62: 0
B63: - Grupos electrógenos -uso continuo Nivel nacional. | C63: Inversiones no ligadas a proyectos (Reposiciones) | D63: Equipos de grupos electrógenos | F63: SV-SNAR-APROX | G63: Maquinaria y equipo | H63: 2024 | I63: 378134.4737 | J63: =+'5.3. InvEjecutadas'!$J$77 -> 0.6691858254 | K63: 253042.2299 | L63: 10 | M63: 0.1 | N63: 25304.22299 | P63: 253042.2299 | Q63: 0 | R63: 0 | S63: 0 | U63: 0 | V63: 25304.22299 | W63: 25304.22299 | X63: 25304.22299 | Z63: 0
B64: - Grupos electrógenos -uso continuo Nivel nacional. | C64: Inversiones no ligadas a proyectos (Reposiciones) | D64: Equipos de grupos electrógenos | F64: SV-SNAR-APROX | G64: Maquinaria y equipo | H64: 2025 | I64: 94533.68421 | J64: =+'5.3. InvEjecutadas'!$J$77 -> 0.6691858254 | K64: 63260.6015 | L64: 10 | M64: 0.1 | N64: 6326.06015 | P64: 0 | Q64: 63260.6015 | R64: 0 | S64: 0 | U64: 0 | V64: 0 | W64: 6326.06015 | X64: 6326.06015 | Z64: 0
B65: - Obras, equipos diversos y gastos de instalación. | C65: Inversiones no ligadas a proyectos (Reposiciones) | D65: Equipos de grupos electrógenos | F65: SV-SNAR-APROX | G65: Edificaciones y construcciones | H65: 2024 | I65: 70643.85027 | J65: =+'5.3. InvEjecutadas'!$J$77 -> 0.6691858254 | K65: 47273.86325 | L65: 33.3 | M65: 0.03003003003 | N65: 1419.635533 | P65: 47273.86325 | Q65: 0 | R65: 0 | S65: 0 | U65: 0 | V65: 1419.635533 | W65: 1419.635533 | X65: 1419.635533 | Z65: 0
B66: - Obras, equipos diversos y gastos de instalación. | C66: Inversiones no ligadas a proyectos (Reposiciones) | D66: Equipos de grupos electrógenos | F66: SV-SNAR-APROX | G66: Edificaciones y construcciones | H66: 2025 | I66: 34804.7619 | J66: =+'5.3. InvEjecutadas'!$J$77 -> 0.6691858254 | K66: 23290.85332 | L66: 33.3 | M66: 0.03003003003 | N66: 699.4250248 | P66: 0 | Q66: 23290.85332 | R66: 0 | S66: 0 | U66: 0 | V66: 0 | W66: 699.4250248 | X66: 699.4250248 | Z66: 0
B67: - Obras, equipos diversos y gastos de instalación. | C67: Inversiones no ligadas a proyectos (Reposiciones) | D67: Equipos de grupos electrógenos | F67: SV-SNAR-APROX | G67: Edificaciones y construcciones | H67: 2026 | I67: 34621.57895 | J67: =+'5.3. InvEjecutadas'!$J$77 -> 0.6691858254 | K67: 23168.26989 | L67: 33.3 | M67: 0.03003003003 | N67: 695.7438404 | P67: 0 | Q67: 0 | R67: 23168.26989 | S67: 0 | U67: 0 | V67: 0 | W67: 0 | X67: 695.7438404 | Z67: 0
B68: - Obras, equipos diversos y gastos de instalación. | C68: Inversiones no ligadas a proyectos (Reposiciones) | D68: Equipos de grupos electrógenos | F68: SV-SNAR-APROX | G68: Edificaciones y construcciones | H68: 2027 | I68: =35526.3157894737 -> 35526.31579 | J68: =+'5.3. InvEjecutadas'!$J$77 -> 0.6691858254 | K68: 23773.70696 | L68: 33.3 | M68: 0.03003003003 | N68: 713.9251338 | P68: 0 | Q68: 0 | R68: 0 | S68: 23773.70696 | U68: 0 | V68: 0 | W68: 0 | X68: 0 | Z68: 0
B69: - Renovaciòn de REDAP y RED de VHF-AA del ACC(Sectorizaciòn PROESA) Incluye VHF-AA frecuencia Emergencia 121.5Mhz | C69: Inversiones no ligadas a proyectos (Reposiciones) | D69: Sistema VHF-AA y medios de transmisión | F69: SV-SNAR-APROX | G69: Maquinaria y equipo | H69: 2025 | I69: 1306878.307 | J69: =+'5.3. InvEjecutadas'!$J$77 -> 0.6691858254 | K69: 874544.4385 | L69: 10 | M69: 0.1 | N69: 87454.44385 | P69: 0 | Q69: 874544.4385 | R69: 0 | S69: 0 | U69: 0 | V69: 0 | W69: 87454.44385 | X69: 87454.44385 | Z69: 0
B70: - Renovaciòn de REDAP y RED de VHF-AA del ACC(Sectorizaciòn PROESA) Incluye VHF-AA frecuencia Emergencia 121.5Mhz | C70: Inversiones no ligadas a proyectos (Reposiciones) | D70: Sistema VHF-AA y medios de transmisión | F70: SV-SNAR-APROX | G70: Maquinaria y equipo | H70: 2026 | I70: 2600000 | J70: =+'5.3. InvEjecutadas'!$J$77 -> 0.6691858254 | K70: 1739883.146 | L70: 10 | M70: 0.1 | N70: 173988.3146 | P70: 0 | Q70: 0 | R70: 1739883.146 | S70: 0 | U70: 0 | V70: 0 | W70: 0 | X70: 173988.3146 | Z70: 0
B71: - Renovaciòn de REDAP y RED de VHF-AA del ACC(Sectorizaciòn PROESA) Incluye VHF-AA frecuencia Emergencia 121.5Mhz | C71: Inversiones no ligadas a proyectos (Reposiciones) | D71: Sistema VHF-AA y medios de transmisión | F71: SV-SNAR-APROX | G71: Maquinaria y equipo | H71: 2027 | I71: =2600000 -> 2600000 | J71: =+'5.3. InvEjecutadas'!$J$77 -> 0.6691858254 | K71: 1739883.146 | L71: =VLOOKUP($G71,$B$125:$C$130,2,FALSE) -> 10 | M71: 0.1 | N71: 173988.3146 | P71: 0 | Q71: 0 | R71: 0 | S71: 1739883.146 | U71: 0 | V71: 0 | W71: 0 | X71: 0 | Z71: 0
B72: - Obras e instalación | C72: Inversiones no ligadas a proyectos (Reposiciones) | D72: Sistema VHF-AA y medios de transmisión | F72: SV-SNAR-APROX | G72: Maquinaria y equipo | H72: 2024 | I72: 4011 | J72: =+'5.3. InvEjecutadas'!$J$77 -> 0.6691858254 | K72: 2684.104346 | L72: 10 | M72: 0.1 | N72: 268.4104346 | P72: 2684.104346 | Q72: 0 | R72: 0 | S72: 0 | U72: 0 | V72: 268.4104346 | W72: 268.4104346 | X72: 268.4104346 | Z72: =IF(K72*3.7>10000000,K72*0.02,0) -> 0
B73: - Obras e instalación | C73: Inversiones no ligadas a proyectos (Reposiciones) | D73: Sistema VHF-AA y medios de transmisión | F73: SV-SNAR-APROX | G73: Maquinaria y equipo | H73: 2025 | I73: 24636.24339 | J73: =+'5.3. InvEjecutadas'!$J$77 -> 0.6691858254 | K73: 16486.22487 | L73: 10 | M73: 0.1 | N73: 1648.622487 | P73: 0 | Q73: 16486.22487 | R73: 0 | S73: 0 | U73: 0 | V73: 0 | W73: 1648.622487 | X73: 1648.622487 | Z73: 0
B74: - Obras e instalación | C74: Inversiones no ligadas a proyectos (Reposiciones) | D74: Sistema VHF-AA y medios de transmisión | F74: SV-SNAR-APROX | G74: Maquinaria y equipo | H74: 2026 | I74: 25000 | J74: =+'5.3. InvEjecutadas'!$J$77 -> 0.6691858254 | K74: 16729.64564 | L74: 10 | M74: 0.1 | N74: 1672.964564 | P74: 0 | Q74: 0 | R74: 16729.64564 | S74: 0 | U74: 0 | V74: 0 | W74: 0 | X74: 1672.964564 | Z74: 0
B75: - Obras e instalación | C75: Inversiones no ligadas a proyectos (Reposiciones) | D75: Sistema VHF-AA y medios de transmisión | F75: SV-SNAR-APROX | G75: Maquinaria y equipo | H75: 2027 | I75: =25000 -> 25000 | J75: =+'5.3. InvEjecutadas'!$J$77 -> 0.6691858254 | K75: 16729.64564 | L75: 10 | M75: 0.1 | N75: 1672.964564 | P75: 0 | Q75: 0 | R75: 0 | S75: 16729.64564 | U75: 0 | V75: 0 | W75: 0 | X75: 0 | Z75: 0
B76: . Estaciones Meteorológicas anemómetros para AWS 310 | C76: Inversiones no ligadas a proyectos (Reposiciones) | D76: Equipos de meteorología | F76: SV-SNAR-APROX | G76: Maquinaria y equipo | H76: 2027 | I76: =497684.210526316 -> 497684.2105 | J76: =+'5.3. InvEjecutadas'!$J$77 -> 0.6691858254 | K76: 333043.2192 | L76: 10 | M76: 0.1 | N76: 33304.32192 | P76: 0 | Q76: 0 | R76: 0 | S76: 333043.2192 | U76: 0 | V76: 0 | W76: 0 | X76: 0 | Z76: 0
B77: - Implementación de Sistemas Automáticas de Observaciones Meteorológicas (AWOS) en Aeropuertos Controlados | C77: Inversiones no ligadas a proyectos (Reposiciones) | D77: Equipos de meteorología | F77: SV-SNAR-APROX | G77: Maquinaria y equipo | H77: 2026 | I77: 472982.6316 | J77: =+'5.3. InvEjecutadas'!$J$77 -> 0.6691858254 | K77: 316513.2727 | L77: 10 | M77: 0.1 | N77: 31651.32727 | P77: 0 | Q77: 0 | R77: 316513.2727 | S77: 0 | U77: 0 | V77: 0 | W77: 0 | X77: 31651.32727 | Z77: 0
B78: - Implementación de Sistemas Automáticas de Observaciones Meteorológicas (AWOS) en Aeropuertos Controlados | C78: Inversiones no ligadas a proyectos (Reposiciones) | D78: Equipos de meteorología | F78: SV-SNAR-APROX | G78: Maquinaria y equipo | H78: 2027 | I78: =945965.263157895 -> 945965.2632 | J78: =+'5.3. InvEjecutadas'!$J$77 -> 0.6691858254 | K78: 633026.5455 | L78: 10 | M78: 0.1 | N78: 63302.65455 | P78: 0 | Q78: 0 | R78: 0 | S78: 633026.5455 | U78: 0 | V78: 0 | W78: 0 | X78: 0 | Z78: 0
B79: - Receptor de Imágenes de satélite geoestacionario de alta resolución | C79: Inversiones no ligadas a proyectos (Reposiciones) | D79: Equipos de meteorología | F79: SV-SNAR-APROX | G79: Maquinaria y equipo | H79: 2025 | I79: 221164.0212 | J79: =+'5.3. InvEjecutadas'!$J$77 -> 0.6691858254 | K79: 147999.8281 | L79: 10 | M79: 0.1 | N79: 14799.98281 | P79: 0 | Q79: 147999.8281 | R79: 0 | S79: 0 | U79: 0 | V79: 0 | W79: 14799.98281 | X79: 14799.98281 | Z79: 0
B80: - Sistema automàtico Radiosondaje (Piura,Iquitos,Pto. Maldonado) | C80: Inversiones no ligadas a proyectos (Reposiciones) | D80: Equipos de meteorología | F80: SV-SNAR-APROX | G80: Maquinaria y equipo | H80: 2026 | I80: 542368.4211 | J80: =+'5.3. InvEjecutadas'!$J$77 -> 0.6691858254 | K80: 362945.2595 | L80: 10 | M80: 0.1 | N80: 36294.52595 | P80: 0 | Q80: 0 | R80: 362945.2595 | S80: 0 | U80: 0 | V80: 0 | W80: 0 | X80: 36294.52595 | Z80: 0
B81: - Sistema automàtico Radiosondaje (Piura,Iquitos,Pto. Maldonado) | C81: Inversiones no ligadas a proyectos (Reposiciones) | D81: Equipos de meteorología | F81: SV-SNAR-APROX | G81: Maquinaria y equipo | H81: 2027 | I81: =542368.421052632 -> 542368.4211 | J81: =+'5.3. InvEjecutadas'!$J$77 -> 0.6691858254 | K81: 362945.2595 | L81: 10 | M81: 0.1 | N81: 36294.52595 | P81: 0 | Q81: 0 | R81: 0 | S81: 362945.2595 | U81: 0 | V81: 0 | W81: 0 | X81: 0 | Z81: 0
B82: - Equipos diversos de meteorologìa y gastos de instalación - Nivel nacional. | C82: Inversiones no ligadas a proyectos (Reposiciones) | D82: Equipos de meteorología | F82: SV-SNAR-APROX | G82: Maquinaria y equipo | H82: 2024 | I82: 744751.6043 | J82: =+'5.3. InvEjecutadas'!$J$77 -> 0.6691858254 | K82: 498377.2171 | L82: 10 | M82: 0.1 | N82: 49837.72171 | P82: 498377.2171 | Q82: 0 | R82: 0 | S82: 0 | U82: 0 | V82: 49837.72171 | W82: 49837.72171 | X82: 49837.72171 | Z82: 0
B83: - Equipos diversos de meteorologìa y gastos de instalación - Nivel nacional. | C83: Inversiones no ligadas a proyectos (Reposiciones) | D83: Equipos de meteorología | F83: SV-SNAR-APROX | G83: Maquinaria y equipo | H83: 2025 | I83: 289684.127 | J83: =+'5.3. InvEjecutadas'!$J$77 -> 0.6691858254 | K83: 193852.5116 | L83: 10 | M83: 0.1 | N83: 19385.25116 | P83: 0 | Q83: 193852.5116 | R83: 0 | S83: 0 | U83: 0 | V83: 0 | W83: 19385.25116 | X83: 19385.25116 | Z83: 0
B84: - Equipos diversos de meteorologìa y gastos de instalación - Nivel nacional. | C84: Inversiones no ligadas a proyectos (Reposiciones) | D84: Equipos de meteorología | F84: SV-SNAR-APROX | G84: Maquinaria y equipo | H84: 2026 | I84: 288159.4737 | J84: =+'5.3. InvEjecutadas'!$J$77 -> 0.6691858254 | K84: 192832.2353 | L84: 10 | M84: 0.1 | N84: 19283.22353 | P84: 0 | Q84: 0 | R84: 192832.2353 | S84: 0 | U84: 0 | V84: 0 | W84: 0 | X84: 19283.22353 | Z84: 0
B85: - Equipos diversos de meteorologìa y gastos de instalación - Nivel nacional. | C85: Inversiones no ligadas a proyectos (Reposiciones) | D85: Equipos de meteorología | F85: SV-SNAR-APROX | G85: Maquinaria y equipo | H85: 2027 | I85: =288159.473684211 -> 288159.4737 | J85: =+'5.3. InvEjecutadas'!$J$77 -> 0.6691858254 | K85: 192832.2353 | L85: 10 | M85: 0.1 | N85: 19283.22353 | P85: 0 | Q85: 0 | R85: 0 | S85: 192832.2353 | U85: 0 | V85: 0 | W85: 0 | X85: 0 | Z85: 0
B86: - Renovaciòn de equipos y sistemas del Centro de Control de Lima. | C86: Inversiones no ligadas a proyectos (Reposiciones) | D86: Equipos de vigilancia aérea | F86: SV-SNAR-APROX | G86: Maquinaria y equipo | H86: 2026 | I86: 2128421.053 | J86: =+'5.3. InvEjecutadas'!$J$77 -> 0.6691858254 | K86: 1424309.199 | L86: 10 | M86: 0.1 | N86: 142430.9199 | P86: 0 | Q86: 0 | R86: 1424309.199 | S86: =IF(S$6=$H86,$K86,0) -> 0 | U86: 0 | V86: 0 | W86: 0 | X86: =+IF(X$6>$H86,$N86,0) -> 142430.9199 | Z86: 0
B87: - Renovaciòn de equipos y sistemas del Centro de Control de Lima. | C87: Inversiones no ligadas a proyectos (Reposiciones) | D87: Equipos de vigilancia aérea | F87: SV-SNAR-APROX | G87: Maquinaria y equipo | H87: 2027 | I87: =3192631.57894737 -> 3192631.579 | J87: =+'5.3. InvEjecutadas'!$J$77 -> 0.6691858254 | K87: 2136463.798 | L87: 10 | M87: 0.1 | N87: 213646.3798 | P87: 0 | Q87: 0 | R87: 0 | S87: 2136463.798 | U87: 0 | V87: 0 | W87: 0 | X87: 0 | Z87: 0
B88: - Renovaciòn de equipos y sistemas de Estación Radar | C88: Inversiones no ligadas a proyectos (Reposiciones) | D88: Equipos de vigilancia aérea | F88: SV-SNAR-APROX | G88: Maquinaria y equipo | H88: 2027 | I88: =2469223.68421053 -> 2469223.684 | J88: =+'5.3. InvEjecutadas'!$J$77 -> 0.6691858254 | K88: 1652369.489 | L88: 10 | M88: 0.1 | N88: 165236.9489 | P88: 0 | Q88: 0 | R88: 0 | S88: 1652369.489 | U88: 0 | V88: 0 | W88: 0 | X88: 0 | Z88: 0
B89: - Estaciones ADS-B (Trujillo, Jauja, Yurimaguas, Pto Maldonado, Pisco) | C89: Inversiones no ligadas a proyectos (Reposiciones) | D89: Equipos de vigilancia aérea | F89: SV-SNAR-APROX | G89: Maquinaria y equipo | H89: 2025 | I89: 555716.9312 | J89: =+'5.3. InvEjecutadas'!$J$77 -> 0.6691858254 | K89: 371877.8933 | L89: 10 | M89: 0.1 | N89: 37187.78933 | P89: 0 | Q89: 371877.8933 | R89: 0 | S89: 0 | U89: 0 | V89: 0 | W89: 37187.78933 | X89: 37187.78933 | Z89: 0
B90: - Estaciones ADS-B (Trujillo, Jauja, Yurimaguas, Pto Maldonado, Pisco) | C90: Inversiones no ligadas a proyectos (Reposiciones) | D90: Equipos de vigilancia aérea | F90: SV-SNAR-APROX | G90: Maquinaria y equipo | H90: 2026 | I90: 552818.1579 | J90: =+'5.3. InvEjecutadas'!$J$77 -> 0.6691858254 | K90: 369938.0753 | L90: 10 | M90: 0.1 | N90: 36993.80753 | P90: 0 | Q90: 0 | R90: 369938.0753 | S90: 0 | U90: 0 | V90: 0 | W90: 0 | X90: 36993.80753 | Z90: 0
B91: - Actualización de sistema de gestión de tránsito aéreo (ATM) | C91: Inversiones no ligadas a proyectos (Reposiciones) | D91: Equipos de vigilancia aérea | F91: SV-SNAR-APROX | G91: Maquinaria y equipo | H91: 2024 | I91: 5084748.396 | J91: =+'5.3. InvEjecutadas'!$J$77 -> 0.6691858254 | K91: 3402641.552 | L91: 10 | M91: =1/L91 -> 0.1 | N91: 340264.1552 | P91: =IF(P$6=$H91,$K91,0)+Z91 -> 3470694.383 | Q91: 0 | R91: 0 | S91: 0 | U91: 0 | V91: 340264.1552 | W91: 340264.1552 | X91: 340264.1552 | Z91: 68052.83105
B92: - Equipos diversos (Estación Radar y Centro de Control). | C92: Inversiones no ligadas a proyectos (Reposiciones) | D92: Equipos de vigilancia aérea | F92: SV-SNAR-APROX | G92: Maquinaria y equipo | H92: 2024 | I92: 621771.123 | J92: =+'5.3. InvEjecutadas'!$J$77 -> 0.6691858254 | K92: =I92*J92 -> 416080.4222 | L92: 10 | M92: 0.1 | N92: =K92/L92 -> 41608.04222 | P92: 416080.4222 | Q92: 0 | R92: 0 | S92: 0 | U92: 0 | V92: 41608.04222 | W92: 41608.04222 | X92: 41608.04222 | Z92: 0
B93: - Equipos diversos (Estación Radar y Centro de Control). | C93: Inversiones no ligadas a proyectos (Reposiciones) | D93: Equipos de vigilancia aérea | F93: SV-SNAR-APROX | G93: Maquinaria y equipo | H93: 2025 | I93: 272153.1746 | J93: =+'5.3. InvEjecutadas'!$J$77 -> 0.6691858254 | K93: 182121.0468 | L93: 10 | M93: 0.1 | N93: 18212.10468 | P93: 0 | Q93: 182121.0468 | R93: 0 | S93: 0 | U93: 0 | V93: 0 | W93: 18212.10468 | X93: 18212.10468 | Z93: 0
B94: - Equipos diversos (Estación Radar y Centro de Control). | C94: Inversiones no ligadas a proyectos (Reposiciones) | D94: Equipos de vigilancia aérea | F94: SV-SNAR-APROX | G94: Maquinaria y equipo | H94: 2026 | I94: 270720.7895 | J94: =+'5.3. InvEjecutadas'!$J$77 -> 0.6691858254 | K94: 181162.515 | L94: 10 | M94: 0.1 | N94: 18116.2515 | P94: 0 | Q94: 0 | R94: 181162.515 | S94: 0 | U94: 0 | V94: 0 | W94: 0 | X94: 18116.2515 | Z94: 0
B95: - Equipos diversos (Estación Radar y Centro de Control). | C95: Inversiones no ligadas a proyectos (Reposiciones) | D95: Equipos de vigilancia aérea | F95: SV-SNAR-APROX | G95: Maquinaria y equipo | H95: 2027 | I95: =270720.789473684 -> 270720.7895 | J95: =+'5.3. InvEjecutadas'!$J$77 -> 0.6691858254 | K95: 181162.515 | L95: 10 | M95: 0.1 | N95: 18116.2515 | P95: 0 | Q95: 0 | R95: 0 | S95: 181162.515 | U95: 0 | V95: 0 | W95: 0 | X95: 0 | Z95: 0
B96: - Construcción y/o mejoramiento de torres de control de Pisco (2025), Puerto Maldonado (2026), Jaén (2027), Jauja(2027), Mazamari (2028), Huánuco(2028) | C96: Inversiones no ligadas a proyectos (Reposiciones) | D96: Torres de control | F96: SV-SNAR-APROX | G96: Edificaciones y construcciones | H96: 2025 | I96: 582010.582 | J96: =+'5.3. InvEjecutadas'!$J$77 -> 0.6691858254 | K96: 389473.2317 | L96: 33.3 | M96: 0.03003003003 | N96: 11695.89284 | P96: 0 | Q96: 389473.2317 | R96: 0 | S96: 0 | U96: 0 | V96: 0 | W96: 11695.89284 | X96: 11695.89284 | Z96: 0
B97: - Construcción y/o mejoramiento de torres de control de Pisco (2025), Puerto Maldonado (2026), Jaén (2027), Jauja(2027), Mazamari (2028), Huánuco(2028) | C97: Inversiones no ligadas a proyectos (Reposiciones) | D97: Torres de control | F97: SV-SNAR-APROX | G97: Edificaciones y construcciones | H97: 2026 | I97: 578947.3684 | J97: =+'5.3. InvEjecutadas'!$J$77 -> 0.6691858254 | K97: 387423.3726 | L97: 33.3 | M97: 0.03003003003 | N97: 11634.33551 | P97: 0 | Q97: 0 | R97: 387423.3726 | S97: 0 | U97: 0 | V97: 0 | W97: 0 | X97: 11634.33551 | Z97: 0
B98: - Construcción y/o mejoramiento de torres de control de Pisco (2025), Puerto Maldonado (2026), Jaén (2027), Jauja(2027), Mazamari (2028), Huánuco(2028) | C98: Inversiones no ligadas a proyectos (Reposiciones) | D98: Torres de control | F98: SV-SNAR-APROX | G98: Edificaciones y construcciones | H98: 2027 | I98: =947368.421052632 -> 947368.4211 | J98: =+'5.3. InvEjecutadas'!$J$77 -> 0.6691858254 | K98: 633965.5188 | L98: 33.3 | M98: 0.03003003003 | N98: 19038.00357 | P98: 0 | Q98: 0 | R98: 0 | S98: 633965.5188 | U98: 0 | V98: 0 | W98: 0 | X98: 0 | Z98: 0
B99: - Reposición de Estaciones VSAT (Radar) | C99: Inversiones no ligadas a proyectos (Reposiciones) | F99: SV-SNAR-APROX | G99: Equipos | H99: 2025 | I99: =1693724.6031746*0 -> 0 | J99: =+'5.3. InvEjecutadas'!$J$77 -> 0.6691858254 | K99: 0 | L99: 10 | M99: 0.1 | N99: 0 | P99: 0 | Q99: 0 | R99: 0 | S99: 0 | U99: 0 | V99: 0 | W99: 0 | X99: 0 | Z99: 0
B100: - Reposición de Estaciones VSAT (Radar) | C100: Inversiones no ligadas a proyectos (Reposiciones) | F100: SV-SNAR-APROX | G100: Equipos | H100: 2026 | I100: =3369620.52631579*0 -> 0 | J100: =+'5.3. InvEjecutadas'!$J$77 -> 0.6691858254 | K100: 0 | L100: 10 | M100: 0.1 | N100: 0 | P100: 0 | Q100: 0 | R100: 0 | S100: 0 | U100: 0 | V100: 0 | W100: 0 | X100: 0 | Z100: 0
B101: - Reposición de Estaciones VSAT (Radar) | C101: Inversiones no ligadas a proyectos (Reposiciones) | F101: SV-SNAR-APROX | G101: Equipos | H101: 2027 | I101: =3369620.52631579*0 -> 0 | J101: =+'5.3. InvEjecutadas'!$J$77 -> 0.6691858254 | K101: 0 | L101: 10 | M101: 0.1 | N101: 0 | P101: 0 | Q101: 0 | R101: 0 | S101: 0 | U101: 0 | V101: 0 | W101: 0 | X101: 0 | Z101: 0
B102: - Sistema de ayudas luminosas (Puerto Maldonado, Tarapoto, Talara,Tumbes) | C102: Inversiones no ligadas a proyectos (Reposiciones) | F102: APROX | G102: Maquinaria y equipo | H102: 2025 | I102: =874474.867724868*0 -> 0 | J102: =+'5.3. InvEjecutadas'!$J$77 -> 0.6691858254 | K102: 0 | L102: 10 | M102: 0.1 | N102: 0 | P102: 0 | Q102: 0 | R102: 0 | S102: 0 | U102: 0 | V102: 0 | W102: 0 | X102: 0 | Z102: 0
B103: - Sistema de ayudas luminosas (Puerto Maldonado, Tarapoto, Talara,Tumbes) | C103: Inversiones no ligadas a proyectos (Reposiciones) | F103: APROX | G103: Maquinaria y equipo | H103: 2026 | I103: =4348887.63157895*0 -> 0 | J103: =+'5.3. InvEjecutadas'!$J$77 -> 0.6691858254 | K103: 0 | L103: =VLOOKUP($G103,$B$125:$C$130,2,FALSE) -> 10 | M103: 0.1 | N103: 0 | P103: 0 | Q103: 0 | R103: 0 | S103: 0 | U103: 0 | V103: 0 | W103: 0 | X103: 0 | Z103: 0
B104: - Sistema de ayudas luminosas (Puerto Maldonado, Tarapoto, Talara,Tumbes) | C104: Inversiones no ligadas a proyectos (Reposiciones) | F104: APROX | G104: Maquinaria y equipo | H104: 2027 | I104: =3479110*0 -> 0 | J104: =+'5.3. InvEjecutadas'!$J$77 -> 0.6691858254 | K104: 0 | L104: 10 | M104: 0.1 | N104: 0 | P104: 0 | Q104: 0 | R104: 0 | S104: 0 | U104: 0 | V104: 0 | W104: 0 | X104: 0 | Z104: 0
B105: - Renovación de Sistemas de Radioayudas (Grupo 1): | C105: Inversiones no ligadas a proyectos (Reposiciones) | F105: SNAR-APROX | G105: Maquinaria y equipo | H105: 2025 | I105: =1852676.19047619*0 -> 0 | J105: =+'5.3. InvEjecutadas'!$J$77 -> 0.6691858254 | K105: 0 | L105: 10 | M105: 0.1 | N105: 0 | P105: 0 | Q105: 0 | R105: 0 | S105: 0 | U105: 0 | V105: 0 | W105: 0 | X105: 0 | Z105: 0
B106: - Renovación de Sistemas de Radioayudas (Grupo 1): | C106: Inversiones no ligadas a proyectos (Reposiciones) | F106: SNAR-APROX | G106: Maquinaria y equipo | H106: 2026 | I106: =3685850.52631579*0 -> 0 | J106: =+'5.3. InvEjecutadas'!$J$77 -> 0.6691858254 | K106: 0 | L106: 10 | M106: 0.1 | N106: 0 | P106: 0 | Q106: 0 | R106: 0 | S106: 0 | U106: 0 | V106: 0 | W106: 0 | X106: 0 | Z106: 0
B107: - Renovación de Sistemas de Radioayudas (Grupo 1): | C107: Inversiones no ligadas a proyectos (Reposiciones) | F107: SV-SNAR-APROX | G107: Maquinaria y equipo | H107: 2027 | I107: =3685850.52631579*0 -> 0 | J107: =+'5.3. InvEjecutadas'!$J$77 -> 0.6691858254 | K107: 0 | L107: 10 | M107: 0.1 | N107: 0 | P107: 0 | Q107: 0 | R107: 0 | S107: 0 | U107: 0 | V107: 0 | W107: 0 | X107: 0 | Z107: 0
B108: - Renovación sistema AWOS de Trujillo, Pisco y Chiclayo, Tarapoto | C108: Inversiones no ligadas a proyectos (Reposiciones) | F108: SV-SNAR-APROX | G108: Maquinaria y equipo | H108: 2024 | I108: =147285.294117647*0 -> 0 | J108: =+'5.3. InvEjecutadas'!$J$77 -> 0.6691858254 | K108: 0 | L108: 10 | M108: 0.1 | N108: 0 | P108: 0 | Q108: 0 | R108: 0 | S108: 0 | U108: 0 | V108: 0 | W108: 0 | X108: 0 | Z108: 0
B109: - Renovación sistema AWOS de Trujillo, Pisco y Chiclayo, Tarapoto | C109: Inversiones no ligadas a proyectos (Reposiciones) | F109: SV-SNAR-APROX | G109: Maquinaria y equipo | H109: 2025 | I109: =1575077.51322751*0 -> 0 | J109: =+'5.3. InvEjecutadas'!$J$77 -> 0.6691858254 | K109: 0 | L109: 10 | M109: 0.1 | N109: 0 | P109: 0 | Q109: 0 | R109: 0 | S109: 0 | U109: 0 | V109: 0 | W109: 0 | X109: 0 | Z109: 0
B110: - Renovación sistema AWOS de Trujillo, Pisco y Chiclayo, Tarapoto | C110: Inversiones no ligadas a proyectos (Reposiciones) | F110: SV-SNAR-APROX | G110: Maquinaria y equipo | H110: 2026 | I110: =1710526.31578947*0 -> 0 | J110: =+'5.3. InvEjecutadas'!$J$77 -> 0.6691858254 | K110: 0 | L110: 10 | M110: 0.1 | N110: =K110/L110 -> 0 | P110: 0 | Q110: 0 | R110: 0 | S110: 0 | U110: 0 | V110: 0 | W110: 0 | X110: 0 | Z110: 0
B111: - Inversiones diversas (incluye gastos complementarios, otros) | C111: Inversiones no ligadas a proyectos (Reposiciones) | F111: SV-SNAR-APROX | G111: Otros | H111: 2025 | I111: 11674034.66 | J111: =+'5.3. InvEjecutadas'!$J$77 -> 0.6691858254 | K111: 7812098.517 | L111: 10 | M111: 0 | N111: =K111/L111 -> 781209.8517 | P111: 0 | Q111: =IF(Q$6=$H111,$K111,0)+Z111 -> 7968340.488 | R111: 0 | S111: 0 | U111: 0 | V111: 0 | W111: =+IF(W$6>$H111,$N111,0) -> 781209.8517 | X111: 781209.8517 | Z111: 156241.9703
B112: - Sistema de Navegación Aérea para implementar SCTA en 05 aeródromos AFIS | C112: Inversiones no ligadas a proyectos (Reposiciones) | D112: Otras inversiones | F112: SV-SNAR-APROX | G112: Maquinaria y equipo | H112: 2027 | I112: =1338401.05263158 -> 1338401.053 | J112: =+'5.3. InvEjecutadas'!$J$77 -> 0.6691858254 | K112: 895639.0132 | L112: 10 | M112: 0.1 | N112: 89563.90132 | P112: 0 | Q112: 0 | R112: 0 | S112: 895639.0132 | U112: 0 | V112: 0 | W112: 0 | X112: 0 | Z112: 0
B113: - Investigación,capacitación y actualización tecnológica | C113: Inversiones no ligadas a proyectos (Reposiciones) | D113: Otras inversiones | F113: SV-SNAR-APROX | G113: Otros | H113: 2024 | I113: 26737.96791 | J113: =+'5.3. InvEjecutadas'!$J$77 -> 0.6691858254 | K113: 17892.66913 | L113: 10 | M113: 0 | N113: 1789.266913 | P113: 17892.66913 | Q113: 0 | R113: 0 | S113: 0 | U113: 0 | V113: 1789.266913 | W113: 1789.266913 | X113: 1789.266913 | Z113: 0
B114: - Investigación,capacitación y actualización tecnológica | C114: Inversiones no ligadas a proyectos (Reposiciones) | D114: Otras inversiones | F114: SV-SNAR-APROX | G114: Otros | H114: 2025 | I114: 52910.05291 | J114: =+'5.3. InvEjecutadas'!$J$77 -> 0.6691858254 | K114: 35406.65743 | L114: 10 | M114: 0 | N114: 3540.665743 | P114: 0 | Q114: 35406.65743 | R114: 0 | S114: 0 | U114: 0 | V114: 0 | W114: 3540.665743 | X114: 3540.665743 | Z114: 0
B115: - Investigación,capacitación y actualización tecnológica | C115: Inversiones no ligadas a proyectos (Reposiciones) | D115: Otras inversiones | F115: SV-SNAR-APROX | G115: Otros | H115: 2026 | I115: 52631.57895 | J115: =+'5.3. InvEjecutadas'!$J$77 -> 0.6691858254 | K115: 35220.3066 | L115: 10 | M115: 0 | N115: 3522.03066 | P115: 0 | Q115: 0 | R115: 35220.3066 | S115: 0 | U115: 0 | V115: 0 | W115: 0 | X115: 3522.03066 | Z115: 0
B116: - Investigación,capacitación y actualización tecnológica | C116: Inversiones no ligadas a proyectos (Reposiciones) | D116: Otras inversiones | F116: SV-SNAR-APROX | G116: Otros | H116: 2027 | I116: =105263.157894737 -> 105263.1579 | J116: =+'5.3. InvEjecutadas'!$J$77 -> 0.6691858254 | K116: 70440.6132 | L116: 10 | M116: 0 | N116: 7044.06132 | P116: 0 | Q116: 0 | R116: 0 | S116: 70440.6132 | U116: 0 | V116: 0 | W116: 0 | X116: 0 | Z116: 0
B117: - Inversiones varias a nivel nacional | C117: Inversiones no ligadas a proyectos (Reposiciones) | D117: Otras inversiones | F117: SV-SNAR-APROX | G117: Equipos | H117: 2024 | I117: 2459112.299 | J117: =+'5.3. InvEjecutadas'!$J$77 -> 0.6691858254 | K117: 1645603.094 | L117: 10 | M117: 0.1 | N117: 164560.3094 | P117: 1645603.094 | Q117: 0 | R117: 0 | S117: 0 | U117: 0 | V117: 164560.3094 | W117: 164560.3094 | X117: 164560.3094 | Z117: 0
B118: - Inversiones varias a nivel nacional | C118: Inversiones no ligadas a proyectos (Reposiciones) | D118: Otras inversiones | F118: SV-SNAR-APROX | G118: Equipos | H118: 2025 | I118: 158730.1587 | J118: =+'5.3. InvEjecutadas'!$J$77 -> 0.6691858254 | K118: 106219.9723 | L118: 10 | M118: 0.1 | N118: 10621.99723 | P118: 0 | Q118: 106219.9723 | R118: 0 | S118: 0 | U118: 0 | V118: 0 | W118: 10621.99723 | X118: 10621.99723 | Z118: 0
B119: - Inversiones varias a nivel nacional | C119: Inversiones no ligadas a proyectos (Reposiciones) | D119: Otras inversiones | F119: SV-SNAR-APROX | G119: Equipos | H119: 2026 | I119: 52631.57895 | J119: =+'5.3. InvEjecutadas'!$J$77 -> 0.6691858254 | K119: 35220.3066 | L119: 10 | M119: 0.1 | N119: 3522.03066 | P119: 0 | Q119: 0 | R119: 35220.3066 | S119: 0 | U119: 0 | V119: 0 | W119: 0 | X119: 3522.03066 | Z119: 0
B120: - Inversiones varias a nivel nacional | C120: Inversiones no ligadas a proyectos (Reposiciones) | D120: Otras inversiones | F120: SV-SNAR-APROX | G120: Equipos | H120: 2027 | I120: =105263.157894737 -> 105263.1579 | J120: =+'5.3. InvEjecutadas'!$J$77 -> 0.6691858254 | K120: 70440.6132 | L120: 10 | M120: 0.1 | N120: 7044.06132 | P120: 0 | Q120: 0 | R120: 0 | S120: 70440.6132 | U120: 0 | V120: 0 | W120: 0 | X120: 0 | Z120: 0
B121: Total | I121: =SUM(I7:I120) -> 151106717.5 | K121: =SUM(K7:K120) -> 101118473.5 | N121: =SUM(N7:N120) -> 9947531.565 | P121: =SUM(P7:P120) -> 12265540.5 | Q121: =SUM(Q7:Q120) -> 28720186.11 | R121: 22467229.41 | S121: 38816248.13 | T121: 0 | U121: 0 | V121: 1216441.016 | W121: =SUM(W7:W120) -> 4021644.364 | X121: =SUM(X7:X120) -> 6214719.994
B123: * Vida útil de los activos:
B124: Concepto | C124: Vida útil (años)
B125: Maquinaria y equipo | C125: 10
B126: Edificaciones y construcciones | C126: 33.3
B127: Otros | C127: 10
B128: Equipos de informática | C128: 4
B129: Red | C129: 10
B130: Equipos | C130: 10
B132: II. INVERSIONES PROYECTADAS, por clasificación
B134: A. Factor de distribución de inversiones:
B136: i.1 Gasto en Depreciación y Amortización, según CR (en soles):
B137: (Driver 1: Gasto en Depreciación + Amortización, según CR)
B138: Servicio | D138: Depreciación y amortización | K138: Promedio
D139: 2017 | E139: =+D139+1 -> 2018 | F139: =+E139+1 -> 2019 | G139: 2020 | H139: 2021 | I139: =+H139+1 -> 2022 | J139: =+I139+1 -> 2023
B140: SNAR nacional | D140: =+'5.1. Activos Base'!C7 -> 7129772.016 | E140: =+'5.1. Activos Base'!D7 -> 12945251.26 | F140: =+'5.1. Activos Base'!E7 -> 11484207.77 | G140: =+'5.1. Activos Base'!F7 -> 12808539.74 | H140: =+'5.1. Activos Base'!G7 -> 12277684.01 | I140: =+'5.1. Activos Base'!H7 -> 11690380.3 | J140: =+'5.1. Activos Base'!I7 -> 15132580.81 | K140: =AVERAGE(D140:J140) -> 11924059.41
B141: SNAR internacional | D141: =+'5.1. Activos Base'!C8 -> 2452018.503 | E141: =+'5.1. Activos Base'!D8 -> 3787636.656 | F141: =+'5.1. Activos Base'!E8 -> 4118355.972 | G141: =+'5.1. Activos Base'!F8 -> 3625748.436 | H141: =+'5.1. Activos Base'!G8 -> 2153448.137 | I141: =+'5.1. Activos Base'!H8 -> 2036410.125 | J141: =+'5.1. Activos Base'!I8 -> 2695966.69 | K141: =AVERAGE(D141:J141) -> 2981369.217
B142: Aproximación | D142: =+'5.1. Activos Base'!C9 -> 7351690.518 | E142: =+'5.1. Activos Base'!D9 -> 12149849.95 | F142: =+'5.1. Activos Base'!E9 -> 10946483.71 | G142: =+'5.1. Activos Base'!F9 -> 13493845.77 | H142: =+'5.1. Activos Base'!G9 -> 11258584.98 | I142: =+'5.1. Activos Base'!H9 -> 11040983.82 | J142: =+'5.1. Activos Base'!I9 -> 15293167.12 | K142: =AVERAGE(D142:J142) -> 11647800.84
B143: Sobrevuelo | D143: =+'5.1. Activos Base'!C10 -> 2714963.615 | E143: =+'5.1. Activos Base'!D10 -> 4773755.545 | F143: =+'5.1. Activos Base'!E10 -> 4946087.518 | G143: =+'5.1. Activos Base'!F10 -> 6088586.156 | H143: =+'5.1. Activos Base'!G10 -> 3822726.481 | I143: =+'5.1. Activos Base'!H10 -> 2966229.694 | J143: =+'5.1. Activos Base'!I10 -> 3497406.485 | K143: =AVERAGE(D143:J143) -> 4115679.356
B144: Total servicios con tarifa regulada | D144: =SUM(D140:D143) -> 19648444.65 | E144: =SUM(E140:E143) -> 33656493.41 | F144: =SUM(F140:F143) -> 31495134.97 | G144: 36016720.1 | H144: =SUM(H140:H143) -> 29512443.61 | I144: =SUM(I140:I143) -> 27734003.93 | J144: =SUM(J140:J143) -> 36619121.1 | K144: =SUM(K140:K143) -> 30668908.83
B146: i.2 Distribución para Inversiones asignadas a SNAR:
B147: (Driver 2: Kilómetro recorrido, usuarios atribuibles)
B148: Servicio | D148: 2017 | E148: =D148+1 -> 2018 | F148: =E148+1 -> 2019 | G148: 2020 | H148: 2021 | I148: =H148+1 -> 2022 | J148: =I148+1 -> 2023 | K148: Promedio
B149: SNAR Nacional (Kilómetros recorridos) | D149: =+'1. Demanda'!C9 -> 75128319.21 | E149: =+'1. Demanda'!D9 -> 80835290.16 | F149: =+'1. Demanda'!E9 -> 86859755.46 | G149: =+'1. Demanda'!F9 -> 32977805.86 | H149: =+'1. Demanda'!G9 -> 52195747.65 | I149: =+'1. Demanda'!H9 -> 72201517.09 | J149: =+'1. Demanda'!I9 -> 77427798.61 | K149: =AVERAGE(D149:J149) -> 68232319.15
B150: SNAR Internacional (Kilómetros recorridos) | D150: =+'1. Demanda'!C26 -> 76765499.64 | E150: =+'1. Demanda'!D26 -> 80424520.97 | F150: =+'1. Demanda'!E26 -> 80707610.26 | G150: =+'1. Demanda'!F26 -> 24869238.11 | H150: =+'1. Demanda'!G26 -> 29618643.68 | I150: =+'1. Demanda'!H26 -> 52127754.73 | J150: =+'1. Demanda'!I26 -> 62213793.49 | K150: =AVERAGE(D150:J150) -> 58103865.84
B151: Total SNAR (Kilómetros recorridos) | D151: =SUM(D149:D150) -> 151893818.8 | E151: =SUM(E149:E150) -> 161259811.1 | F151: 167567365.7 | G151: 57847043.97 | H151: 81814391.33 | I151: 124329271.8 | J151: 139641592.1 | K151: =SUM(K149:K150) -> 126336185
B153: ii. Asignación por combinación de servicios (%):
B154: Combinación | C154: Servicio | D154: 2017 | E154: =D154+1 -> 2018 | F154: =E154+1 -> 2019 | G154: 2020 | H154: 2021 | I154: =H154+1 -> 2022 | J154: =I154+1 -> 2023 | K154: Promedio
B155: SV-SNAR-APROX | C155: SNAR Nacional | D155: =SUM(D$140:D$141)/D144*D149/D$151 -> 0.2412026449 | E155: =SUM(E$140:E$141)/E144*E149/E$151 -> 0.2492165564 | F155: 0.2567920958 | G155: =SUM(G$140:G$141)/G144*G149/G$151 -> 0.2601281325 | H155: =SUM(H$140:H$141)/H144*H149/H$151 -> 0.3119612503 | I155: =SUM(I$140:I$141)/I144*I149/I$151 -> 0.2874281921 | J155: =SUM(J$140:J$141)/J144*J149/J$151 -> 0.2699542481 | K155: =SUM(K$140:K$141)/K144*K149/K$151 -> 0.2624874353
B156: SV-SNAR-APROX | C156: SNAR Internacional | D156: =SUM(D$140:D$141)/D144*D150/D$151 -> 0.2464588819 | E156: =SUM(E$140:E$141)/E144*E150/E$151 -> 0.2479501481 | F156: 0.2386038998 | G156: 0.1961679468 | H156: =SUM(H$140:H$141)/H144*H150/H$151 -> 0.1770234077 | I156: 0.2075162254 | J156: 0.2169101814 | K156: =SUM(K$140:K$141)/K144*K150/K$151 -> 0.2235236163
B157: SV-SNAR-APROX | C157: Sobrevuelo | D157: =D143/D144 -> 0.1381770244 | E157: =E143/E144 -> 0.141837579 | F157: 0.1570429059 | G157: 0.1690488789 | H157: =H143/H144 -> 0.1295293108 | I157: 0.1069528115 | J157: =J143/J144 -> 0.09550765775 | K157: =K143/K144 -> 0.1341971239
B158: SV-SNAR-APROX | C158: Aproximación | D158: =D142/D144 -> 0.3741614488 | E158: =E142/E144 -> 0.3609957164 | F158: 0.3475610985 | G158: 0.3746550417 | H158: =H142/H144 -> 0.3814860312 | I158: 0.398102771 | J158: =J142/J144 -> 0.4176279128 | K158: =K142/K144 -> 0.3797918245
B159: SNAR-APROX | C159: Aproximación | D159: =D142/SUM(D140,D141,D142) -> 0.4341511649 | E159: =E142/SUM(E140,E141,E142) -> 0.4206612962 | F159: 0.4123117309 | G159: 0.4508749459 | H159: =H142/SUM(H140,H141,H142) -> 0.4382525867 | I159: 0.4457802187 | J159: 0.4617263113 | K159: =K142/SUM(K140,K141,K142) -> 0.4386585387
B160: SNAR-APROX | C160: SNAR Nacional | D160: =SUM(D140:D141)/SUM(D140,D141,D142)*D149/D$151 -> 0.2798749299 | E160: =SUM(E140:E141)/SUM(E140,E141,E142)*E149/E$151 -> 0.2904072124 | F160: 0.304632463 | G160: 0.313048657 | H160: =SUM(H140:H141)/SUM(H140,H141,H142)*H149/H$151 -> 0.3583822571 | I160: 0.3218510687 | J160: 0.2984594069 | K160: =SUM(K140:K141)/SUM(K140,K141,K142)*K149/K$151 -> 0.3031722839
B161: SNAR-APROX | C161: SNAR Internacional | D161: =SUM(D140:D141)/SUM(D140,D141,D142)*D150/D$151 -> 0.2859739052 | E161: =SUM(E140:E141)/SUM(E140,E141,E142)*E150/E$151 -> 0.2889314914 | F161: 0.2830558061 | G161: 0.2360763971 | H161: =SUM(H140:H141)/SUM(H140,H141,H142)*H150/H$151 -> 0.2033651562 | I161: 0.2323687126 | J161: =SUM(J140:J141)/SUM(J140,J141,J142)*J150/J$151 -> 0.2398142817 | K161: =SUM(K140:K141)/SUM(K140,K141,K142)*K150/K$151 -> 0.2581691774
B162: APROX | C162: Aproximación | D162: =D142/D142 -> 1 | E162: =E142/E142 -> 1 | F162: 1 | G162: 1 | H162: =H142/H142 -> 1 | I162: 1 | J162: =J142/J142 -> 1 | K162: =K142/K142 -> 1
B164: B. Distribución de inversiones
B166: i. Inversiones, según combinación de servicios:
B167: (Expresado en dólares)
B168: Combinación | C168: Tipo de inversión | F168: 2024 | G168: =F168+1 -> 2025 | H168: =G168+1 -> 2026 | I168: =H168+1 -> 2027
B169: SV-SNAR-APROX | C169: Edificaciones y construcciones | F169: =SUMIFS(P$7:P$120,$F$7:$F$120,$B169,$G$7:$G$120,$C169) -> 47273.86325 | G169: =SUMIFS(Q$7:Q$120,$F$7:$F$120,$B169,$G$7:$G$120,$C169) -> 412764.0851 | H169: =SUMIFS(R$7:R$120,$F$7:$F$120,$B169,$G$7:$G$120,$C169) -> 410591.6425 | I169: =SUMIFS(S$7:S$120,$F$7:$F$120,$B169,$G$7:$G$120,$C169) -> 1477746.153
B170: SV-SNAR-APROX | C170: Equipos | F170: 2748518.313 | G170: 203588.2802 | H170: 382797.0092 | I170: 262809.1731
B171: SV-SNAR-APROX | C171: Maquinaria y equipo | F171: 9331531.927 | G171: 10022412.45 | H171: 14883694.95 | I171: 20439074.57
B172: SV-SNAR-APROX | C172: Otros | F172: 17892.66913 | G172: 8003747.145 | H172: 35220.3066 | I172: 70440.6132
B173: SNAR-APROX | C173: Edificaciones y construcciones | F173: 0 | G173: 0 | H173: 0 | I173: 0
B174: SNAR-APROX | C174: Equipos | F174: 0 | G174: 0 | H174: 0 | I174: 0
B175: SNAR-APROX | C175: Maquinaria y equipo | F175: 0 | G175: 0 | H175: 0 | I175: 10453552.53
B176: SNAR-APROX | C176: Otros | F176: 0 | G176: 0 | H176: 0 | I176: 0
B177: APROX | C177: Edificaciones y construcciones | F177: 0 | G177: 0 | H177: 0 | I177: 0
B178: APROX | C178: Equipos | F178: 0 | G178: 0 | H178: 0 | I178: 0
B179: APROX | C179: Maquinaria y equipo | F179: 120323.7267 | G179: 10077674.14 | H179: 6754925.496 | I179: 6112625.092
B180: APROX | C180: Otros | F180: 0 | G180: 0 | H180: 0 | I180: 0
B181: Total | F181: =SUM(F169:F180) -> 12265540.5 | G181: =SUM(G169:G180) -> 28720186.11 | H181: =SUM(H169:H180) -> 22467229.41 | I181: =SUM(I169:I180) -> 38816248.13
B183: ii. Inversiones por servicio de aeronavegación, según tipo de inversión:
B184: (Expresado en dólares)
B185: Servicio | C185: Tipo de inversión | F185: 2024 | G185: =F185+1 -> 2025 | H185: =G185+1 -> 2026 | I185: =H185+1 -> 2027
B186: SNAR Nacional | C186: Edificaciones y construcciones | F186: =SUMIF($C$169:$C$172,$C186,F$169:F$172)*SUMIFS($K$155:$K$158,$B$155:$B$158,$B169,$C$155:$C$158,$B186)+SUMIF($C$173:$C$176,$C186,F$173:F$176)*SUMIFS($K$159:$K$161,$B$159:$B$161,$B173,$C$159:$C$161,$B186)+SUMIF($C$177:$C$180,$C186,F$177:F$180)*SUMIFS($K$162,$B$162,$B177,$C$162,$B186) -> 12408.79512 | G186: 108345.3861 | H186: 107775.1472 | I186: =SUMIF($C$169:$C$172,$C186,I$169:I$172)*SUMIFS($K$155:$K$158,$B$155:$B$158,$B169,$C$155:$C$158,$B186)+SUMIF($C$173:$C$176,$C186,I$173:I$176)*SUMIFS($K$159:$K$161,$B$159:$B$161,$B173,$C$159:$C$161,$B186)+SUMIF($C$177:$C$180,$C186,I$177:I$180)*SUMIFS($K$162,$B$162,$B177,$C$162,$B186) -> 387889.7976
B187: SNAR Nacional | C187: Equipos | F187: 721451.5228 | G187: 53439.36554 | H187: 100479.4052 | I187: =SUMIF($C$169:$C$172,$C187,I$169:I$172)*SUMIFS($K$155:$K$158,$B$155:$B$158,$B170,$C$155:$C$158,$B187)+SUMIF($C$173:$C$176,$C187,I$173:I$176)*SUMIFS($K$159:$K$161,$B$159:$B$161,$B174,$C$159:$C$161,$B187)+SUMIF($C$177:$C$180,$C187,I$177:I$180)*SUMIFS($K$162,$B$162,$B178,$C$162,$B187) -> 68984.10583
B188: SNAR Nacional | C188: Maquinaria y equipo | F188: 2449409.883 | G188: 2630757.34 | H188: 3906782.916 | I188: =SUMIF($C$169:$C$172,$C188,I$169:I$172)*SUMIFS($K$155:$K$158,$B$155:$B$158,$B171,$C$155:$C$158,$B188)+SUMIF($C$173:$C$176,$C188,I$173:I$176)*SUMIFS($K$159:$K$161,$B$159:$B$161,$B175,$C$159:$C$161,$B188)+SUMIF($C$177:$C$180,$C188,I$177:I$180)*SUMIFS($K$162,$B$162,$B179,$C$162,$B188) -> 8534227.66
B189: SNAR Nacional | C189: Otros | F189: 4696.600831 | G189: 2100883.061 | H189: 9244.887951 | I189: =SUMIF($C$169:$C$172,$C189,I$169:I$172)*SUMIFS($K$155:$K$158,$B$155:$B$158,$B172,$C$155:$C$158,$B189)+SUMIF($C$173:$C$176,$C189,I$173:I$176)*SUMIFS($K$159:$K$161,$B$159:$B$161,$B176,$C$159:$C$161,$B189)+SUMIF($C$177:$C$180,$C189,I$177:I$180)*SUMIFS($K$162,$B$162,$B180,$C$162,$B189) -> 18489.7759
B190: SNAR Internacional | C190: Edificaciones y construcciones | F190: =SUMIF($C$169:$C$172,$C190,F$169:F$172)*SUMIFS($K$155:$K$158,$B$155:$B$158,$B169,$C$155:$C$158,$B190)+SUMIF($C$173:$C$176,$C190,F$173:F$176)*SUMIFS($K$159:$K$161,$B$159:$B$161,$B173,$C$159:$C$161,$B190)+SUMIF($C$177:$C$180,$C190,F$177:F$180)*SUMIFS($K$162,$B$162,$B177,$C$162,$B190) -> 10566.82487 | G190: 92262.52098 | H190: 91776.92877 | I190: =SUMIF($C$169:$C$172,$C190,I$169:I$172)*SUMIFS($K$155:$K$158,$B$155:$B$158,$B169,$C$155:$C$158,$B190)+SUMIF($C$173:$C$176,$C190,I$173:I$176)*SUMIFS($K$159:$K$161,$B$159:$B$161,$B173,$C$159:$C$161,$B190)+SUMIF($C$177:$C$180,$C190,I$177:I$180)*SUMIFS($K$162,$B$162,$B177,$C$162,$B190) -> 330311.164
B191: SNAR Internacional | C191: Equipos | F191: 614358.7528 | G191: 45506.78864 | H191: 85564.17183 | I191: =SUMIF($C$169:$C$172,$C191,I$169:I$172)*SUMIFS($K$155:$K$158,$B$155:$B$158,$B170,$C$155:$C$158,$B191)+SUMIF($C$173:$C$176,$C191,I$173:I$176)*SUMIFS($K$159:$K$161,$B$159:$B$161,$B174,$C$159:$C$161,$B191)+SUMIF($C$177:$C$180,$C191,I$177:I$180)*SUMIFS($K$162,$B$162,$B178,$C$162,$B191) -> 58744.05678
B192: SNAR Internacional | C192: Maquinaria y equipo | F192: 2085817.762 | G192: 2240245.876 | H192: 3326857.32 | I192: =SUMIF($C$169:$C$172,$C192,I$169:I$172)*SUMIFS($K$155:$K$158,$B$155:$B$158,$B171,$C$155:$C$158,$B192)+SUMIF($C$173:$C$176,$C192,I$173:I$176)*SUMIFS($K$159:$K$161,$B$159:$B$161,$B175,$C$159:$C$161,$B192)+SUMIF($C$177:$C$180,$C192,I$177:I$180)*SUMIFS($K$162,$B$162,$B179,$C$162,$B192) -> 7267400.92
B193: SNAR Internacional | C193: Otros | F193: 3999.43411 | G193: 1789026.506 | H193: 7872.5703 | I193: =SUMIF($C$169:$C$172,$C193,I$169:I$172)*SUMIFS($K$155:$K$158,$B$155:$B$158,$B172,$C$155:$C$158,$B193)+SUMIF($C$173:$C$176,$C193,I$173:I$176)*SUMIFS($K$159:$K$161,$B$159:$B$161,$B176,$C$159:$C$161,$B193)+SUMIF($C$177:$C$180,$C193,I$177:I$180)*SUMIFS($K$162,$B$162,$B180,$C$162,$B193) -> 15745.1406
B194: Aproximación | C194: Edificaciones y construcciones | F194: =SUMIF($C$169:$C$172,$C194,F$169:F$172)*SUMIFS($K$155:$K$158,$B$155:$B$158,$B169,$C$155:$C$158,$B194)+SUMIF($C$173:$C$176,$C194,F$173:F$176)*SUMIFS($K$159:$K$161,$B$159:$B$161,$B173,$C$159:$C$161,$B194)+SUMIF($C$177:$C$180,$C194,F$177:F$180)*SUMIFS($K$162,$B$162,$B177,$C$162,$B194) -> 17954.22678 | G194: 156764.4249 | H194: 155939.349 | I194: =SUMIF($C$169:$C$172,$C194,I$169:I$172)*SUMIFS($K$155:$K$158,$B$155:$B$158,$B169,$C$155:$C$158,$B194)+SUMIF($C$173:$C$176,$C194,I$173:I$176)*SUMIFS($K$159:$K$161,$B$159:$B$161,$B173,$C$159:$C$161,$B194)+SUMIF($C$177:$C$180,$C194,I$177:I$180)*SUMIFS($K$162,$B$162,$B177,$C$162,$B194) -> 561235.9074
B195: Aproximación | C195: Equipos | F195: 1043864.785 | G195: 77321.16439 | H195: 145383.1745 | I195: =SUMIF($C$169:$C$172,$C195,I$169:I$172)*SUMIFS($K$155:$K$158,$B$155:$B$158,$B170,$C$155:$C$158,$B195)+SUMIF($C$173:$C$176,$C195,I$173:I$176)*SUMIFS($K$159:$K$161,$B$159:$B$161,$B174,$C$159:$C$161,$B195)+SUMIF($C$177:$C$180,$C195,I$177:I$180)*SUMIFS($K$162,$B$162,$B178,$C$162,$B195) -> 99812.77535
B196: Aproximación | C196: Maquinaria y equipo | F196: 3664363.263 | G196: 13884104.45 | H196: 12407631.16 | I196: =SUMIF($C$169:$C$172,$C196,I$169:I$172)*SUMIFS($K$155:$K$158,$B$155:$B$158,$B171,$C$155:$C$158,$B196)+SUMIF($C$173:$C$176,$C196,I$173:I$176)*SUMIFS($K$159:$K$161,$B$159:$B$161,$B175,$C$159:$C$161,$B196)+SUMIF($C$177:$C$180,$C196,I$177:I$180)*SUMIFS($K$162,$B$162,$B179,$C$162,$B196) -> 18460758.59
B197: Aproximación | C197: Otros | F197: 6795.489454 | G197: 3039757.731 | H197: 13376.3845 | I197: =SUMIF($C$169:$C$172,$C197,I$169:I$172)*SUMIFS($K$155:$K$158,$B$155:$B$158,$B172,$C$155:$C$158,$B197)+SUMIF($C$173:$C$176,$C197,I$173:I$176)*SUMIFS($K$159:$K$161,$B$159:$B$161,$B176,$C$159:$C$161,$B197)+SUMIF($C$177:$C$180,$C197,I$177:I$180)*SUMIFS($K$162,$B$162,$B180,$C$162,$B197) -> 26752.76901
B198: Sobrevuelo | C198: Edificaciones y construcciones | F198: =SUMIF($C$169:$C$172,$C198,F$169:F$172)*SUMIFS($K$155:$K$158,$B$155:$B$158,$B169,$C$155:$C$158,$B198)+SUMIF($C$173:$C$176,$C198,F$173:F$176)*SUMIFS($K$159:$K$161,$B$159:$B$161,$B173,$C$159:$C$161,$B198)+SUMIF($C$177:$C$180,$C198,F$177:F$180)*SUMIFS($K$162,$B$162,$B177,$C$162,$B198) -> 6344.016482 | G198: 55391.75305 | H198: 55100.2175 | I198: =SUMIF($C$169:$C$172,$C198,I$169:I$172)*SUMIFS($K$155:$K$158,$B$155:$B$158,$B169,$C$155:$C$158,$B198)+SUMIF($C$173:$C$176,$C198,I$173:I$176)*SUMIFS($K$159:$K$161,$B$159:$B$161,$B173,$C$159:$C$161,$B198)+SUMIF($C$177:$C$180,$C198,I$177:I$180)*SUMIFS($K$162,$B$162,$B177,$C$162,$B198) -> 198309.2835
B199: Sobrevuelo | C199: Equipos | F199: 368843.2524 | G199: 27320.96166 | H199: 51370.25766 | I199: =SUMIF($C$169:$C$172,$C199,I$169:I$172)*SUMIFS($K$155:$K$158,$B$155:$B$158,$B170,$C$155:$C$158,$B199)+SUMIF($C$173:$C$176,$C199,I$173:I$176)*SUMIFS($K$159:$K$161,$B$159:$B$161,$B174,$C$159:$C$161,$B199)+SUMIF($C$177:$C$180,$C199,I$177:I$180)*SUMIFS($K$162,$B$162,$B178,$C$162,$B199) -> 35268.23516
B200: Sobrevuelo | C200: Maquinaria y equipo | F200: 1252264.746 | G200: 1344978.925 | H200: 1997349.055 | I200: =SUMIF($C$169:$C$172,$C200,I$169:I$172)*SUMIFS($K$155:$K$158,$B$155:$B$158,$B171,$C$155:$C$158,$B200)+SUMIF($C$173:$C$176,$C200,I$173:I$176)*SUMIFS($K$159:$K$161,$B$159:$B$161,$B175,$C$159:$C$161,$B200)+SUMIF($C$177:$C$180,$C200,I$177:I$180)*SUMIFS($K$162,$B$162,$B179,$C$162,$B200) -> 2742865.021
B201: Sobrevuelo | C201: Otros | F201: 2401.144735 | G201: 1074079.847 | H201: 4726.463847 | I201: =SUMIF($C$169:$C$172,$C201,I$169:I$172)*SUMIFS($K$155:$K$158,$B$155:$B$158,$B172,$C$155:$C$158,$B201)+SUMIF($C$173:$C$176,$C201,I$173:I$176)*SUMIFS($K$159:$K$161,$B$159:$B$161,$B176,$C$159:$C$161,$B201)+SUMIF($C$177:$C$180,$C201,I$177:I$180)*SUMIFS($K$162,$B$162,$B180,$C$162,$B201) -> 9452.927695
B202: Total Aeronavegación | F202: =SUM(F186:F201) -> 12265540.5 | G202: =SUM(G186:G201) -> 28720186.11 | H202: =SUM(H186:H201) -> 22467229.41 | I202: =SUM(I186:I201) -> 38816248.13
B204: iii. Resumen de Inversiones por servicio de aeronavegación:
B205: (Expresado en miles de dólares)
B206: Servicio | F206: 2024 | G206: =F206+1 -> 2025 | H206: =G206+1 -> 2026 | I206: =H206+1 -> 2027
B207: SNAR nacional | F207: =SUMIF($B$186:$B$201,$B207,F$186:F$201)/1000 -> 3187.966802 | G207: =SUMIF($B$186:$B$201,$B207,G$186:G$201)/1000 -> 4893.425153 | H207: =SUMIF($B$186:$B$201,$B207,H$186:H$201)/1000 -> 4124.282356 | I207: 9009.591339
B208: SNAR internacional | F208: =SUMIF($B$186:$B$201,$B208,F$186:F$201)/1000 -> 2714.742774 | G208: 4167.041691 | H208: 3512.070991 | I208: 7672.201282
B209: Aproximación | F209: 4732.977763 | G209: 17157.94777 | H209: 12722.33007 | I209: 19148.56004
B210: Sobrevuelo | F210: 1629.853159 | G210: 2501.771487 | H210: 2108.545994 | I210: 2985.895467
B211: Total | F211: =SUM(F207:F210) -> 12265.5405 | G211: 28720.18611 | H211: 22467.22941 | I211: =SUM(I207:I210) -> 38816.24813
... 45 more rows

Sheet 5.3. InvEjecutadas
B1: 5.3. EJECUCIÓN DE INVERSIONES - PERIODO 2017 - 2021 | O1: Índice | R1: EJECUCIÓN DE INVERSIONES - PERIODO 2022 - 2023
B2: Fuente: CORPAC S.A. | R2: Fuente: CORPAC S.A.
B3: (Expresado en dólares) | R3: (Expresado en dólares)
B4: Descripción | C4: 2017 | E4: 2018 | G4: 2019 | I4: 2020 | K4: 2021 | M4: Total 2017-2021 | R4: Descripción | S4: 2022 | U4: 2023 | W4: Total 2022-2023
C5: Programado | D5: Ejecutado | E5: Programado | F5: Ejecutado | G5: Programado | H5: Ejecutado | I5: Programado | J5: Ejecutado | K5: Programado | L5: Ejecutado | M5: Programado | N5: Ejecutado | O5: % Ejecutado | S5: Programado | T5: Ejecutado | U5: Programado | V5: Ejecutado | W5: Programado | X5: Ejecutado | Y5: % Ejecutado
B6: Proyecto de Comunicaciones Satelitales VSAT (Mejoramiento de la Conectividad de la Red de Comunicaciones Aeronáuticas de CORPAC S.A.) | C6: 509839.2 | D6: 516473 | E6: 2601470.3 | G6: 2067980 | I6: 329926 | K6: 2969337 | M6: =C6+E6+G6+I6+K6 -> 8478552.5 | N6: =D6+F6+H6+J6+L6 -> 516473 | O6: =IFERROR(N6/M6,1) -> 0.06091523288 | R6: Equipos de radio VHF TWR -Dual - Nivel nacional | S6: 2126898 | T6: 1936656.266 | V6: 1303974.054 | W6: 2126898 | X6: 3240630.32 | Y6: =IFERROR(X6/W6,1) -> 1.523641623
B7: Modernización de Sistemas de Ayudas Luminosas en Aeropuertos del Perú (III Etapa) | C7: 0 | E7: 780000 | G7: 845000 | I7: 650000 | K7: 650000 | M7: =C7+E7+G7+I7+K7 -> 2925000 | N7: =D7+F7+H7+J7+L7 -> 0 | O7: =IFERROR(N7/M7,1) -> 0 | R7: Ampliación de los Servicios de Navegación Aérea en el Aeropuerto Internacional Jorge Chàvez. | W7: 0 | X7: 0 | Y7: =IFERROR(X7/W7,1) -> 1
B8: Implantación de Estaciones Automáticas de Observaciones Meteorológicas (AWOS) | C8: 0 | E8: 244432.5 | G8: 439979 | I8: 659968 | K8: 1099946 | M8: 2444325.5 | N8: 0 | O8: 0 | R8: Sistemas de grabaciòn - Nivel nacional. | U8: 909095 | W8: 909095 | X8: 0 | Y8: 0
B9: Nuevo Centro de Gestión de Tránsito Aéreo y Sistemas de Vigilancia y Comunicaciones | C9: 0 | E9: 3093450.75 | G9: 4640176 | I9: 6186902 | K9: 1546726 | M9: 15467254.75 | N9: 0 | O9: 0 | R9: Sistemas ATIS | U9: 178512 | W9: 178512 | X9: 0 | Y9: 0
B10: Sistemas GVAR (Arequipa, Cusco, Iquitos) | C10: 0 | E10: 39000 | G10: 351000 | M10: 390000 | N10: 0 | O10: 0 | R10: Estaciones de una Red de radio HF-SSB para el servicio ATS y de mensajería AMHS del servicio fijo aeronáutico | W10: 0 | X10: 0 | Y10: 1
B11: Construcción de la torre de control del Aeropuerto de Ilo | C11: 0 | E11: 224138.2 | J11: 275051.216 | L11: 159652.5907 | M11: 224138.2 | N11: 434703.8067 | O11: 1.939445426 | R11: Reposición del sistema de mensajería aeronáutica AMHS | S11: 477902 | U11: 4185397 | W11: 4663299 | X11: 0 | Y11: 0
B12: Construcción de la torre de control del Aeropuerto de Nasca | C12: 0 | E12: 219718.2 | M12: 219718.2 | N12: 0 | O12: 0 | R12: Radioenlaces digitales de microondas | S12: 1701368 | T12: 2233431.458 | W12: 1701368 | X12: 2233431.458 | Y12: 1.312726851
B13: Adquisición de un Sistema de Vigilancia Aérea para el Espacio Aéreo Inferior (ADSB) | C13: 0 | E13: 0 | G13: 585000 | I13: 682500 | K13: 682500 | M13: 1950000 | N13: 0 | O13: 0 | R13: Modernizaciòn de sistemas Conmutaciòn oral ATS 15 aeròdromos no controlados | W13: 0 | X13: 0 | Y13: 1
B14: Sistemas de Aeronavegación para la Segunda Pista del Arpto. Jorge Chávez (*) | C14: 0 | E14: 0 | G14: 810724 | I14: 3242896 | J14: 127546.495 | K14: 4053620 | L14: 692359.8446 | M14: 8107240 | N14: 819906.3396 | O14: 0.1011326098 | R14: Equipos diversos, Estudios- Nivel Nacional. | S14: 122184 | T14: 58234.52685 | U14: 107674 | V14: 4648.648649 | W14: 229858 | X14: 62883.1755 | Y14: 0.2735740131
B15: Sistemas de Aeronavegación para el Aeropuerto de Chinchero - Cusco | C15: 0 | E15: 0 | G15: 1002575 | I15: 4010299 | K15: 5012873 | M15: 10025747 | N15: 0 | O15: 0 | R15: Sistemas UPS para protección de equipos de aeronavegación Nivel nacional. | S15: 70646 | U15: 612555 | W15: 683201 | X15: 0 | Y15: 0
B16: Construcción de la torre de control del Aeropuerto de Juanjui | C16: 0 | E16: 0 | G16: 219718 | M16: 219718 | N16: 0 | O16: 0 | R16: Equipos de aire acondicionado para estaciones - Nivel nacional | S16: 21670 | U16: 545425 | W16: 567095 | X16: 0 | Y16: 0
B17: Construcción de la torre de control del Aeropuerto de Chimbote | C17: 0 | E17: 0 | I17: 219718 | M17: 219718 | N17: 0 | O17: 0 | R17: Luces de Aproximación | U17: 205068 | W17: 205068 | X17: 0 | Y17: 0
B18: Construcción de la torre de control del Aeropuerto de Tingo María | C18: 0 | E18: 0 | K18: 219718 | M18: 219718 | N18: 0 | O18: 0 | R18: Sistema de Ayudas Luminosas - Reposición (Pto Maldonado, Tacna, Tarapoto, Pucallpa, Talara,Tumbes) | U18: 688537 | W18: 688537 | X18: 0 | Y18: 0
B19: Equipos de radio VHF TWR - Dual - Nivel nacional (*) | C19: 240797.05 | E19: 2407972.45 | I19: 2237424 | J19: 175178.2546 | K19: 2372552 | L19: 2010303.886 | M19: 7258745.5 | N19: 2185482.141 | O19: 0.3010826238 | R19: 03 Sistema computarizado control remoto de los sistemas ayudas luminosas | U19: 306393 | W19: 306393 | X19: 0 | Y19: 0
B20: Sistemas ATIS (Pisco, Piura, Trujillo, Iquitos y Nasca) | C20: 394598.75 | E20: 0 | F20: 438261 | I20: 19473 | K20: 175257 | M20: 589328.75 | N20: 438261 | O20: 0.7436613266 | R20: Renovaciòn y mejoramiento de sub estaciones electricas. | U20: 214251 | W20: 214251 | X20: 0 | Y20: 0
B21: Equipos HF tierra-aire | C21: 175115.85 | E21: 700463.4 | F21: 390919 | G21: 701771 | H21: =1206287/3.31 -> 364437.1601 | I21: 488186 | K21: 488186 | M21: 2553722.25 | N21: 755356.1601 | O21: 0.2957863409 | R21: Luces de calle de rodaje Arpto. Jorge Chávez | U21: 314881 | W21: 314881 | X21: 0 | Y21: 0
B22: 06 Radioenlaces (Lima, Iquitos, Yurimaguas, Urcos) | C22: 21813.35 | E22: 208858 | M22: 230671.35 | N22: 0 | O22: 0 | R22: Adquisición e instalación letreros de señalizaciòn vertical Aeropuerto Jorge Chàvez | S22: 14219 | T22: 0 | U22: 123288 | V22: 0 | W22: 137507 | X22: 0 | Y22: 0
B23: Paneles de radiocomunicaciones TWR Aeropuertos no controlados | C23: 5603.65 | E23: 50432.85 | M23: 56036.5 | N23: 0 | O23: 0 | R23: Estudios, equipos diversos,obras e instalación - Nivel nacional. | S23: 119232 | T23: 81347 | U23: 388031 | V23: 62163.51351 | W23: 507263 | X23: 143510.5135 | Y23: 0.2829114552
B24: Multiplexores REDAP/VSAT | C24: 54925 | E24: 494325 | M24: 549250 | N24: 0 | O24: 0 | R24: Renovación de Sistemas de Radioayudas (Grupo 1): | U24: 1431782 | W24: 1431782 | X24: 0 | Y24: 0
B25: Equipos diversos - Nivel Nacional | C25: 66431.95 | D25: 68459 | E25: 65000 | F25: 75611 | G25: 65000 | H25: 241197 | I25: 65000 | J25: 3231.187411 | K25: 65000 | L25: 13442.74611 | M25: 326431.95 | N25: 401940.9335 | O25: 1.231316155 | R25: Unidad mòvil integrada para ensayos de tierra de sistemas de aeronavegación | U25: 681986 | W25: 681986 | X25: 0 | Y25: 0
B26: Sistemas de grabación - Nivel nacional | C26: 0 | E26: 478263.5 | I26: 434785 | J26: 1689300.715 | M26: 913048.5 | N26: 1689300.715 | O26: 1.850176322 | R26: Equipos diversos, obras e instalación - Nivel nacional. | S26: 40891 | T26: 280.3069054 | U26: 35504 | V26: 8640 | W26: 76395 | X26: 8920.306905 | Y26: 0.1167655855
B27: Terminales AMHS | C27: 0 | E27: 10400 | G27: 93600 | M27: 104000 | N27: 0 | O27: 0 | R27: Grupos electrógenos -uso continuo Nivel nacional. | S27: 76176 | U27: 171241 | W27: 247417 | X27: 0 | Y27: 0
B28: Interfase para sistemas AMHS | C28: 0 | E28: 75624.9 | M28: 75624.9 | N28: 0 | O28: 0 | R28: Obras, equipos diversos y gastos de instalación. | S28: 22220 | T28: 2541.943734 | U28: 47178 | V28: 21069.45946 | W28: 69398 | X28: 23611.40319 | Y28: 0.340231753
B29: Reposición del sistema de mensajería aeronáutica AMHS | C29: 0 | E29: 260000 | G29: 1040000 | M29: 1300000 | N29: 0 | O29: 0 | R29: Renovaciòn de REDAP y RED de VHF-AA del ACC(Sectorizaciòn PROESA) Incluye VHF-AA frecuencia Emergencia 121.5Mhz | U29: 1403469 | V29: 1351.351351 | W29: 1403469 | X29: 1351.351351 | Y29: 0.000962865123
B30: Sistemas UPS para Torres de Control de arptos. controlados Nivel nacional | C30: 210749.5 | D30: 255700 | E30: 142890.15 | M30: 353639.65 | N30: 255700 | O30: 0.7230524066 | R30: Renovación sistema AWOS de Cusco,Arequipa, Iquitos, Trujillo y Arptos. Controlados. | S30: 113027 | T30: 1725995.396 | U30: 343821 | W30: 456848 | X30: 1725995.396 | Y30: 3.778051773
B31: Renovación luces de aproximación y letreros de señalización vertical Arpto. Jorge Chávez | C31: 70363.15 | D31: 310562 | E31: 633268.35 | F31: 1261071 | L31: 259558.8083 | M31: 703631.5 | N31: 1831191.808 | O31: 2.602486967 | R31: Implementación de Sistemas Automáticas de Observaciones Meteorológicas (AWOS) en Aeropuertos Controlados | W31: 0 | X31: 0 | Y31: 1
B32: Sistema PAPI Jaén y Mazamari | C32: 104306.8 | D32: 197870 | E32: 0 | M32: 104306.8 | N32: 197870 | O32: 1.897000004 | R32: Receptor de Imágenes de satélite geoestacionario de alta resolución | U32: 127926 | W32: 127926 | X32: 0 | Y32: 0
B33: Estudios, equipos diversos, obras e instalación - Nivel nacional | C33: 413589.15 | D33: 257261 | E33: 188991.4 | F33: 541025 | G33: 180439 | H33: 171842 | I33: 682500 | J33: 1299.570815 | K33: 682500 | L33: 14424.87047 | M33: 2148019.55 | N33: 985852.4413 | O33: 0.4589587843 | R33: Sistema automàtico Radiosondaje (Piura,Iquitos,Pto. Maldonado) | W33: 0 | X33: 0 | Y33: 1
B34: Instalación de sistemas APAPI (Chachapoyas) | C34: 0 | E34: 24895.65 | F34: 40776 | M34: 24895.65 | N34: 40776 | O34: 1.637876496 | R34: Equipos diversos de meteorologìa y gastos de instalación - Nivel nacional. | S34: 360526 | T34: 75378.26087 | U34: 612317 | V34: 12731.08108 | W34: 972843 | X34: 88109.34195 | Y34: 0.09056892217
B35: Sistemas UPS para equipos de comunicaciones a nivel nacional | C35: 0 | E35: 27977.95 | F35: 132310 | G35: =167431+97923 -> 265354 | M35: 293331.95 | N35: 132310 | O35: 0.4510589453 | R35: Renovaciòn de equipos y sistemas del Centro de Control de Lima. | W35: 0 | X35: 0 | Y35: 1
B36: Equipos de aire acondicionado para estaciones - Nivel nacional | C36: 0 | D36: 54992 | E36: 146430.7 | G36: 270514 | H36: =1203452/3.31 -> 363580.6647 | I36: 180000 | K36: 396500 | L36: 327564.7668 | M36: 993444.7 | N36: 746137.4315 | O36: 0.7510608608 | R36: Estaciones ADS-B (Trujillo, Jauja, Yurimaguas, Pto Maldonado, Pisco) | U36: 772680 | W36: 772680 | X36: 0 | Y36: 0
B37: Luces de borde de calle de rodaje de Jorge Chávez | C37: 0 | E37: 0 | G37: 304498 | M37: 304498 | N37: 0 | O37: 0 | R37: Radomo | U37: 356540 | W37: 356540 | X37: 0 | Y37: 0
B38: Sistema APAPI (Anta Huaraz, Ilo) | C38: 0 | E38: 0 | G38: 145237 | H38: =997406/3.31 -> 301331.1178 | M38: 145237 | N38: 301331.1178 | O38: 2.07475449 | R38: Equipos diversos (Estación Radar y Centro de Control). | S38: 172172 | T38: 24359.59079 | U38: 135437 | V38: 14369.45946 | W38: 307609 | X38: 38729.05025 | Y38: 0.1259035017
B39: Instalación Sistemas de Radioayudas | C39: 476113.3 | D39: 294883 | E39: 0 | F39: 352346 | M39: 476113.3 | N39: 647229 | O39: 1.359401218 | R39: Construcción y/o mejoramiento de torres de control de Pisco (2022-2023), Iquitos (2023), Tarapoto (2024), Puerto Maldonado (2023), Jaén (2024), Jauja(2023), Nazca(2023), Mazamari (2024), Huánuco(2025), Tocache(2027), Atalaya (2026) | U39: 126672 | W39: 126672 | X39: 0 | Y39: 0
B40: Reposición Sistema DVOR/DME - Jorge Chávez | C40: 497429.4 | D40: 727285 | E40: 0 | L40: 269730.5699 | M40: 497429.4 | N40: 997015.5699 | O40: 2.004335831 | R40: Sistema de interfase para grabación y reproducción del Centro de Control y TWR | S40: 103073 | T40: 181418.9258 | W40: 103073 | X40: 181418.9258 | Y40: 1.760101344
